Workbook

Sheet Velkomst

Sheet Tabel 1 ØJ
A1: Tabel 1. Forsikrede medlemmer
A3: Østjylland
C5: Mænd | E5: Kvinder | G5: I alt
A7: Civ. ing. | C7: 2928 | E7: 921 | G7: 3849
A8: Diplom ing. | C8: 5629 | E8: 1150 | G8: 6779
A9: Cand. Scient. Tek. | C9: 1599 | E9: 1056 | G9: 2655
A10: MA. Hum. | C10: 2601 | E10: 5411 | G10: 8012
A11: MA. Nat. | C11: 1618 | E11: 1298 | G11: 2916
A12: MA. Ph.d. | C12: 303 | E12: 236 | G12: 539
A13: MA. Samf. | C13: 136 | E13: 505 | G13: 641
A14: Øvrige Mag. | C14: 200 | E14: 357 | G14: 557
A15: Agronom | C15: 198 | E15: 149 | G15: 347
A16: Landsk. Arkt. | C16: 11 | E16: 28 | G16: 39
A17: Hortonom | C17: 12 | E17: 16 | G17: 28
A18: Forstkand. | C18: 43 | E18: 10 | G18: 53
A19: Jordbrugsakad. | C19: 264 | E19: 203 | G19: 467
A20: Mejeriing. | C20: 59 | E20: 29 | G20: 88
A21: Levn.m.kand. | C21: 1 | E21: 26 | G21: 27
A22: Dyrlæge | C22: 44 | E22: 182 | G22: 226
A23: Farmaceut | C23: 68 | E23: 222 | G23: 290
A24: Læge | C24: 750 | E24: 1672 | G24: 2422
A25: Tandlæge | C25: 69 | E25: 400 | G25: 469
A26: Arkitekt | C26: 710 | E26: 821 | G26: 1531
A27: Landinspek. | C27: 102 | E27: 37 | G27: 139
A28: Bibliotekar | C28: 77 | E28: 295 | G28: 372
A29: Musikudd. | C29: 73 | E29: 84 | G29: 157
A30: Teolog | C30: 129 | E30: 206 | G30: 335
A31: Psykolog | C31: 317 | E31: 1549 | G31: 1866
A32: Jurist | C32: 781 | E32: 1409 | G32: 2190
A33: Økonom | C33: 895 | E33: 494 | G33: 1389
A34: Samf. Adm. | C34: 1270 | E34: 1694 | G34: 2964
A35: Cand. Merc. | C35: 3403 | E35: 3071 | G35: 6474
A36: HA | C36: 562 | E36: 491 | G36: 1053
A37: HD | C37: 475 | E37: 395 | G37: 870
A38: Komm. og Sprog | C38: 160 | E38: 1137 | G38: 1297
A39: Cand. IT. | C39: 462 | E39: 396 | G39: 858
A40: Bac. Samf. | C40: 93 | E40: 87 | G40: 180
A41: Bac. Hum. | C41: 271 | E41: 394 | G41: 665
A42: Bac. Nat. | C42: 309 | E42: 123 | G42: 432
A43: Andre | C43: 1482 | E43: 1358 | G43: 2840
A45: Total | C45: 27840 | E45: 27709 | G45: 55549
A47: Ingeniører i alt | C47: 8557 | E47: 2071 | G47: 10628
A48: Magistre i alt | C48: 4858 | E48: 7807 | G48: 12665
A49: DJØF'ere i alt | C49: 6911 | E49: 7159 | G49: 14070
A56: Horsens
C58: Mænd | E58: Kvinder | G58: I alt
A60: Civ. ing. | C60: 197 | E60: 69 | G60: 266
A61: Diplom ing. | C61: 718 | E61: 223 | G61: 941
A62: Cand. Scient. Tek. | C62: 68 | E62: 51 | G62: 119
A63: MA. Hum. | C63: 112 | E63: 243 | G63: 355
A64: MA. Nat. | C64: 63 | E64: 64 | G64: 127
A65: MA. Ph.d. | C65: 4 | E65: 4 | G65: 8
A66: MA. Samf. | C66: 7 | E66: 17 | G66: 24
A67: Øvrige Mag. | C67: 16 | E67: 13 | G67: 29
A68: Agronom | C68: 23 | E68: 14 | G68: 37
A69: Landsk. Arkt. | C69: 1 | E69: 1 | G69: 2
A70: Hortonom | C70: 0 | E70: 1 | G70: 1
A71: Forstkand. | C71: 6 | E71: 0 | G71: 6
A72: Jordbrugsakad. | C72: 30 | E72: 16 | G72: 46
A73: Mejeriing. | C73: 6 | E73: 1 | G73: 7
A74: Levn.m.kand. | C74: 0 | E74: 0 | G74: 0
A75: Dyrlæge | C75: 5 | E75: 14 | G75: 19
A76: Farmaceut | C76: 4 | E76: 17 | G76: 21
A77: Læge | C77: 18 | E77: 50 | G77: 68
A78: Tandlæge | C78: 4 | E78: 18 | G78: 22
A79: Arkitekt | C79: 32 | E79: 31 | G79: 63
A80: Landinspek. | C80: 14 | E80: 6 | G80: 20
A81: Bibliotekar | C81: 6 | E81: 29 | G81: 35
A82: Musikudd. | C82: 3 | E82: 5 | G82: 8
A83: Teolog | C83: 10 | E83: 10 | G83: 20
A84: Psykolog | C84: 15 | E84: 65 | G84: 80
A85: Jurist | C85: 39 | E85: 99 | G85: 138
A86: Økonom | C86: 28 | E86: 35 | G86: 63
A87: Samf. Adm. | C87: 62 | E87: 86 | G87: 148
A88: Cand. Merc. | C88: 188 | E88: 223 | G88: 411
A89: HA | C89: 51 | E89: 45 | G89: 96
A90: HD | C90: 35 | E90: 23 | G90: 58
A91: Komm. og Sprog | C91: 7 | E91: 68 | G91: 75
A92: Cand. IT. | C92: 17 | E92: 20 | G92: 37
A93: Bac. Samf. | C93: 7 | E93: 6 | G93: 13
A94: Bac. Hum. | C94: 11 | E94: 22 | G94: 33
A95: Bac. Nat. | C95: 43 | E95: 18 | G95: 61
A96: Andre | C96: 136 | E96: 85 | G96: 221
A98: Total | C98: 1956 | E98: 1676 | G98: 3632
A100: Ingeniører i alt | C100: 915 | E100: 292 | G100: 1207
A101: Magistre i alt | C101: 202 | E101: 341 | G101: 543
A102: DJØF'ere i alt | C102: 368 | E102: 488 | G102: 856
A109: Syddjurs
C111: Mænd | E111: Kvinder | G111: I alt
A113: Civ. ing. | C113: 51 | E113: 15 | G113: 66
A114: Diplom ing. | C114: 169 | E114: 28 | G114: 197
A115: Cand. Scient. Tek. | C115: 14 | E115: 15 | G115: 29
A116: MA. Hum. | C116: 58 | E116: 121 | G116: 179
A117: MA. Nat. | C117: 68 | E117: 42 | G117: 110
A118: MA. Ph.d. | C118: 5 | E118: 7 | G118: 12
A119: MA. Samf. | C119: 0 | E119: 3 | G119: 3
A120: Øvrige Mag. | C120: 6 | E120: 9 | G120: 15
A121: Agronom | C121: 22 | E121: 11 | G121: 33
A122: Landsk. Arkt. | C122: 1 | E122: 4 | G122: 5
A123: Hortonom | C123: 2 | E123: 2 | G123: 4
A124: Forstkand. | C124: 2 | E124: 1 | G124: 3
A125: Jordbrugsakad. | C125: 27 | E125: 18 | G125: 45
A126: Mejeriing. | C126: 1 | E126: 1 | G126: 2
A127: Levn.m.kand. | C127: 0 | E127: 0 | G127: 0
A128: Dyrlæge | C128: 2 | E128: 9 | G128: 11
A129: Farmaceut | C129: 2 | E129: 5 | G129: 7
A130: Læge | C130: 7 | E130: 18 | G130: 25
A131: Tandlæge | C131: 4 | E131: 13 | G131: 17
A132: Arkitekt | C132: 18 | E132: 33 | G132: 51
A133: Landinspek. | C133: 2 | E133: 2 | G133: 4
A134: Bibliotekar | C134: 3 | E134: 15 | G134: 18
A135: Musikudd. | C135: 4 | E135: 2 | G135: 6
A136: Teolog | C136: 4 | E136: 12 | G136: 16
A137: Psykolog | C137: 9 | E137: 38 | G137: 47
A138: Jurist | C138: 9 | E138: 35 | G138: 44
A139: Økonom | C139: 15 | E139: 10 | G139: 25
A140: Samf. Adm. | C140: 17 | E140: 29 | G140: 46
A141: Cand. Merc. | C141: 47 | E141: 34 | G141: 81
A142: HA | C142: 16 | E142: 20 | G142: 36
A143: HD | C143: 10 | E143: 7 | G143: 17
A144: Komm. og Sprog | C144: 3 | E144: 35 | G144: 38
A145: Cand. IT. | C145: 4 | E145: 3 | G145: 7
A146: Bac. Samf. | C146: 0 | E146: 0 | G146: 0
A147: Bac. Hum. | C147: 9 | E147: 9 | G147: 18
A148: Bac. Nat. | C148: 8 | E148: 1 | G148: 9
A149: Andre | C149: 54 | E149: 39 | G149: 93
A151: Total | C151: 646 | E151: 628 | G151: 1274
A153: Ingeniører i alt | C153: 220 | E153: 43 | G153: 263
A154: Magistre i alt | C154: 137 | E154: 182 | G154: 319
A155: DJØF'ere i alt | C155: 104 | E155: 128 | G155: 232
A162: Norddjurs
C164: Mænd | E164: Kvinder | G164: I alt
A166: Civ. ing. | C166: 16 | E166: 5 | G166: 21
A167: Diplom ing. | C167: 76 | E167: 19 | G167: 95
A168: Cand. Scient. Tek. | C168: 10 | E168: 7 | G168: 17
A169: MA. Hum. | C169: 22 | E169: 49 | G169: 71
A170: MA. Nat. | C170: 18 | E170: 15 | G170: 33
A171: MA. Ph.d. | C171: 0 | E171: 0 | G171: 0
A172: MA. Samf. | C172: 0 | E172: 2 | G172: 2
A173: Øvrige Mag. | C173: 1 | E173: 4 | G173: 5
A174: Agronom | C174: 4 | E174: 2 | G174: 6
A175: Landsk. Arkt. | C175: 0 | E175: 0 | G175: 0
A176: Hortonom | C176: 1 | E176: 0 | G176: 1
A177: Forstkand. | C177: 1 | E177: 0 | G177: 1
A178: Jordbrugsakad. | C178: 6 | E178: 2 | G178: 8
A179: Mejeriing. | C179: 0 | E179: 0 | G179: 0
A180: Levn.m.kand. | C180: 0 | E180: 1 | G180: 1
A181: Dyrlæge | C181: 1 | E181: 6 | G181: 7
A182: Farmaceut | C182: 1 | E182: 1 | G182: 2
A183: Læge | C183: 2 | E183: 1 | G183: 3
A184: Tandlæge | C184: 0 | E184: 4 | G184: 4
A185: Arkitekt | C185: 5 | E185: 3 | G185: 8
A186: Landinspek. | C186: 2 | E186: 0 | G186: 2
A187: Bibliotekar | C187: 2 | E187: 6 | G187: 8
A188: Musikudd. | C188: 2 | E188: 1 | G188: 3
A189: Teolog | C189: 5 | E189: 6 | G189: 11
A190: Psykolog | C190: 2 | E190: 14 | G190: 16
A191: Jurist | C191: 2 | E191: 8 | G191: 10
A192: Økonom | C192: 5 | E192: 3 | G192: 8
A193: Samf. Adm. | C193: 14 | E193: 5 | G193: 19
A194: Cand. Merc. | C194: 14 | E194: 15 | G194: 29
A195: HA | C195: 10 | E195: 7 | G195: 17
A196: HD | C196: 7 | E196: 2 | G196: 9
A197: Komm. og Sprog | C197: 0 | E197: 13 | G197: 13
A198: Cand. IT. | C198: 1 | E198: 1 | G198: 2
A199: Bac. Samf. | C199: 1 | E199: 1 | G199: 2
A200: Bac. Hum. | C200: 2 | E200: 5 | G200: 7
A201: Bac. Nat. | C201: 0 | E201: 1 | G201: 1
A202: Andre | C202: 27 | E202: 9 | G202: 36
A204: Total | C204: 254 | E204: 216 | G204: 470
A206: Ingeniører i alt | C206: 92 | E206: 24 | G206: 116
A207: Magistre i alt | C207: 41 | E207: 70 | G207: 111
A208: DJØF'ere i alt | C208: 45 | E208: 38 | G208: 83
A215: Favrskov
C217: Mænd | E217: Kvinder | G217: I alt
A219: Civ. ing. | C219: 201 | E219: 60 | G219: 261
A220: Diplom ing. | C220: 364 | E220: 58 | G220: 422
A221: Cand. Scient. Tek. | C221: 61 | E221: 52 | G221: 113
A222: MA. Hum. | C222: 90 | E222: 216 | G222: 306
A223: MA. Nat. | C223: 99 | E223: 75 | G223: 174
A224: MA. Ph.d. | C224: 9 | E224: 8 | G224: 17
A225: MA. Samf. | C225: 1 | E225: 13 | G225: 14
A226: Øvrige Mag. | C226: 8 | E226: 12 | G226: 20
A227: Agronom | C227: 34 | E227: 22 | G227: 56
A228: Landsk. Arkt. | C228: 1 | E228: 1 | G228: 2
A229: Hortonom | C229: 3 | E229: 2 | G229: 5
A230: Forstkand. | C230: 4 | E230: 1 | G230: 5
A231: Jordbrugsakad. | C231: 42 | E231: 26 | G231: 68
A232: Mejeriing. | C232: 3 | E232: 2 | G232: 5
A233: Levn.m.kand. | C233: 0 | E233: 1 | G233: 1
A234: Dyrlæge | C234: 2 | E234: 20 | G234: 22
A235: Farmaceut | C235: 1 | E235: 8 | G235: 9
A236: Læge | C236: 27 | E236: 77 | G236: 104
A237: Tandlæge | C237: 3 | E237: 16 | G237: 19
A238: Arkitekt | C238: 14 | E238: 17 | G238: 31
A239: Landinspek. | C239: 10 | E239: 3 | G239: 13
A240: Bibliotekar | C240: 6 | E240: 21 | G240: 27
A241: Musikudd. | C241: 2 | E241: 2 | G241: 4
A242: Teolog | C242: 2 | E242: 12 | G242: 14
A243: Psykolog | C243: 11 | E243: 50 | G243: 61
... 318 more rows

Sheet Tabel 2 ØJ
A1: Tabel 2. Antal bruttoledighedsberørte og gennemsnitlig antal ledige brutto
A3: Østjylland
C5: Mænd | F5: Kvinder | I5: I alt
C6: Ledigheds- berørte | D6: Gns. brutto- ledighed | F6: Ledigheds- berørte | G6: Gns. brutto- ledighed | I6: Ledigheds- berørte | J6: Gns. brutto- ledighed
A9: Civ. ing. | C9: 84 | D9: 75.36206574 | F9: 42 | G9: 36.18536768 | I9: 126 | J9: 111.5474334
A10: Diplom ing. | C10: 148 | D10: 129.472962 | F10: 47 | G10: 43.51275494 | I10: 195 | J10: 172.985717
A11: Cand. Scient. Tek. | C11: 150 | D11: 131.8973367 | F11: 144 | G11: 127.018649 | I11: 294 | J11: 258.9159858
A12: MA. Hum. | C12: 320 | D12: 273.1422691 | F12: 749 | G12: 636.0019959 | I12: 1069 | J12: 909.144265
A13: MA. Nat. | C13: 65 | D13: 56.48287906 | F13: 71 | G13: 61.56739225 | I13: 136 | J13: 118.0502713
A14: MA. Ph.d. | C14: 15 | D14: 11.70959895 | F14: 15 | G14: 13.50215181 | I14: 30 | J14: 25.21175076
A15: MA. Samf. | C15: 27 | D15: 22.29339487 | F15: 100 | G15: 83.17844446 | I15: 127 | J15: 105.4718393
A16: Øvrige Mag. | C16: 18 | D16: 16.30324955 | F16: 38 | G16: 33.37179567 | I16: 56 | J16: 49.67504522
A17: Agronom | C17: 3 | D17: 2.1156365 | F17: 10 | G17: 8.58604129 | I17: 13 | J17: 10.70167779
A18: Landsk. Arkt. | C18: 0 | D18: 0 | F18: 1 | G18: 0.7746522797 | I18: 1 | J18: 0.7746522797
A19: Hortonom | C19: 0 | D19: 0 | F19: 0 | G19: 0 | I19: 0 | J19: 0
A20: Forstkand. | C20: 1 | D20: 0.9998128859 | F20: 0 | G20: 0 | I20: 1 | J20: 0.9998128859
A21: Jordbrugsakad. | C21: 4 | D21: 3.115449386 | F21: 11 | G21: 9.36069357 | I21: 15 | J21: 12.47614296
A22: Mejeriing. | C22: 1 | D22: 0.3536456059 | F22: 1 | G22: 0.3536456059 | I22: 2 | J22: 0.7072912119
A23: Levn.m.kand. | C23: 0 | D23: 0 | F23: 2 | G23: 1.953470966 | I23: 2 | J23: 1.953470966
A24: Dyrlæge | C24: 0 | D24: 0 | F24: 2 | G24: 1.269880871 | I24: 2 | J24: 1.269880871
A25: Farmaceut | C25: 6 | D25: 5.593463482 | F25: 21 | G25: 18.72700056 | I25: 27 | J25: 24.32046404
A26: Læge | C26: 18 | D26: 16.61448263 | F26: 46 | G26: 39.02638308 | I26: 64 | J26: 55.64086571
A27: Tandlæge | C27: 0 | D27: 0 | F27: 6 | G27: 3.880122248 | I27: 6 | J27: 3.880122248
A28: Arkitekt | C28: 48 | D28: 44.04914863 | F28: 72 | G28: 60.24262459 | I28: 120 | J28: 104.2917732
A29: Landinspek. | C29: 0 | D29: 0 | F29: 1 | G29: 0.9998128859 | I29: 1 | J29: 0.9998128859
A30: Bibliotekar | C30: 4 | D30: 3.531466351 | F30: 18 | G30: 15.63837086 | I30: 22 | J30: 19.16983721
A31: Musikudd. | C31: 0 | D31: 0 | F31: 1 | G31: 0.3998004117 | I31: 1 | J31: 0.3998004117
A32: Teolog | C32: 8 | D32: 6.56770411 | F32: 13 | G32: 10.48150689 | I32: 21 | J32: 17.049211
A33: Psykolog | C33: 34 | D33: 30.60001247 | F33: 139 | G33: 118.75881 | I33: 173 | J33: 149.3588224
A34: Jurist | C34: 33 | D34: 28.80184619 | F34: 37 | G34: 30.85324019 | I34: 70 | J34: 59.65508638
A35: Økonom | C35: 38 | D35: 33.03311919 | F35: 16 | G35: 12.20545126 | I35: 54 | J35: 45.23857045
A36: Samf. Adm. | C36: 85 | D36: 80.62620845 | F36: 159 | G36: 136.4997193 | I36: 244 | J36: 217.1259278
A37: Cand. Merc. | C37: 168 | D37: 151.4763301 | F37: 216 | G37: 182.7000561 | I37: 384 | J37: 334.1763862
A38: HA | C38: 36 | D38: 30.52953284 | F38: 50 | G38: 43.2352024 | I38: 86 | J38: 73.76473523
A39: HD | C39: 25 | D39: 22.6663756 | F39: 44 | G39: 38.37273124 | I39: 69 | J39: 61.03910684
A40: Komm. og Sprog | C40: 22 | D40: 17.93862658 | F40: 75 | G40: 64.50134098 | I40: 97 | J40: 82.43996757
A41: Cand. IT. | C41: 47 | D41: 42.8547371 | F41: 34 | G41: 29.12243498 | I41: 81 | J41: 71.97717208
A42: Bac. Samf. | C42: 5 | D42: 4.952909624 | F42: 10 | G42: 7.992265951 | I42: 15 | J42: 12.94517558
A43: Bac. Hum. | C43: 29 | D43: 25.6539637 | F43: 57 | G43: 48.21306056 | I43: 86 | J43: 73.86702426
A44: Bac. Nat. | C44: 23 | D44: 20.96239007 | F44: 18 | G44: 15.57787064 | I44: 41 | J44: 36.54026071
A45: Andre | C45: 91 | D45: 81.17757126 | F45: 132 | G45: 109.2933325 | I45: 223 | J45: 190.4709038
A47: Total | C47: 1552 | D47: 1367.762739 | F47: 2387 | G47: 2033.99738 | I47: 3939 | J47: 3401.76012
A49: Ingeniører i alt | C49: 232 | D49: 204.8350278 | F49: 89 | G49: 79.69812262 | I49: 321 | J49: 284.5331504
A50: Magistre i alt | C50: 445 | D50: 379.9313915 | F50: 973 | G50: 827.6217801 | I50: 1418 | J50: 1207.553172
A51: DJØF'ere i alt | C51: 360 | D51: 324.4670367 | F51: 478 | G51: 405.4936693 | I51: 838 | J51: 729.960706
A56: Horsens
C58: Mænd | F58: Kvinder | I58: I alt
C59: Ledigheds- berørte | D59: Gns. brutto- ledighed | F59: Ledigheds- berørte | G59: Gns. brutto- ledighed | I59: Ledigheds- berørte | J59: Gns. brutto- ledighed
A62: Civ. ing. | C62: 2 | D62: 1.999625772 | F62: 2 | G62: 1.999625772 | I62: 4 | J62: 3.999251544
A63: Diplom ing. | C63: 19 | D63: 16.75856047 | F63: 11 | G63: 10.76716772 | I63: 30 | J63: 27.52572819
A64: Cand. Scient. Tek. | C64: 8 | D64: 6.983097362 | F64: 7 | G64: 6.721761367 | I64: 15 | J64: 13.70485873
A65: MA. Hum. | C65: 10 | D65: 7.40659889 | F65: 31 | G65: 24.61859914 | I65: 41 | J65: 32.02519803
A66: MA. Nat. | C66: 0 | D66: 0 | F66: 2 | G66: 1.999625772 | I66: 2 | J66: 1.999625772
A67: MA. Ph.d. | C67: 0 | D67: 0 | F67: 0 | G67: 0 | I67: 0 | J67: 0
A68: MA. Samf. | C68: 1 | D68: 0.7228840516 | F68: 3 | G68: 2.680721013 | I68: 4 | J68: 3.403605065
A69: Øvrige Mag. | C69: 1 | D69: 0.9998128859 | F69: 2 | G69: 1.594211938 | I69: 3 | J69: 2.594024824
A70: Agronom | C70: 0 | D70: 0 | F70: 1 | G70: 0.7415954594 | I70: 1 | J70: 0.7415954594
A71: Landsk. Arkt. | C71: 0 | D71: 0 | F71: 0 | G71: 0 | I71: 0 | J71: 0
A72: Hortonom | C72: 0 | D72: 0 | F72: 0 | G72: 0 | I72: 0 | J72: 0
A73: Forstkand. | C73: 0 | D73: 0 | F73: 0 | G73: 0 | I73: 0 | J73: 0
A74: Jordbrugsakad. | C74: 0 | D74: 0 | F74: 1 | G74: 0.7415954594 | I74: 1 | J74: 0.7415954594
A75: Mejeriing. | C75: 0 | D75: 0 | F75: 0 | G75: 0 | I75: 0 | J75: 0
A76: Levn.m.kand. | C76: 0 | D76: 0 | F76: 0 | G76: 0 | I76: 0 | J76: 0
A77: Dyrlæge | C77: 0 | D77: 0 | F77: 0 | G77: 0 | I77: 0 | J77: 0
A78: Farmaceut | C78: 0 | D78: 0 | F78: 2 | G78: 1.030374852 | I78: 2 | J78: 1.030374852
A79: Læge | C79: 0 | D79: 0 | F79: 0 | G79: 0 | I79: 0 | J79: 0
A80: Tandlæge | C80: 0 | D80: 0 | F80: 0 | G80: 0 | I80: 0 | J80: 0
A81: Arkitekt | C81: 0 | D81: 0 | F81: 0 | G81: 0 | I81: 0 | J81: 0
A82: Landinspek. | C82: 0 | D82: 0 | F82: 0 | G82: 0 | I82: 0 | J82: 0
A83: Bibliotekar | C83: 0 | D83: 0 | F83: 0 | G83: 0 | I83: 0 | J83: 0
A84: Musikudd. | C84: 0 | D84: 0 | F84: 0 | G84: 0 | I84: 0 | J84: 0
A85: Teolog | C85: 0 | D85: 0 | F85: 0 | G85: 0 | I85: 0 | J85: 0
A86: Psykolog | C86: 1 | D86: 0.9748643423 | F86: 6 | G86: 5.428803094 | I86: 7 | J86: 6.403667436
A87: Jurist | C87: 1 | D87: 0.4085324019 | F87: 4 | G87: 3.537703487 | I87: 5 | J87: 3.946235888
A88: Økonom | C88: 1 | D88: 0.9686272064 | F88: 0 | G88: 0 | I88: 1 | J88: 0.9686272064
A89: Samf. Adm. | C89: 6 | D89: 5.75126302 | F89: 7 | G89: 6.474770785 | I89: 13 | J89: 12.22603381
A90: Cand. Merc. | C90: 7 | D90: 6.306368116 | F90: 13 | G90: 11.93725441 | I90: 20 | J90: 18.24362253
A91: HA | C91: 3 | D91: 2.953283852 | F91: 13 | G91: 11.42830412 | I91: 16 | J91: 14.38158797
A92: HD | C92: 2 | D92: 1.999625772 | F92: 0 | G92: 0 | I92: 2 | J92: 1.999625772
A93: Komm. og Sprog | C93: 0 | D93: 0 | F93: 0 | G93: 0 | I93: 0 | J93: 0
A94: Cand. IT. | C94: 0 | D94: 0 | F94: 4 | G94: 3.766606374 | I94: 4 | J94: 3.766606374
A95: Bac. Samf. | C95: 0 | D95: 0 | F95: 0 | G95: 0 | I95: 0 | J95: 0
A96: Bac. Hum. | C96: 0 | D96: 0 | F96: 4 | G96: 3.461610428 | I96: 4 | J96: 3.461610428
A97: Bac. Nat. | C97: 4 | D97: 3.537703487 | F97: 3 | G97: 2.306492858 | I97: 7 | J97: 5.844196345
A98: Andre | C98: 19 | D98: 17.1502526 | F98: 17 | G98: 12.56658143 | I98: 36 | J98: 29.71683403
A100: Total | C100: 85 | D100: 74.92110023 | F100: 132 | G100: 113.06181 | I100: 217 | J100: 187.9829102
A102: Ingeniører i alt | C102: 21 | D102: 18.75818624 | F102: 13 | G102: 12.76679349 | I102: 34 | J102: 31.52497973
A103: Magistre i alt | C103: 12 | D103: 9.129295827 | F103: 38 | G103: 30.89315786 | I103: 50 | J103: 40.02245369
A104: DJØF'ere i alt | C104: 18 | D104: 16.3880746 | F104: 37 | G104: 33.37803281 | I104: 55 | J104: 49.7661074
A109: Syddjurs
C111: Mænd | F111: Kvinder | I111: I alt
C112: Ledigheds- berørte | D112: Gns. brutto- ledighed | F112: Ledigheds- berørte | G112: Gns. brutto- ledighed | I112: Ledigheds- berørte | J112: Gns. brutto- ledighed
A115: Civ. ing. | C115: 2 | D115: 1.90731616 | F115: 0 | G115: 0 | I115: 2 | J115: 1.90731616
A116: Diplom ing. | C116: 3 | D116: 2.600885673 | F116: 1 | G116: 0.9998128859 | I116: 4 | J116: 3.600698559
A117: Cand. Scient. Tek. | C117: 2 | D117: 1.353458492 | F117: 2 | G117: 1.353458492 | I117: 4 | J117: 2.706916984
A118: MA. Hum. | C118: 4 | D118: 2.983845818 | F118: 18 | G118: 14.00112268 | I118: 22 | J118: 16.9849685
A119: MA. Nat. | C119: 2 | D119: 1.616665627 | F119: 1 | G119: 0.09605189297 | I119: 3 | J119: 1.71271752
A120: MA. Ph.d. | C120: 1 | D120: 0.9998128859 | F120: 1 | G120: 0.9998128859 | I120: 2 | J120: 1.999625772
A121: MA. Samf. | C121: 0 | D121: 0 | F121: 1 | G121: 0.7503274496 | I121: 1 | J121: 0.7503274496
A122: Øvrige Mag. | C122: 1 | D122: 0.9998128859 | F122: 3 | G122: 2.999438658 | I122: 4 | J122: 3.999251544
A123: Agronom | C123: 0 | D123: 0 | F123: 2 | G123: 1.768851743 | I123: 2 | J123: 1.768851743
A124: Landsk. Arkt. | C124: 0 | D124: 0 | F124: 0 | G124: 0 | I124: 0 | J124: 0
A125: Hortonom | C125: 0 | D125: 0 | F125: 0 | G125: 0 | I125: 0 | J125: 0
A126: Forstkand. | C126: 0 | D126: 0 | F126: 0 | G126: 0 | I126: 0 | J126: 0
A127: Jordbrugsakad. | C127: 0 | D127: 0 | F127: 2 | G127: 1.768851743 | I127: 2 | J127: 1.768851743
A128: Mejeriing. | C128: 0 | D128: 0 | F128: 0 | G128: 0 | I128: 0 | J128: 0
A129: Levn.m.kand. | C129: 0 | D129: 0 | F129: 0 | G129: 0 | I129: 0 | J129: 0
A130: Dyrlæge | C130: 0 | D130: 0 | F130: 0 | G130: 0 | I130: 0 | J130: 0
A131: Farmaceut | C131: 0 | D131: 0 | F131: 1 | G131: 0.6767292459 | I131: 1 | J131: 0.6767292459
A132: Læge | C132: 0 | D132: 0 | F132: 1 | G132: 0.9075032745 | I132: 1 | J132: 0.9075032745
A133: Tandlæge | C133: 0 | D133: 0 | F133: 0 | G133: 0 | I133: 0 | J133: 0
A134: Arkitekt | C134: 0 | D134: 0 | F134: 3 | G134: 2.584045406 | I134: 3 | J134: 2.584045406
A135: Landinspek. | C135: 0 | D135: 0 | F135: 0 | G135: 0 | I135: 0 | J135: 0
A136: Bibliotekar | C136: 0 | D136: 0 | F136: 4 | G136: 3.092995696 | I136: 4 | J136: 3.092995696
A137: Musikudd. | C137: 0 | D137: 0 | F137: 0 | G137: 0 | I137: 0 | J137: 0
A138: Teolog | C138: 0 | D138: 0 | F138: 0 | G138: 0 | I138: 0 | J138: 0
A139: Psykolog | C139: 0 | D139: 0 | F139: 2 | G139: 1.238695191 | I139: 2 | J139: 1.238695191
A140: Jurist | C140: 1 | D140: 0.9998128859 | F140: 0 | G140: 0 | I140: 1 | J140: 0.9998128859
A141: Økonom | C141: 1 | D141: 0.9998128859 | F141: 0 | G141: 0 | I141: 1 | J141: 0.9998128859
A142: Samf. Adm. | C142: 2 | D142: 1.999625772 | F142: 2 | G142: 1.399613298 | I142: 4 | J142: 3.399239069
A143: Cand. Merc. | C143: 3 | D143: 2.768664629 | F143: 2 | G143: 1.768851743 | I143: 5 | J143: 4.537516372
A144: HA | C144: 0 | D144: 0 | F144: 0 | G144: 0 | I144: 0 | J144: 0
A145: HD | C145: 0 | D145: 0 | F145: 0 | G145: 0 | I145: 0 | J145: 0
A146: Komm. og Sprog | C146: 0 | D146: 0 | F146: 3 | G146: 2.797355454 | I146: 3 | J146: 2.797355454
A147: Cand. IT. | C147: 0 | D147: 0 | F147: 0 | G147: 0 | I147: 0 | J147: 0
A148: Bac. Samf. | C148: 0 | D148: 0 | F148: 0 | G148: 0 | I148: 0 | J148: 0
A149: Bac. Hum. | C149: 0 | D149: 0 | F149: 0 | G149: 0 | I149: 0 | J149: 0
A150: Bac. Nat. | C150: 0 | D150: 0 | F150: 0 | G150: 0 | I150: 0 | J150: 0
A151: Andre | C151: 4 | D151: 3.953096738 | F151: 6 | G151: 5.416328822 | I151: 10 | J151: 9.36942556
A153: Total | C153: 26 | D153: 23.18281045 | F153: 53 | G153: 42.85099482 | I153: 79 | J153: 66.03380528
A155: Ingeniører i alt | C155: 5 | D155: 4.508201834 | F155: 1 | G155: 0.9998128859 | I155: 6 | J155: 5.50801472
A156: Magistre i alt | C156: 8 | D156: 6.600137217 | F156: 24 | G156: 18.84675357 | I156: 32 | J156: 25.44689079
A157: DJØF'ere i alt | C157: 7 | D157: 6.767916173 | F157: 4 | G157: 3.168465041 | I157: 11 | J157: 9.936381214
A162: Norddjurs
C164: Mænd | F164: Kvinder | I164: I alt
C165: Ledigheds- berørte | D165: Gns. brutto- ledighed | F165: Ledigheds- berørte | G165: Gns. brutto- ledighed | I165: Ledigheds- berørte | J165: Gns. brutto- ledighed
A168: Civ. ing. | C168: 0 | D168: 0 | F168: 0 | G168: 0 | I168: 0 | J168: 0
A169: Diplom ing. | C169: 3 | D169: 2.999438658 | F169: 1 | G169: 0.9998128859 | I169: 4 | J169: 3.999251544
A170: Cand. Scient. Tek. | C170: 2 | D170: 1.999625772 | F170: 0 | G170: 0 | I170: 2 | J170: 1.999625772
A171: MA. Hum. | C171: 2 | D171: 1.616041914 | F171: 3 | G171: 2.894031061 | I171: 5 | J171: 4.510072974
A172: MA. Nat. | C172: 0 | D172: 0 | F172: 2 | G172: 1.999625772 | I172: 2 | J172: 1.999625772
A173: MA. Ph.d. | C173: 1 | D173: 0.9998128859 | F173: 0 | G173: 0 | I173: 1 | J173: 0.9998128859
A174: MA. Samf. | C174: 0 | D174: 0 | F174: 2 | G174: 1.999625772 | I174: 2 | J174: 1.999625772
A175: Øvrige Mag. | C175: 0 | D175: 0 | F175: 0 | G175: 0 | I175: 0 | J175: 0
A176: Agronom | C176: 0 | D176: 0 | F176: 0 | G176: 0 | I176: 0 | J176: 0
A177: Landsk. Arkt. | C177: 0 | D177: 0 | F177: 0 | G177: 0 | I177: 0 | J177: 0
A178: Hortonom | C178: 0 | D178: 0 | F178: 0 | G178: 0 | I178: 0 | J178: 0
A179: Forstkand. | C179: 0 | D179: 0 | F179: 0 | G179: 0 | I179: 0 | J179: 0
A180: Jordbrugsakad. | C180: 0 | D180: 0 | F180: 0 | G180: 0 | I180: 0 | J180: 0
A181: Mejeriing. | C181: 0 | D181: 0 | F181: 0 | G181: 0 | I181: 0 | J181: 0
A182: Levn.m.kand. | C182: 0 | D182: 0 | F182: 0 | G182: 0 | I182: 0 | J182: 0
A183: Dyrlæge | C183: 0 | D183: 0 | F183: 0 | G183: 0 | I183: 0 | J183: 0
A184: Farmaceut | C184: 0 | D184: 0 | F184: 0 | G184: 0 | I184: 0 | J184: 0
A185: Læge | C185: 0 | D185: 0 | F185: 0 | G185: 0 | I185: 0 | J185: 0
A186: Tandlæge | C186: 0 | D186: 0 | F186: 0 | G186: 0 | I186: 0 | J186: 0
A187: Arkitekt | C187: 0 | D187: 0 | F187: 0 | G187: 0 | I187: 0 | J187: 0
A188: Landinspek. | C188: 0 | D188: 0 | F188: 1 | G188: 0.9998128859 | I188: 1 | J188: 0.9998128859
A189: Bibliotekar | C189: 0 | D189: 0 | F189: 1 | G189: 0.9998128859 | I189: 1 | J189: 0.9998128859
A190: Musikudd. | C190: 0 | D190: 0 | F190: 0 | G190: 0 | I190: 0 | J190: 0
A191: Teolog | C191: 0 | D191: 0 | F191: 1 | G191: 0.9998128859 | I191: 1 | J191: 0.9998128859
A192: Psykolog | C192: 1 | D192: 0.8126988087 | F192: 2 | G192: 1.269880871 | I192: 3 | J192: 2.082579679
A193: Jurist | C193: 0 | D193: 0 | F193: 0 | G193: 0 | I193: 0 | J193: 0
A194: Økonom | C194: 0 | D194: 0 | F194: 0 | G194: 0 | I194: 0 | J194: 0
A195: Samf. Adm. | C195: 2 | D195: 1.999625772 | F195: 1 | G195: 0.9998128859 | I195: 3 | J195: 2.999438658
A196: Cand. Merc. | C196: 2 | D196: 1.974677228 | F196: 2 | G196: 1.58423252 | I196: 4 | J196: 3.558909749
A197: HA | C197: 2 | D197: 1.999625772 | F197: 0 | G197: 0 | I197: 2 | J197: 1.999625772
A198: HD | C198: 0 | D198: 0 | F198: 0 | G198: 0 | I198: 0 | J198: 0
A199: Komm. og Sprog | C199: 0 | D199: 0 | F199: 0 | G199: 0 | I199: 0 | J199: 0
A200: Cand. IT. | C200: 0 | D200: 0 | F200: 0 | G200: 0 | I200: 0 | J200: 0
A201: Bac. Samf. | C201: 0 | D201: 0 | F201: 0 | G201: 0 | I201: 0 | J201: 0
A202: Bac. Hum. | C202: 0 | D202: 0 | F202: 0 | G202: 0 | I202: 0 | J202: 0
A203: Bac. Nat. | C203: 0 | D203: 0 | F203: 0 | G203: 0 | I203: 0 | J203: 0
A204: Andre | C204: 0 | D204: 0 | F204: 0 | G204: 0 | I204: 0 | J204: 0
A206: Total | C206: 15 | D206: 14.40154681 | F206: 16 | G206: 14.74646043 | I206: 31 | J206: 29.14800724
A208: Ingeniører i alt | C208: 3 | D208: 2.999438658 | F208: 1 | G208: 0.9998128859 | I208: 4 | J208: 3.999251544
A209: Magistre i alt | C209: 3 | D209: 2.615854799 | F209: 7 | G209: 6.893282605 | I209: 10 | J209: 9.509137404
A210: DJØF'ere i alt | C210: 6 | D210: 5.973928772 | F210: 3 | G210: 2.584045406 | I210: 9 | J210: 8.557974178
A215: Favrskov
C217: Mænd | F217: Kvinder | I217: I alt
C218: Ledigheds- berørte | D218: Gns. brutto- ledighed | F218: Ledigheds- berørte | G218: Gns. brutto- ledighed | I218: Ledigheds- berørte | J218: Gns. brutto- ledighed
A221: Civ. ing. | C221: 3 | D221: 2.307116572 | F221: 2 | G221: 1.260525167 | I221: 5 | J221: 3.567641739
A222: Diplom ing. | C222: 2 | D222: 1.815006549 | F222: 0 | G222: 0 | I222: 2 | J222: 1.815006549
A223: Cand. Scient. Tek. | C223: 1 | D223: 0.9998128859 | F223: 2 | G223: 1.122684463 | I223: 3 | J223: 2.122497349
A224: MA. Hum. | C224: 6 | D224: 5.721948481 | F224: 17 | G224: 14.79511009 | I224: 23 | J224: 20.51705857
A225: MA. Nat. | C225: 2 | D225: 1.999625772 | F225: 2 | G225: 1.58423252 | I225: 4 | J225: 3.583858292
A226: MA. Ph.d. | C226: 1 | D226: 0.9998128859 | F226: 0 | G226: 0 | I226: 1 | J226: 0.9998128859
A227: MA. Samf. | C227: 0 | D227: 0 | F227: 2 | G227: 1.685274122 | I227: 2 | J227: 1.685274122
A228: Øvrige Mag. | C228: 0 | D228: 0 | F228: 0 | G228: 0 | I228: 0 | J228: 0
A229: Agronom | C229: 0 | D229: 0 | F229: 1 | G229: 0.9075032745 | I229: 1 | J229: 0.9075032745
A230: Landsk. Arkt. | C230: 0 | D230: 0 | F230: 0 | G230: 0 | I230: 0 | J230: 0
A231: Hortonom | C231: 0 | D231: 0 | F231: 0 | G231: 0 | I231: 0 | J231: 0
A232: Forstkand. | C232: 0 | D232: 0 | F232: 0 | G232: 0 | I232: 0 | J232: 0
A233: Jordbrugsakad. | C233: 0 | D233: 0 | F233: 1 | G233: 0.9075032745 | I233: 1 | J233: 0.9075032745
A234: Mejeriing. | C234: 0 | D234: 0 | F234: 0 | G234: 0 | I234: 0 | J234: 0
A235: Levn.m.kand. | C235: 0 | D235: 0 | F235: 0 | G235: 0 | I235: 0 | J235: 0
A236: Dyrlæge | C236: 0 | D236: 0 | F236: 1 | G236: 0.2700679848 | I236: 1 | J236: 0.2700679848
A237: Farmaceut | C237: 0 | D237: 0 | F237: 0 | G237: 0 | I237: 0 | J237: 0
A238: Læge | C238: 0 | D238: 0 | F238: 1 | G238: 0.9998128859 | I238: 1 | J238: 0.9998128859
A239: Tandlæge | C239: 0 | D239: 0 | F239: 0 | G239: 0 | I239: 0 | J239: 0
A240: Arkitekt | C240: 1 | D240: 0.9998128859 | F240: 1 | G240: 0.9998128859 | I240: 2 | J240: 1.999625772
... 329 more rows

Sheet Tabel 3 ØJ
A1: Tabel 3. Ledige i procent af forsikrede
A3: Østjylland
C5: Mænd | F5: Kvinder | I5: I alt
C6: Ledigheds- berørte | D6: Gns. brutto- ledighed | F6: Ledigheds- berørte | G6: Gns. brutto- ledighed | I6: Ledigheds- berørte | J6: Gns. brutto- ledighed
A9: Civ. ing. | C9: =IF(OR('Tabel 1 ØJ'!C7<5,'Tabel 2 ØJ'!C9<0.5),"-",IFERROR('Tabel 2 ØJ'!C9/'Tabel 1 ØJ'!C7*100,"-")) -> 2.868852459 | D9: =IF(OR('Tabel 1 ØJ'!C7<5,'Tabel 2 ØJ'!D9<0.5),"-",IFERROR('Tabel 2 ØJ'!D9/'Tabel 1 ØJ'!C7*100,"-")) -> 2.573841043 | F9: =IF(OR('Tabel 1 ØJ'!E7<5,'Tabel 2 ØJ'!F9<0.5),"-",IFERROR('Tabel 2 ØJ'!F9/'Tabel 1 ØJ'!E7*100,"-")) -> 4.560260586 | G9: =IF(OR('Tabel 1 ØJ'!E7<5,'Tabel 2 ØJ'!G9<0.5),"-",IFERROR('Tabel 2 ØJ'!G9/'Tabel 1 ØJ'!E7*100,"-")) -> 3.928921572 | I9: =IF(OR('Tabel 1 ØJ'!G7<5,'Tabel 2 ØJ'!I9<0.5),"-",IFERROR('Tabel 2 ØJ'!I9/'Tabel 1 ØJ'!G7*100,"-")) -> 3.273577553 | J9: =IF(OR('Tabel 1 ØJ'!G7<5,'Tabel 2 ØJ'!J9<0.5),"-",IFERROR('Tabel 2 ØJ'!J9/'Tabel 1 ØJ'!G7*100,"-")) -> 2.898088683
A10: Diplom ing. | C10: =IF(OR('Tabel 1 ØJ'!C8<5,'Tabel 2 ØJ'!C10<0.5),"-",IFERROR('Tabel 2 ØJ'!C10/'Tabel 1 ØJ'!C8*100,"-")) -> 2.629241428 | D10: =IF(OR('Tabel 1 ØJ'!C8<5,'Tabel 2 ØJ'!D10<0.5),"-",IFERROR('Tabel 2 ØJ'!D10/'Tabel 1 ØJ'!C8*100,"-")) -> 2.300105916 | F10: =IF(OR('Tabel 1 ØJ'!E8<5,'Tabel 2 ØJ'!F10<0.5),"-",IFERROR('Tabel 2 ØJ'!F10/'Tabel 1 ØJ'!E8*100,"-")) -> 4.086956522 | G10: =IF(OR('Tabel 1 ØJ'!E8<5,'Tabel 2 ØJ'!G10<0.5),"-",IFERROR('Tabel 2 ØJ'!G10/'Tabel 1 ØJ'!E8*100,"-")) -> 3.783717821 | I10: =IF(OR('Tabel 1 ØJ'!G8<5,'Tabel 2 ØJ'!I10<0.5),"-",IFERROR('Tabel 2 ØJ'!I10/'Tabel 1 ØJ'!G8*100,"-")) -> 2.876530462 | J10: =IF(OR('Tabel 1 ØJ'!G8<5,'Tabel 2 ØJ'!J10<0.5),"-",IFERROR('Tabel 2 ØJ'!J10/'Tabel 1 ØJ'!G8*100,"-")) -> 2.551788124
A11: Cand. Scient. Tek. | C11: =IF(OR('Tabel 1 ØJ'!C9<5,'Tabel 2 ØJ'!C11<0.5),"-",IFERROR('Tabel 2 ØJ'!C11/'Tabel 1 ØJ'!C9*100,"-")) -> 9.380863039 | D11: =IF(OR('Tabel 1 ØJ'!C9<5,'Tabel 2 ØJ'!D11<0.5),"-",IFERROR('Tabel 2 ØJ'!D11/'Tabel 1 ØJ'!C9*100,"-")) -> 8.248739008 | F11: =IF(OR('Tabel 1 ØJ'!E9<5,'Tabel 2 ØJ'!F11<0.5),"-",IFERROR('Tabel 2 ØJ'!F11/'Tabel 1 ØJ'!E9*100,"-")) -> 13.63636364 | G11: =IF(OR('Tabel 1 ØJ'!E9<5,'Tabel 2 ØJ'!G11<0.5),"-",IFERROR('Tabel 2 ØJ'!G11/'Tabel 1 ØJ'!E9*100,"-")) -> 12.02828116 | I11: =IF(OR('Tabel 1 ØJ'!G9<5,'Tabel 2 ØJ'!I11<0.5),"-",IFERROR('Tabel 2 ØJ'!I11/'Tabel 1 ØJ'!G9*100,"-")) -> 11.07344633 | J11: =IF(OR('Tabel 1 ØJ'!G9<5,'Tabel 2 ØJ'!J11<0.5),"-",IFERROR('Tabel 2 ØJ'!J11/'Tabel 1 ØJ'!G9*100,"-")) -> 9.75201453
A12: MA. Hum. | C12: =IF(OR('Tabel 1 ØJ'!C10<5,'Tabel 2 ØJ'!C12<0.5),"-",IFERROR('Tabel 2 ØJ'!C12/'Tabel 1 ØJ'!C10*100,"-")) -> 12.3029604 | D12: =IF(OR('Tabel 1 ØJ'!C10<5,'Tabel 2 ØJ'!D12<0.5),"-",IFERROR('Tabel 2 ØJ'!D12/'Tabel 1 ØJ'!C10*100,"-")) -> 10.50143287 | F12: =IF(OR('Tabel 1 ØJ'!E10<5,'Tabel 2 ØJ'!F12<0.5),"-",IFERROR('Tabel 2 ØJ'!F12/'Tabel 1 ØJ'!E10*100,"-")) -> 13.84217335 | G12: =IF(OR('Tabel 1 ØJ'!E10<5,'Tabel 2 ØJ'!G12<0.5),"-",IFERROR('Tabel 2 ØJ'!G12/'Tabel 1 ØJ'!E10*100,"-")) -> 11.75387167 | I12: =IF(OR('Tabel 1 ØJ'!G10<5,'Tabel 2 ØJ'!I12<0.5),"-",IFERROR('Tabel 2 ØJ'!I12/'Tabel 1 ØJ'!G10*100,"-")) -> 13.34248627 | J12: =IF(OR('Tabel 1 ØJ'!G10<5,'Tabel 2 ØJ'!J12<0.5),"-",IFERROR('Tabel 2 ØJ'!J12/'Tabel 1 ØJ'!G10*100,"-")) -> 11.34728239
A13: MA. Nat. | C13: =IF(OR('Tabel 1 ØJ'!C11<5,'Tabel 2 ØJ'!C13<0.5),"-",IFERROR('Tabel 2 ØJ'!C13/'Tabel 1 ØJ'!C11*100,"-")) -> 4.017305315 | D13: =IF(OR('Tabel 1 ØJ'!C11<5,'Tabel 2 ØJ'!D13<0.5),"-",IFERROR('Tabel 2 ØJ'!D13/'Tabel 1 ØJ'!C11*100,"-")) -> 3.490907235 | F13: =IF(OR('Tabel 1 ØJ'!E11<5,'Tabel 2 ØJ'!F13<0.5),"-",IFERROR('Tabel 2 ØJ'!F13/'Tabel 1 ØJ'!E11*100,"-")) -> 5.469953775 | G13: =IF(OR('Tabel 1 ØJ'!E11<5,'Tabel 2 ØJ'!G13<0.5),"-",IFERROR('Tabel 2 ØJ'!G13/'Tabel 1 ØJ'!E11*100,"-")) -> 4.743250559 | I13: =IF(OR('Tabel 1 ØJ'!G11<5,'Tabel 2 ØJ'!I13<0.5),"-",IFERROR('Tabel 2 ØJ'!I13/'Tabel 1 ØJ'!G11*100,"-")) -> 4.663923182 | J13: =IF(OR('Tabel 1 ØJ'!G11<5,'Tabel 2 ØJ'!J13<0.5),"-",IFERROR('Tabel 2 ØJ'!J13/'Tabel 1 ØJ'!G11*100,"-")) -> 4.048363214
A14: MA. Ph.d. | C14: =IF(OR('Tabel 1 ØJ'!C12<5,'Tabel 2 ØJ'!C14<0.5),"-",IFERROR('Tabel 2 ØJ'!C14/'Tabel 1 ØJ'!C12*100,"-")) -> 4.95049505 | D14: =IF(OR('Tabel 1 ØJ'!C12<5,'Tabel 2 ØJ'!D14<0.5),"-",IFERROR('Tabel 2 ØJ'!D14/'Tabel 1 ØJ'!C12*100,"-")) -> 3.86455411 | F14: =IF(OR('Tabel 1 ØJ'!E12<5,'Tabel 2 ØJ'!F14<0.5),"-",IFERROR('Tabel 2 ØJ'!F14/'Tabel 1 ØJ'!E12*100,"-")) -> 6.355932203 | G14: =IF(OR('Tabel 1 ØJ'!E12<5,'Tabel 2 ØJ'!G14<0.5),"-",IFERROR('Tabel 2 ØJ'!G14/'Tabel 1 ØJ'!E12*100,"-")) -> 5.721250768 | I14: =IF(OR('Tabel 1 ØJ'!G12<5,'Tabel 2 ØJ'!I14<0.5),"-",IFERROR('Tabel 2 ØJ'!I14/'Tabel 1 ØJ'!G12*100,"-")) -> 5.565862709 | J14: =IF(OR('Tabel 1 ØJ'!G12<5,'Tabel 2 ØJ'!J14<0.5),"-",IFERROR('Tabel 2 ØJ'!J14/'Tabel 1 ØJ'!G12*100,"-")) -> 4.67750478
A15: MA. Samf. | C15: =IF(OR('Tabel 1 ØJ'!C13<5,'Tabel 2 ØJ'!C15<0.5),"-",IFERROR('Tabel 2 ØJ'!C15/'Tabel 1 ØJ'!C13*100,"-")) -> 19.85294118 | D15: =IF(OR('Tabel 1 ØJ'!C13<5,'Tabel 2 ØJ'!D15<0.5),"-",IFERROR('Tabel 2 ØJ'!D15/'Tabel 1 ØJ'!C13*100,"-")) -> 16.39220211 | F15: =IF(OR('Tabel 1 ØJ'!E13<5,'Tabel 2 ØJ'!F15<0.5),"-",IFERROR('Tabel 2 ØJ'!F15/'Tabel 1 ØJ'!E13*100,"-")) -> 19.8019802 | G15: =IF(OR('Tabel 1 ØJ'!E13<5,'Tabel 2 ØJ'!G15<0.5),"-",IFERROR('Tabel 2 ØJ'!G15/'Tabel 1 ØJ'!E13*100,"-")) -> 16.4709791 | I15: =IF(OR('Tabel 1 ØJ'!G13<5,'Tabel 2 ØJ'!I15<0.5),"-",IFERROR('Tabel 2 ØJ'!I15/'Tabel 1 ØJ'!G13*100,"-")) -> 19.81279251 | J15: =IF(OR('Tabel 1 ØJ'!G13<5,'Tabel 2 ØJ'!J15<0.5),"-",IFERROR('Tabel 2 ØJ'!J15/'Tabel 1 ØJ'!G13*100,"-")) -> 16.45426511
A16: Øvrige Mag. | C16: =IF(OR('Tabel 1 ØJ'!C14<5,'Tabel 2 ØJ'!C16<0.5),"-",IFERROR('Tabel 2 ØJ'!C16/'Tabel 1 ØJ'!C14*100,"-")) -> 9 | D16: =IF(OR('Tabel 1 ØJ'!C14<5,'Tabel 2 ØJ'!D16<0.5),"-",IFERROR('Tabel 2 ØJ'!D16/'Tabel 1 ØJ'!C14*100,"-")) -> 8.151624774 | F16: =IF(OR('Tabel 1 ØJ'!E14<5,'Tabel 2 ØJ'!F16<0.5),"-",IFERROR('Tabel 2 ØJ'!F16/'Tabel 1 ØJ'!E14*100,"-")) -> 10.6442577 | G16: =IF(OR('Tabel 1 ØJ'!E14<5,'Tabel 2 ØJ'!G16<0.5),"-",IFERROR('Tabel 2 ØJ'!G16/'Tabel 1 ØJ'!E14*100,"-")) -> 9.347841925 | I16: =IF(OR('Tabel 1 ØJ'!G14<5,'Tabel 2 ØJ'!I16<0.5),"-",IFERROR('Tabel 2 ØJ'!I16/'Tabel 1 ØJ'!G14*100,"-")) -> 10.05385996 | J16: =IF(OR('Tabel 1 ØJ'!G14<5,'Tabel 2 ØJ'!J16<0.5),"-",IFERROR('Tabel 2 ØJ'!J16/'Tabel 1 ØJ'!G14*100,"-")) -> 8.918320506
A17: Agronom | C17: =IF(OR('Tabel 1 ØJ'!C15<5,'Tabel 2 ØJ'!C17<0.5),"-",IFERROR('Tabel 2 ØJ'!C17/'Tabel 1 ØJ'!C15*100,"-")) -> 1.515151515 | D17: =IF(OR('Tabel 1 ØJ'!C15<5,'Tabel 2 ØJ'!D17<0.5),"-",IFERROR('Tabel 2 ØJ'!D17/'Tabel 1 ØJ'!C15*100,"-")) -> 1.068503283 | F17: =IF(OR('Tabel 1 ØJ'!E15<5,'Tabel 2 ØJ'!F17<0.5),"-",IFERROR('Tabel 2 ØJ'!F17/'Tabel 1 ØJ'!E15*100,"-")) -> 6.711409396 | G17: =IF(OR('Tabel 1 ØJ'!E15<5,'Tabel 2 ØJ'!G17<0.5),"-",IFERROR('Tabel 2 ØJ'!G17/'Tabel 1 ØJ'!E15*100,"-")) -> 5.762443819 | I17: =IF(OR('Tabel 1 ØJ'!G15<5,'Tabel 2 ØJ'!I17<0.5),"-",IFERROR('Tabel 2 ØJ'!I17/'Tabel 1 ØJ'!G15*100,"-")) -> 3.746397695 | J17: =IF(OR('Tabel 1 ØJ'!G15<5,'Tabel 2 ØJ'!J17<0.5),"-",IFERROR('Tabel 2 ØJ'!J17/'Tabel 1 ØJ'!G15*100,"-")) -> 3.084057
A18: Landsk. Arkt. | C18: =IF(OR('Tabel 1 ØJ'!C16<5,'Tabel 2 ØJ'!C18<0.5),"-",IFERROR('Tabel 2 ØJ'!C18/'Tabel 1 ØJ'!C16*100,"-")) -> - | D18: =IF(OR('Tabel 1 ØJ'!C16<5,'Tabel 2 ØJ'!D18<0.5),"-",IFERROR('Tabel 2 ØJ'!D18/'Tabel 1 ØJ'!C16*100,"-")) -> - | F18: =IF(OR('Tabel 1 ØJ'!E16<5,'Tabel 2 ØJ'!F18<0.5),"-",IFERROR('Tabel 2 ØJ'!F18/'Tabel 1 ØJ'!E16*100,"-")) -> 3.571428571 | G18: =IF(OR('Tabel 1 ØJ'!E16<5,'Tabel 2 ØJ'!G18<0.5),"-",IFERROR('Tabel 2 ØJ'!G18/'Tabel 1 ØJ'!E16*100,"-")) -> 2.766615285 | I18: =IF(OR('Tabel 1 ØJ'!G16<5,'Tabel 2 ØJ'!I18<0.5),"-",IFERROR('Tabel 2 ØJ'!I18/'Tabel 1 ØJ'!G16*100,"-")) -> 2.564102564 | J18: =IF(OR('Tabel 1 ØJ'!G16<5,'Tabel 2 ØJ'!J18<0.5),"-",IFERROR('Tabel 2 ØJ'!J18/'Tabel 1 ØJ'!G16*100,"-")) -> 1.986287897
A19: Hortonom | C19: =IF(OR('Tabel 1 ØJ'!C17<5,'Tabel 2 ØJ'!C19<0.5),"-",IFERROR('Tabel 2 ØJ'!C19/'Tabel 1 ØJ'!C17*100,"-")) -> - | D19: =IF(OR('Tabel 1 ØJ'!C17<5,'Tabel 2 ØJ'!D19<0.5),"-",IFERROR('Tabel 2 ØJ'!D19/'Tabel 1 ØJ'!C17*100,"-")) -> - | F19: =IF(OR('Tabel 1 ØJ'!E17<5,'Tabel 2 ØJ'!F19<0.5),"-",IFERROR('Tabel 2 ØJ'!F19/'Tabel 1 ØJ'!E17*100,"-")) -> - | G19: =IF(OR('Tabel 1 ØJ'!E17<5,'Tabel 2 ØJ'!G19<0.5),"-",IFERROR('Tabel 2 ØJ'!G19/'Tabel 1 ØJ'!E17*100,"-")) -> - | I19: =IF(OR('Tabel 1 ØJ'!G17<5,'Tabel 2 ØJ'!I19<0.5),"-",IFERROR('Tabel 2 ØJ'!I19/'Tabel 1 ØJ'!G17*100,"-")) -> - | J19: =IF(OR('Tabel 1 ØJ'!G17<5,'Tabel 2 ØJ'!J19<0.5),"-",IFERROR('Tabel 2 ØJ'!J19/'Tabel 1 ØJ'!G17*100,"-")) -> -
A20: Forstkand. | C20: =IF(OR('Tabel 1 ØJ'!C18<5,'Tabel 2 ØJ'!C20<0.5),"-",IFERROR('Tabel 2 ØJ'!C20/'Tabel 1 ØJ'!C18*100,"-")) -> 2.325581395 | D20: =IF(OR('Tabel 1 ØJ'!C18<5,'Tabel 2 ØJ'!D20<0.5),"-",IFERROR('Tabel 2 ØJ'!D20/'Tabel 1 ØJ'!C18*100,"-")) -> 2.325146246 | F20: =IF(OR('Tabel 1 ØJ'!E18<5,'Tabel 2 ØJ'!F20<0.5),"-",IFERROR('Tabel 2 ØJ'!F20/'Tabel 1 ØJ'!E18*100,"-")) -> - | G20: =IF(OR('Tabel 1 ØJ'!E18<5,'Tabel 2 ØJ'!G20<0.5),"-",IFERROR('Tabel 2 ØJ'!G20/'Tabel 1 ØJ'!E18*100,"-")) -> - | I20: =IF(OR('Tabel 1 ØJ'!G18<5,'Tabel 2 ØJ'!I20<0.5),"-",IFERROR('Tabel 2 ØJ'!I20/'Tabel 1 ØJ'!G18*100,"-")) -> 1.886792453 | J20: =IF(OR('Tabel 1 ØJ'!G18<5,'Tabel 2 ØJ'!J20<0.5),"-",IFERROR('Tabel 2 ØJ'!J20/'Tabel 1 ØJ'!G18*100,"-")) -> 1.886439407
A21: Jordbrugsakad. | C21: =IF(OR('Tabel 1 ØJ'!C19<5,'Tabel 2 ØJ'!C21<0.5),"-",IFERROR('Tabel 2 ØJ'!C21/'Tabel 1 ØJ'!C19*100,"-")) -> 1.515151515 | D21: =IF(OR('Tabel 1 ØJ'!C19<5,'Tabel 2 ØJ'!D21<0.5),"-",IFERROR('Tabel 2 ØJ'!D21/'Tabel 1 ØJ'!C19*100,"-")) -> 1.180094464 | F21: =IF(OR('Tabel 1 ØJ'!E19<5,'Tabel 2 ØJ'!F21<0.5),"-",IFERROR('Tabel 2 ØJ'!F21/'Tabel 1 ØJ'!E19*100,"-")) -> 5.418719212 | G21: =IF(OR('Tabel 1 ØJ'!E19<5,'Tabel 2 ØJ'!G21<0.5),"-",IFERROR('Tabel 2 ØJ'!G21/'Tabel 1 ØJ'!E19*100,"-")) -> 4.611179098 | I21: =IF(OR('Tabel 1 ØJ'!G19<5,'Tabel 2 ØJ'!I21<0.5),"-",IFERROR('Tabel 2 ØJ'!I21/'Tabel 1 ØJ'!G19*100,"-")) -> 3.211991435 | J21: =IF(OR('Tabel 1 ØJ'!G19<5,'Tabel 2 ØJ'!J21<0.5),"-",IFERROR('Tabel 2 ØJ'!J21/'Tabel 1 ØJ'!G19*100,"-")) -> 2.671550954
A22: Mejeriing. | C22: =IF(OR('Tabel 1 ØJ'!C20<5,'Tabel 2 ØJ'!C22<0.5),"-",IFERROR('Tabel 2 ØJ'!C22/'Tabel 1 ØJ'!C20*100,"-")) -> 1.694915254 | D22: =IF(OR('Tabel 1 ØJ'!C20<5,'Tabel 2 ØJ'!D22<0.5),"-",IFERROR('Tabel 2 ØJ'!D22/'Tabel 1 ØJ'!C20*100,"-")) -> - | F22: =IF(OR('Tabel 1 ØJ'!E20<5,'Tabel 2 ØJ'!F22<0.5),"-",IFERROR('Tabel 2 ØJ'!F22/'Tabel 1 ØJ'!E20*100,"-")) -> 3.448275862 | G22: =IF(OR('Tabel 1 ØJ'!E20<5,'Tabel 2 ØJ'!G22<0.5),"-",IFERROR('Tabel 2 ØJ'!G22/'Tabel 1 ØJ'!E20*100,"-")) -> - | I22: =IF(OR('Tabel 1 ØJ'!G20<5,'Tabel 2 ØJ'!I22<0.5),"-",IFERROR('Tabel 2 ØJ'!I22/'Tabel 1 ØJ'!G20*100,"-")) -> 2.272727273 | J22: =IF(OR('Tabel 1 ØJ'!G20<5,'Tabel 2 ØJ'!J22<0.5),"-",IFERROR('Tabel 2 ØJ'!J22/'Tabel 1 ØJ'!G20*100,"-")) -> 0.8037400135
A23: Levn.m.kand. | C23: =IF(OR('Tabel 1 ØJ'!C21<5,'Tabel 2 ØJ'!C23<0.5),"-",IFERROR('Tabel 2 ØJ'!C23/'Tabel 1 ØJ'!C21*100,"-")) -> - | D23: =IF(OR('Tabel 1 ØJ'!C21<5,'Tabel 2 ØJ'!D23<0.5),"-",IFERROR('Tabel 2 ØJ'!D23/'Tabel 1 ØJ'!C21*100,"-")) -> - | F23: =IF(OR('Tabel 1 ØJ'!E21<5,'Tabel 2 ØJ'!F23<0.5),"-",IFERROR('Tabel 2 ØJ'!F23/'Tabel 1 ØJ'!E21*100,"-")) -> 7.692307692 | G23: =IF(OR('Tabel 1 ØJ'!E21<5,'Tabel 2 ØJ'!G23<0.5),"-",IFERROR('Tabel 2 ØJ'!G23/'Tabel 1 ØJ'!E21*100,"-")) -> 7.51334987 | I23: =IF(OR('Tabel 1 ØJ'!G21<5,'Tabel 2 ØJ'!I23<0.5),"-",IFERROR('Tabel 2 ØJ'!I23/'Tabel 1 ØJ'!G21*100,"-")) -> 7.407407407 | J23: =IF(OR('Tabel 1 ØJ'!G21<5,'Tabel 2 ØJ'!J23<0.5),"-",IFERROR('Tabel 2 ØJ'!J23/'Tabel 1 ØJ'!G21*100,"-")) -> 7.235077652
A24: Dyrlæge | C24: =IF(OR('Tabel 1 ØJ'!C22<5,'Tabel 2 ØJ'!C24<0.5),"-",IFERROR('Tabel 2 ØJ'!C24/'Tabel 1 ØJ'!C22*100,"-")) -> - | D24: =IF(OR('Tabel 1 ØJ'!C22<5,'Tabel 2 ØJ'!D24<0.5),"-",IFERROR('Tabel 2 ØJ'!D24/'Tabel 1 ØJ'!C22*100,"-")) -> - | F24: =IF(OR('Tabel 1 ØJ'!E22<5,'Tabel 2 ØJ'!F24<0.5),"-",IFERROR('Tabel 2 ØJ'!F24/'Tabel 1 ØJ'!E22*100,"-")) -> 1.098901099 | G24: =IF(OR('Tabel 1 ØJ'!E22<5,'Tabel 2 ØJ'!G24<0.5),"-",IFERROR('Tabel 2 ØJ'!G24/'Tabel 1 ØJ'!E22*100,"-")) -> 0.6977367421 | I24: =IF(OR('Tabel 1 ØJ'!G22<5,'Tabel 2 ØJ'!I24<0.5),"-",IFERROR('Tabel 2 ØJ'!I24/'Tabel 1 ØJ'!G22*100,"-")) -> 0.8849557522 | J24: =IF(OR('Tabel 1 ØJ'!G22<5,'Tabel 2 ØJ'!J24<0.5),"-",IFERROR('Tabel 2 ØJ'!J24/'Tabel 1 ØJ'!G22*100,"-")) -> 0.5618941906
A25: Farmaceut | C25: =IF(OR('Tabel 1 ØJ'!C23<5,'Tabel 2 ØJ'!C25<0.5),"-",IFERROR('Tabel 2 ØJ'!C25/'Tabel 1 ØJ'!C23*100,"-")) -> 8.823529412 | D25: =IF(OR('Tabel 1 ØJ'!C23<5,'Tabel 2 ØJ'!D25<0.5),"-",IFERROR('Tabel 2 ØJ'!D25/'Tabel 1 ØJ'!C23*100,"-")) -> 8.225681591 | F25: =IF(OR('Tabel 1 ØJ'!E23<5,'Tabel 2 ØJ'!F25<0.5),"-",IFERROR('Tabel 2 ØJ'!F25/'Tabel 1 ØJ'!E23*100,"-")) -> 9.459459459 | G25: =IF(OR('Tabel 1 ØJ'!E23<5,'Tabel 2 ØJ'!G25<0.5),"-",IFERROR('Tabel 2 ØJ'!G25/'Tabel 1 ØJ'!E23*100,"-")) -> 8.435585838 | I25: =IF(OR('Tabel 1 ØJ'!G23<5,'Tabel 2 ØJ'!I25<0.5),"-",IFERROR('Tabel 2 ØJ'!I25/'Tabel 1 ØJ'!G23*100,"-")) -> 9.310344828 | J25: =IF(OR('Tabel 1 ØJ'!G23<5,'Tabel 2 ØJ'!J25<0.5),"-",IFERROR('Tabel 2 ØJ'!J25/'Tabel 1 ØJ'!G23*100,"-")) -> 8.386366911
A26: Læge | C26: =IF(OR('Tabel 1 ØJ'!C24<5,'Tabel 2 ØJ'!C26<0.5),"-",IFERROR('Tabel 2 ØJ'!C26/'Tabel 1 ØJ'!C24*100,"-")) -> 2.4 | D26: =IF(OR('Tabel 1 ØJ'!C24<5,'Tabel 2 ØJ'!D26<0.5),"-",IFERROR('Tabel 2 ØJ'!D26/'Tabel 1 ØJ'!C24*100,"-")) -> 2.215264351 | F26: =IF(OR('Tabel 1 ØJ'!E24<5,'Tabel 2 ØJ'!F26<0.5),"-",IFERROR('Tabel 2 ØJ'!F26/'Tabel 1 ØJ'!E24*100,"-")) -> 2.751196172 | G26: =IF(OR('Tabel 1 ØJ'!E24<5,'Tabel 2 ØJ'!G26<0.5),"-",IFERROR('Tabel 2 ØJ'!G26/'Tabel 1 ØJ'!E24*100,"-")) -> 2.334113821 | I26: =IF(OR('Tabel 1 ØJ'!G24<5,'Tabel 2 ØJ'!I26<0.5),"-",IFERROR('Tabel 2 ØJ'!I26/'Tabel 1 ØJ'!G24*100,"-")) -> 2.642444261 | J26: =IF(OR('Tabel 1 ØJ'!G24<5,'Tabel 2 ØJ'!J26<0.5),"-",IFERROR('Tabel 2 ØJ'!J26/'Tabel 1 ØJ'!G24*100,"-")) -> 2.297310723
A27: Tandlæge | C27: =IF(OR('Tabel 1 ØJ'!C25<5,'Tabel 2 ØJ'!C27<0.5),"-",IFERROR('Tabel 2 ØJ'!C27/'Tabel 1 ØJ'!C25*100,"-")) -> - | D27: =IF(OR('Tabel 1 ØJ'!C25<5,'Tabel 2 ØJ'!D27<0.5),"-",IFERROR('Tabel 2 ØJ'!D27/'Tabel 1 ØJ'!C25*100,"-")) -> - | F27: =IF(OR('Tabel 1 ØJ'!E25<5,'Tabel 2 ØJ'!F27<0.5),"-",IFERROR('Tabel 2 ØJ'!F27/'Tabel 1 ØJ'!E25*100,"-")) -> 1.5 | G27: =IF(OR('Tabel 1 ØJ'!E25<5,'Tabel 2 ØJ'!G27<0.5),"-",IFERROR('Tabel 2 ØJ'!G27/'Tabel 1 ØJ'!E25*100,"-")) -> 0.970030562 | I27: =IF(OR('Tabel 1 ØJ'!G25<5,'Tabel 2 ØJ'!I27<0.5),"-",IFERROR('Tabel 2 ØJ'!I27/'Tabel 1 ØJ'!G25*100,"-")) -> 1.279317697 | J27: =IF(OR('Tabel 1 ØJ'!G25<5,'Tabel 2 ØJ'!J27<0.5),"-",IFERROR('Tabel 2 ØJ'!J27/'Tabel 1 ØJ'!G25*100,"-")) -> 0.8273181765
A28: Arkitekt | C28: =IF(OR('Tabel 1 ØJ'!C26<5,'Tabel 2 ØJ'!C28<0.5),"-",IFERROR('Tabel 2 ØJ'!C28/'Tabel 1 ØJ'!C26*100,"-")) -> 6.76056338 | D28: =IF(OR('Tabel 1 ØJ'!C26<5,'Tabel 2 ØJ'!D28<0.5),"-",IFERROR('Tabel 2 ØJ'!D28/'Tabel 1 ØJ'!C26*100,"-")) -> 6.204105441 | F28: =IF(OR('Tabel 1 ØJ'!E26<5,'Tabel 2 ØJ'!F28<0.5),"-",IFERROR('Tabel 2 ØJ'!F28/'Tabel 1 ØJ'!E26*100,"-")) -> 8.769792935 | G28: =IF(OR('Tabel 1 ØJ'!E26<5,'Tabel 2 ØJ'!G28<0.5),"-",IFERROR('Tabel 2 ØJ'!G28/'Tabel 1 ØJ'!E26*100,"-")) -> 7.337713104 | I28: =IF(OR('Tabel 1 ØJ'!G26<5,'Tabel 2 ØJ'!I28<0.5),"-",IFERROR('Tabel 2 ØJ'!I28/'Tabel 1 ØJ'!G26*100,"-")) -> 7.83801437 | J28: =IF(OR('Tabel 1 ØJ'!G26<5,'Tabel 2 ØJ'!J28<0.5),"-",IFERROR('Tabel 2 ØJ'!J28/'Tabel 1 ØJ'!G26*100,"-")) -> 6.812003476
A29: Landinspek. | C29: =IF(OR('Tabel 1 ØJ'!C27<5,'Tabel 2 ØJ'!C29<0.5),"-",IFERROR('Tabel 2 ØJ'!C29/'Tabel 1 ØJ'!C27*100,"-")) -> - | D29: =IF(OR('Tabel 1 ØJ'!C27<5,'Tabel 2 ØJ'!D29<0.5),"-",IFERROR('Tabel 2 ØJ'!D29/'Tabel 1 ØJ'!C27*100,"-")) -> - | F29: =IF(OR('Tabel 1 ØJ'!E27<5,'Tabel 2 ØJ'!F29<0.5),"-",IFERROR('Tabel 2 ØJ'!F29/'Tabel 1 ØJ'!E27*100,"-")) -> 2.702702703 | G29: =IF(OR('Tabel 1 ØJ'!E27<5,'Tabel 2 ØJ'!G29<0.5),"-",IFERROR('Tabel 2 ØJ'!G29/'Tabel 1 ØJ'!E27*100,"-")) -> 2.702196989 | I29: =IF(OR('Tabel 1 ØJ'!G27<5,'Tabel 2 ØJ'!I29<0.5),"-",IFERROR('Tabel 2 ØJ'!I29/'Tabel 1 ØJ'!G27*100,"-")) -> 0.7194244604 | J29: =IF(OR('Tabel 1 ØJ'!G27<5,'Tabel 2 ØJ'!J29<0.5),"-",IFERROR('Tabel 2 ØJ'!J29/'Tabel 1 ØJ'!G27*100,"-")) -> 0.719289846
A30: Bibliotekar | C30: =IF(OR('Tabel 1 ØJ'!C28<5,'Tabel 2 ØJ'!C30<0.5),"-",IFERROR('Tabel 2 ØJ'!C30/'Tabel 1 ØJ'!C28*100,"-")) -> 5.194805195 | D30: =IF(OR('Tabel 1 ØJ'!C28<5,'Tabel 2 ØJ'!D30<0.5),"-",IFERROR('Tabel 2 ØJ'!D30/'Tabel 1 ØJ'!C28*100,"-")) -> 4.586319936 | F30: =IF(OR('Tabel 1 ØJ'!E28<5,'Tabel 2 ØJ'!F30<0.5),"-",IFERROR('Tabel 2 ØJ'!F30/'Tabel 1 ØJ'!E28*100,"-")) -> 6.101694915 | G30: =IF(OR('Tabel 1 ØJ'!E28<5,'Tabel 2 ØJ'!G30<0.5),"-",IFERROR('Tabel 2 ØJ'!G30/'Tabel 1 ØJ'!E28*100,"-")) -> 5.301142664 | I30: =IF(OR('Tabel 1 ØJ'!G28<5,'Tabel 2 ØJ'!I30<0.5),"-",IFERROR('Tabel 2 ØJ'!I30/'Tabel 1 ØJ'!G28*100,"-")) -> 5.913978495 | J30: =IF(OR('Tabel 1 ØJ'!G28<5,'Tabel 2 ØJ'!J30<0.5),"-",IFERROR('Tabel 2 ØJ'!J30/'Tabel 1 ØJ'!G28*100,"-")) -> 5.153182046
A31: Musikudd. | C31: =IF(OR('Tabel 1 ØJ'!C29<5,'Tabel 2 ØJ'!C31<0.5),"-",IFERROR('Tabel 2 ØJ'!C31/'Tabel 1 ØJ'!C29*100,"-")) -> - | D31: =IF(OR('Tabel 1 ØJ'!C29<5,'Tabel 2 ØJ'!D31<0.5),"-",IFERROR('Tabel 2 ØJ'!D31/'Tabel 1 ØJ'!C29*100,"-")) -> - | F31: =IF(OR('Tabel 1 ØJ'!E29<5,'Tabel 2 ØJ'!F31<0.5),"-",IFERROR('Tabel 2 ØJ'!F31/'Tabel 1 ØJ'!E29*100,"-")) -> 1.19047619 | G31: =IF(OR('Tabel 1 ØJ'!E29<5,'Tabel 2 ØJ'!G31<0.5),"-",IFERROR('Tabel 2 ØJ'!G31/'Tabel 1 ØJ'!E29*100,"-")) -> - | I31: =IF(OR('Tabel 1 ØJ'!G29<5,'Tabel 2 ØJ'!I31<0.5),"-",IFERROR('Tabel 2 ØJ'!I31/'Tabel 1 ØJ'!G29*100,"-")) -> 0.6369426752 | J31: =IF(OR('Tabel 1 ØJ'!G29<5,'Tabel 2 ØJ'!J31<0.5),"-",IFERROR('Tabel 2 ØJ'!J31/'Tabel 1 ØJ'!G29*100,"-")) -> -
A32: Teolog | C32: =IF(OR('Tabel 1 ØJ'!C30<5,'Tabel 2 ØJ'!C32<0.5),"-",IFERROR('Tabel 2 ØJ'!C32/'Tabel 1 ØJ'!C30*100,"-")) -> 6.201550388 | D32: =IF(OR('Tabel 1 ØJ'!C30<5,'Tabel 2 ØJ'!D32<0.5),"-",IFERROR('Tabel 2 ØJ'!D32/'Tabel 1 ØJ'!C30*100,"-")) -> 5.091243496 | F32: =IF(OR('Tabel 1 ØJ'!E30<5,'Tabel 2 ØJ'!F32<0.5),"-",IFERROR('Tabel 2 ØJ'!F32/'Tabel 1 ØJ'!E30*100,"-")) -> 6.310679612 | G32: =IF(OR('Tabel 1 ØJ'!E30<5,'Tabel 2 ØJ'!G32<0.5),"-",IFERROR('Tabel 2 ØJ'!G32/'Tabel 1 ØJ'!E30*100,"-")) -> 5.088110142 | I32: =IF(OR('Tabel 1 ØJ'!G30<5,'Tabel 2 ØJ'!I32<0.5),"-",IFERROR('Tabel 2 ØJ'!I32/'Tabel 1 ØJ'!G30*100,"-")) -> 6.268656716 | J32: =IF(OR('Tabel 1 ØJ'!G30<5,'Tabel 2 ØJ'!J32<0.5),"-",IFERROR('Tabel 2 ØJ'!J32/'Tabel 1 ØJ'!G30*100,"-")) -> 5.089316717
A33: Psykolog | C33: =IF(OR('Tabel 1 ØJ'!C31<5,'Tabel 2 ØJ'!C33<0.5),"-",IFERROR('Tabel 2 ØJ'!C33/'Tabel 1 ØJ'!C31*100,"-")) -> 10.72555205 | D33: =IF(OR('Tabel 1 ØJ'!C31<5,'Tabel 2 ØJ'!D33<0.5),"-",IFERROR('Tabel 2 ØJ'!D33/'Tabel 1 ØJ'!C31*100,"-")) -> 9.653000781 | F33: =IF(OR('Tabel 1 ØJ'!E31<5,'Tabel 2 ØJ'!F33<0.5),"-",IFERROR('Tabel 2 ØJ'!F33/'Tabel 1 ØJ'!E31*100,"-")) -> 8.973531311 | G33: =IF(OR('Tabel 1 ØJ'!E31<5,'Tabel 2 ØJ'!G33<0.5),"-",IFERROR('Tabel 2 ØJ'!G33/'Tabel 1 ØJ'!E31*100,"-")) -> 7.666805033 | I33: =IF(OR('Tabel 1 ØJ'!G31<5,'Tabel 2 ØJ'!I33<0.5),"-",IFERROR('Tabel 2 ØJ'!I33/'Tabel 1 ØJ'!G31*100,"-")) -> 9.271168274 | J33: =IF(OR('Tabel 1 ØJ'!G31<5,'Tabel 2 ØJ'!J33<0.5),"-",IFERROR('Tabel 2 ØJ'!J33/'Tabel 1 ØJ'!G31*100,"-")) -> 8.004224139
A34: Jurist | C34: =IF(OR('Tabel 1 ØJ'!C32<5,'Tabel 2 ØJ'!C34<0.5),"-",IFERROR('Tabel 2 ØJ'!C34/'Tabel 1 ØJ'!C32*100,"-")) -> 4.225352113 | D34: =IF(OR('Tabel 1 ØJ'!C32<5,'Tabel 2 ØJ'!D34<0.5),"-",IFERROR('Tabel 2 ØJ'!D34/'Tabel 1 ØJ'!C32*100,"-")) -> 3.687816414 | F34: =IF(OR('Tabel 1 ØJ'!E32<5,'Tabel 2 ØJ'!F34<0.5),"-",IFERROR('Tabel 2 ØJ'!F34/'Tabel 1 ØJ'!E32*100,"-")) -> 2.625975869 | G34: =IF(OR('Tabel 1 ØJ'!E32<5,'Tabel 2 ØJ'!G34<0.5),"-",IFERROR('Tabel 2 ØJ'!G34/'Tabel 1 ØJ'!E32*100,"-")) -> 2.18972606 | I34: =IF(OR('Tabel 1 ØJ'!G32<5,'Tabel 2 ØJ'!I34<0.5),"-",IFERROR('Tabel 2 ØJ'!I34/'Tabel 1 ØJ'!G32*100,"-")) -> 3.196347032 | J34: =IF(OR('Tabel 1 ØJ'!G32<5,'Tabel 2 ØJ'!J34<0.5),"-",IFERROR('Tabel 2 ØJ'!J34/'Tabel 1 ØJ'!G32*100,"-")) -> 2.723976547
A35: Økonom | C35: =IF(OR('Tabel 1 ØJ'!C33<5,'Tabel 2 ØJ'!C35<0.5),"-",IFERROR('Tabel 2 ØJ'!C35/'Tabel 1 ØJ'!C33*100,"-")) -> 4.245810056 | D35: =IF(OR('Tabel 1 ØJ'!C33<5,'Tabel 2 ØJ'!D35<0.5),"-",IFERROR('Tabel 2 ØJ'!D35/'Tabel 1 ØJ'!C33*100,"-")) -> 3.690851306 | F35: =IF(OR('Tabel 1 ØJ'!E33<5,'Tabel 2 ØJ'!F35<0.5),"-",IFERROR('Tabel 2 ØJ'!F35/'Tabel 1 ØJ'!E33*100,"-")) -> 3.238866397 | G35: =IF(OR('Tabel 1 ØJ'!E33<5,'Tabel 2 ØJ'!G35<0.5),"-",IFERROR('Tabel 2 ØJ'!G35/'Tabel 1 ØJ'!E33*100,"-")) -> 2.470739121 | I35: =IF(OR('Tabel 1 ØJ'!G33<5,'Tabel 2 ØJ'!I35<0.5),"-",IFERROR('Tabel 2 ØJ'!I35/'Tabel 1 ØJ'!G33*100,"-")) -> 3.887688985 | J35: =IF(OR('Tabel 1 ØJ'!G33<5,'Tabel 2 ØJ'!J35<0.5),"-",IFERROR('Tabel 2 ØJ'!J35/'Tabel 1 ØJ'!G33*100,"-")) -> 3.256916519
A36: Samf. Adm. | C36: =IF(OR('Tabel 1 ØJ'!C34<5,'Tabel 2 ØJ'!C36<0.5),"-",IFERROR('Tabel 2 ØJ'!C36/'Tabel 1 ØJ'!C34*100,"-")) -> 6.692913386 | D36: =IF(OR('Tabel 1 ØJ'!C34<5,'Tabel 2 ØJ'!D36<0.5),"-",IFERROR('Tabel 2 ØJ'!D36/'Tabel 1 ØJ'!C34*100,"-")) -> 6.34852035 | F36: =IF(OR('Tabel 1 ØJ'!E34<5,'Tabel 2 ØJ'!F36<0.5),"-",IFERROR('Tabel 2 ØJ'!F36/'Tabel 1 ØJ'!E34*100,"-")) -> 9.386068477 | G36: =IF(OR('Tabel 1 ØJ'!E34<5,'Tabel 2 ØJ'!G36<0.5),"-",IFERROR('Tabel 2 ØJ'!G36/'Tabel 1 ØJ'!E34*100,"-")) -> 8.057834671 | I36: =IF(OR('Tabel 1 ØJ'!G34<5,'Tabel 2 ØJ'!I36<0.5),"-",IFERROR('Tabel 2 ØJ'!I36/'Tabel 1 ØJ'!G34*100,"-")) -> 8.232118758 | J36: =IF(OR('Tabel 1 ØJ'!G34<5,'Tabel 2 ØJ'!J36<0.5),"-",IFERROR('Tabel 2 ØJ'!J36/'Tabel 1 ØJ'!G34*100,"-")) -> 7.32543616
A37: Cand. Merc. | C37: =IF(OR('Tabel 1 ØJ'!C35<5,'Tabel 2 ØJ'!C37<0.5),"-",IFERROR('Tabel 2 ØJ'!C37/'Tabel 1 ØJ'!C35*100,"-")) -> 4.936820453 | D37: =IF(OR('Tabel 1 ØJ'!C35<5,'Tabel 2 ØJ'!D37<0.5),"-",IFERROR('Tabel 2 ØJ'!D37/'Tabel 1 ØJ'!C35*100,"-")) -> 4.451258597 | F37: =IF(OR('Tabel 1 ØJ'!E35<5,'Tabel 2 ØJ'!F37<0.5),"-",IFERROR('Tabel 2 ØJ'!F37/'Tabel 1 ØJ'!E35*100,"-")) -> 7.033539564 | G37: =IF(OR('Tabel 1 ØJ'!E35<5,'Tabel 2 ØJ'!G37<0.5),"-",IFERROR('Tabel 2 ØJ'!G37/'Tabel 1 ØJ'!E35*100,"-")) -> 5.949204042 | I37: =IF(OR('Tabel 1 ØJ'!G35<5,'Tabel 2 ØJ'!I37<0.5),"-",IFERROR('Tabel 2 ØJ'!I37/'Tabel 1 ØJ'!G35*100,"-")) -> 5.93141798 | J37: =IF(OR('Tabel 1 ØJ'!G35<5,'Tabel 2 ØJ'!J37<0.5),"-",IFERROR('Tabel 2 ØJ'!J37/'Tabel 1 ØJ'!G35*100,"-")) -> 5.161822462
A38: HA | C38: =IF(OR('Tabel 1 ØJ'!C36<5,'Tabel 2 ØJ'!C38<0.5),"-",IFERROR('Tabel 2 ØJ'!C38/'Tabel 1 ØJ'!C36*100,"-")) -> 6.40569395 | D38: =IF(OR('Tabel 1 ØJ'!C36<5,'Tabel 2 ØJ'!D38<0.5),"-",IFERROR('Tabel 2 ØJ'!D38/'Tabel 1 ØJ'!C36*100,"-")) -> 5.432301217 | F38: =IF(OR('Tabel 1 ØJ'!E36<5,'Tabel 2 ØJ'!F38<0.5),"-",IFERROR('Tabel 2 ØJ'!F38/'Tabel 1 ØJ'!E36*100,"-")) -> 10.18329939 | G38: =IF(OR('Tabel 1 ØJ'!E36<5,'Tabel 2 ØJ'!G38<0.5),"-",IFERROR('Tabel 2 ØJ'!G38/'Tabel 1 ØJ'!E36*100,"-")) -> 8.805540203 | I38: =IF(OR('Tabel 1 ØJ'!G36<5,'Tabel 2 ØJ'!I38<0.5),"-",IFERROR('Tabel 2 ØJ'!I38/'Tabel 1 ØJ'!G36*100,"-")) -> 8.1671415 | J38: =IF(OR('Tabel 1 ØJ'!G36<5,'Tabel 2 ØJ'!J38<0.5),"-",IFERROR('Tabel 2 ØJ'!J38/'Tabel 1 ØJ'!G36*100,"-")) -> 7.005198028
A39: HD | C39: =IF(OR('Tabel 1 ØJ'!C37<5,'Tabel 2 ØJ'!C39<0.5),"-",IFERROR('Tabel 2 ØJ'!C39/'Tabel 1 ØJ'!C37*100,"-")) -> 5.263157895 | D39: =IF(OR('Tabel 1 ØJ'!C37<5,'Tabel 2 ØJ'!D39<0.5),"-",IFERROR('Tabel 2 ØJ'!D39/'Tabel 1 ØJ'!C37*100,"-")) -> 4.771868547 | F39: =IF(OR('Tabel 1 ØJ'!E37<5,'Tabel 2 ØJ'!F39<0.5),"-",IFERROR('Tabel 2 ØJ'!F39/'Tabel 1 ØJ'!E37*100,"-")) -> 11.13924051 | G39: =IF(OR('Tabel 1 ØJ'!E37<5,'Tabel 2 ØJ'!G39<0.5),"-",IFERROR('Tabel 2 ØJ'!G39/'Tabel 1 ØJ'!E37*100,"-")) -> 9.714615504 | I39: =IF(OR('Tabel 1 ØJ'!G37<5,'Tabel 2 ØJ'!I39<0.5),"-",IFERROR('Tabel 2 ØJ'!I39/'Tabel 1 ØJ'!G37*100,"-")) -> 7.931034483 | J39: =IF(OR('Tabel 1 ØJ'!G37<5,'Tabel 2 ØJ'!J39<0.5),"-",IFERROR('Tabel 2 ØJ'!J39/'Tabel 1 ØJ'!G37*100,"-")) -> 7.015989292
A40: Komm. og Sprog | C40: =IF(OR('Tabel 1 ØJ'!C38<5,'Tabel 2 ØJ'!C40<0.5),"-",IFERROR('Tabel 2 ØJ'!C40/'Tabel 1 ØJ'!C38*100,"-")) -> 13.75 | D40: =IF(OR('Tabel 1 ØJ'!C38<5,'Tabel 2 ØJ'!D40<0.5),"-",IFERROR('Tabel 2 ØJ'!D40/'Tabel 1 ØJ'!C38*100,"-")) -> 11.21164161 | F40: =IF(OR('Tabel 1 ØJ'!E38<5,'Tabel 2 ØJ'!F40<0.5),"-",IFERROR('Tabel 2 ØJ'!F40/'Tabel 1 ØJ'!E38*100,"-")) -> 6.596306069 | G40: =IF(OR('Tabel 1 ØJ'!E38<5,'Tabel 2 ØJ'!G40<0.5),"-",IFERROR('Tabel 2 ØJ'!G40/'Tabel 1 ØJ'!E38*100,"-")) -> 5.67294116 | I40: =IF(OR('Tabel 1 ØJ'!G38<5,'Tabel 2 ØJ'!I40<0.5),"-",IFERROR('Tabel 2 ØJ'!I40/'Tabel 1 ØJ'!G38*100,"-")) -> 7.478797224 | J40: =IF(OR('Tabel 1 ØJ'!G38<5,'Tabel 2 ØJ'!J40<0.5),"-",IFERROR('Tabel 2 ØJ'!J40/'Tabel 1 ØJ'!G38*100,"-")) -> 6.35620413
A41: Cand. IT. | C41: =IF(OR('Tabel 1 ØJ'!C39<5,'Tabel 2 ØJ'!C41<0.5),"-",IFERROR('Tabel 2 ØJ'!C41/'Tabel 1 ØJ'!C39*100,"-")) -> 10.17316017 | D41: =IF(OR('Tabel 1 ØJ'!C39<5,'Tabel 2 ØJ'!D41<0.5),"-",IFERROR('Tabel 2 ØJ'!D41/'Tabel 1 ØJ'!C39*100,"-")) -> 9.275917122 | F41: =IF(OR('Tabel 1 ØJ'!E39<5,'Tabel 2 ØJ'!F41<0.5),"-",IFERROR('Tabel 2 ØJ'!F41/'Tabel 1 ØJ'!E39*100,"-")) -> 8.585858586 | G41: =IF(OR('Tabel 1 ØJ'!E39<5,'Tabel 2 ØJ'!G41<0.5),"-",IFERROR('Tabel 2 ØJ'!G41/'Tabel 1 ØJ'!E39*100,"-")) -> 7.354150247 | I41: =IF(OR('Tabel 1 ØJ'!G39<5,'Tabel 2 ØJ'!I41<0.5),"-",IFERROR('Tabel 2 ØJ'!I41/'Tabel 1 ØJ'!G39*100,"-")) -> 9.440559441 | J41: =IF(OR('Tabel 1 ØJ'!G39<5,'Tabel 2 ØJ'!J41<0.5),"-",IFERROR('Tabel 2 ØJ'!J41/'Tabel 1 ØJ'!G39*100,"-")) -> 8.388947795
A42: Bac. Samf. | C42: =IF(OR('Tabel 1 ØJ'!C40<5,'Tabel 2 ØJ'!C42<0.5),"-",IFERROR('Tabel 2 ØJ'!C42/'Tabel 1 ØJ'!C40*100,"-")) -> 5.376344086 | D42: =IF(OR('Tabel 1 ØJ'!C40<5,'Tabel 2 ØJ'!D42<0.5),"-",IFERROR('Tabel 2 ØJ'!D42/'Tabel 1 ØJ'!C40*100,"-")) -> 5.325709273 | F42: =IF(OR('Tabel 1 ØJ'!E40<5,'Tabel 2 ØJ'!F42<0.5),"-",IFERROR('Tabel 2 ØJ'!F42/'Tabel 1 ØJ'!E40*100,"-")) -> 11.49425287 | G42: =IF(OR('Tabel 1 ØJ'!E40<5,'Tabel 2 ØJ'!G42<0.5),"-",IFERROR('Tabel 2 ØJ'!G42/'Tabel 1 ØJ'!E40*100,"-")) -> 9.186512588 | I42: =IF(OR('Tabel 1 ØJ'!G40<5,'Tabel 2 ØJ'!I42<0.5),"-",IFERROR('Tabel 2 ØJ'!I42/'Tabel 1 ØJ'!G40*100,"-")) -> 8.333333333 | J42: =IF(OR('Tabel 1 ØJ'!G40<5,'Tabel 2 ØJ'!J42<0.5),"-",IFERROR('Tabel 2 ØJ'!J42/'Tabel 1 ØJ'!G40*100,"-")) -> 7.191764209
A43: Bac. Hum. | C43: =IF(OR('Tabel 1 ØJ'!C41<5,'Tabel 2 ØJ'!C43<0.5),"-",IFERROR('Tabel 2 ØJ'!C43/'Tabel 1 ØJ'!C41*100,"-")) -> 10.70110701 | D43: =IF(OR('Tabel 1 ØJ'!C41<5,'Tabel 2 ØJ'!D43<0.5),"-",IFERROR('Tabel 2 ØJ'!D43/'Tabel 1 ØJ'!C41*100,"-")) -> 9.466407269 | F43: =IF(OR('Tabel 1 ØJ'!E41<5,'Tabel 2 ØJ'!F43<0.5),"-",IFERROR('Tabel 2 ØJ'!F43/'Tabel 1 ØJ'!E41*100,"-")) -> 14.46700508 | G43: =IF(OR('Tabel 1 ØJ'!E41<5,'Tabel 2 ØJ'!G43<0.5),"-",IFERROR('Tabel 2 ØJ'!G43/'Tabel 1 ØJ'!E41*100,"-")) -> 12.2368174 | I43: =IF(OR('Tabel 1 ØJ'!G41<5,'Tabel 2 ØJ'!I43<0.5),"-",IFERROR('Tabel 2 ØJ'!I43/'Tabel 1 ØJ'!G41*100,"-")) -> 12.93233083 | J43: =IF(OR('Tabel 1 ØJ'!G41<5,'Tabel 2 ØJ'!J43<0.5),"-",IFERROR('Tabel 2 ØJ'!J43/'Tabel 1 ØJ'!G41*100,"-")) -> 11.1078232
A44: Bac. Nat. | C44: =IF(OR('Tabel 1 ØJ'!C42<5,'Tabel 2 ØJ'!C44<0.5),"-",IFERROR('Tabel 2 ØJ'!C44/'Tabel 1 ØJ'!C42*100,"-")) -> 7.443365696 | D44: =IF(OR('Tabel 1 ØJ'!C42<5,'Tabel 2 ØJ'!D44<0.5),"-",IFERROR('Tabel 2 ØJ'!D44/'Tabel 1 ØJ'!C42*100,"-")) -> 6.783945007 | F44: =IF(OR('Tabel 1 ØJ'!E42<5,'Tabel 2 ØJ'!F44<0.5),"-",IFERROR('Tabel 2 ØJ'!F44/'Tabel 1 ØJ'!E42*100,"-")) -> 14.63414634 | G44: =IF(OR('Tabel 1 ØJ'!E42<5,'Tabel 2 ØJ'!G44<0.5),"-",IFERROR('Tabel 2 ØJ'!G44/'Tabel 1 ØJ'!E42*100,"-")) -> 12.66493548 | I44: =IF(OR('Tabel 1 ØJ'!G42<5,'Tabel 2 ØJ'!I44<0.5),"-",IFERROR('Tabel 2 ØJ'!I44/'Tabel 1 ØJ'!G42*100,"-")) -> 9.490740741 | J44: =IF(OR('Tabel 1 ØJ'!G42<5,'Tabel 2 ØJ'!J44<0.5),"-",IFERROR('Tabel 2 ØJ'!J44/'Tabel 1 ØJ'!G42*100,"-")) -> 8.458393683
A45: Andre | C45: =IF(OR('Tabel 1 ØJ'!C43<5,'Tabel 2 ØJ'!C45<0.5),"-",IFERROR('Tabel 2 ØJ'!C45/'Tabel 1 ØJ'!C43*100,"-")) -> 6.140350877 | D45: =IF(OR('Tabel 1 ØJ'!C43<5,'Tabel 2 ØJ'!D45<0.5),"-",IFERROR('Tabel 2 ØJ'!D45/'Tabel 1 ØJ'!C43*100,"-")) -> 5.477568911 | F45: =IF(OR('Tabel 1 ØJ'!E43<5,'Tabel 2 ØJ'!F45<0.5),"-",IFERROR('Tabel 2 ØJ'!F45/'Tabel 1 ØJ'!E43*100,"-")) -> 9.72017673 | G45: =IF(OR('Tabel 1 ØJ'!E43<5,'Tabel 2 ØJ'!G45<0.5),"-",IFERROR('Tabel 2 ØJ'!G45/'Tabel 1 ØJ'!E43*100,"-")) -> 8.048109904 | I45: =IF(OR('Tabel 1 ØJ'!G43<5,'Tabel 2 ØJ'!I45<0.5),"-",IFERROR('Tabel 2 ØJ'!I45/'Tabel 1 ØJ'!G43*100,"-")) -> 7.852112676 | J45: =IF(OR('Tabel 1 ØJ'!G43<5,'Tabel 2 ØJ'!J45<0.5),"-",IFERROR('Tabel 2 ØJ'!J45/'Tabel 1 ØJ'!G43*100,"-")) -> 6.706721963
A47: Total | C47: =IF(OR('Tabel 1 ØJ'!C45<5,'Tabel 2 ØJ'!C47<0.5),"-",IFERROR('Tabel 2 ØJ'!C47/'Tabel 1 ØJ'!C45*100,"-")) -> 5.574712644 | D47: =IF(OR('Tabel 1 ØJ'!C45<5,'Tabel 2 ØJ'!D47<0.5),"-",IFERROR('Tabel 2 ØJ'!D47/'Tabel 1 ØJ'!C45*100,"-")) -> 4.912940874 | F47: =IF(OR('Tabel 1 ØJ'!E45<5,'Tabel 2 ØJ'!F47<0.5),"-",IFERROR('Tabel 2 ØJ'!F47/'Tabel 1 ØJ'!E45*100,"-")) -> 8.614529575 | G47: =IF(OR('Tabel 1 ØJ'!E45<5,'Tabel 2 ØJ'!G47<0.5),"-",IFERROR('Tabel 2 ØJ'!G47/'Tabel 1 ØJ'!E45*100,"-")) -> 7.34056581 | I47: =IF(OR('Tabel 1 ØJ'!G45<5,'Tabel 2 ØJ'!I47<0.5),"-",IFERROR('Tabel 2 ØJ'!I47/'Tabel 1 ØJ'!G45*100,"-")) -> 7.091036742 | J47: =IF(OR('Tabel 1 ØJ'!G45<5,'Tabel 2 ØJ'!J47<0.5),"-",IFERROR('Tabel 2 ØJ'!J47/'Tabel 1 ØJ'!G45*100,"-")) -> 6.123890835
A49: Ingeniører i alt | C49: =IF(OR('Tabel 1 ØJ'!C47<5,'Tabel 2 ØJ'!C49<0.5),"-",IFERROR('Tabel 2 ØJ'!C49/'Tabel 1 ØJ'!C47*100,"-")) -> 2.711230571 | D49: =IF(OR('Tabel 1 ØJ'!C47<5,'Tabel 2 ØJ'!D49<0.5),"-",IFERROR('Tabel 2 ØJ'!D49/'Tabel 1 ØJ'!C47*100,"-")) -> 2.393771506 | F49: =IF(OR('Tabel 1 ØJ'!E47<5,'Tabel 2 ØJ'!F49<0.5),"-",IFERROR('Tabel 2 ØJ'!F49/'Tabel 1 ØJ'!E47*100,"-")) -> 4.29744085 | G49: =IF(OR('Tabel 1 ØJ'!E47<5,'Tabel 2 ØJ'!G49<0.5),"-",IFERROR('Tabel 2 ØJ'!G49/'Tabel 1 ØJ'!E47*100,"-")) -> 3.848291773 | I49: =IF(OR('Tabel 1 ØJ'!G47<5,'Tabel 2 ØJ'!I49<0.5),"-",IFERROR('Tabel 2 ØJ'!I49/'Tabel 1 ØJ'!G47*100,"-")) -> 3.020323673 | J49: =IF(OR('Tabel 1 ØJ'!G47<5,'Tabel 2 ØJ'!J49<0.5),"-",IFERROR('Tabel 2 ØJ'!J49/'Tabel 1 ØJ'!G47*100,"-")) -> 2.677203146
A50: Magistre i alt | C50: =IF(OR('Tabel 1 ØJ'!C48<5,'Tabel 2 ØJ'!C50<0.5),"-",IFERROR('Tabel 2 ØJ'!C50/'Tabel 1 ØJ'!C48*100,"-")) -> 9.160148209 | D50: =IF(OR('Tabel 1 ØJ'!C48<5,'Tabel 2 ØJ'!D50<0.5),"-",IFERROR('Tabel 2 ØJ'!D50/'Tabel 1 ØJ'!C48*100,"-")) -> 7.820736754 | F50: =IF(OR('Tabel 1 ØJ'!E48<5,'Tabel 2 ØJ'!F50<0.5),"-",IFERROR('Tabel 2 ØJ'!F50/'Tabel 1 ØJ'!E48*100,"-")) -> 12.46317407 | G50: =IF(OR('Tabel 1 ØJ'!E48<5,'Tabel 2 ØJ'!G50<0.5),"-",IFERROR('Tabel 2 ØJ'!G50/'Tabel 1 ØJ'!E48*100,"-")) -> 10.6010219 | I50: =IF(OR('Tabel 1 ØJ'!G48<5,'Tabel 2 ØJ'!I50<0.5),"-",IFERROR('Tabel 2 ØJ'!I50/'Tabel 1 ØJ'!G48*100,"-")) -> 11.19621003 | J50: =IF(OR('Tabel 1 ØJ'!G48<5,'Tabel 2 ØJ'!J50<0.5),"-",IFERROR('Tabel 2 ØJ'!J50/'Tabel 1 ØJ'!G48*100,"-")) -> 9.534569061
A51: DJØF'ere i alt | C51: =IF(OR('Tabel 1 ØJ'!C49<5,'Tabel 2 ØJ'!C51<0.5),"-",IFERROR('Tabel 2 ØJ'!C51/'Tabel 1 ØJ'!C49*100,"-")) -> 5.209086963 | D51: =IF(OR('Tabel 1 ØJ'!C49<5,'Tabel 2 ØJ'!D51<0.5),"-",IFERROR('Tabel 2 ØJ'!D51/'Tabel 1 ØJ'!C49*100,"-")) -> 4.694936141 | F51: =IF(OR('Tabel 1 ØJ'!E49<5,'Tabel 2 ØJ'!F51<0.5),"-",IFERROR('Tabel 2 ØJ'!F51/'Tabel 1 ØJ'!E49*100,"-")) -> 6.676910183 | G51: =IF(OR('Tabel 1 ØJ'!E49<5,'Tabel 2 ØJ'!G51<0.5),"-",IFERROR('Tabel 2 ØJ'!G51/'Tabel 1 ØJ'!E49*100,"-")) -> 5.664110481 | I51: =IF(OR('Tabel 1 ØJ'!G49<5,'Tabel 2 ØJ'!I51<0.5),"-",IFERROR('Tabel 2 ØJ'!I51/'Tabel 1 ØJ'!G49*100,"-")) -> 5.955934613 | J51: =IF(OR('Tabel 1 ØJ'!G49<5,'Tabel 2 ØJ'!J51<0.5),"-",IFERROR('Tabel 2 ØJ'!J51/'Tabel 1 ØJ'!G49*100,"-")) -> 5.18806472
A56: Horsens
C58: Mænd | F58: Kvinder | I58: I alt
C59: Ledigheds- berørte | D59: Gns. brutto- ledighed | F59: Ledigheds- berørte | G59: Gns. brutto- ledighed | I59: Ledigheds- berørte | J59: Gns. brutto- ledighed
A62: Civ. ing. | C62: =IF(OR('Tabel 1 ØJ'!C60<5,'Tabel 2 ØJ'!C62<0.5),"-",IFERROR('Tabel 2 ØJ'!C62/'Tabel 1 ØJ'!C60*100,"-")) -> 1.015228426 | D62: =IF(OR('Tabel 1 ØJ'!C60<5,'Tabel 2 ØJ'!D62<0.5),"-",IFERROR('Tabel 2 ØJ'!D62/'Tabel 1 ØJ'!C60*100,"-")) -> 1.015038463 | F62: =IF(OR('Tabel 1 ØJ'!E60<5,'Tabel 2 ØJ'!F62<0.5),"-",IFERROR('Tabel 2 ØJ'!F62/'Tabel 1 ØJ'!E60*100,"-")) -> 2.898550725 | G62: =IF(OR('Tabel 1 ØJ'!E60<5,'Tabel 2 ØJ'!G62<0.5),"-",IFERROR('Tabel 2 ØJ'!G62/'Tabel 1 ØJ'!E60*100,"-")) -> 2.898008365 | I62: =IF(OR('Tabel 1 ØJ'!G60<5,'Tabel 2 ØJ'!I62<0.5),"-",IFERROR('Tabel 2 ØJ'!I62/'Tabel 1 ØJ'!G60*100,"-")) -> 1.503759398 | J62: =IF(OR('Tabel 1 ØJ'!G60<5,'Tabel 2 ØJ'!J62<0.5),"-",IFERROR('Tabel 2 ØJ'!J62/'Tabel 1 ØJ'!G60*100,"-")) -> 1.503478024
A63: Diplom ing. | C63: =IF(OR('Tabel 1 ØJ'!C61<5,'Tabel 2 ØJ'!C63<0.5),"-",IFERROR('Tabel 2 ØJ'!C63/'Tabel 1 ØJ'!C61*100,"-")) -> 2.646239554 | D63: =IF(OR('Tabel 1 ØJ'!C61<5,'Tabel 2 ØJ'!D63<0.5),"-",IFERROR('Tabel 2 ØJ'!D63/'Tabel 1 ØJ'!C61*100,"-")) -> 2.334061347 | F63: =IF(OR('Tabel 1 ØJ'!E61<5,'Tabel 2 ØJ'!F63<0.5),"-",IFERROR('Tabel 2 ØJ'!F63/'Tabel 1 ØJ'!E61*100,"-")) -> 4.932735426 | G63: =IF(OR('Tabel 1 ØJ'!E61<5,'Tabel 2 ØJ'!G63<0.5),"-",IFERROR('Tabel 2 ØJ'!G63/'Tabel 1 ØJ'!E61*100,"-")) -> 4.82832633 | I63: =IF(OR('Tabel 1 ØJ'!G61<5,'Tabel 2 ØJ'!I63<0.5),"-",IFERROR('Tabel 2 ØJ'!I63/'Tabel 1 ØJ'!G61*100,"-")) -> 3.188097768 | J63: =IF(OR('Tabel 1 ØJ'!G61<5,'Tabel 2 ØJ'!J63<0.5),"-",IFERROR('Tabel 2 ØJ'!J63/'Tabel 1 ØJ'!G61*100,"-")) -> 2.925157087
A64: Cand. Scient. Tek. | C64: =IF(OR('Tabel 1 ØJ'!C62<5,'Tabel 2 ØJ'!C64<0.5),"-",IFERROR('Tabel 2 ØJ'!C64/'Tabel 1 ØJ'!C62*100,"-")) -> 11.76470588 | D64: =IF(OR('Tabel 1 ØJ'!C62<5,'Tabel 2 ØJ'!D64<0.5),"-",IFERROR('Tabel 2 ØJ'!D64/'Tabel 1 ØJ'!C62*100,"-")) -> 10.26926083 | F64: =IF(OR('Tabel 1 ØJ'!E62<5,'Tabel 2 ØJ'!F64<0.5),"-",IFERROR('Tabel 2 ØJ'!F64/'Tabel 1 ØJ'!E62*100,"-")) -> 13.7254902 | G64: =IF(OR('Tabel 1 ØJ'!E62<5,'Tabel 2 ØJ'!G64<0.5),"-",IFERROR('Tabel 2 ØJ'!G64/'Tabel 1 ØJ'!E62*100,"-")) -> 13.17992425 | I64: =IF(OR('Tabel 1 ØJ'!G62<5,'Tabel 2 ØJ'!I64<0.5),"-",IFERROR('Tabel 2 ØJ'!I64/'Tabel 1 ØJ'!G62*100,"-")) -> 12.60504202 | J64: =IF(OR('Tabel 1 ØJ'!G62<5,'Tabel 2 ØJ'!J64<0.5),"-",IFERROR('Tabel 2 ØJ'!J64/'Tabel 1 ØJ'!G62*100,"-")) -> 11.51668801
A65: MA. Hum. | C65: =IF(OR('Tabel 1 ØJ'!C63<5,'Tabel 2 ØJ'!C65<0.5),"-",IFERROR('Tabel 2 ØJ'!C65/'Tabel 1 ØJ'!C63*100,"-")) -> 8.928571429 | D65: =IF(OR('Tabel 1 ØJ'!C63<5,'Tabel 2 ØJ'!D65<0.5),"-",IFERROR('Tabel 2 ØJ'!D65/'Tabel 1 ØJ'!C63*100,"-")) -> 6.613034723 | F65: =IF(OR('Tabel 1 ØJ'!E63<5,'Tabel 2 ØJ'!F65<0.5),"-",IFERROR('Tabel 2 ØJ'!F65/'Tabel 1 ØJ'!E63*100,"-")) -> 12.75720165 | G65: =IF(OR('Tabel 1 ØJ'!E63<5,'Tabel 2 ØJ'!G65<0.5),"-",IFERROR('Tabel 2 ØJ'!G65/'Tabel 1 ØJ'!E63*100,"-")) -> 10.13111076 | I65: =IF(OR('Tabel 1 ØJ'!G63<5,'Tabel 2 ØJ'!I65<0.5),"-",IFERROR('Tabel 2 ØJ'!I65/'Tabel 1 ØJ'!G63*100,"-")) -> 11.54929577 | J65: =IF(OR('Tabel 1 ØJ'!G63<5,'Tabel 2 ØJ'!J65<0.5),"-",IFERROR('Tabel 2 ØJ'!J65/'Tabel 1 ØJ'!G63*100,"-")) -> 9.021182543
A66: MA. Nat. | C66: =IF(OR('Tabel 1 ØJ'!C64<5,'Tabel 2 ØJ'!C66<0.5),"-",IFERROR('Tabel 2 ØJ'!C66/'Tabel 1 ØJ'!C64*100,"-")) -> - | D66: =IF(OR('Tabel 1 ØJ'!C64<5,'Tabel 2 ØJ'!D66<0.5),"-",IFERROR('Tabel 2 ØJ'!D66/'Tabel 1 ØJ'!C64*100,"-")) -> - | F66: =IF(OR('Tabel 1 ØJ'!E64<5,'Tabel 2 ØJ'!F66<0.5),"-",IFERROR('Tabel 2 ØJ'!F66/'Tabel 1 ØJ'!E64*100,"-")) -> 3.125 | G66: =IF(OR('Tabel 1 ØJ'!E64<5,'Tabel 2 ØJ'!G66<0.5),"-",IFERROR('Tabel 2 ØJ'!G66/'Tabel 1 ØJ'!E64*100,"-")) -> 3.124415269 | I66: =IF(OR('Tabel 1 ØJ'!G64<5,'Tabel 2 ØJ'!I66<0.5),"-",IFERROR('Tabel 2 ØJ'!I66/'Tabel 1 ØJ'!G64*100,"-")) -> 1.57480315 | J66: =IF(OR('Tabel 1 ØJ'!G64<5,'Tabel 2 ØJ'!J66<0.5),"-",IFERROR('Tabel 2 ØJ'!J66/'Tabel 1 ØJ'!G64*100,"-")) -> 1.574508482
A67: MA. Ph.d. | C67: =IF(OR('Tabel 1 ØJ'!C65<5,'Tabel 2 ØJ'!C67<0.5),"-",IFERROR('Tabel 2 ØJ'!C67/'Tabel 1 ØJ'!C65*100,"-")) -> - | D67: =IF(OR('Tabel 1 ØJ'!C65<5,'Tabel 2 ØJ'!D67<0.5),"-",IFERROR('Tabel 2 ØJ'!D67/'Tabel 1 ØJ'!C65*100,"-")) -> - | F67: =IF(OR('Tabel 1 ØJ'!E65<5,'Tabel 2 ØJ'!F67<0.5),"-",IFERROR('Tabel 2 ØJ'!F67/'Tabel 1 ØJ'!E65*100,"-")) -> - | G67: =IF(OR('Tabel 1 ØJ'!E65<5,'Tabel 2 ØJ'!G67<0.5),"-",IFERROR('Tabel 2 ØJ'!G67/'Tabel 1 ØJ'!E65*100,"-")) -> - | I67: =IF(OR('Tabel 1 ØJ'!G65<5,'Tabel 2 ØJ'!I67<0.5),"-",IFERROR('Tabel 2 ØJ'!I67/'Tabel 1 ØJ'!G65*100,"-")) -> - | J67: =IF(OR('Tabel 1 ØJ'!G65<5,'Tabel 2 ØJ'!J67<0.5),"-",IFERROR('Tabel 2 ØJ'!J67/'Tabel 1 ØJ'!G65*100,"-")) -> -
A68: MA. Samf. | C68: =IF(OR('Tabel 1 ØJ'!C66<5,'Tabel 2 ØJ'!C68<0.5),"-",IFERROR('Tabel 2 ØJ'!C68/'Tabel 1 ØJ'!C66*100,"-")) -> 14.28571429 | D68: =IF(OR('Tabel 1 ØJ'!C66<5,'Tabel 2 ØJ'!D68<0.5),"-",IFERROR('Tabel 2 ØJ'!D68/'Tabel 1 ØJ'!C66*100,"-")) -> 10.32691502 | F68: =IF(OR('Tabel 1 ØJ'!E66<5,'Tabel 2 ØJ'!F68<0.5),"-",IFERROR('Tabel 2 ØJ'!F68/'Tabel 1 ØJ'!E66*100,"-")) -> 17.64705882 | G68: =IF(OR('Tabel 1 ØJ'!E66<5,'Tabel 2 ØJ'!G68<0.5),"-",IFERROR('Tabel 2 ØJ'!G68/'Tabel 1 ØJ'!E66*100,"-")) -> 15.76894713 | I68: =IF(OR('Tabel 1 ØJ'!G66<5,'Tabel 2 ØJ'!I68<0.5),"-",IFERROR('Tabel 2 ØJ'!I68/'Tabel 1 ØJ'!G66*100,"-")) -> 16.66666667 | J68: =IF(OR('Tabel 1 ØJ'!G66<5,'Tabel 2 ØJ'!J68<0.5),"-",IFERROR('Tabel 2 ØJ'!J68/'Tabel 1 ØJ'!G66*100,"-")) -> 14.18168777
A69: Øvrige Mag. | C69: =IF(OR('Tabel 1 ØJ'!C67<5,'Tabel 2 ØJ'!C69<0.5),"-",IFERROR('Tabel 2 ØJ'!C69/'Tabel 1 ØJ'!C67*100,"-")) -> 6.25 | D69: =IF(OR('Tabel 1 ØJ'!C67<5,'Tabel 2 ØJ'!D69<0.5),"-",IFERROR('Tabel 2 ØJ'!D69/'Tabel 1 ØJ'!C67*100,"-")) -> 6.248830537 | F69: =IF(OR('Tabel 1 ØJ'!E67<5,'Tabel 2 ØJ'!F69<0.5),"-",IFERROR('Tabel 2 ØJ'!F69/'Tabel 1 ØJ'!E67*100,"-")) -> 15.38461538 | G69: =IF(OR('Tabel 1 ØJ'!E67<5,'Tabel 2 ØJ'!G69<0.5),"-",IFERROR('Tabel 2 ØJ'!G69/'Tabel 1 ØJ'!E67*100,"-")) -> 12.26316875 | I69: =IF(OR('Tabel 1 ØJ'!G67<5,'Tabel 2 ØJ'!I69<0.5),"-",IFERROR('Tabel 2 ØJ'!I69/'Tabel 1 ØJ'!G67*100,"-")) -> 10.34482759 | J69: =IF(OR('Tabel 1 ØJ'!G67<5,'Tabel 2 ØJ'!J69<0.5),"-",IFERROR('Tabel 2 ØJ'!J69/'Tabel 1 ØJ'!G67*100,"-")) -> 8.944913186
A70: Agronom | C70: =IF(OR('Tabel 1 ØJ'!C68<5,'Tabel 2 ØJ'!C70<0.5),"-",IFERROR('Tabel 2 ØJ'!C70/'Tabel 1 ØJ'!C68*100,"-")) -> - | D70: =IF(OR('Tabel 1 ØJ'!C68<5,'Tabel 2 ØJ'!D70<0.5),"-",IFERROR('Tabel 2 ØJ'!D70/'Tabel 1 ØJ'!C68*100,"-")) -> - | F70: =IF(OR('Tabel 1 ØJ'!E68<5,'Tabel 2 ØJ'!F70<0.5),"-",IFERROR('Tabel 2 ØJ'!F70/'Tabel 1 ØJ'!E68*100,"-")) -> 7.142857143 | G70: =IF(OR('Tabel 1 ØJ'!E68<5,'Tabel 2 ØJ'!G70<0.5),"-",IFERROR('Tabel 2 ØJ'!G70/'Tabel 1 ØJ'!E68*100,"-")) -> 5.297110424 | I70: =IF(OR('Tabel 1 ØJ'!G68<5,'Tabel 2 ØJ'!I70<0.5),"-",IFERROR('Tabel 2 ØJ'!I70/'Tabel 1 ØJ'!G68*100,"-")) -> 2.702702703 | J70: =IF(OR('Tabel 1 ØJ'!G68<5,'Tabel 2 ØJ'!J70<0.5),"-",IFERROR('Tabel 2 ØJ'!J70/'Tabel 1 ØJ'!G68*100,"-")) -> 2.004312052
A71: Landsk. Arkt. | C71: =IF(OR('Tabel 1 ØJ'!C69<5,'Tabel 2 ØJ'!C71<0.5),"-",IFERROR('Tabel 2 ØJ'!C71/'Tabel 1 ØJ'!C69*100,"-")) -> - | D71: =IF(OR('Tabel 1 ØJ'!C69<5,'Tabel 2 ØJ'!D71<0.5),"-",IFERROR('Tabel 2 ØJ'!D71/'Tabel 1 ØJ'!C69*100,"-")) -> - | F71: =IF(OR('Tabel 1 ØJ'!E69<5,'Tabel 2 ØJ'!F71<0.5),"-",IFERROR('Tabel 2 ØJ'!F71/'Tabel 1 ØJ'!E69*100,"-")) -> - | G71: =IF(OR('Tabel 1 ØJ'!E69<5,'Tabel 2 ØJ'!G71<0.5),"-",IFERROR('Tabel 2 ØJ'!G71/'Tabel 1 ØJ'!E69*100,"-")) -> - | I71: =IF(OR('Tabel 1 ØJ'!G69<5,'Tabel 2 ØJ'!I71<0.5),"-",IFERROR('Tabel 2 ØJ'!I71/'Tabel 1 ØJ'!G69*100,"-")) -> - | J71: =IF(OR('Tabel 1 ØJ'!G69<5,'Tabel 2 ØJ'!J71<0.5),"-",IFERROR('Tabel 2 ØJ'!J71/'Tabel 1 ØJ'!G69*100,"-")) -> -
A72: Hortonom | C72: =IF(OR('Tabel 1 ØJ'!C70<5,'Tabel 2 ØJ'!C72<0.5),"-",IFERROR('Tabel 2 ØJ'!C72/'Tabel 1 ØJ'!C70*100,"-")) -> - | D72: =IF(OR('Tabel 1 ØJ'!C70<5,'Tabel 2 ØJ'!D72<0.5),"-",IFERROR('Tabel 2 ØJ'!D72/'Tabel 1 ØJ'!C70*100,"-")) -> - | F72: =IF(OR('Tabel 1 ØJ'!E70<5,'Tabel 2 ØJ'!F72<0.5),"-",IFERROR('Tabel 2 ØJ'!F72/'Tabel 1 ØJ'!E70*100,"-")) -> - | G72: =IF(OR('Tabel 1 ØJ'!E70<5,'Tabel 2 ØJ'!G72<0.5),"-",IFERROR('Tabel 2 ØJ'!G72/'Tabel 1 ØJ'!E70*100,"-")) -> - | I72: =IF(OR('Tabel 1 ØJ'!G70<5,'Tabel 2 ØJ'!I72<0.5),"-",IFERROR('Tabel 2 ØJ'!I72/'Tabel 1 ØJ'!G70*100,"-")) -> - | J72: =IF(OR('Tabel 1 ØJ'!G70<5,'Tabel 2 ØJ'!J72<0.5),"-",IFERROR('Tabel 2 ØJ'!J72/'Tabel 1 ØJ'!G70*100,"-")) -> -
A73: Forstkand. | C73: =IF(OR('Tabel 1 ØJ'!C71<5,'Tabel 2 ØJ'!C73<0.5),"-",IFERROR('Tabel 2 ØJ'!C73/'Tabel 1 ØJ'!C71*100,"-")) -> - | D73: =IF(OR('Tabel 1 ØJ'!C71<5,'Tabel 2 ØJ'!D73<0.5),"-",IFERROR('Tabel 2 ØJ'!D73/'Tabel 1 ØJ'!C71*100,"-")) -> - | F73: =IF(OR('Tabel 1 ØJ'!E71<5,'Tabel 2 ØJ'!F73<0.5),"-",IFERROR('Tabel 2 ØJ'!F73/'Tabel 1 ØJ'!E71*100,"-")) -> - | G73: =IF(OR('Tabel 1 ØJ'!E71<5,'Tabel 2 ØJ'!G73<0.5),"-",IFERROR('Tabel 2 ØJ'!G73/'Tabel 1 ØJ'!E71*100,"-")) -> - | I73: =IF(OR('Tabel 1 ØJ'!G71<5,'Tabel 2 ØJ'!I73<0.5),"-",IFERROR('Tabel 2 ØJ'!I73/'Tabel 1 ØJ'!G71*100,"-")) -> - | J73: =IF(OR('Tabel 1 ØJ'!G71<5,'Tabel 2 ØJ'!J73<0.5),"-",IFERROR('Tabel 2 ØJ'!J73/'Tabel 1 ØJ'!G71*100,"-")) -> -
A74: Jordbrugsakad. | C74: =IF(OR('Tabel 1 ØJ'!C72<5,'Tabel 2 ØJ'!C74<0.5),"-",IFERROR('Tabel 2 ØJ'!C74/'Tabel 1 ØJ'!C72*100,"-")) -> - | D74: =IF(OR('Tabel 1 ØJ'!C72<5,'Tabel 2 ØJ'!D74<0.5),"-",IFERROR('Tabel 2 ØJ'!D74/'Tabel 1 ØJ'!C72*100,"-")) -> - | F74: =IF(OR('Tabel 1 ØJ'!E72<5,'Tabel 2 ØJ'!F74<0.5),"-",IFERROR('Tabel 2 ØJ'!F74/'Tabel 1 ØJ'!E72*100,"-")) -> 6.25 | G74: =IF(OR('Tabel 1 ØJ'!E72<5,'Tabel 2 ØJ'!G74<0.5),"-",IFERROR('Tabel 2 ØJ'!G74/'Tabel 1 ØJ'!E72*100,"-")) -> 4.634971621 | I74: =IF(OR('Tabel 1 ØJ'!G72<5,'Tabel 2 ØJ'!I74<0.5),"-",IFERROR('Tabel 2 ØJ'!I74/'Tabel 1 ØJ'!G72*100,"-")) -> 2.173913043 | J74: =IF(OR('Tabel 1 ØJ'!G72<5,'Tabel 2 ØJ'!J74<0.5),"-",IFERROR('Tabel 2 ØJ'!J74/'Tabel 1 ØJ'!G72*100,"-")) -> 1.612164042
A75: Mejeriing. | C75: =IF(OR('Tabel 1 ØJ'!C73<5,'Tabel 2 ØJ'!C75<0.5),"-",IFERROR('Tabel 2 ØJ'!C75/'Tabel 1 ØJ'!C73*100,"-")) -> - | D75: =IF(OR('Tabel 1 ØJ'!C73<5,'Tabel 2 ØJ'!D75<0.5),"-",IFERROR('Tabel 2 ØJ'!D75/'Tabel 1 ØJ'!C73*100,"-")) -> - | F75: =IF(OR('Tabel 1 ØJ'!E73<5,'Tabel 2 ØJ'!F75<0.5),"-",IFERROR('Tabel 2 ØJ'!F75/'Tabel 1 ØJ'!E73*100,"-")) -> - | G75: =IF(OR('Tabel 1 ØJ'!E73<5,'Tabel 2 ØJ'!G75<0.5),"-",IFERROR('Tabel 2 ØJ'!G75/'Tabel 1 ØJ'!E73*100,"-")) -> - | I75: =IF(OR('Tabel 1 ØJ'!G73<5,'Tabel 2 ØJ'!I75<0.5),"-",IFERROR('Tabel 2 ØJ'!I75/'Tabel 1 ØJ'!G73*100,"-")) -> - | J75: =IF(OR('Tabel 1 ØJ'!G73<5,'Tabel 2 ØJ'!J75<0.5),"-",IFERROR('Tabel 2 ØJ'!J75/'Tabel 1 ØJ'!G73*100,"-")) -> -
A76: Levn.m.kand. | C76: =IF(OR('Tabel 1 ØJ'!C74<5,'Tabel 2 ØJ'!C76<0.5),"-",IFERROR('Tabel 2 ØJ'!C76/'Tabel 1 ØJ'!C74*100,"-")) -> - | D76: =IF(OR('Tabel 1 ØJ'!C74<5,'Tabel 2 ØJ'!D76<0.5),"-",IFERROR('Tabel 2 ØJ'!D76/'Tabel 1 ØJ'!C74*100,"-")) -> - | F76: =IF(OR('Tabel 1 ØJ'!E74<5,'Tabel 2 ØJ'!F76<0.5),"-",IFERROR('Tabel 2 ØJ'!F76/'Tabel 1 ØJ'!E74*100,"-")) -> - | G76: =IF(OR('Tabel 1 ØJ'!E74<5,'Tabel 2 ØJ'!G76<0.5),"-",IFERROR('Tabel 2 ØJ'!G76/'Tabel 1 ØJ'!E74*100,"-")) -> - | I76: =IF(OR('Tabel 1 ØJ'!G74<5,'Tabel 2 ØJ'!I76<0.5),"-",IFERROR('Tabel 2 ØJ'!I76/'Tabel 1 ØJ'!G74*100,"-")) -> - | J76: =IF(OR('Tabel 1 ØJ'!G74<5,'Tabel 2 ØJ'!J76<0.5),"-",IFERROR('Tabel 2 ØJ'!J76/'Tabel 1 ØJ'!G74*100,"-")) -> -
A77: Dyrlæge | C77: =IF(OR('Tabel 1 ØJ'!C75<5,'Tabel 2 ØJ'!C77<0.5),"-",IFERROR('Tabel 2 ØJ'!C77/'Tabel 1 ØJ'!C75*100,"-")) -> - | D77: =IF(OR('Tabel 1 ØJ'!C75<5,'Tabel 2 ØJ'!D77<0.5),"-",IFERROR('Tabel 2 ØJ'!D77/'Tabel 1 ØJ'!C75*100,"-")) -> - | F77: =IF(OR('Tabel 1 ØJ'!E75<5,'Tabel 2 ØJ'!F77<0.5),"-",IFERROR('Tabel 2 ØJ'!F77/'Tabel 1 ØJ'!E75*100,"-")) -> - | G77: =IF(OR('Tabel 1 ØJ'!E75<5,'Tabel 2 ØJ'!G77<0.5),"-",IFERROR('Tabel 2 ØJ'!G77/'Tabel 1 ØJ'!E75*100,"-")) -> - | I77: =IF(OR('Tabel 1 ØJ'!G75<5,'Tabel 2 ØJ'!I77<0.5),"-",IFERROR('Tabel 2 ØJ'!I77/'Tabel 1 ØJ'!G75*100,"-")) -> - | J77: =IF(OR('Tabel 1 ØJ'!G75<5,'Tabel 2 ØJ'!J77<0.5),"-",IFERROR('Tabel 2 ØJ'!J77/'Tabel 1 ØJ'!G75*100,"-")) -> -
A78: Farmaceut | C78: =IF(OR('Tabel 1 ØJ'!C76<5,'Tabel 2 ØJ'!C78<0.5),"-",IFERROR('Tabel 2 ØJ'!C78/'Tabel 1 ØJ'!C76*100,"-")) -> - | D78: =IF(OR('Tabel 1 ØJ'!C76<5,'Tabel 2 ØJ'!D78<0.5),"-",IFERROR('Tabel 2 ØJ'!D78/'Tabel 1 ØJ'!C76*100,"-")) -> - | F78: =IF(OR('Tabel 1 ØJ'!E76<5,'Tabel 2 ØJ'!F78<0.5),"-",IFERROR('Tabel 2 ØJ'!F78/'Tabel 1 ØJ'!E76*100,"-")) -> 11.76470588 | G78: =IF(OR('Tabel 1 ØJ'!E76<5,'Tabel 2 ØJ'!G78<0.5),"-",IFERROR('Tabel 2 ØJ'!G78/'Tabel 1 ØJ'!E76*100,"-")) -> 6.06102854 | I78: =IF(OR('Tabel 1 ØJ'!G76<5,'Tabel 2 ØJ'!I78<0.5),"-",IFERROR('Tabel 2 ØJ'!I78/'Tabel 1 ØJ'!G76*100,"-")) -> 9.523809524 | J78: =IF(OR('Tabel 1 ØJ'!G76<5,'Tabel 2 ØJ'!J78<0.5),"-",IFERROR('Tabel 2 ØJ'!J78/'Tabel 1 ØJ'!G76*100,"-")) -> 4.906546914
A79: Læge | C79: =IF(OR('Tabel 1 ØJ'!C77<5,'Tabel 2 ØJ'!C79<0.5),"-",IFERROR('Tabel 2 ØJ'!C79/'Tabel 1 ØJ'!C77*100,"-")) -> - | D79: =IF(OR('Tabel 1 ØJ'!C77<5,'Tabel 2 ØJ'!D79<0.5),"-",IFERROR('Tabel 2 ØJ'!D79/'Tabel 1 ØJ'!C77*100,"-")) -> - | F79: =IF(OR('Tabel 1 ØJ'!E77<5,'Tabel 2 ØJ'!F79<0.5),"-",IFERROR('Tabel 2 ØJ'!F79/'Tabel 1 ØJ'!E77*100,"-")) -> - | G79: =IF(OR('Tabel 1 ØJ'!E77<5,'Tabel 2 ØJ'!G79<0.5),"-",IFERROR('Tabel 2 ØJ'!G79/'Tabel 1 ØJ'!E77*100,"-")) -> - | I79: =IF(OR('Tabel 1 ØJ'!G77<5,'Tabel 2 ØJ'!I79<0.5),"-",IFERROR('Tabel 2 ØJ'!I79/'Tabel 1 ØJ'!G77*100,"-")) -> - | J79: =IF(OR('Tabel 1 ØJ'!G77<5,'Tabel 2 ØJ'!J79<0.5),"-",IFERROR('Tabel 2 ØJ'!J79/'Tabel 1 ØJ'!G77*100,"-")) -> -
A80: Tandlæge | C80: =IF(OR('Tabel 1 ØJ'!C78<5,'Tabel 2 ØJ'!C80<0.5),"-",IFERROR('Tabel 2 ØJ'!C80/'Tabel 1 ØJ'!C78*100,"-")) -> - | D80: =IF(OR('Tabel 1 ØJ'!C78<5,'Tabel 2 ØJ'!D80<0.5),"-",IFERROR('Tabel 2 ØJ'!D80/'Tabel 1 ØJ'!C78*100,"-")) -> - | F80: =IF(OR('Tabel 1 ØJ'!E78<5,'Tabel 2 ØJ'!F80<0.5),"-",IFERROR('Tabel 2 ØJ'!F80/'Tabel 1 ØJ'!E78*100,"-")) -> - | G80: =IF(OR('Tabel 1 ØJ'!E78<5,'Tabel 2 ØJ'!G80<0.5),"-",IFERROR('Tabel 2 ØJ'!G80/'Tabel 1 ØJ'!E78*100,"-")) -> - | I80: =IF(OR('Tabel 1 ØJ'!G78<5,'Tabel 2 ØJ'!I80<0.5),"-",IFERROR('Tabel 2 ØJ'!I80/'Tabel 1 ØJ'!G78*100,"-")) -> - | J80: =IF(OR('Tabel 1 ØJ'!G78<5,'Tabel 2 ØJ'!J80<0.5),"-",IFERROR('Tabel 2 ØJ'!J80/'Tabel 1 ØJ'!G78*100,"-")) -> -
A81: Arkitekt | C81: =IF(OR('Tabel 1 ØJ'!C79<5,'Tabel 2 ØJ'!C81<0.5),"-",IFERROR('Tabel 2 ØJ'!C81/'Tabel 1 ØJ'!C79*100,"-")) -> - | D81: =IF(OR('Tabel 1 ØJ'!C79<5,'Tabel 2 ØJ'!D81<0.5),"-",IFERROR('Tabel 2 ØJ'!D81/'Tabel 1 ØJ'!C79*100,"-")) -> - | F81: =IF(OR('Tabel 1 ØJ'!E79<5,'Tabel 2 ØJ'!F81<0.5),"-",IFERROR('Tabel 2 ØJ'!F81/'Tabel 1 ØJ'!E79*100,"-")) -> - | G81: =IF(OR('Tabel 1 ØJ'!E79<5,'Tabel 2 ØJ'!G81<0.5),"-",IFERROR('Tabel 2 ØJ'!G81/'Tabel 1 ØJ'!E79*100,"-")) -> - | I81: =IF(OR('Tabel 1 ØJ'!G79<5,'Tabel 2 ØJ'!I81<0.5),"-",IFERROR('Tabel 2 ØJ'!I81/'Tabel 1 ØJ'!G79*100,"-")) -> - | J81: =IF(OR('Tabel 1 ØJ'!G79<5,'Tabel 2 ØJ'!J81<0.5),"-",IFERROR('Tabel 2 ØJ'!J81/'Tabel 1 ØJ'!G79*100,"-")) -> -
A82: Landinspek. | C82: =IF(OR('Tabel 1 ØJ'!C80<5,'Tabel 2 ØJ'!C82<0.5),"-",IFERROR('Tabel 2 ØJ'!C82/'Tabel 1 ØJ'!C80*100,"-")) -> - | D82: =IF(OR('Tabel 1 ØJ'!C80<5,'Tabel 2 ØJ'!D82<0.5),"-",IFERROR('Tabel 2 ØJ'!D82/'Tabel 1 ØJ'!C80*100,"-")) -> - | F82: =IF(OR('Tabel 1 ØJ'!E80<5,'Tabel 2 ØJ'!F82<0.5),"-",IFERROR('Tabel 2 ØJ'!F82/'Tabel 1 ØJ'!E80*100,"-")) -> - | G82: =IF(OR('Tabel 1 ØJ'!E80<5,'Tabel 2 ØJ'!G82<0.5),"-",IFERROR('Tabel 2 ØJ'!G82/'Tabel 1 ØJ'!E80*100,"-")) -> - | I82: =IF(OR('Tabel 1 ØJ'!G80<5,'Tabel 2 ØJ'!I82<0.5),"-",IFERROR('Tabel 2 ØJ'!I82/'Tabel 1 ØJ'!G80*100,"-")) -> - | J82: =IF(OR('Tabel 1 ØJ'!G80<5,'Tabel 2 ØJ'!J82<0.5),"-",IFERROR('Tabel 2 ØJ'!J82/'Tabel 1 ØJ'!G80*100,"-")) -> -
A83: Bibliotekar | C83: =IF(OR('Tabel 1 ØJ'!C81<5,'Tabel 2 ØJ'!C83<0.5),"-",IFERROR('Tabel 2 ØJ'!C83/'Tabel 1 ØJ'!C81*100,"-")) -> - | D83: =IF(OR('Tabel 1 ØJ'!C81<5,'Tabel 2 ØJ'!D83<0.5),"-",IFERROR('Tabel 2 ØJ'!D83/'Tabel 1 ØJ'!C81*100,"-")) -> - | F83: =IF(OR('Tabel 1 ØJ'!E81<5,'Tabel 2 ØJ'!F83<0.5),"-",IFERROR('Tabel 2 ØJ'!F83/'Tabel 1 ØJ'!E81*100,"-")) -> - | G83: =IF(OR('Tabel 1 ØJ'!E81<5,'Tabel 2 ØJ'!G83<0.5),"-",IFERROR('Tabel 2 ØJ'!G83/'Tabel 1 ØJ'!E81*100,"-")) -> - | I83: =IF(OR('Tabel 1 ØJ'!G81<5,'Tabel 2 ØJ'!I83<0.5),"-",IFERROR('Tabel 2 ØJ'!I83/'Tabel 1 ØJ'!G81*100,"-")) -> - | J83: =IF(OR('Tabel 1 ØJ'!G81<5,'Tabel 2 ØJ'!J83<0.5),"-",IFERROR('Tabel 2 ØJ'!J83/'Tabel 1 ØJ'!G81*100,"-")) -> -
A84: Musikudd. | C84: =IF(OR('Tabel 1 ØJ'!C82<5,'Tabel 2 ØJ'!C84<0.5),"-",IFERROR('Tabel 2 ØJ'!C84/'Tabel 1 ØJ'!C82*100,"-")) -> - | D84: =IF(OR('Tabel 1 ØJ'!C82<5,'Tabel 2 ØJ'!D84<0.5),"-",IFERROR('Tabel 2 ØJ'!D84/'Tabel 1 ØJ'!C82*100,"-")) -> - | F84: =IF(OR('Tabel 1 ØJ'!E82<5,'Tabel 2 ØJ'!F84<0.5),"-",IFERROR('Tabel 2 ØJ'!F84/'Tabel 1 ØJ'!E82*100,"-")) -> - | G84: =IF(OR('Tabel 1 ØJ'!E82<5,'Tabel 2 ØJ'!G84<0.5),"-",IFERROR('Tabel 2 ØJ'!G84/'Tabel 1 ØJ'!E82*100,"-")) -> - | I84: =IF(OR('Tabel 1 ØJ'!G82<5,'Tabel 2 ØJ'!I84<0.5),"-",IFERROR('Tabel 2 ØJ'!I84/'Tabel 1 ØJ'!G82*100,"-")) -> - | J84: =IF(OR('Tabel 1 ØJ'!G82<5,'Tabel 2 ØJ'!J84<0.5),"-",IFERROR('Tabel 2 ØJ'!J84/'Tabel 1 ØJ'!G82*100,"-")) -> -
A85: Teolog | C85: =IF(OR('Tabel 1 ØJ'!C83<5,'Tabel 2 ØJ'!C85<0.5),"-",IFERROR('Tabel 2 ØJ'!C85/'Tabel 1 ØJ'!C83*100,"-")) -> - | D85: =IF(OR('Tabel 1 ØJ'!C83<5,'Tabel 2 ØJ'!D85<0.5),"-",IFERROR('Tabel 2 ØJ'!D85/'Tabel 1 ØJ'!C83*100,"-")) -> - | F85: =IF(OR('Tabel 1 ØJ'!E83<5,'Tabel 2 ØJ'!F85<0.5),"-",IFERROR('Tabel 2 ØJ'!F85/'Tabel 1 ØJ'!E83*100,"-")) -> - | G85: =IF(OR('Tabel 1 ØJ'!E83<5,'Tabel 2 ØJ'!G85<0.5),"-",IFERROR('Tabel 2 ØJ'!G85/'Tabel 1 ØJ'!E83*100,"-")) -> - | I85: =IF(OR('Tabel 1 ØJ'!G83<5,'Tabel 2 ØJ'!I85<0.5),"-",IFERROR('Tabel 2 ØJ'!I85/'Tabel 1 ØJ'!G83*100,"-")) -> - | J85: =IF(OR('Tabel 1 ØJ'!G83<5,'Tabel 2 ØJ'!J85<0.5),"-",IFERROR('Tabel 2 ØJ'!J85/'Tabel 1 ØJ'!G83*100,"-")) -> -
A86: Psykolog | C86: =IF(OR('Tabel 1 ØJ'!C84<5,'Tabel 2 ØJ'!C86<0.5),"-",IFERROR('Tabel 2 ØJ'!C86/'Tabel 1 ØJ'!C84*100,"-")) -> 6.666666667 | D86: =IF(OR('Tabel 1 ØJ'!C84<5,'Tabel 2 ØJ'!D86<0.5),"-",IFERROR('Tabel 2 ØJ'!D86/'Tabel 1 ØJ'!C84*100,"-")) -> 6.499095615 | F86: =IF(OR('Tabel 1 ØJ'!E84<5,'Tabel 2 ØJ'!F86<0.5),"-",IFERROR('Tabel 2 ØJ'!F86/'Tabel 1 ØJ'!E84*100,"-")) -> 9.230769231 | G86: =IF(OR('Tabel 1 ØJ'!E84<5,'Tabel 2 ØJ'!G86<0.5),"-",IFERROR('Tabel 2 ØJ'!G86/'Tabel 1 ØJ'!E84*100,"-")) -> 8.352004759 | I86: =IF(OR('Tabel 1 ØJ'!G84<5,'Tabel 2 ØJ'!I86<0.5),"-",IFERROR('Tabel 2 ØJ'!I86/'Tabel 1 ØJ'!G84*100,"-")) -> 8.75 | J86: =IF(OR('Tabel 1 ØJ'!G84<5,'Tabel 2 ØJ'!J86<0.5),"-",IFERROR('Tabel 2 ØJ'!J86/'Tabel 1 ØJ'!G84*100,"-")) -> 8.004584295
A87: Jurist | C87: =IF(OR('Tabel 1 ØJ'!C85<5,'Tabel 2 ØJ'!C87<0.5),"-",IFERROR('Tabel 2 ØJ'!C87/'Tabel 1 ØJ'!C85*100,"-")) -> 2.564102564 | D87: =IF(OR('Tabel 1 ØJ'!C85<5,'Tabel 2 ØJ'!D87<0.5),"-",IFERROR('Tabel 2 ØJ'!D87/'Tabel 1 ØJ'!C85*100,"-")) -> - | F87: =IF(OR('Tabel 1 ØJ'!E85<5,'Tabel 2 ØJ'!F87<0.5),"-",IFERROR('Tabel 2 ØJ'!F87/'Tabel 1 ØJ'!E85*100,"-")) -> 4.04040404 | G87: =IF(OR('Tabel 1 ØJ'!E85<5,'Tabel 2 ØJ'!G87<0.5),"-",IFERROR('Tabel 2 ØJ'!G87/'Tabel 1 ØJ'!E85*100,"-")) -> 3.573437865 | I87: =IF(OR('Tabel 1 ØJ'!G85<5,'Tabel 2 ØJ'!I87<0.5),"-",IFERROR('Tabel 2 ØJ'!I87/'Tabel 1 ØJ'!G85*100,"-")) -> 3.623188406 | J87: =IF(OR('Tabel 1 ØJ'!G85<5,'Tabel 2 ØJ'!J87<0.5),"-",IFERROR('Tabel 2 ØJ'!J87/'Tabel 1 ØJ'!G85*100,"-")) -> 2.859591224
A88: Økonom | C88: =IF(OR('Tabel 1 ØJ'!C86<5,'Tabel 2 ØJ'!C88<0.5),"-",IFERROR('Tabel 2 ØJ'!C88/'Tabel 1 ØJ'!C86*100,"-")) -> 3.571428571 | D88: =IF(OR('Tabel 1 ØJ'!C86<5,'Tabel 2 ØJ'!D88<0.5),"-",IFERROR('Tabel 2 ØJ'!D88/'Tabel 1 ØJ'!C86*100,"-")) -> 3.45938288 | F88: =IF(OR('Tabel 1 ØJ'!E86<5,'Tabel 2 ØJ'!F88<0.5),"-",IFERROR('Tabel 2 ØJ'!F88/'Tabel 1 ØJ'!E86*100,"-")) -> - | G88: =IF(OR('Tabel 1 ØJ'!E86<5,'Tabel 2 ØJ'!G88<0.5),"-",IFERROR('Tabel 2 ØJ'!G88/'Tabel 1 ØJ'!E86*100,"-")) -> - | I88: =IF(OR('Tabel 1 ØJ'!G86<5,'Tabel 2 ØJ'!I88<0.5),"-",IFERROR('Tabel 2 ØJ'!I88/'Tabel 1 ØJ'!G86*100,"-")) -> 1.587301587 | J88: =IF(OR('Tabel 1 ØJ'!G86<5,'Tabel 2 ØJ'!J88<0.5),"-",IFERROR('Tabel 2 ØJ'!J88/'Tabel 1 ØJ'!G86*100,"-")) -> 1.537503502
A89: Samf. Adm. | C89: =IF(OR('Tabel 1 ØJ'!C87<5,'Tabel 2 ØJ'!C89<0.5),"-",IFERROR('Tabel 2 ØJ'!C89/'Tabel 1 ØJ'!C87*100,"-")) -> 9.677419355 | D89: =IF(OR('Tabel 1 ØJ'!C87<5,'Tabel 2 ØJ'!D89<0.5),"-",IFERROR('Tabel 2 ØJ'!D89/'Tabel 1 ØJ'!C87*100,"-")) -> 9.276230677 | F89: =IF(OR('Tabel 1 ØJ'!E87<5,'Tabel 2 ØJ'!F89<0.5),"-",IFERROR('Tabel 2 ØJ'!F89/'Tabel 1 ØJ'!E87*100,"-")) -> 8.139534884 | G89: =IF(OR('Tabel 1 ØJ'!E87<5,'Tabel 2 ØJ'!G89<0.5),"-",IFERROR('Tabel 2 ØJ'!G89/'Tabel 1 ØJ'!E87*100,"-")) -> 7.528803239 | I89: =IF(OR('Tabel 1 ØJ'!G87<5,'Tabel 2 ØJ'!I89<0.5),"-",IFERROR('Tabel 2 ØJ'!I89/'Tabel 1 ØJ'!G87*100,"-")) -> 8.783783784 | J89: =IF(OR('Tabel 1 ØJ'!G87<5,'Tabel 2 ØJ'!J89<0.5),"-",IFERROR('Tabel 2 ØJ'!J89/'Tabel 1 ØJ'!G87*100,"-")) -> 8.260833652
A90: Cand. Merc. | C90: =IF(OR('Tabel 1 ØJ'!C88<5,'Tabel 2 ØJ'!C90<0.5),"-",IFERROR('Tabel 2 ØJ'!C90/'Tabel 1 ØJ'!C88*100,"-")) -> 3.723404255 | D90: =IF(OR('Tabel 1 ØJ'!C88<5,'Tabel 2 ØJ'!D90<0.5),"-",IFERROR('Tabel 2 ØJ'!D90/'Tabel 1 ØJ'!C88*100,"-")) -> 3.354451125 | F90: =IF(OR('Tabel 1 ØJ'!E88<5,'Tabel 2 ØJ'!F90<0.5),"-",IFERROR('Tabel 2 ØJ'!F90/'Tabel 1 ØJ'!E88*100,"-")) -> 5.829596413 | G90: =IF(OR('Tabel 1 ØJ'!E88<5,'Tabel 2 ØJ'!G90<0.5),"-",IFERROR('Tabel 2 ØJ'!G90/'Tabel 1 ØJ'!E88*100,"-")) -> 5.353028885 | I90: =IF(OR('Tabel 1 ØJ'!G88<5,'Tabel 2 ØJ'!I90<0.5),"-",IFERROR('Tabel 2 ØJ'!I90/'Tabel 1 ØJ'!G88*100,"-")) -> 4.866180049 | J90: =IF(OR('Tabel 1 ØJ'!G88<5,'Tabel 2 ØJ'!J90<0.5),"-",IFERROR('Tabel 2 ØJ'!J90/'Tabel 1 ØJ'!G88*100,"-")) -> 4.438837598
A91: HA | C91: =IF(OR('Tabel 1 ØJ'!C89<5,'Tabel 2 ØJ'!C91<0.5),"-",IFERROR('Tabel 2 ØJ'!C91/'Tabel 1 ØJ'!C89*100,"-")) -> 5.882352941 | D91: =IF(OR('Tabel 1 ØJ'!C89<5,'Tabel 2 ØJ'!D91<0.5),"-",IFERROR('Tabel 2 ØJ'!D91/'Tabel 1 ØJ'!C89*100,"-")) -> 5.790752651 | F91: =IF(OR('Tabel 1 ØJ'!E89<5,'Tabel 2 ØJ'!F91<0.5),"-",IFERROR('Tabel 2 ØJ'!F91/'Tabel 1 ØJ'!E89*100,"-")) -> 28.88888889 | G91: =IF(OR('Tabel 1 ØJ'!E89<5,'Tabel 2 ØJ'!G91<0.5),"-",IFERROR('Tabel 2 ØJ'!G91/'Tabel 1 ØJ'!E89*100,"-")) -> 25.39623138 | I91: =IF(OR('Tabel 1 ØJ'!G89<5,'Tabel 2 ØJ'!I91<0.5),"-",IFERROR('Tabel 2 ØJ'!I91/'Tabel 1 ØJ'!G89*100,"-")) -> 16.66666667 | J91: =IF(OR('Tabel 1 ØJ'!G89<5,'Tabel 2 ØJ'!J91<0.5),"-",IFERROR('Tabel 2 ØJ'!J91/'Tabel 1 ØJ'!G89*100,"-")) -> 14.98082081
A92: HD | C92: =IF(OR('Tabel 1 ØJ'!C90<5,'Tabel 2 ØJ'!C92<0.5),"-",IFERROR('Tabel 2 ØJ'!C92/'Tabel 1 ØJ'!C90*100,"-")) -> 5.714285714 | D92: =IF(OR('Tabel 1 ØJ'!C90<5,'Tabel 2 ØJ'!D92<0.5),"-",IFERROR('Tabel 2 ØJ'!D92/'Tabel 1 ØJ'!C90*100,"-")) -> 5.713216491 | F92: =IF(OR('Tabel 1 ØJ'!E90<5,'Tabel 2 ØJ'!F92<0.5),"-",IFERROR('Tabel 2 ØJ'!F92/'Tabel 1 ØJ'!E90*100,"-")) -> - | G92: =IF(OR('Tabel 1 ØJ'!E90<5,'Tabel 2 ØJ'!G92<0.5),"-",IFERROR('Tabel 2 ØJ'!G92/'Tabel 1 ØJ'!E90*100,"-")) -> - | I92: =IF(OR('Tabel 1 ØJ'!G90<5,'Tabel 2 ØJ'!I92<0.5),"-",IFERROR('Tabel 2 ØJ'!I92/'Tabel 1 ØJ'!G90*100,"-")) -> 3.448275862 | J92: =IF(OR('Tabel 1 ØJ'!G90<5,'Tabel 2 ØJ'!J92<0.5),"-",IFERROR('Tabel 2 ØJ'!J92/'Tabel 1 ØJ'!G90*100,"-")) -> 3.447630641
A93: Komm. og Sprog | C93: =IF(OR('Tabel 1 ØJ'!C91<5,'Tabel 2 ØJ'!C93<0.5),"-",IFERROR('Tabel 2 ØJ'!C93/'Tabel 1 ØJ'!C91*100,"-")) -> - | D93: =IF(OR('Tabel 1 ØJ'!C91<5,'Tabel 2 ØJ'!D93<0.5),"-",IFERROR('Tabel 2 ØJ'!D93/'Tabel 1 ØJ'!C91*100,"-")) -> - | F93: =IF(OR('Tabel 1 ØJ'!E91<5,'Tabel 2 ØJ'!F93<0.5),"-",IFERROR('Tabel 2 ØJ'!F93/'Tabel 1 ØJ'!E91*100,"-")) -> - | G93: =IF(OR('Tabel 1 ØJ'!E91<5,'Tabel 2 ØJ'!G93<0.5),"-",IFERROR('Tabel 2 ØJ'!G93/'Tabel 1 ØJ'!E91*100,"-")) -> - | I93: =IF(OR('Tabel 1 ØJ'!G91<5,'Tabel 2 ØJ'!I93<0.5),"-",IFERROR('Tabel 2 ØJ'!I93/'Tabel 1 ØJ'!G91*100,"-")) -> - | J93: =IF(OR('Tabel 1 ØJ'!G91<5,'Tabel 2 ØJ'!J93<0.5),"-",IFERROR('Tabel 2 ØJ'!J93/'Tabel 1 ØJ'!G91*100,"-")) -> -
A94: Cand. IT. | C94: =IF(OR('Tabel 1 ØJ'!C92<5,'Tabel 2 ØJ'!C94<0.5),"-",IFERROR('Tabel 2 ØJ'!C94/'Tabel 1 ØJ'!C92*100,"-")) -> - | D94: =IF(OR('Tabel 1 ØJ'!C92<5,'Tabel 2 ØJ'!D94<0.5),"-",IFERROR('Tabel 2 ØJ'!D94/'Tabel 1 ØJ'!C92*100,"-")) -> - | F94: =IF(OR('Tabel 1 ØJ'!E92<5,'Tabel 2 ØJ'!F94<0.5),"-",IFERROR('Tabel 2 ØJ'!F94/'Tabel 1 ØJ'!E92*100,"-")) -> 20 | G94: =IF(OR('Tabel 1 ØJ'!E92<5,'Tabel 2 ØJ'!G94<0.5),"-",IFERROR('Tabel 2 ØJ'!G94/'Tabel 1 ØJ'!E92*100,"-")) -> 18.83303187 | I94: =IF(OR('Tabel 1 ØJ'!G92<5,'Tabel 2 ØJ'!I94<0.5),"-",IFERROR('Tabel 2 ØJ'!I94/'Tabel 1 ØJ'!G92*100,"-")) -> 10.81081081 | J94: =IF(OR('Tabel 1 ØJ'!G92<5,'Tabel 2 ØJ'!J94<0.5),"-",IFERROR('Tabel 2 ØJ'!J94/'Tabel 1 ØJ'!G92*100,"-")) -> 10.18001723
A95: Bac. Samf. | C95: =IF(OR('Tabel 1 ØJ'!C93<5,'Tabel 2 ØJ'!C95<0.5),"-",IFERROR('Tabel 2 ØJ'!C95/'Tabel 1 ØJ'!C93*100,"-")) -> - | D95: =IF(OR('Tabel 1 ØJ'!C93<5,'Tabel 2 ØJ'!D95<0.5),"-",IFERROR('Tabel 2 ØJ'!D95/'Tabel 1 ØJ'!C93*100,"-")) -> - | F95: =IF(OR('Tabel 1 ØJ'!E93<5,'Tabel 2 ØJ'!F95<0.5),"-",IFERROR('Tabel 2 ØJ'!F95/'Tabel 1 ØJ'!E93*100,"-")) -> - | G95: =IF(OR('Tabel 1 ØJ'!E93<5,'Tabel 2 ØJ'!G95<0.5),"-",IFERROR('Tabel 2 ØJ'!G95/'Tabel 1 ØJ'!E93*100,"-")) -> - | I95: =IF(OR('Tabel 1 ØJ'!G93<5,'Tabel 2 ØJ'!I95<0.5),"-",IFERROR('Tabel 2 ØJ'!I95/'Tabel 1 ØJ'!G93*100,"-")) -> - | J95: =IF(OR('Tabel 1 ØJ'!G93<5,'Tabel 2 ØJ'!J95<0.5),"-",IFERROR('Tabel 2 ØJ'!J95/'Tabel 1 ØJ'!G93*100,"-")) -> -
A96: Bac. Hum. | C96: =IF(OR('Tabel 1 ØJ'!C94<5,'Tabel 2 ØJ'!C96<0.5),"-",IFERROR('Tabel 2 ØJ'!C96/'Tabel 1 ØJ'!C94*100,"-")) -> - | D96: =IF(OR('Tabel 1 ØJ'!C94<5,'Tabel 2 ØJ'!D96<0.5),"-",IFERROR('Tabel 2 ØJ'!D96/'Tabel 1 ØJ'!C94*100,"-")) -> - | F96: =IF(OR('Tabel 1 ØJ'!E94<5,'Tabel 2 ØJ'!F96<0.5),"-",IFERROR('Tabel 2 ØJ'!F96/'Tabel 1 ØJ'!E94*100,"-")) -> 18.18181818 | G96: =IF(OR('Tabel 1 ØJ'!E94<5,'Tabel 2 ØJ'!G96<0.5),"-",IFERROR('Tabel 2 ØJ'!G96/'Tabel 1 ØJ'!E94*100,"-")) -> 15.73459286 | I96: =IF(OR('Tabel 1 ØJ'!G94<5,'Tabel 2 ØJ'!I96<0.5),"-",IFERROR('Tabel 2 ØJ'!I96/'Tabel 1 ØJ'!G94*100,"-")) -> 12.12121212 | J96: =IF(OR('Tabel 1 ØJ'!G94<5,'Tabel 2 ØJ'!J96<0.5),"-",IFERROR('Tabel 2 ØJ'!J96/'Tabel 1 ØJ'!G94*100,"-")) -> 10.48972857
A97: Bac. Nat. | C97: =IF(OR('Tabel 1 ØJ'!C95<5,'Tabel 2 ØJ'!C97<0.5),"-",IFERROR('Tabel 2 ØJ'!C97/'Tabel 1 ØJ'!C95*100,"-")) -> 9.302325581 | D97: =IF(OR('Tabel 1 ØJ'!C95<5,'Tabel 2 ØJ'!D97<0.5),"-",IFERROR('Tabel 2 ØJ'!D97/'Tabel 1 ØJ'!C95*100,"-")) -> 8.227217411 | F97: =IF(OR('Tabel 1 ØJ'!E95<5,'Tabel 2 ØJ'!F97<0.5),"-",IFERROR('Tabel 2 ØJ'!F97/'Tabel 1 ØJ'!E95*100,"-")) -> 16.66666667 | G97: =IF(OR('Tabel 1 ØJ'!E95<5,'Tabel 2 ØJ'!G97<0.5),"-",IFERROR('Tabel 2 ØJ'!G97/'Tabel 1 ØJ'!E95*100,"-")) -> 12.81384921 | I97: =IF(OR('Tabel 1 ØJ'!G95<5,'Tabel 2 ØJ'!I97<0.5),"-",IFERROR('Tabel 2 ØJ'!I97/'Tabel 1 ØJ'!G95*100,"-")) -> 11.47540984 | J97: =IF(OR('Tabel 1 ØJ'!G95<5,'Tabel 2 ØJ'!J97<0.5),"-",IFERROR('Tabel 2 ØJ'!J97/'Tabel 1 ØJ'!G95*100,"-")) -> 9.580649746
A98: Andre | C98: =IF(OR('Tabel 1 ØJ'!C96<5,'Tabel 2 ØJ'!C98<0.5),"-",IFERROR('Tabel 2 ØJ'!C98/'Tabel 1 ØJ'!C96*100,"-")) -> 13.97058824 | D98: =IF(OR('Tabel 1 ØJ'!C96<5,'Tabel 2 ØJ'!D98<0.5),"-",IFERROR('Tabel 2 ØJ'!D98/'Tabel 1 ØJ'!C96*100,"-")) -> 12.61047986 | F98: =IF(OR('Tabel 1 ØJ'!E96<5,'Tabel 2 ØJ'!F98<0.5),"-",IFERROR('Tabel 2 ØJ'!F98/'Tabel 1 ØJ'!E96*100,"-")) -> 20 | G98: =IF(OR('Tabel 1 ØJ'!E96<5,'Tabel 2 ØJ'!G98<0.5),"-",IFERROR('Tabel 2 ØJ'!G98/'Tabel 1 ØJ'!E96*100,"-")) -> 14.78421344 | I98: =IF(OR('Tabel 1 ØJ'!G96<5,'Tabel 2 ØJ'!I98<0.5),"-",IFERROR('Tabel 2 ØJ'!I98/'Tabel 1 ØJ'!G96*100,"-")) -> 16.28959276 | J98: =IF(OR('Tabel 1 ØJ'!G96<5,'Tabel 2 ØJ'!J98<0.5),"-",IFERROR('Tabel 2 ØJ'!J98/'Tabel 1 ØJ'!G96*100,"-")) -> 13.44653124
A100: Total | C100: =IF(OR('Tabel 1 ØJ'!C98<5,'Tabel 2 ØJ'!C100<0.5),"-",IFERROR('Tabel 2 ØJ'!C100/'Tabel 1 ØJ'!C98*100,"-")) -> 4.345603272 | D100: =IF(OR('Tabel 1 ØJ'!C98<5,'Tabel 2 ØJ'!D100<0.5),"-",IFERROR('Tabel 2 ØJ'!D100/'Tabel 1 ØJ'!C98*100,"-")) -> 3.830322098 | F100: =IF(OR('Tabel 1 ØJ'!E98<5,'Tabel 2 ØJ'!F100<0.5),"-",IFERROR('Tabel 2 ØJ'!F100/'Tabel 1 ØJ'!E98*100,"-")) -> 7.875894988 | G100: =IF(OR('Tabel 1 ØJ'!E98<5,'Tabel 2 ØJ'!G100<0.5),"-",IFERROR('Tabel 2 ØJ'!G100/'Tabel 1 ØJ'!E98*100,"-")) -> 6.745931385 | I100: =IF(OR('Tabel 1 ØJ'!G98<5,'Tabel 2 ØJ'!I100<0.5),"-",IFERROR('Tabel 2 ØJ'!I100/'Tabel 1 ØJ'!G98*100,"-")) -> 5.974669604 | J100: =IF(OR('Tabel 1 ØJ'!G98<5,'Tabel 2 ØJ'!J100<0.5),"-",IFERROR('Tabel 2 ØJ'!J100/'Tabel 1 ØJ'!G98*100,"-")) -> 5.175740921
A102: Ingeniører i alt | C102: =IF(OR('Tabel 1 ØJ'!C100<5,'Tabel 2 ØJ'!C102<0.5),"-",IFERROR('Tabel 2 ØJ'!C102/'Tabel 1 ØJ'!C100*100,"-")) -> 2.295081967 | D102: =IF(OR('Tabel 1 ØJ'!C100<5,'Tabel 2 ØJ'!D102<0.5),"-",IFERROR('Tabel 2 ØJ'!D102/'Tabel 1 ØJ'!C100*100,"-")) -> 2.050074999 | F102: =IF(OR('Tabel 1 ØJ'!E100<5,'Tabel 2 ØJ'!F102<0.5),"-",IFERROR('Tabel 2 ØJ'!F102/'Tabel 1 ØJ'!E100*100,"-")) -> 4.452054795 | G102: =IF(OR('Tabel 1 ØJ'!E100<5,'Tabel 2 ØJ'!G102<0.5),"-",IFERROR('Tabel 2 ØJ'!G102/'Tabel 1 ØJ'!E100*100,"-")) -> 4.372189551 | I102: =IF(OR('Tabel 1 ØJ'!G100<5,'Tabel 2 ØJ'!I102<0.5),"-",IFERROR('Tabel 2 ØJ'!I102/'Tabel 1 ØJ'!G100*100,"-")) -> 2.816901408 | J102: =IF(OR('Tabel 1 ØJ'!G100<5,'Tabel 2 ØJ'!J102<0.5),"-",IFERROR('Tabel 2 ØJ'!J102/'Tabel 1 ØJ'!G100*100,"-")) -> 2.611845876
A103: Magistre i alt | C103: =IF(OR('Tabel 1 ØJ'!C101<5,'Tabel 2 ØJ'!C103<0.5),"-",IFERROR('Tabel 2 ØJ'!C103/'Tabel 1 ØJ'!C101*100,"-")) -> 5.940594059 | D103: =IF(OR('Tabel 1 ØJ'!C101<5,'Tabel 2 ØJ'!D103<0.5),"-",IFERROR('Tabel 2 ØJ'!D103/'Tabel 1 ØJ'!C101*100,"-")) -> 4.51945338 | F103: =IF(OR('Tabel 1 ØJ'!E101<5,'Tabel 2 ØJ'!F103<0.5),"-",IFERROR('Tabel 2 ØJ'!F103/'Tabel 1 ØJ'!E101*100,"-")) -> 11.14369501 | G103: =IF(OR('Tabel 1 ØJ'!E101<5,'Tabel 2 ØJ'!G103<0.5),"-",IFERROR('Tabel 2 ØJ'!G103/'Tabel 1 ØJ'!E101*100,"-")) -> 9.059577086 | I103: =IF(OR('Tabel 1 ØJ'!G101<5,'Tabel 2 ØJ'!I103<0.5),"-",IFERROR('Tabel 2 ØJ'!I103/'Tabel 1 ØJ'!G101*100,"-")) -> 9.208103131 | J103: =IF(OR('Tabel 1 ØJ'!G101<5,'Tabel 2 ØJ'!J103<0.5),"-",IFERROR('Tabel 2 ØJ'!J103/'Tabel 1 ØJ'!G101*100,"-")) -> 7.370617622
A104: DJØF'ere i alt | C104: =IF(OR('Tabel 1 ØJ'!C102<5,'Tabel 2 ØJ'!C104<0.5),"-",IFERROR('Tabel 2 ØJ'!C104/'Tabel 1 ØJ'!C102*100,"-")) -> 4.891304348 | D104: =IF(OR('Tabel 1 ØJ'!C102<5,'Tabel 2 ØJ'!D104<0.5),"-",IFERROR('Tabel 2 ØJ'!D104/'Tabel 1 ØJ'!C102*100,"-")) -> 4.45328114 | F104: =IF(OR('Tabel 1 ØJ'!E102<5,'Tabel 2 ØJ'!F104<0.5),"-",IFERROR('Tabel 2 ØJ'!F104/'Tabel 1 ØJ'!E102*100,"-")) -> 7.581967213 | G104: =IF(OR('Tabel 1 ØJ'!E102<5,'Tabel 2 ØJ'!G104<0.5),"-",IFERROR('Tabel 2 ØJ'!G104/'Tabel 1 ØJ'!E102*100,"-")) -> 6.839760821 | I104: =IF(OR('Tabel 1 ØJ'!G102<5,'Tabel 2 ØJ'!I104<0.5),"-",IFERROR('Tabel 2 ØJ'!I104/'Tabel 1 ØJ'!G102*100,"-")) -> 6.425233645 | J104: =IF(OR('Tabel 1 ØJ'!G102<5,'Tabel 2 ØJ'!J104<0.5),"-",IFERROR('Tabel 2 ØJ'!J104/'Tabel 1 ØJ'!G102*100,"-")) -> 5.813797594
A109: Syddjurs
C111: Mænd | F111: Kvinder | I111: I alt
C112: Ledigheds- berørte | D112: Gns. brutto- ledighed | F112: Ledigheds- berørte | G112: Gns. brutto- ledighed | I112: Ledigheds- berørte | J112: Gns. brutto- ledighed
A115: Civ. ing. | C115: =IF(OR('Tabel 1 ØJ'!C113<5,'Tabel 2 ØJ'!C115<0.5),"-",IFERROR('Tabel 2 ØJ'!C115/'Tabel 1 ØJ'!C113*100,"-")) -> 3.921568627 | D115: =IF(OR('Tabel 1 ØJ'!C113<5,'Tabel 2 ØJ'!D115<0.5),"-",IFERROR('Tabel 2 ØJ'!D115/'Tabel 1 ØJ'!C113*100,"-")) -> 3.739835609 | F115: =IF(OR('Tabel 1 ØJ'!E113<5,'Tabel 2 ØJ'!F115<0.5),"-",IFERROR('Tabel 2 ØJ'!F115/'Tabel 1 ØJ'!E113*100,"-")) -> - | G115: =IF(OR('Tabel 1 ØJ'!E113<5,'Tabel 2 ØJ'!G115<0.5),"-",IFERROR('Tabel 2 ØJ'!G115/'Tabel 1 ØJ'!E113*100,"-")) -> - | I115: =IF(OR('Tabel 1 ØJ'!G113<5,'Tabel 2 ØJ'!I115<0.5),"-",IFERROR('Tabel 2 ØJ'!I115/'Tabel 1 ØJ'!G113*100,"-")) -> 3.03030303 | J115: =IF(OR('Tabel 1 ØJ'!G113<5,'Tabel 2 ØJ'!J115<0.5),"-",IFERROR('Tabel 2 ØJ'!J115/'Tabel 1 ØJ'!G113*100,"-")) -> 2.88987297
A116: Diplom ing. | C116: =IF(OR('Tabel 1 ØJ'!C114<5,'Tabel 2 ØJ'!C116<0.5),"-",IFERROR('Tabel 2 ØJ'!C116/'Tabel 1 ØJ'!C114*100,"-")) -> 1.775147929 | D116: =IF(OR('Tabel 1 ØJ'!C114<5,'Tabel 2 ØJ'!D116<0.5),"-",IFERROR('Tabel 2 ØJ'!D116/'Tabel 1 ØJ'!C114*100,"-")) -> 1.538985606 | F116: =IF(OR('Tabel 1 ØJ'!E114<5,'Tabel 2 ØJ'!F116<0.5),"-",IFERROR('Tabel 2 ØJ'!F116/'Tabel 1 ØJ'!E114*100,"-")) -> 3.571428571 | G116: =IF(OR('Tabel 1 ØJ'!E114<5,'Tabel 2 ØJ'!G116<0.5),"-",IFERROR('Tabel 2 ØJ'!G116/'Tabel 1 ØJ'!E114*100,"-")) -> 3.570760307 | I116: =IF(OR('Tabel 1 ØJ'!G114<5,'Tabel 2 ØJ'!I116<0.5),"-",IFERROR('Tabel 2 ØJ'!I116/'Tabel 1 ØJ'!G114*100,"-")) -> 2.030456853 | J116: =IF(OR('Tabel 1 ØJ'!G114<5,'Tabel 2 ØJ'!J116<0.5),"-",IFERROR('Tabel 2 ØJ'!J116/'Tabel 1 ØJ'!G114*100,"-")) -> 1.827765766
A117: Cand. Scient. Tek. | C117: =IF(OR('Tabel 1 ØJ'!C115<5,'Tabel 2 ØJ'!C117<0.5),"-",IFERROR('Tabel 2 ØJ'!C117/'Tabel 1 ØJ'!C115*100,"-")) -> 14.28571429 | D117: =IF(OR('Tabel 1 ØJ'!C115<5,'Tabel 2 ØJ'!D117<0.5),"-",IFERROR('Tabel 2 ØJ'!D117/'Tabel 1 ØJ'!C115*100,"-")) -> 9.667560656 | F117: =IF(OR('Tabel 1 ØJ'!E115<5,'Tabel 2 ØJ'!F117<0.5),"-",IFERROR('Tabel 2 ØJ'!F117/'Tabel 1 ØJ'!E115*100,"-")) -> 13.33333333 | G117: =IF(OR('Tabel 1 ØJ'!E115<5,'Tabel 2 ØJ'!G117<0.5),"-",IFERROR('Tabel 2 ØJ'!G117/'Tabel 1 ØJ'!E115*100,"-")) -> 9.023056612 | I117: =IF(OR('Tabel 1 ØJ'!G115<5,'Tabel 2 ØJ'!I117<0.5),"-",IFERROR('Tabel 2 ØJ'!I117/'Tabel 1 ØJ'!G115*100,"-")) -> 13.79310345 | J117: =IF(OR('Tabel 1 ØJ'!G115<5,'Tabel 2 ØJ'!J117<0.5),"-",IFERROR('Tabel 2 ØJ'!J117/'Tabel 1 ØJ'!G115*100,"-")) -> 9.334196496
A118: MA. Hum. | C118: =IF(OR('Tabel 1 ØJ'!C116<5,'Tabel 2 ØJ'!C118<0.5),"-",IFERROR('Tabel 2 ØJ'!C118/'Tabel 1 ØJ'!C116*100,"-")) -> 6.896551724 | D118: =IF(OR('Tabel 1 ØJ'!C116<5,'Tabel 2 ØJ'!D118<0.5),"-",IFERROR('Tabel 2 ØJ'!D118/'Tabel 1 ØJ'!C116*100,"-")) -> 5.144561755 | F118: =IF(OR('Tabel 1 ØJ'!E116<5,'Tabel 2 ØJ'!F118<0.5),"-",IFERROR('Tabel 2 ØJ'!F118/'Tabel 1 ØJ'!E116*100,"-")) -> 14.87603306 | G118: =IF(OR('Tabel 1 ØJ'!E116<5,'Tabel 2 ØJ'!G118<0.5),"-",IFERROR('Tabel 2 ØJ'!G118/'Tabel 1 ØJ'!E116*100,"-")) -> 11.57117577 | I118: =IF(OR('Tabel 1 ØJ'!G116<5,'Tabel 2 ØJ'!I118<0.5),"-",IFERROR('Tabel 2 ØJ'!I118/'Tabel 1 ØJ'!G116*100,"-")) -> 12.29050279 | J118: =IF(OR('Tabel 1 ØJ'!G116<5,'Tabel 2 ØJ'!J118<0.5),"-",IFERROR('Tabel 2 ØJ'!J118/'Tabel 1 ØJ'!G116*100,"-")) -> 9.488809219
A119: MA. Nat. | C119: =IF(OR('Tabel 1 ØJ'!C117<5,'Tabel 2 ØJ'!C119<0.5),"-",IFERROR('Tabel 2 ØJ'!C119/'Tabel 1 ØJ'!C117*100,"-")) -> 2.941176471 | D119: =IF(OR('Tabel 1 ØJ'!C117<5,'Tabel 2 ØJ'!D119<0.5),"-",IFERROR('Tabel 2 ØJ'!D119/'Tabel 1 ØJ'!C117*100,"-")) -> 2.377449452 | F119: =IF(OR('Tabel 1 ØJ'!E117<5,'Tabel 2 ØJ'!F119<0.5),"-",IFERROR('Tabel 2 ØJ'!F119/'Tabel 1 ØJ'!E117*100,"-")) -> 2.380952381 | G119: =IF(OR('Tabel 1 ØJ'!E117<5,'Tabel 2 ØJ'!G119<0.5),"-",IFERROR('Tabel 2 ØJ'!G119/'Tabel 1 ØJ'!E117*100,"-")) -> - | I119: =IF(OR('Tabel 1 ØJ'!G117<5,'Tabel 2 ØJ'!I119<0.5),"-",IFERROR('Tabel 2 ØJ'!I119/'Tabel 1 ØJ'!G117*100,"-")) -> 2.727272727 | J119: =IF(OR('Tabel 1 ØJ'!G117<5,'Tabel 2 ØJ'!J119<0.5),"-",IFERROR('Tabel 2 ØJ'!J119/'Tabel 1 ØJ'!G117*100,"-")) -> 1.557015927
A120: MA. Ph.d. | C120: =IF(OR('Tabel 1 ØJ'!C118<5,'Tabel 2 ØJ'!C120<0.5),"-",IFERROR('Tabel 2 ØJ'!C120/'Tabel 1 ØJ'!C118*100,"-")) -> 20 | D120: =IF(OR('Tabel 1 ØJ'!C118<5,'Tabel 2 ØJ'!D120<0.5),"-",IFERROR('Tabel 2 ØJ'!D120/'Tabel 1 ØJ'!C118*100,"-")) -> 19.99625772 | F120: =IF(OR('Tabel 1 ØJ'!E118<5,'Tabel 2 ØJ'!F120<0.5),"-",IFERROR('Tabel 2 ØJ'!F120/'Tabel 1 ØJ'!E118*100,"-")) -> 14.28571429 | G120: =IF(OR('Tabel 1 ØJ'!E118<5,'Tabel 2 ØJ'!G120<0.5),"-",IFERROR('Tabel 2 ØJ'!G120/'Tabel 1 ØJ'!E118*100,"-")) -> 14.28304123 | I120: =IF(OR('Tabel 1 ØJ'!G118<5,'Tabel 2 ØJ'!I120<0.5),"-",IFERROR('Tabel 2 ØJ'!I120/'Tabel 1 ØJ'!G118*100,"-")) -> 16.66666667 | J120: =IF(OR('Tabel 1 ØJ'!G118<5,'Tabel 2 ØJ'!J120<0.5),"-",IFERROR('Tabel 2 ØJ'!J120/'Tabel 1 ØJ'!G118*100,"-")) -> 16.6635481
A121: MA. Samf. | C121: =IF(OR('Tabel 1 ØJ'!C119<5,'Tabel 2 ØJ'!C121<0.5),"-",IFERROR('Tabel 2 ØJ'!C121/'Tabel 1 ØJ'!C119*100,"-")) -> - | D121: =IF(OR('Tabel 1 ØJ'!C119<5,'Tabel 2 ØJ'!D121<0.5),"-",IFERROR('Tabel 2 ØJ'!D121/'Tabel 1 ØJ'!C119*100,"-")) -> - | F121: =IF(OR('Tabel 1 ØJ'!E119<5,'Tabel 2 ØJ'!F121<0.5),"-",IFERROR('Tabel 2 ØJ'!F121/'Tabel 1 ØJ'!E119*100,"-")) -> - | G121: =IF(OR('Tabel 1 ØJ'!E119<5,'Tabel 2 ØJ'!G121<0.5),"-",IFERROR('Tabel 2 ØJ'!G121/'Tabel 1 ØJ'!E119*100,"-")) -> - | I121: =IF(OR('Tabel 1 ØJ'!G119<5,'Tabel 2 ØJ'!I121<0.5),"-",IFERROR('Tabel 2 ØJ'!I121/'Tabel 1 ØJ'!G119*100,"-")) -> - | J121: =IF(OR('Tabel 1 ØJ'!G119<5,'Tabel 2 ØJ'!J121<0.5),"-",IFERROR('Tabel 2 ØJ'!J121/'Tabel 1 ØJ'!G119*100,"-")) -> -
A122: Øvrige Mag. | C122: =IF(OR('Tabel 1 ØJ'!C120<5,'Tabel 2 ØJ'!C122<0.5),"-",IFERROR('Tabel 2 ØJ'!C122/'Tabel 1 ØJ'!C120*100,"-")) -> 16.66666667 | D122: =IF(OR('Tabel 1 ØJ'!C120<5,'Tabel 2 ØJ'!D122<0.5),"-",IFERROR('Tabel 2 ØJ'!D122/'Tabel 1 ØJ'!C120*100,"-")) -> 16.6635481 | F122: =IF(OR('Tabel 1 ØJ'!E120<5,'Tabel 2 ØJ'!F122<0.5),"-",IFERROR('Tabel 2 ØJ'!F122/'Tabel 1 ØJ'!E120*100,"-")) -> 33.33333333 | G122: =IF(OR('Tabel 1 ØJ'!E120<5,'Tabel 2 ØJ'!G122<0.5),"-",IFERROR('Tabel 2 ØJ'!G122/'Tabel 1 ØJ'!E120*100,"-")) -> 33.3270962 | I122: =IF(OR('Tabel 1 ØJ'!G120<5,'Tabel 2 ØJ'!I122<0.5),"-",IFERROR('Tabel 2 ØJ'!I122/'Tabel 1 ØJ'!G120*100,"-")) -> 26.66666667 | J122: =IF(OR('Tabel 1 ØJ'!G120<5,'Tabel 2 ØJ'!J122<0.5),"-",IFERROR('Tabel 2 ØJ'!J122/'Tabel 1 ØJ'!G120*100,"-")) -> 26.66167696
A123: Agronom | C123: =IF(OR('Tabel 1 ØJ'!C121<5,'Tabel 2 ØJ'!C123<0.5),"-",IFERROR('Tabel 2 ØJ'!C123/'Tabel 1 ØJ'!C121*100,"-")) -> - | D123: =IF(OR('Tabel 1 ØJ'!C121<5,'Tabel 2 ØJ'!D123<0.5),"-",IFERROR('Tabel 2 ØJ'!D123/'Tabel 1 ØJ'!C121*100,"-")) -> - | F123: =IF(OR('Tabel 1 ØJ'!E121<5,'Tabel 2 ØJ'!F123<0.5),"-",IFERROR('Tabel 2 ØJ'!F123/'Tabel 1 ØJ'!E121*100,"-")) -> 18.18181818 | G123: =IF(OR('Tabel 1 ØJ'!E121<5,'Tabel 2 ØJ'!G123<0.5),"-",IFERROR('Tabel 2 ØJ'!G123/'Tabel 1 ØJ'!E121*100,"-")) -> 16.08047039 | I123: =IF(OR('Tabel 1 ØJ'!G121<5,'Tabel 2 ØJ'!I123<0.5),"-",IFERROR('Tabel 2 ØJ'!I123/'Tabel 1 ØJ'!G121*100,"-")) -> 6.060606061 | J123: =IF(OR('Tabel 1 ØJ'!G121<5,'Tabel 2 ØJ'!J123<0.5),"-",IFERROR('Tabel 2 ØJ'!J123/'Tabel 1 ØJ'!G121*100,"-")) -> 5.360156798
A124: Landsk. Arkt. | C124: =IF(OR('Tabel 1 ØJ'!C122<5,'Tabel 2 ØJ'!C124<0.5),"-",IFERROR('Tabel 2 ØJ'!C124/'Tabel 1 ØJ'!C122*100,"-")) -> - | D124: =IF(OR('Tabel 1 ØJ'!C122<5,'Tabel 2 ØJ'!D124<0.5),"-",IFERROR('Tabel 2 ØJ'!D124/'Tabel 1 ØJ'!C122*100,"-")) -> - | F124: =IF(OR('Tabel 1 ØJ'!E122<5,'Tabel 2 ØJ'!F124<0.5),"-",IFERROR('Tabel 2 ØJ'!F124/'Tabel 1 ØJ'!E122*100,"-")) -> - | G124: =IF(OR('Tabel 1 ØJ'!E122<5,'Tabel 2 ØJ'!G124<0.5),"-",IFERROR('Tabel 2 ØJ'!G124/'Tabel 1 ØJ'!E122*100,"-")) -> - | I124: =IF(OR('Tabel 1 ØJ'!G122<5,'Tabel 2 ØJ'!I124<0.5),"-",IFERROR('Tabel 2 ØJ'!I124/'Tabel 1 ØJ'!G122*100,"-")) -> - | J124: =IF(OR('Tabel 1 ØJ'!G122<5,'Tabel 2 ØJ'!J124<0.5),"-",IFERROR('Tabel 2 ØJ'!J124/'Tabel 1 ØJ'!G122*100,"-")) -> -
A125: Hortonom | C125: =IF(OR('Tabel 1 ØJ'!C123<5,'Tabel 2 ØJ'!C125<0.5),"-",IFERROR('Tabel 2 ØJ'!C125/'Tabel 1 ØJ'!C123*100,"-")) -> - | D125: =IF(OR('Tabel 1 ØJ'!C123<5,'Tabel 2 ØJ'!D125<0.5),"-",IFERROR('Tabel 2 ØJ'!D125/'Tabel 1 ØJ'!C123*100,"-")) -> - | F125: =IF(OR('Tabel 1 ØJ'!E123<5,'Tabel 2 ØJ'!F125<0.5),"-",IFERROR('Tabel 2 ØJ'!F125/'Tabel 1 ØJ'!E123*100,"-")) -> - | G125: =IF(OR('Tabel 1 ØJ'!E123<5,'Tabel 2 ØJ'!G125<0.5),"-",IFERROR('Tabel 2 ØJ'!G125/'Tabel 1 ØJ'!E123*100,"-")) -> - | I125: =IF(OR('Tabel 1 ØJ'!G123<5,'Tabel 2 ØJ'!I125<0.5),"-",IFERROR('Tabel 2 ØJ'!I125/'Tabel 1 ØJ'!G123*100,"-")) -> - | J125: =IF(OR('Tabel 1 ØJ'!G123<5,'Tabel 2 ØJ'!J125<0.5),"-",IFERROR('Tabel 2 ØJ'!J125/'Tabel 1 ØJ'!G123*100,"-")) -> -
A126: Forstkand. | C126: =IF(OR('Tabel 1 ØJ'!C124<5,'Tabel 2 ØJ'!C126<0.5),"-",IFERROR('Tabel 2 ØJ'!C126/'Tabel 1 ØJ'!C124*100,"-")) -> - | D126: =IF(OR('Tabel 1 ØJ'!C124<5,'Tabel 2 ØJ'!D126<0.5),"-",IFERROR('Tabel 2 ØJ'!D126/'Tabel 1 ØJ'!C124*100,"-")) -> - | F126: =IF(OR('Tabel 1 ØJ'!E124<5,'Tabel 2 ØJ'!F126<0.5),"-",IFERROR('Tabel 2 ØJ'!F126/'Tabel 1 ØJ'!E124*100,"-")) -> - | G126: =IF(OR('Tabel 1 ØJ'!E124<5,'Tabel 2 ØJ'!G126<0.5),"-",IFERROR('Tabel 2 ØJ'!G126/'Tabel 1 ØJ'!E124*100,"-")) -> - | I126: =IF(OR('Tabel 1 ØJ'!G124<5,'Tabel 2 ØJ'!I126<0.5),"-",IFERROR('Tabel 2 ØJ'!I126/'Tabel 1 ØJ'!G124*100,"-")) -> - | J126: =IF(OR('Tabel 1 ØJ'!G124<5,'Tabel 2 ØJ'!J126<0.5),"-",IFERROR('Tabel 2 ØJ'!J126/'Tabel 1 ØJ'!G124*100,"-")) -> -
A127: Jordbrugsakad. | C127: =IF(OR('Tabel 1 ØJ'!C125<5,'Tabel 2 ØJ'!C127<0.5),"-",IFERROR('Tabel 2 ØJ'!C127/'Tabel 1 ØJ'!C125*100,"-")) -> - | D127: =IF(OR('Tabel 1 ØJ'!C125<5,'Tabel 2 ØJ'!D127<0.5),"-",IFERROR('Tabel 2 ØJ'!D127/'Tabel 1 ØJ'!C125*100,"-")) -> - | F127: =IF(OR('Tabel 1 ØJ'!E125<5,'Tabel 2 ØJ'!F127<0.5),"-",IFERROR('Tabel 2 ØJ'!F127/'Tabel 1 ØJ'!E125*100,"-")) -> 11.11111111 | G127: =IF(OR('Tabel 1 ØJ'!E125<5,'Tabel 2 ØJ'!G127<0.5),"-",IFERROR('Tabel 2 ØJ'!G127/'Tabel 1 ØJ'!E125*100,"-")) -> 9.826954129 | I127: =IF(OR('Tabel 1 ØJ'!G125<5,'Tabel 2 ØJ'!I127<0.5),"-",IFERROR('Tabel 2 ØJ'!I127/'Tabel 1 ØJ'!G125*100,"-")) -> 4.444444444 | J127: =IF(OR('Tabel 1 ØJ'!G125<5,'Tabel 2 ØJ'!J127<0.5),"-",IFERROR('Tabel 2 ØJ'!J127/'Tabel 1 ØJ'!G125*100,"-")) -> 3.930781652
A128: Mejeriing. | C128: =IF(OR('Tabel 1 ØJ'!C126<5,'Tabel 2 ØJ'!C128<0.5),"-",IFERROR('Tabel 2 ØJ'!C128/'Tabel 1 ØJ'!C126*100,"-")) -> - | D128: =IF(OR('Tabel 1 ØJ'!C126<5,'Tabel 2 ØJ'!D128<0.5),"-",IFERROR('Tabel 2 ØJ'!D128/'Tabel 1 ØJ'!C126*100,"-")) -> - | F128: =IF(OR('Tabel 1 ØJ'!E126<5,'Tabel 2 ØJ'!F128<0.5),"-",IFERROR('Tabel 2 ØJ'!F128/'Tabel 1 ØJ'!E126*100,"-")) -> - | G128: =IF(OR('Tabel 1 ØJ'!E126<5,'Tabel 2 ØJ'!G128<0.5),"-",IFERROR('Tabel 2 ØJ'!G128/'Tabel 1 ØJ'!E126*100,"-")) -> - | I128: =IF(OR('Tabel 1 ØJ'!G126<5,'Tabel 2 ØJ'!I128<0.5),"-",IFERROR('Tabel 2 ØJ'!I128/'Tabel 1 ØJ'!G126*100,"-")) -> - | J128: =IF(OR('Tabel 1 ØJ'!G126<5,'Tabel 2 ØJ'!J128<0.5),"-",IFERROR('Tabel 2 ØJ'!J128/'Tabel 1 ØJ'!G126*100,"-")) -> -
A129: Levn.m.kand. | C129: =IF(OR('Tabel 1 ØJ'!C127<5,'Tabel 2 ØJ'!C129<0.5),"-",IFERROR('Tabel 2 ØJ'!C129/'Tabel 1 ØJ'!C127*100,"-")) -> - | D129: =IF(OR('Tabel 1 ØJ'!C127<5,'Tabel 2 ØJ'!D129<0.5),"-",IFERROR('Tabel 2 ØJ'!D129/'Tabel 1 ØJ'!C127*100,"-")) -> - | F129: =IF(OR('Tabel 1 ØJ'!E127<5,'Tabel 2 ØJ'!F129<0.5),"-",IFERROR('Tabel 2 ØJ'!F129/'Tabel 1 ØJ'!E127*100,"-")) -> - | G129: =IF(OR('Tabel 1 ØJ'!E127<5,'Tabel 2 ØJ'!G129<0.5),"-",IFERROR('Tabel 2 ØJ'!G129/'Tabel 1 ØJ'!E127*100,"-")) -> - | I129: =IF(OR('Tabel 1 ØJ'!G127<5,'Tabel 2 ØJ'!I129<0.5),"-",IFERROR('Tabel 2 ØJ'!I129/'Tabel 1 ØJ'!G127*100,"-")) -> - | J129: =IF(OR('Tabel 1 ØJ'!G127<5,'Tabel 2 ØJ'!J129<0.5),"-",IFERROR('Tabel 2 ØJ'!J129/'Tabel 1 ØJ'!G127*100,"-")) -> -
A130: Dyrlæge | C130: =IF(OR('Tabel 1 ØJ'!C128<5,'Tabel 2 ØJ'!C130<0.5),"-",IFERROR('Tabel 2 ØJ'!C130/'Tabel 1 ØJ'!C128*100,"-")) -> - | D130: =IF(OR('Tabel 1 ØJ'!C128<5,'Tabel 2 ØJ'!D130<0.5),"-",IFERROR('Tabel 2 ØJ'!D130/'Tabel 1 ØJ'!C128*100,"-")) -> - | F130: =IF(OR('Tabel 1 ØJ'!E128<5,'Tabel 2 ØJ'!F130<0.5),"-",IFERROR('Tabel 2 ØJ'!F130/'Tabel 1 ØJ'!E128*100,"-")) -> - | G130: =IF(OR('Tabel 1 ØJ'!E128<5,'Tabel 2 ØJ'!G130<0.5),"-",IFERROR('Tabel 2 ØJ'!G130/'Tabel 1 ØJ'!E128*100,"-")) -> - | I130: =IF(OR('Tabel 1 ØJ'!G128<5,'Tabel 2 ØJ'!I130<0.5),"-",IFERROR('Tabel 2 ØJ'!I130/'Tabel 1 ØJ'!G128*100,"-")) -> - | J130: =IF(OR('Tabel 1 ØJ'!G128<5,'Tabel 2 ØJ'!J130<0.5),"-",IFERROR('Tabel 2 ØJ'!J130/'Tabel 1 ØJ'!G128*100,"-")) -> -
A131: Farmaceut | C131: =IF(OR('Tabel 1 ØJ'!C129<5,'Tabel 2 ØJ'!C131<0.5),"-",IFERROR('Tabel 2 ØJ'!C131/'Tabel 1 ØJ'!C129*100,"-")) -> - | D131: =IF(OR('Tabel 1 ØJ'!C129<5,'Tabel 2 ØJ'!D131<0.5),"-",IFERROR('Tabel 2 ØJ'!D131/'Tabel 1 ØJ'!C129*100,"-")) -> - | F131: =IF(OR('Tabel 1 ØJ'!E129<5,'Tabel 2 ØJ'!F131<0.5),"-",IFERROR('Tabel 2 ØJ'!F131/'Tabel 1 ØJ'!E129*100,"-")) -> 20 | G131: =IF(OR('Tabel 1 ØJ'!E129<5,'Tabel 2 ØJ'!G131<0.5),"-",IFERROR('Tabel 2 ØJ'!G131/'Tabel 1 ØJ'!E129*100,"-")) -> 13.53458492 | I131: =IF(OR('Tabel 1 ØJ'!G129<5,'Tabel 2 ØJ'!I131<0.5),"-",IFERROR('Tabel 2 ØJ'!I131/'Tabel 1 ØJ'!G129*100,"-")) -> 14.28571429 | J131: =IF(OR('Tabel 1 ØJ'!G129<5,'Tabel 2 ØJ'!J131<0.5),"-",IFERROR('Tabel 2 ØJ'!J131/'Tabel 1 ØJ'!G129*100,"-")) -> 9.667560656
A132: Læge | C132: =IF(OR('Tabel 1 ØJ'!C130<5,'Tabel 2 ØJ'!C132<0.5),"-",IFERROR('Tabel 2 ØJ'!C132/'Tabel 1 ØJ'!C130*100,"-")) -> - | D132: =IF(OR('Tabel 1 ØJ'!C130<5,'Tabel 2 ØJ'!D132<0.5),"-",IFERROR('Tabel 2 ØJ'!D132/'Tabel 1 ØJ'!C130*100,"-")) -> - | F132: =IF(OR('Tabel 1 ØJ'!E130<5,'Tabel 2 ØJ'!F132<0.5),"-",IFERROR('Tabel 2 ØJ'!F132/'Tabel 1 ØJ'!E130*100,"-")) -> 5.555555556 | G132: =IF(OR('Tabel 1 ØJ'!E130<5,'Tabel 2 ØJ'!G132<0.5),"-",IFERROR('Tabel 2 ØJ'!G132/'Tabel 1 ØJ'!E130*100,"-")) -> 5.041684858 | I132: =IF(OR('Tabel 1 ØJ'!G130<5,'Tabel 2 ØJ'!I132<0.5),"-",IFERROR('Tabel 2 ØJ'!I132/'Tabel 1 ØJ'!G130*100,"-")) -> 4 | J132: =IF(OR('Tabel 1 ØJ'!G130<5,'Tabel 2 ØJ'!J132<0.5),"-",IFERROR('Tabel 2 ØJ'!J132/'Tabel 1 ØJ'!G130*100,"-")) -> 3.630013098
A133: Tandlæge | C133: =IF(OR('Tabel 1 ØJ'!C131<5,'Tabel 2 ØJ'!C133<0.5),"-",IFERROR('Tabel 2 ØJ'!C133/'Tabel 1 ØJ'!C131*100,"-")) -> - | D133: =IF(OR('Tabel 1 ØJ'!C131<5,'Tabel 2 ØJ'!D133<0.5),"-",IFERROR('Tabel 2 ØJ'!D133/'Tabel 1 ØJ'!C131*100,"-")) -> - | F133: =IF(OR('Tabel 1 ØJ'!E131<5,'Tabel 2 ØJ'!F133<0.5),"-",IFERROR('Tabel 2 ØJ'!F133/'Tabel 1 ØJ'!E131*100,"-")) -> - | G133: =IF(OR('Tabel 1 ØJ'!E131<5,'Tabel 2 ØJ'!G133<0.5),"-",IFERROR('Tabel 2 ØJ'!G133/'Tabel 1 ØJ'!E131*100,"-")) -> - | I133: =IF(OR('Tabel 1 ØJ'!G131<5,'Tabel 2 ØJ'!I133<0.5),"-",IFERROR('Tabel 2 ØJ'!I133/'Tabel 1 ØJ'!G131*100,"-")) -> - | J133: =IF(OR('Tabel 1 ØJ'!G131<5,'Tabel 2 ØJ'!J133<0.5),"-",IFERROR('Tabel 2 ØJ'!J133/'Tabel 1 ØJ'!G131*100,"-")) -> -
A134: Arkitekt | C134: =IF(OR('Tabel 1 ØJ'!C132<5,'Tabel 2 ØJ'!C134<0.5),"-",IFERROR('Tabel 2 ØJ'!C134/'Tabel 1 ØJ'!C132*100,"-")) -> - | D134: =IF(OR('Tabel 1 ØJ'!C132<5,'Tabel 2 ØJ'!D134<0.5),"-",IFERROR('Tabel 2 ØJ'!D134/'Tabel 1 ØJ'!C132*100,"-")) -> - | F134: =IF(OR('Tabel 1 ØJ'!E132<5,'Tabel 2 ØJ'!F134<0.5),"-",IFERROR('Tabel 2 ØJ'!F134/'Tabel 1 ØJ'!E132*100,"-")) -> 9.090909091 | G134: =IF(OR('Tabel 1 ØJ'!E132<5,'Tabel 2 ØJ'!G134<0.5),"-",IFERROR('Tabel 2 ØJ'!G134/'Tabel 1 ØJ'!E132*100,"-")) -> 7.830440625 | I134: =IF(OR('Tabel 1 ØJ'!G132<5,'Tabel 2 ØJ'!I134<0.5),"-",IFERROR('Tabel 2 ØJ'!I134/'Tabel 1 ØJ'!G132*100,"-")) -> 5.882352941 | J134: =IF(OR('Tabel 1 ØJ'!G132<5,'Tabel 2 ØJ'!J134<0.5),"-",IFERROR('Tabel 2 ØJ'!J134/'Tabel 1 ØJ'!G132*100,"-")) -> 5.066755699
A135: Landinspek. | C135: =IF(OR('Tabel 1 ØJ'!C133<5,'Tabel 2 ØJ'!C135<0.5),"-",IFERROR('Tabel 2 ØJ'!C135/'Tabel 1 ØJ'!C133*100,"-")) -> - | D135: =IF(OR('Tabel 1 ØJ'!C133<5,'Tabel 2 ØJ'!D135<0.5),"-",IFERROR('Tabel 2 ØJ'!D135/'Tabel 1 ØJ'!C133*100,"-")) -> - | F135: =IF(OR('Tabel 1 ØJ'!E133<5,'Tabel 2 ØJ'!F135<0.5),"-",IFERROR('Tabel 2 ØJ'!F135/'Tabel 1 ØJ'!E133*100,"-")) -> - | G135: =IF(OR('Tabel 1 ØJ'!E133<5,'Tabel 2 ØJ'!G135<0.5),"-",IFERROR('Tabel 2 ØJ'!G135/'Tabel 1 ØJ'!E133*100,"-")) -> - | I135: =IF(OR('Tabel 1 ØJ'!G133<5,'Tabel 2 ØJ'!I135<0.5),"-",IFERROR('Tabel 2 ØJ'!I135/'Tabel 1 ØJ'!G133*100,"-")) -> - | J135: =IF(OR('Tabel 1 ØJ'!G133<5,'Tabel 2 ØJ'!J135<0.5),"-",IFERROR('Tabel 2 ØJ'!J135/'Tabel 1 ØJ'!G133*100,"-")) -> -
A136: Bibliotekar | C136: =IF(OR('Tabel 1 ØJ'!C134<5,'Tabel 2 ØJ'!C136<0.5),"-",IFERROR('Tabel 2 ØJ'!C136/'Tabel 1 ØJ'!C134*100,"-")) -> - | D136: =IF(OR('Tabel 1 ØJ'!C134<5,'Tabel 2 ØJ'!D136<0.5),"-",IFERROR('Tabel 2 ØJ'!D136/'Tabel 1 ØJ'!C134*100,"-")) -> - | F136: =IF(OR('Tabel 1 ØJ'!E134<5,'Tabel 2 ØJ'!F136<0.5),"-",IFERROR('Tabel 2 ØJ'!F136/'Tabel 1 ØJ'!E134*100,"-")) -> 26.66666667 | G136: =IF(OR('Tabel 1 ØJ'!E134<5,'Tabel 2 ØJ'!G136<0.5),"-",IFERROR('Tabel 2 ØJ'!G136/'Tabel 1 ØJ'!E134*100,"-")) -> 20.61997131 | I136: =IF(OR('Tabel 1 ØJ'!G134<5,'Tabel 2 ØJ'!I136<0.5),"-",IFERROR('Tabel 2 ØJ'!I136/'Tabel 1 ØJ'!G134*100,"-")) -> 22.22222222 | J136: =IF(OR('Tabel 1 ØJ'!G134<5,'Tabel 2 ØJ'!J136<0.5),"-",IFERROR('Tabel 2 ØJ'!J136/'Tabel 1 ØJ'!G134*100,"-")) -> 17.18330942
A137: Musikudd. | C137: =IF(OR('Tabel 1 ØJ'!C135<5,'Tabel 2 ØJ'!C137<0.5),"-",IFERROR('Tabel 2 ØJ'!C137/'Tabel 1 ØJ'!C135*100,"-")) -> - | D137: =IF(OR('Tabel 1 ØJ'!C135<5,'Tabel 2 ØJ'!D137<0.5),"-",IFERROR('Tabel 2 ØJ'!D137/'Tabel 1 ØJ'!C135*100,"-")) -> - | F137: =IF(OR('Tabel 1 ØJ'!E135<5,'Tabel 2 ØJ'!F137<0.5),"-",IFERROR('Tabel 2 ØJ'!F137/'Tabel 1 ØJ'!E135*100,"-")) -> - | G137: =IF(OR('Tabel 1 ØJ'!E135<5,'Tabel 2 ØJ'!G137<0.5),"-",IFERROR('Tabel 2 ØJ'!G137/'Tabel 1 ØJ'!E135*100,"-")) -> - | I137: =IF(OR('Tabel 1 ØJ'!G135<5,'Tabel 2 ØJ'!I137<0.5),"-",IFERROR('Tabel 2 ØJ'!I137/'Tabel 1 ØJ'!G135*100,"-")) -> - | J137: =IF(OR('Tabel 1 ØJ'!G135<5,'Tabel 2 ØJ'!J137<0.5),"-",IFERROR('Tabel 2 ØJ'!J137/'Tabel 1 ØJ'!G135*100,"-")) -> -
A138: Teolog | C138: =IF(OR('Tabel 1 ØJ'!C136<5,'Tabel 2 ØJ'!C138<0.5),"-",IFERROR('Tabel 2 ØJ'!C138/'Tabel 1 ØJ'!C136*100,"-")) -> - | D138: =IF(OR('Tabel 1 ØJ'!C136<5,'Tabel 2 ØJ'!D138<0.5),"-",IFERROR('Tabel 2 ØJ'!D138/'Tabel 1 ØJ'!C136*100,"-")) -> - | F138: =IF(OR('Tabel 1 ØJ'!E136<5,'Tabel 2 ØJ'!F138<0.5),"-",IFERROR('Tabel 2 ØJ'!F138/'Tabel 1 ØJ'!E136*100,"-")) -> - | G138: =IF(OR('Tabel 1 ØJ'!E136<5,'Tabel 2 ØJ'!G138<0.5),"-",IFERROR('Tabel 2 ØJ'!G138/'Tabel 1 ØJ'!E136*100,"-")) -> - | I138: =IF(OR('Tabel 1 ØJ'!G136<5,'Tabel 2 ØJ'!I138<0.5),"-",IFERROR('Tabel 2 ØJ'!I138/'Tabel 1 ØJ'!G136*100,"-")) -> - | J138: =IF(OR('Tabel 1 ØJ'!G136<5,'Tabel 2 ØJ'!J138<0.5),"-",IFERROR('Tabel 2 ØJ'!J138/'Tabel 1 ØJ'!G136*100,"-")) -> -
A139: Psykolog | C139: =IF(OR('Tabel 1 ØJ'!C137<5,'Tabel 2 ØJ'!C139<0.5),"-",IFERROR('Tabel 2 ØJ'!C139/'Tabel 1 ØJ'!C137*100,"-")) -> - | D139: =IF(OR('Tabel 1 ØJ'!C137<5,'Tabel 2 ØJ'!D139<0.5),"-",IFERROR('Tabel 2 ØJ'!D139/'Tabel 1 ØJ'!C137*100,"-")) -> - | F139: =IF(OR('Tabel 1 ØJ'!E137<5,'Tabel 2 ØJ'!F139<0.5),"-",IFERROR('Tabel 2 ØJ'!F139/'Tabel 1 ØJ'!E137*100,"-")) -> 5.263157895 | G139: =IF(OR('Tabel 1 ØJ'!E137<5,'Tabel 2 ØJ'!G139<0.5),"-",IFERROR('Tabel 2 ØJ'!G139/'Tabel 1 ØJ'!E137*100,"-")) -> 3.259724187 | I139: =IF(OR('Tabel 1 ØJ'!G137<5,'Tabel 2 ØJ'!I139<0.5),"-",IFERROR('Tabel 2 ØJ'!I139/'Tabel 1 ØJ'!G137*100,"-")) -> 4.255319149 | J139: =IF(OR('Tabel 1 ØJ'!G137<5,'Tabel 2 ØJ'!J139<0.5),"-",IFERROR('Tabel 2 ØJ'!J139/'Tabel 1 ØJ'!G137*100,"-")) -> 2.635521683
A140: Jurist | C140: =IF(OR('Tabel 1 ØJ'!C138<5,'Tabel 2 ØJ'!C140<0.5),"-",IFERROR('Tabel 2 ØJ'!C140/'Tabel 1 ØJ'!C138*100,"-")) -> 11.11111111 | D140: =IF(OR('Tabel 1 ØJ'!C138<5,'Tabel 2 ØJ'!D140<0.5),"-",IFERROR('Tabel 2 ØJ'!D140/'Tabel 1 ØJ'!C138*100,"-")) -> 11.10903207 | F140: =IF(OR('Tabel 1 ØJ'!E138<5,'Tabel 2 ØJ'!F140<0.5),"-",IFERROR('Tabel 2 ØJ'!F140/'Tabel 1 ØJ'!E138*100,"-")) -> - | G140: =IF(OR('Tabel 1 ØJ'!E138<5,'Tabel 2 ØJ'!G140<0.5),"-",IFERROR('Tabel 2 ØJ'!G140/'Tabel 1 ØJ'!E138*100,"-")) -> - | I140: =IF(OR('Tabel 1 ØJ'!G138<5,'Tabel 2 ØJ'!I140<0.5),"-",IFERROR('Tabel 2 ØJ'!I140/'Tabel 1 ØJ'!G138*100,"-")) -> 2.272727273 | J140: =IF(OR('Tabel 1 ØJ'!G138<5,'Tabel 2 ØJ'!J140<0.5),"-",IFERROR('Tabel 2 ØJ'!J140/'Tabel 1 ØJ'!G138*100,"-")) -> 2.272302013
A141: Økonom | C141: =IF(OR('Tabel 1 ØJ'!C139<5,'Tabel 2 ØJ'!C141<0.5),"-",IFERROR('Tabel 2 ØJ'!C141/'Tabel 1 ØJ'!C139*100,"-")) -> 6.666666667 | D141: =IF(OR('Tabel 1 ØJ'!C139<5,'Tabel 2 ØJ'!D141<0.5),"-",IFERROR('Tabel 2 ØJ'!D141/'Tabel 1 ØJ'!C139*100,"-")) -> 6.665419239 | F141: =IF(OR('Tabel 1 ØJ'!E139<5,'Tabel 2 ØJ'!F141<0.5),"-",IFERROR('Tabel 2 ØJ'!F141/'Tabel 1 ØJ'!E139*100,"-")) -> - | G141: =IF(OR('Tabel 1 ØJ'!E139<5,'Tabel 2 ØJ'!G141<0.5),"-",IFERROR('Tabel 2 ØJ'!G141/'Tabel 1 ØJ'!E139*100,"-")) -> - | I141: =IF(OR('Tabel 1 ØJ'!G139<5,'Tabel 2 ØJ'!I141<0.5),"-",IFERROR('Tabel 2 ØJ'!I141/'Tabel 1 ØJ'!G139*100,"-")) -> 4 | J141: =IF(OR('Tabel 1 ØJ'!G139<5,'Tabel 2 ØJ'!J141<0.5),"-",IFERROR('Tabel 2 ØJ'!J141/'Tabel 1 ØJ'!G139*100,"-")) -> 3.999251544
A142: Samf. Adm. | C142: =IF(OR('Tabel 1 ØJ'!C140<5,'Tabel 2 ØJ'!C142<0.5),"-",IFERROR('Tabel 2 ØJ'!C142/'Tabel 1 ØJ'!C140*100,"-")) -> 11.76470588 | D142: =IF(OR('Tabel 1 ØJ'!C140<5,'Tabel 2 ØJ'!D142<0.5),"-",IFERROR('Tabel 2 ØJ'!D142/'Tabel 1 ØJ'!C140*100,"-")) -> 11.76250454 | F142: =IF(OR('Tabel 1 ØJ'!E140<5,'Tabel 2 ØJ'!F142<0.5),"-",IFERROR('Tabel 2 ØJ'!F142/'Tabel 1 ØJ'!E140*100,"-")) -> 6.896551724 | G142: =IF(OR('Tabel 1 ØJ'!E140<5,'Tabel 2 ØJ'!G142<0.5),"-",IFERROR('Tabel 2 ØJ'!G142/'Tabel 1 ØJ'!E140*100,"-")) -> 4.82625275 | I142: =IF(OR('Tabel 1 ØJ'!G140<5,'Tabel 2 ØJ'!I142<0.5),"-",IFERROR('Tabel 2 ØJ'!I142/'Tabel 1 ØJ'!G140*100,"-")) -> 8.695652174 | J142: =IF(OR('Tabel 1 ØJ'!G140<5,'Tabel 2 ØJ'!J142<0.5),"-",IFERROR('Tabel 2 ØJ'!J142/'Tabel 1 ØJ'!G140*100,"-")) -> 7.389650151
A143: Cand. Merc. | C143: =IF(OR('Tabel 1 ØJ'!C141<5,'Tabel 2 ØJ'!C143<0.5),"-",IFERROR('Tabel 2 ØJ'!C143/'Tabel 1 ØJ'!C141*100,"-")) -> 6.382978723 | D143: =IF(OR('Tabel 1 ØJ'!C141<5,'Tabel 2 ØJ'!D143<0.5),"-",IFERROR('Tabel 2 ØJ'!D143/'Tabel 1 ØJ'!C141*100,"-")) -> 5.890775807 | F143: =IF(OR('Tabel 1 ØJ'!E141<5,'Tabel 2 ØJ'!F143<0.5),"-",IFERROR('Tabel 2 ØJ'!F143/'Tabel 1 ØJ'!E141*100,"-")) -> 5.882352941 | G143: =IF(OR('Tabel 1 ØJ'!E141<5,'Tabel 2 ØJ'!G143<0.5),"-",IFERROR('Tabel 2 ØJ'!G143/'Tabel 1 ØJ'!E141*100,"-")) -> 5.202505127 | I143: =IF(OR('Tabel 1 ØJ'!G141<5,'Tabel 2 ØJ'!I143<0.5),"-",IFERROR('Tabel 2 ØJ'!I143/'Tabel 1 ØJ'!G141*100,"-")) -> 6.172839506 | J143: =IF(OR('Tabel 1 ØJ'!G141<5,'Tabel 2 ØJ'!J143<0.5),"-",IFERROR('Tabel 2 ØJ'!J143/'Tabel 1 ØJ'!G141*100,"-")) -> 5.601872065
A144: HA | C144: =IF(OR('Tabel 1 ØJ'!C142<5,'Tabel 2 ØJ'!C144<0.5),"-",IFERROR('Tabel 2 ØJ'!C144/'Tabel 1 ØJ'!C142*100,"-")) -> - | D144: =IF(OR('Tabel 1 ØJ'!C142<5,'Tabel 2 ØJ'!D144<0.5),"-",IFERROR('Tabel 2 ØJ'!D144/'Tabel 1 ØJ'!C142*100,"-")) -> - | F144: =IF(OR('Tabel 1 ØJ'!E142<5,'Tabel 2 ØJ'!F144<0.5),"-",IFERROR('Tabel 2 ØJ'!F144/'Tabel 1 ØJ'!E142*100,"-")) -> - | G144: =IF(OR('Tabel 1 ØJ'!E142<5,'Tabel 2 ØJ'!G144<0.5),"-",IFERROR('Tabel 2 ØJ'!G144/'Tabel 1 ØJ'!E142*100,"-")) -> - | I144: =IF(OR('Tabel 1 ØJ'!G142<5,'Tabel 2 ØJ'!I144<0.5),"-",IFERROR('Tabel 2 ØJ'!I144/'Tabel 1 ØJ'!G142*100,"-")) -> - | J144: =IF(OR('Tabel 1 ØJ'!G142<5,'Tabel 2 ØJ'!J144<0.5),"-",IFERROR('Tabel 2 ØJ'!J144/'Tabel 1 ØJ'!G142*100,"-")) -> -
A145: HD | C145: =IF(OR('Tabel 1 ØJ'!C143<5,'Tabel 2 ØJ'!C145<0.5),"-",IFERROR('Tabel 2 ØJ'!C145/'Tabel 1 ØJ'!C143*100,"-")) -> - | D145: =IF(OR('Tabel 1 ØJ'!C143<5,'Tabel 2 ØJ'!D145<0.5),"-",IFERROR('Tabel 2 ØJ'!D145/'Tabel 1 ØJ'!C143*100,"-")) -> - | F145: =IF(OR('Tabel 1 ØJ'!E143<5,'Tabel 2 ØJ'!F145<0.5),"-",IFERROR('Tabel 2 ØJ'!F145/'Tabel 1 ØJ'!E143*100,"-")) -> - | G145: =IF(OR('Tabel 1 ØJ'!E143<5,'Tabel 2 ØJ'!G145<0.5),"-",IFERROR('Tabel 2 ØJ'!G145/'Tabel 1 ØJ'!E143*100,"-")) -> - | I145: =IF(OR('Tabel 1 ØJ'!G143<5,'Tabel 2 ØJ'!I145<0.5),"-",IFERROR('Tabel 2 ØJ'!I145/'Tabel 1 ØJ'!G143*100,"-")) -> - | J145: =IF(OR('Tabel 1 ØJ'!G143<5,'Tabel 2 ØJ'!J145<0.5),"-",IFERROR('Tabel 2 ØJ'!J145/'Tabel 1 ØJ'!G143*100,"-")) -> -
A146: Komm. og Sprog | C146: =IF(OR('Tabel 1 ØJ'!C144<5,'Tabel 2 ØJ'!C146<0.5),"-",IFERROR('Tabel 2 ØJ'!C146/'Tabel 1 ØJ'!C144*100,"-")) -> - | D146: =IF(OR('Tabel 1 ØJ'!C144<5,'Tabel 2 ØJ'!D146<0.5),"-",IFERROR('Tabel 2 ØJ'!D146/'Tabel 1 ØJ'!C144*100,"-")) -> - | F146: =IF(OR('Tabel 1 ØJ'!E144<5,'Tabel 2 ØJ'!F146<0.5),"-",IFERROR('Tabel 2 ØJ'!F146/'Tabel 1 ØJ'!E144*100,"-")) -> 8.571428571 | G146: =IF(OR('Tabel 1 ØJ'!E144<5,'Tabel 2 ØJ'!G146<0.5),"-",IFERROR('Tabel 2 ØJ'!G146/'Tabel 1 ØJ'!E144*100,"-")) -> 7.992444155 | I146: =IF(OR('Tabel 1 ØJ'!G144<5,'Tabel 2 ØJ'!I146<0.5),"-",IFERROR('Tabel 2 ØJ'!I146/'Tabel 1 ØJ'!G144*100,"-")) -> 7.894736842 | J146: =IF(OR('Tabel 1 ØJ'!G144<5,'Tabel 2 ØJ'!J146<0.5),"-",IFERROR('Tabel 2 ØJ'!J146/'Tabel 1 ØJ'!G144*100,"-")) -> 7.361461722
A147: Cand. IT. | C147: =IF(OR('Tabel 1 ØJ'!C145<5,'Tabel 2 ØJ'!C147<0.5),"-",IFERROR('Tabel 2 ØJ'!C147/'Tabel 1 ØJ'!C145*100,"-")) -> - | D147: =IF(OR('Tabel 1 ØJ'!C145<5,'Tabel 2 ØJ'!D147<0.5),"-",IFERROR('Tabel 2 ØJ'!D147/'Tabel 1 ØJ'!C145*100,"-")) -> - | F147: =IF(OR('Tabel 1 ØJ'!E145<5,'Tabel 2 ØJ'!F147<0.5),"-",IFERROR('Tabel 2 ØJ'!F147/'Tabel 1 ØJ'!E145*100,"-")) -> - | G147: =IF(OR('Tabel 1 ØJ'!E145<5,'Tabel 2 ØJ'!G147<0.5),"-",IFERROR('Tabel 2 ØJ'!G147/'Tabel 1 ØJ'!E145*100,"-")) -> - | I147: =IF(OR('Tabel 1 ØJ'!G145<5,'Tabel 2 ØJ'!I147<0.5),"-",IFERROR('Tabel 2 ØJ'!I147/'Tabel 1 ØJ'!G145*100,"-")) -> - | J147: =IF(OR('Tabel 1 ØJ'!G145<5,'Tabel 2 ØJ'!J147<0.5),"-",IFERROR('Tabel 2 ØJ'!J147/'Tabel 1 ØJ'!G145*100,"-")) -> -
A148: Bac. Samf. | C148: =IF(OR('Tabel 1 ØJ'!C146<5,'Tabel 2 ØJ'!C148<0.5),"-",IFERROR('Tabel 2 ØJ'!C148/'Tabel 1 ØJ'!C146*100,"-")) -> - | D148: =IF(OR('Tabel 1 ØJ'!C146<5,'Tabel 2 ØJ'!D148<0.5),"-",IFERROR('Tabel 2 ØJ'!D148/'Tabel 1 ØJ'!C146*100,"-")) -> - | F148: =IF(OR('Tabel 1 ØJ'!E146<5,'Tabel 2 ØJ'!F148<0.5),"-",IFERROR('Tabel 2 ØJ'!F148/'Tabel 1 ØJ'!E146*100,"-")) -> - | G148: =IF(OR('Tabel 1 ØJ'!E146<5,'Tabel 2 ØJ'!G148<0.5),"-",IFERROR('Tabel 2 ØJ'!G148/'Tabel 1 ØJ'!E146*100,"-")) -> - | I148: =IF(OR('Tabel 1 ØJ'!G146<5,'Tabel 2 ØJ'!I148<0.5),"-",IFERROR('Tabel 2 ØJ'!I148/'Tabel 1 ØJ'!G146*100,"-")) -> - | J148: =IF(OR('Tabel 1 ØJ'!G146<5,'Tabel 2 ØJ'!J148<0.5),"-",IFERROR('Tabel 2 ØJ'!J148/'Tabel 1 ØJ'!G146*100,"-")) -> -
A149: Bac. Hum. | C149: =IF(OR('Tabel 1 ØJ'!C147<5,'Tabel 2 ØJ'!C149<0.5),"-",IFERROR('Tabel 2 ØJ'!C149/'Tabel 1 ØJ'!C147*100,"-")) -> - | D149: =IF(OR('Tabel 1 ØJ'!C147<5,'Tabel 2 ØJ'!D149<0.5),"-",IFERROR('Tabel 2 ØJ'!D149/'Tabel 1 ØJ'!C147*100,"-")) -> - | F149: =IF(OR('Tabel 1 ØJ'!E147<5,'Tabel 2 ØJ'!F149<0.5),"-",IFERROR('Tabel 2 ØJ'!F149/'Tabel 1 ØJ'!E147*100,"-")) -> - | G149: =IF(OR('Tabel 1 ØJ'!E147<5,'Tabel 2 ØJ'!G149<0.5),"-",IFERROR('Tabel 2 ØJ'!G149/'Tabel 1 ØJ'!E147*100,"-")) -> - | I149: =IF(OR('Tabel 1 ØJ'!G147<5,'Tabel 2 ØJ'!I149<0.5),"-",IFERROR('Tabel 2 ØJ'!I149/'Tabel 1 ØJ'!G147*100,"-")) -> - | J149: =IF(OR('Tabel 1 ØJ'!G147<5,'Tabel 2 ØJ'!J149<0.5),"-",IFERROR('Tabel 2 ØJ'!J149/'Tabel 1 ØJ'!G147*100,"-")) -> -
A150: Bac. Nat. | C150: =IF(OR('Tabel 1 ØJ'!C148<5,'Tabel 2 ØJ'!C150<0.5),"-",IFERROR('Tabel 2 ØJ'!C150/'Tabel 1 ØJ'!C148*100,"-")) -> - | D150: =IF(OR('Tabel 1 ØJ'!C148<5,'Tabel 2 ØJ'!D150<0.5),"-",IFERROR('Tabel 2 ØJ'!D150/'Tabel 1 ØJ'!C148*100,"-")) -> - | F150: =IF(OR('Tabel 1 ØJ'!E148<5,'Tabel 2 ØJ'!F150<0.5),"-",IFERROR('Tabel 2 ØJ'!F150/'Tabel 1 ØJ'!E148*100,"-")) -> - | G150: =IF(OR('Tabel 1 ØJ'!E148<5,'Tabel 2 ØJ'!G150<0.5),"-",IFERROR('Tabel 2 ØJ'!G150/'Tabel 1 ØJ'!E148*100,"-")) -> - | I150: =IF(OR('Tabel 1 ØJ'!G148<5,'Tabel 2 ØJ'!I150<0.5),"-",IFERROR('Tabel 2 ØJ'!I150/'Tabel 1 ØJ'!G148*100,"-")) -> - | J150: =IF(OR('Tabel 1 ØJ'!G148<5,'Tabel 2 ØJ'!J150<0.5),"-",IFERROR('Tabel 2 ØJ'!J150/'Tabel 1 ØJ'!G148*100,"-")) -> -
A151: Andre | C151: =IF(OR('Tabel 1 ØJ'!C149<5,'Tabel 2 ØJ'!C151<0.5),"-",IFERROR('Tabel 2 ØJ'!C151/'Tabel 1 ØJ'!C149*100,"-")) -> 7.407407407 | D151: =IF(OR('Tabel 1 ØJ'!C149<5,'Tabel 2 ØJ'!D151<0.5),"-",IFERROR('Tabel 2 ØJ'!D151/'Tabel 1 ØJ'!C149*100,"-")) -> 7.320549515 | F151: =IF(OR('Tabel 1 ØJ'!E149<5,'Tabel 2 ØJ'!F151<0.5),"-",IFERROR('Tabel 2 ØJ'!F151/'Tabel 1 ØJ'!E149*100,"-")) -> 15.38461538 | G151: =IF(OR('Tabel 1 ØJ'!E149<5,'Tabel 2 ØJ'!G151<0.5),"-",IFERROR('Tabel 2 ØJ'!G151/'Tabel 1 ØJ'!E149*100,"-")) -> 13.88802262 | I151: =IF(OR('Tabel 1 ØJ'!G149<5,'Tabel 2 ØJ'!I151<0.5),"-",IFERROR('Tabel 2 ØJ'!I151/'Tabel 1 ØJ'!G149*100,"-")) -> 10.75268817 | J151: =IF(OR('Tabel 1 ØJ'!G149<5,'Tabel 2 ØJ'!J151<0.5),"-",IFERROR('Tabel 2 ØJ'!J151/'Tabel 1 ØJ'!G149*100,"-")) -> 10.07465114
A153: Total | C153: =IF(OR('Tabel 1 ØJ'!C151<5,'Tabel 2 ØJ'!C153<0.5),"-",IFERROR('Tabel 2 ØJ'!C153/'Tabel 1 ØJ'!C151*100,"-")) -> 4.024767802 | D153: =IF(OR('Tabel 1 ØJ'!C151<5,'Tabel 2 ØJ'!D153<0.5),"-",IFERROR('Tabel 2 ØJ'!D153/'Tabel 1 ØJ'!C151*100,"-")) -> 3.588670349 | F153: =IF(OR('Tabel 1 ØJ'!E151<5,'Tabel 2 ØJ'!F153<0.5),"-",IFERROR('Tabel 2 ØJ'!F153/'Tabel 1 ØJ'!E151*100,"-")) -> 8.439490446 | G153: =IF(OR('Tabel 1 ØJ'!E151<5,'Tabel 2 ØJ'!G153<0.5),"-",IFERROR('Tabel 2 ØJ'!G153/'Tabel 1 ØJ'!E151*100,"-")) -> 6.823406819 | I153: =IF(OR('Tabel 1 ØJ'!G151<5,'Tabel 2 ØJ'!I153<0.5),"-",IFERROR('Tabel 2 ØJ'!I153/'Tabel 1 ØJ'!G151*100,"-")) -> 6.200941915 | J153: =IF(OR('Tabel 1 ØJ'!G151<5,'Tabel 2 ØJ'!J153<0.5),"-",IFERROR('Tabel 2 ØJ'!J153/'Tabel 1 ØJ'!G151*100,"-")) -> 5.183187227
A155: Ingeniører i alt | C155: =IF(OR('Tabel 1 ØJ'!C153<5,'Tabel 2 ØJ'!C155<0.5),"-",IFERROR('Tabel 2 ØJ'!C155/'Tabel 1 ØJ'!C153*100,"-")) -> 2.272727273 | D155: =IF(OR('Tabel 1 ØJ'!C153<5,'Tabel 2 ØJ'!D155<0.5),"-",IFERROR('Tabel 2 ØJ'!D155/'Tabel 1 ØJ'!C153*100,"-")) -> 2.049182652 | F155: =IF(OR('Tabel 1 ØJ'!E153<5,'Tabel 2 ØJ'!F155<0.5),"-",IFERROR('Tabel 2 ØJ'!F155/'Tabel 1 ØJ'!E153*100,"-")) -> 2.325581395 | G155: =IF(OR('Tabel 1 ØJ'!E153<5,'Tabel 2 ØJ'!G155<0.5),"-",IFERROR('Tabel 2 ØJ'!G155/'Tabel 1 ØJ'!E153*100,"-")) -> 2.325146246 | I155: =IF(OR('Tabel 1 ØJ'!G153<5,'Tabel 2 ØJ'!I155<0.5),"-",IFERROR('Tabel 2 ØJ'!I155/'Tabel 1 ØJ'!G153*100,"-")) -> 2.281368821 | J155: =IF(OR('Tabel 1 ØJ'!G153<5,'Tabel 2 ØJ'!J155<0.5),"-",IFERROR('Tabel 2 ØJ'!J155/'Tabel 1 ØJ'!G153*100,"-")) -> 2.094302175
A156: Magistre i alt | C156: =IF(OR('Tabel 1 ØJ'!C154<5,'Tabel 2 ØJ'!C156<0.5),"-",IFERROR('Tabel 2 ØJ'!C156/'Tabel 1 ØJ'!C154*100,"-")) -> 5.839416058 | D156: =IF(OR('Tabel 1 ØJ'!C154<5,'Tabel 2 ØJ'!D156<0.5),"-",IFERROR('Tabel 2 ØJ'!D156/'Tabel 1 ØJ'!C154*100,"-")) -> 4.817618407 | F156: =IF(OR('Tabel 1 ØJ'!E154<5,'Tabel 2 ØJ'!F156<0.5),"-",IFERROR('Tabel 2 ØJ'!F156/'Tabel 1 ØJ'!E154*100,"-")) -> 13.18681319 | G156: =IF(OR('Tabel 1 ØJ'!E154<5,'Tabel 2 ØJ'!G156<0.5),"-",IFERROR('Tabel 2 ØJ'!G156/'Tabel 1 ØJ'!E154*100,"-")) -> 10.3553591 | I156: =IF(OR('Tabel 1 ØJ'!G154<5,'Tabel 2 ØJ'!I156<0.5),"-",IFERROR('Tabel 2 ØJ'!I156/'Tabel 1 ØJ'!G154*100,"-")) -> 10.03134796 | J156: =IF(OR('Tabel 1 ØJ'!G154<5,'Tabel 2 ØJ'!J156<0.5),"-",IFERROR('Tabel 2 ØJ'!J156/'Tabel 1 ØJ'!G154*100,"-")) -> 7.977081752
A157: DJØF'ere i alt | C157: =IF(OR('Tabel 1 ØJ'!C155<5,'Tabel 2 ØJ'!C157<0.5),"-",IFERROR('Tabel 2 ØJ'!C157/'Tabel 1 ØJ'!C155*100,"-")) -> 6.730769231 | D157: =IF(OR('Tabel 1 ØJ'!C155<5,'Tabel 2 ØJ'!D157<0.5),"-",IFERROR('Tabel 2 ØJ'!D157/'Tabel 1 ØJ'!C155*100,"-")) -> 6.507611705 | F157: =IF(OR('Tabel 1 ØJ'!E155<5,'Tabel 2 ØJ'!F157<0.5),"-",IFERROR('Tabel 2 ØJ'!F157/'Tabel 1 ØJ'!E155*100,"-")) -> 3.125 | G157: =IF(OR('Tabel 1 ØJ'!E155<5,'Tabel 2 ØJ'!G157<0.5),"-",IFERROR('Tabel 2 ØJ'!G157/'Tabel 1 ØJ'!E155*100,"-")) -> 2.475363313 | I157: =IF(OR('Tabel 1 ØJ'!G155<5,'Tabel 2 ØJ'!I157<0.5),"-",IFERROR('Tabel 2 ØJ'!I157/'Tabel 1 ØJ'!G155*100,"-")) -> 4.74137931 | J157: =IF(OR('Tabel 1 ØJ'!G155<5,'Tabel 2 ØJ'!J157<0.5),"-",IFERROR('Tabel 2 ØJ'!J157/'Tabel 1 ØJ'!G155*100,"-")) -> 4.282922937
A162: Norddjurs
C164: Mænd | F164: Kvinder | I164: I alt
C165: Ledigheds- berørte | D165: Gns. brutto- ledighed | F165: Ledigheds- berørte | G165: Gns. brutto- ledighed | I165: Ledigheds- berørte | J165: Gns. brutto- ledighed
A168: Civ. ing. | C168: =IF(OR('Tabel 1 ØJ'!C166<5,'Tabel 2 ØJ'!C168<0.5),"-",IFERROR('Tabel 2 ØJ'!C168/'Tabel 1 ØJ'!C166*100,"-")) -> - | D168: =IF(OR('Tabel 1 ØJ'!C166<5,'Tabel 2 ØJ'!D168<0.5),"-",IFERROR('Tabel 2 ØJ'!D168/'Tabel 1 ØJ'!C166*100,"-")) -> - | F168: =IF(OR('Tabel 1 ØJ'!E166<5,'Tabel 2 ØJ'!F168<0.5),"-",IFERROR('Tabel 2 ØJ'!F168/'Tabel 1 ØJ'!E166*100,"-")) -> - | G168: =IF(OR('Tabel 1 ØJ'!E166<5,'Tabel 2 ØJ'!G168<0.5),"-",IFERROR('Tabel 2 ØJ'!G168/'Tabel 1 ØJ'!E166*100,"-")) -> - | I168: =IF(OR('Tabel 1 ØJ'!G166<5,'Tabel 2 ØJ'!I168<0.5),"-",IFERROR('Tabel 2 ØJ'!I168/'Tabel 1 ØJ'!G166*100,"-")) -> - | J168: =IF(OR('Tabel 1 ØJ'!G166<5,'Tabel 2 ØJ'!J168<0.5),"-",IFERROR('Tabel 2 ØJ'!J168/'Tabel 1 ØJ'!G166*100,"-")) -> -
A169: Diplom ing. | C169: =IF(OR('Tabel 1 ØJ'!C167<5,'Tabel 2 ØJ'!C169<0.5),"-",IFERROR('Tabel 2 ØJ'!C169/'Tabel 1 ØJ'!C167*100,"-")) -> 3.947368421 | D169: =IF(OR('Tabel 1 ØJ'!C167<5,'Tabel 2 ØJ'!D169<0.5),"-",IFERROR('Tabel 2 ØJ'!D169/'Tabel 1 ØJ'!C167*100,"-")) -> 3.946629813 | F169: =IF(OR('Tabel 1 ØJ'!E167<5,'Tabel 2 ØJ'!F169<0.5),"-",IFERROR('Tabel 2 ØJ'!F169/'Tabel 1 ØJ'!E167*100,"-")) -> 5.263157895 | G169: =IF(OR('Tabel 1 ØJ'!E167<5,'Tabel 2 ØJ'!G169<0.5),"-",IFERROR('Tabel 2 ØJ'!G169/'Tabel 1 ØJ'!E167*100,"-")) -> 5.262173084 | I169: =IF(OR('Tabel 1 ØJ'!G167<5,'Tabel 2 ØJ'!I169<0.5),"-",IFERROR('Tabel 2 ØJ'!I169/'Tabel 1 ØJ'!G167*100,"-")) -> 4.210526316 | J169: =IF(OR('Tabel 1 ØJ'!G167<5,'Tabel 2 ØJ'!J169<0.5),"-",IFERROR('Tabel 2 ØJ'!J169/'Tabel 1 ØJ'!G167*100,"-")) -> 4.209738467
A170: Cand. Scient. Tek. | C170: =IF(OR('Tabel 1 ØJ'!C168<5,'Tabel 2 ØJ'!C170<0.5),"-",IFERROR('Tabel 2 ØJ'!C170/'Tabel 1 ØJ'!C168*100,"-")) -> 20 | D170: =IF(OR('Tabel 1 ØJ'!C168<5,'Tabel 2 ØJ'!D170<0.5),"-",IFERROR('Tabel 2 ØJ'!D170/'Tabel 1 ØJ'!C168*100,"-")) -> 19.99625772 | F170: =IF(OR('Tabel 1 ØJ'!E168<5,'Tabel 2 ØJ'!F170<0.5),"-",IFERROR('Tabel 2 ØJ'!F170/'Tabel 1 ØJ'!E168*100,"-")) -> - | G170: =IF(OR('Tabel 1 ØJ'!E168<5,'Tabel 2 ØJ'!G170<0.5),"-",IFERROR('Tabel 2 ØJ'!G170/'Tabel 1 ØJ'!E168*100,"-")) -> - | I170: =IF(OR('Tabel 1 ØJ'!G168<5,'Tabel 2 ØJ'!I170<0.5),"-",IFERROR('Tabel 2 ØJ'!I170/'Tabel 1 ØJ'!G168*100,"-")) -> 11.76470588 | J170: =IF(OR('Tabel 1 ØJ'!G168<5,'Tabel 2 ØJ'!J170<0.5),"-",IFERROR('Tabel 2 ØJ'!J170/'Tabel 1 ØJ'!G168*100,"-")) -> 11.76250454
A171: MA. Hum. | C171: =IF(OR('Tabel 1 ØJ'!C169<5,'Tabel 2 ØJ'!C171<0.5),"-",IFERROR('Tabel 2 ØJ'!C171/'Tabel 1 ØJ'!C169*100,"-")) -> 9.090909091 | D171: =IF(OR('Tabel 1 ØJ'!C169<5,'Tabel 2 ØJ'!D171<0.5),"-",IFERROR('Tabel 2 ØJ'!D171/'Tabel 1 ØJ'!C169*100,"-")) -> 7.345645062 | F171: =IF(OR('Tabel 1 ØJ'!E169<5,'Tabel 2 ØJ'!F171<0.5),"-",IFERROR('Tabel 2 ØJ'!F171/'Tabel 1 ØJ'!E169*100,"-")) -> 6.12244898 | G171: =IF(OR('Tabel 1 ØJ'!E169<5,'Tabel 2 ØJ'!G171<0.5),"-",IFERROR('Tabel 2 ØJ'!G171/'Tabel 1 ØJ'!E169*100,"-")) -> 5.906185839 | I171: =IF(OR('Tabel 1 ØJ'!G169<5,'Tabel 2 ØJ'!I171<0.5),"-",IFERROR('Tabel 2 ØJ'!I171/'Tabel 1 ØJ'!G169*100,"-")) -> 7.042253521 | J171: =IF(OR('Tabel 1 ØJ'!G169<5,'Tabel 2 ØJ'!J171<0.5),"-",IFERROR('Tabel 2 ØJ'!J171/'Tabel 1 ØJ'!G169*100,"-")) -> 6.352215457
A172: MA. Nat. | C172: =IF(OR('Tabel 1 ØJ'!C170<5,'Tabel 2 ØJ'!C172<0.5),"-",IFERROR('Tabel 2 ØJ'!C172/'Tabel 1 ØJ'!C170*100,"-")) -> - | D172: =IF(OR('Tabel 1 ØJ'!C170<5,'Tabel 2 ØJ'!D172<0.5),"-",IFERROR('Tabel 2 ØJ'!D172/'Tabel 1 ØJ'!C170*100,"-")) -> - | F172: =IF(OR('Tabel 1 ØJ'!E170<5,'Tabel 2 ØJ'!F172<0.5),"-",IFERROR('Tabel 2 ØJ'!F172/'Tabel 1 ØJ'!E170*100,"-")) -> 13.33333333 | G172: =IF(OR('Tabel 1 ØJ'!E170<5,'Tabel 2 ØJ'!G172<0.5),"-",IFERROR('Tabel 2 ØJ'!G172/'Tabel 1 ØJ'!E170*100,"-")) -> 13.33083848 | I172: =IF(OR('Tabel 1 ØJ'!G170<5,'Tabel 2 ØJ'!I172<0.5),"-",IFERROR('Tabel 2 ØJ'!I172/'Tabel 1 ØJ'!G170*100,"-")) -> 6.060606061 | J172: =IF(OR('Tabel 1 ØJ'!G170<5,'Tabel 2 ØJ'!J172<0.5),"-",IFERROR('Tabel 2 ØJ'!J172/'Tabel 1 ØJ'!G170*100,"-")) -> 6.059472036
A173: MA. Ph.d. | C173: =IF(OR('Tabel 1 ØJ'!C171<5,'Tabel 2 ØJ'!C173<0.5),"-",IFERROR('Tabel 2 ØJ'!C173/'Tabel 1 ØJ'!C171*100,"-")) -> - | D173: =IF(OR('Tabel 1 ØJ'!C171<5,'Tabel 2 ØJ'!D173<0.5),"-",IFERROR('Tabel 2 ØJ'!D173/'Tabel 1 ØJ'!C171*100,"-")) -> - | F173: =IF(OR('Tabel 1 ØJ'!E171<5,'Tabel 2 ØJ'!F173<0.5),"-",IFERROR('Tabel 2 ØJ'!F173/'Tabel 1 ØJ'!E171*100,"-")) -> - | G173: =IF(OR('Tabel 1 ØJ'!E171<5,'Tabel 2 ØJ'!G173<0.5),"-",IFERROR('Tabel 2 ØJ'!G173/'Tabel 1 ØJ'!E171*100,"-")) -> - | I173: =IF(OR('Tabel 1 ØJ'!G171<5,'Tabel 2 ØJ'!I173<0.5),"-",IFERROR('Tabel 2 ØJ'!I173/'Tabel 1 ØJ'!G171*100,"-")) -> - | J173: =IF(OR('Tabel 1 ØJ'!G171<5,'Tabel 2 ØJ'!J173<0.5),"-",IFERROR('Tabel 2 ØJ'!J173/'Tabel 1 ØJ'!G171*100,"-")) -> -
A174: MA. Samf. | C174: =IF(OR('Tabel 1 ØJ'!C172<5,'Tabel 2 ØJ'!C174<0.5),"-",IFERROR('Tabel 2 ØJ'!C174/'Tabel 1 ØJ'!C172*100,"-")) -> - | D174: =IF(OR('Tabel 1 ØJ'!C172<5,'Tabel 2 ØJ'!D174<0.5),"-",IFERROR('Tabel 2 ØJ'!D174/'Tabel 1 ØJ'!C172*100,"-")) -> - | F174: =IF(OR('Tabel 1 ØJ'!E172<5,'Tabel 2 ØJ'!F174<0.5),"-",IFERROR('Tabel 2 ØJ'!F174/'Tabel 1 ØJ'!E172*100,"-")) -> - | G174: =IF(OR('Tabel 1 ØJ'!E172<5,'Tabel 2 ØJ'!G174<0.5),"-",IFERROR('Tabel 2 ØJ'!G174/'Tabel 1 ØJ'!E172*100,"-")) -> - | I174: =IF(OR('Tabel 1 ØJ'!G172<5,'Tabel 2 ØJ'!I174<0.5),"-",IFERROR('Tabel 2 ØJ'!I174/'Tabel 1 ØJ'!G172*100,"-")) -> - | J174: =IF(OR('Tabel 1 ØJ'!G172<5,'Tabel 2 ØJ'!J174<0.5),"-",IFERROR('Tabel 2 ØJ'!J174/'Tabel 1 ØJ'!G172*100,"-")) -> -
A175: Øvrige Mag. | C175: =IF(OR('Tabel 1 ØJ'!C173<5,'Tabel 2 ØJ'!C175<0.5),"-",IFERROR('Tabel 2 ØJ'!C175/'Tabel 1 ØJ'!C173*100,"-")) -> - | D175: =IF(OR('Tabel 1 ØJ'!C173<5,'Tabel 2 ØJ'!D175<0.5),"-",IFERROR('Tabel 2 ØJ'!D175/'Tabel 1 ØJ'!C173*100,"-")) -> - | F175: =IF(OR('Tabel 1 ØJ'!E173<5,'Tabel 2 ØJ'!F175<0.5),"-",IFERROR('Tabel 2 ØJ'!F175/'Tabel 1 ØJ'!E173*100,"-")) -> - | G175: =IF(OR('Tabel 1 ØJ'!E173<5,'Tabel 2 ØJ'!G175<0.5),"-",IFERROR('Tabel 2 ØJ'!G175/'Tabel 1 ØJ'!E173*100,"-")) -> - | I175: =IF(OR('Tabel 1 ØJ'!G173<5,'Tabel 2 ØJ'!I175<0.5),"-",IFERROR('Tabel 2 ØJ'!I175/'Tabel 1 ØJ'!G173*100,"-")) -> - | J175: =IF(OR('Tabel 1 ØJ'!G173<5,'Tabel 2 ØJ'!J175<0.5),"-",IFERROR('Tabel 2 ØJ'!J175/'Tabel 1 ØJ'!G173*100,"-")) -> -
A176: Agronom | C176: =IF(OR('Tabel 1 ØJ'!C174<5,'Tabel 2 ØJ'!C176<0.5),"-",IFERROR('Tabel 2 ØJ'!C176/'Tabel 1 ØJ'!C174*100,"-")) -> - | D176: =IF(OR('Tabel 1 ØJ'!C174<5,'Tabel 2 ØJ'!D176<0.5),"-",IFERROR('Tabel 2 ØJ'!D176/'Tabel 1 ØJ'!C174*100,"-")) -> - | F176: =IF(OR('Tabel 1 ØJ'!E174<5,'Tabel 2 ØJ'!F176<0.5),"-",IFERROR('Tabel 2 ØJ'!F176/'Tabel 1 ØJ'!E174*100,"-")) -> - | G176: =IF(OR('Tabel 1 ØJ'!E174<5,'Tabel 2 ØJ'!G176<0.5),"-",IFERROR('Tabel 2 ØJ'!G176/'Tabel 1 ØJ'!E174*100,"-")) -> - | I176: =IF(OR('Tabel 1 ØJ'!G174<5,'Tabel 2 ØJ'!I176<0.5),"-",IFERROR('Tabel 2 ØJ'!I176/'Tabel 1 ØJ'!G174*100,"-")) -> - | J176: =IF(OR('Tabel 1 ØJ'!G174<5,'Tabel 2 ØJ'!J176<0.5),"-",IFERROR('Tabel 2 ØJ'!J176/'Tabel 1 ØJ'!G174*100,"-")) -> -
A177: Landsk. Arkt. | C177: =IF(OR('Tabel 1 ØJ'!C175<5,'Tabel 2 ØJ'!C177<0.5),"-",IFERROR('Tabel 2 ØJ'!C177/'Tabel 1 ØJ'!C175*100,"-")) -> - | D177: =IF(OR('Tabel 1 ØJ'!C175<5,'Tabel 2 ØJ'!D177<0.5),"-",IFERROR('Tabel 2 ØJ'!D177/'Tabel 1 ØJ'!C175*100,"-")) -> - | F177: =IF(OR('Tabel 1 ØJ'!E175<5,'Tabel 2 ØJ'!F177<0.5),"-",IFERROR('Tabel 2 ØJ'!F177/'Tabel 1 ØJ'!E175*100,"-")) -> - | G177: =IF(OR('Tabel 1 ØJ'!E175<5,'Tabel 2 ØJ'!G177<0.5),"-",IFERROR('Tabel 2 ØJ'!G177/'Tabel 1 ØJ'!E175*100,"-")) -> - | I177: =IF(OR('Tabel 1 ØJ'!G175<5,'Tabel 2 ØJ'!I177<0.5),"-",IFERROR('Tabel 2 ØJ'!I177/'Tabel 1 ØJ'!G175*100,"-")) -> - | J177: =IF(OR('Tabel 1 ØJ'!G175<5,'Tabel 2 ØJ'!J177<0.5),"-",IFERROR('Tabel 2 ØJ'!J177/'Tabel 1 ØJ'!G175*100,"-")) -> -
A178: Hortonom | C178: =IF(OR('Tabel 1 ØJ'!C176<5,'Tabel 2 ØJ'!C178<0.5),"-",IFERROR('Tabel 2 ØJ'!C178/'Tabel 1 ØJ'!C176*100,"-")) -> - | D178: =IF(OR('Tabel 1 ØJ'!C176<5,'Tabel 2 ØJ'!D178<0.5),"-",IFERROR('Tabel 2 ØJ'!D178/'Tabel 1 ØJ'!C176*100,"-")) -> - | F178: =IF(OR('Tabel 1 ØJ'!E176<5,'Tabel 2 ØJ'!F178<0.5),"-",IFERROR('Tabel 2 ØJ'!F178/'Tabel 1 ØJ'!E176*100,"-")) -> - | G178: =IF(OR('Tabel 1 ØJ'!E176<5,'Tabel 2 ØJ'!G178<0.5),"-",IFERROR('Tabel 2 ØJ'!G178/'Tabel 1 ØJ'!E176*100,"-")) -> - | I178: =IF(OR('Tabel 1 ØJ'!G176<5,'Tabel 2 ØJ'!I178<0.5),"-",IFERROR('Tabel 2 ØJ'!I178/'Tabel 1 ØJ'!G176*100,"-")) -> - | J178: =IF(OR('Tabel 1 ØJ'!G176<5,'Tabel 2 ØJ'!J178<0.5),"-",IFERROR('Tabel 2 ØJ'!J178/'Tabel 1 ØJ'!G176*100,"-")) -> -
A179: Forstkand. | C179: =IF(OR('Tabel 1 ØJ'!C177<5,'Tabel 2 ØJ'!C179<0.5),"-",IFERROR('Tabel 2 ØJ'!C179/'Tabel 1 ØJ'!C177*100,"-")) -> - | D179: =IF(OR('Tabel 1 ØJ'!C177<5,'Tabel 2 ØJ'!D179<0.5),"-",IFERROR('Tabel 2 ØJ'!D179/'Tabel 1 ØJ'!C177*100,"-")) -> - | F179: =IF(OR('Tabel 1 ØJ'!E177<5,'Tabel 2 ØJ'!F179<0.5),"-",IFERROR('Tabel 2 ØJ'!F179/'Tabel 1 ØJ'!E177*100,"-")) -> - | G179: =IF(OR('Tabel 1 ØJ'!E177<5,'Tabel 2 ØJ'!G179<0.5),"-",IFERROR('Tabel 2 ØJ'!G179/'Tabel 1 ØJ'!E177*100,"-")) -> - | I179: =IF(OR('Tabel 1 ØJ'!G177<5,'Tabel 2 ØJ'!I179<0.5),"-",IFERROR('Tabel 2 ØJ'!I179/'Tabel 1 ØJ'!G177*100,"-")) -> - | J179: =IF(OR('Tabel 1 ØJ'!G177<5,'Tabel 2 ØJ'!J179<0.5),"-",IFERROR('Tabel 2 ØJ'!J179/'Tabel 1 ØJ'!G177*100,"-")) -> -
A180: Jordbrugsakad. | C180: =IF(OR('Tabel 1 ØJ'!C178<5,'Tabel 2 ØJ'!C180<0.5),"-",IFERROR('Tabel 2 ØJ'!C180/'Tabel 1 ØJ'!C178*100,"-")) -> - | D180: =IF(OR('Tabel 1 ØJ'!C178<5,'Tabel 2 ØJ'!D180<0.5),"-",IFERROR('Tabel 2 ØJ'!D180/'Tabel 1 ØJ'!C178*100,"-")) -> - | F180: =IF(OR('Tabel 1 ØJ'!E178<5,'Tabel 2 ØJ'!F180<0.5),"-",IFERROR('Tabel 2 ØJ'!F180/'Tabel 1 ØJ'!E178*100,"-")) -> - | G180: =IF(OR('Tabel 1 ØJ'!E178<5,'Tabel 2 ØJ'!G180<0.5),"-",IFERROR('Tabel 2 ØJ'!G180/'Tabel 1 ØJ'!E178*100,"-")) -> - | I180: =IF(OR('Tabel 1 ØJ'!G178<5,'Tabel 2 ØJ'!I180<0.5),"-",IFERROR('Tabel 2 ØJ'!I180/'Tabel 1 ØJ'!G178*100,"-")) -> - | J180: =IF(OR('Tabel 1 ØJ'!G178<5,'Tabel 2 ØJ'!J180<0.5),"-",IFERROR('Tabel 2 ØJ'!J180/'Tabel 1 ØJ'!G178*100,"-")) -> -
A181: Mejeriing. | C181: =IF(OR('Tabel 1 ØJ'!C179<5,'Tabel 2 ØJ'!C181<0.5),"-",IFERROR('Tabel 2 ØJ'!C181/'Tabel 1 ØJ'!C179*100,"-")) -> - | D181: =IF(OR('Tabel 1 ØJ'!C179<5,'Tabel 2 ØJ'!D181<0.5),"-",IFERROR('Tabel 2 ØJ'!D181/'Tabel 1 ØJ'!C179*100,"-")) -> - | F181: =IF(OR('Tabel 1 ØJ'!E179<5,'Tabel 2 ØJ'!F181<0.5),"-",IFERROR('Tabel 2 ØJ'!F181/'Tabel 1 ØJ'!E179*100,"-")) -> - | G181: =IF(OR('Tabel 1 ØJ'!E179<5,'Tabel 2 ØJ'!G181<0.5),"-",IFERROR('Tabel 2 ØJ'!G181/'Tabel 1 ØJ'!E179*100,"-")) -> - | I181: =IF(OR('Tabel 1 ØJ'!G179<5,'Tabel 2 ØJ'!I181<0.5),"-",IFERROR('Tabel 2 ØJ'!I181/'Tabel 1 ØJ'!G179*100,"-")) -> - | J181: =IF(OR('Tabel 1 ØJ'!G179<5,'Tabel 2 ØJ'!J181<0.5),"-",IFERROR('Tabel 2 ØJ'!J181/'Tabel 1 ØJ'!G179*100,"-")) -> -
A182: Levn.m.kand. | C182: =IF(OR('Tabel 1 ØJ'!C180<5,'Tabel 2 ØJ'!C182<0.5),"-",IFERROR('Tabel 2 ØJ'!C182/'Tabel 1 ØJ'!C180*100,"-")) -> - | D182: =IF(OR('Tabel 1 ØJ'!C180<5,'Tabel 2 ØJ'!D182<0.5),"-",IFERROR('Tabel 2 ØJ'!D182/'Tabel 1 ØJ'!C180*100,"-")) -> - | F182: =IF(OR('Tabel 1 ØJ'!E180<5,'Tabel 2 ØJ'!F182<0.5),"-",IFERROR('Tabel 2 ØJ'!F182/'Tabel 1 ØJ'!E180*100,"-")) -> - | G182: =IF(OR('Tabel 1 ØJ'!E180<5,'Tabel 2 ØJ'!G182<0.5),"-",IFERROR('Tabel 2 ØJ'!G182/'Tabel 1 ØJ'!E180*100,"-")) -> - | I182: =IF(OR('Tabel 1 ØJ'!G180<5,'Tabel 2 ØJ'!I182<0.5),"-",IFERROR('Tabel 2 ØJ'!I182/'Tabel 1 ØJ'!G180*100,"-")) -> - | J182: =IF(OR('Tabel 1 ØJ'!G180<5,'Tabel 2 ØJ'!J182<0.5),"-",IFERROR('Tabel 2 ØJ'!J182/'Tabel 1 ØJ'!G180*100,"-")) -> -
A183: Dyrlæge | C183: =IF(OR('Tabel 1 ØJ'!C181<5,'Tabel 2 ØJ'!C183<0.5),"-",IFERROR('Tabel 2 ØJ'!C183/'Tabel 1 ØJ'!C181*100,"-")) -> - | D183: =IF(OR('Tabel 1 ØJ'!C181<5,'Tabel 2 ØJ'!D183<0.5),"-",IFERROR('Tabel 2 ØJ'!D183/'Tabel 1 ØJ'!C181*100,"-")) -> - | F183: =IF(OR('Tabel 1 ØJ'!E181<5,'Tabel 2 ØJ'!F183<0.5),"-",IFERROR('Tabel 2 ØJ'!F183/'Tabel 1 ØJ'!E181*100,"-")) -> - | G183: =IF(OR('Tabel 1 ØJ'!E181<5,'Tabel 2 ØJ'!G183<0.5),"-",IFERROR('Tabel 2 ØJ'!G183/'Tabel 1 ØJ'!E181*100,"-")) -> - | I183: =IF(OR('Tabel 1 ØJ'!G181<5,'Tabel 2 ØJ'!I183<0.5),"-",IFERROR('Tabel 2 ØJ'!I183/'Tabel 1 ØJ'!G181*100,"-")) -> - | J183: =IF(OR('Tabel 1 ØJ'!G181<5,'Tabel 2 ØJ'!J183<0.5),"-",IFERROR('Tabel 2 ØJ'!J183/'Tabel 1 ØJ'!G181*100,"-")) -> -
A184: Farmaceut | C184: =IF(OR('Tabel 1 ØJ'!C182<5,'Tabel 2 ØJ'!C184<0.5),"-",IFERROR('Tabel 2 ØJ'!C184/'Tabel 1 ØJ'!C182*100,"-")) -> - | D184: =IF(OR('Tabel 1 ØJ'!C182<5,'Tabel 2 ØJ'!D184<0.5),"-",IFERROR('Tabel 2 ØJ'!D184/'Tabel 1 ØJ'!C182*100,"-")) -> - | F184: =IF(OR('Tabel 1 ØJ'!E182<5,'Tabel 2 ØJ'!F184<0.5),"-",IFERROR('Tabel 2 ØJ'!F184/'Tabel 1 ØJ'!E182*100,"-")) -> - | G184: =IF(OR('Tabel 1 ØJ'!E182<5,'Tabel 2 ØJ'!G184<0.5),"-",IFERROR('Tabel 2 ØJ'!G184/'Tabel 1 ØJ'!E182*100,"-")) -> - | I184: =IF(OR('Tabel 1 ØJ'!G182<5,'Tabel 2 ØJ'!I184<0.5),"-",IFERROR('Tabel 2 ØJ'!I184/'Tabel 1 ØJ'!G182*100,"-")) -> - | J184: =IF(OR('Tabel 1 ØJ'!G182<5,'Tabel 2 ØJ'!J184<0.5),"-",IFERROR('Tabel 2 ØJ'!J184/'Tabel 1 ØJ'!G182*100,"-")) -> -
A185: Læge | C185: =IF(OR('Tabel 1 ØJ'!C183<5,'Tabel 2 ØJ'!C185<0.5),"-",IFERROR('Tabel 2 ØJ'!C185/'Tabel 1 ØJ'!C183*100,"-")) -> - | D185: =IF(OR('Tabel 1 ØJ'!C183<5,'Tabel 2 ØJ'!D185<0.5),"-",IFERROR('Tabel 2 ØJ'!D185/'Tabel 1 ØJ'!C183*100,"-")) -> - | F185: =IF(OR('Tabel 1 ØJ'!E183<5,'Tabel 2 ØJ'!F185<0.5),"-",IFERROR('Tabel 2 ØJ'!F185/'Tabel 1 ØJ'!E183*100,"-")) -> - | G185: =IF(OR('Tabel 1 ØJ'!E183<5,'Tabel 2 ØJ'!G185<0.5),"-",IFERROR('Tabel 2 ØJ'!G185/'Tabel 1 ØJ'!E183*100,"-")) -> - | I185: =IF(OR('Tabel 1 ØJ'!G183<5,'Tabel 2 ØJ'!I185<0.5),"-",IFERROR('Tabel 2 ØJ'!I185/'Tabel 1 ØJ'!G183*100,"-")) -> - | J185: =IF(OR('Tabel 1 ØJ'!G183<5,'Tabel 2 ØJ'!J185<0.5),"-",IFERROR('Tabel 2 ØJ'!J185/'Tabel 1 ØJ'!G183*100,"-")) -> -
A186: Tandlæge | C186: =IF(OR('Tabel 1 ØJ'!C184<5,'Tabel 2 ØJ'!C186<0.5),"-",IFERROR('Tabel 2 ØJ'!C186/'Tabel 1 ØJ'!C184*100,"-")) -> - | D186: =IF(OR('Tabel 1 ØJ'!C184<5,'Tabel 2 ØJ'!D186<0.5),"-",IFERROR('Tabel 2 ØJ'!D186/'Tabel 1 ØJ'!C184*100,"-")) -> - | F186: =IF(OR('Tabel 1 ØJ'!E184<5,'Tabel 2 ØJ'!F186<0.5),"-",IFERROR('Tabel 2 ØJ'!F186/'Tabel 1 ØJ'!E184*100,"-")) -> - | G186: =IF(OR('Tabel 1 ØJ'!E184<5,'Tabel 2 ØJ'!G186<0.5),"-",IFERROR('Tabel 2 ØJ'!G186/'Tabel 1 ØJ'!E184*100,"-")) -> - | I186: =IF(OR('Tabel 1 ØJ'!G184<5,'Tabel 2 ØJ'!I186<0.5),"-",IFERROR('Tabel 2 ØJ'!I186/'Tabel 1 ØJ'!G184*100,"-")) -> - | J186: =IF(OR('Tabel 1 ØJ'!G184<5,'Tabel 2 ØJ'!J186<0.5),"-",IFERROR('Tabel 2 ØJ'!J186/'Tabel 1 ØJ'!G184*100,"-")) -> -
A187: Arkitekt | C187: =IF(OR('Tabel 1 ØJ'!C185<5,'Tabel 2 ØJ'!C187<0.5),"-",IFERROR('Tabel 2 ØJ'!C187/'Tabel 1 ØJ'!C185*100,"-")) -> - | D187: =IF(OR('Tabel 1 ØJ'!C185<5,'Tabel 2 ØJ'!D187<0.5),"-",IFERROR('Tabel 2 ØJ'!D187/'Tabel 1 ØJ'!C185*100,"-")) -> - | F187: =IF(OR('Tabel 1 ØJ'!E185<5,'Tabel 2 ØJ'!F187<0.5),"-",IFERROR('Tabel 2 ØJ'!F187/'Tabel 1 ØJ'!E185*100,"-")) -> - | G187: =IF(OR('Tabel 1 ØJ'!E185<5,'Tabel 2 ØJ'!G187<0.5),"-",IFERROR('Tabel 2 ØJ'!G187/'Tabel 1 ØJ'!E185*100,"-")) -> - | I187: =IF(OR('Tabel 1 ØJ'!G185<5,'Tabel 2 ØJ'!I187<0.5),"-",IFERROR('Tabel 2 ØJ'!I187/'Tabel 1 ØJ'!G185*100,"-")) -> - | J187: =IF(OR('Tabel 1 ØJ'!G185<5,'Tabel 2 ØJ'!J187<0.5),"-",IFERROR('Tabel 2 ØJ'!J187/'Tabel 1 ØJ'!G185*100,"-")) -> -
A188: Landinspek. | C188: =IF(OR('Tabel 1 ØJ'!C186<5,'Tabel 2 ØJ'!C188<0.5),"-",IFERROR('Tabel 2 ØJ'!C188/'Tabel 1 ØJ'!C186*100,"-")) -> - | D188: =IF(OR('Tabel 1 ØJ'!C186<5,'Tabel 2 ØJ'!D188<0.5),"-",IFERROR('Tabel 2 ØJ'!D188/'Tabel 1 ØJ'!C186*100,"-")) -> - | F188: =IF(OR('Tabel 1 ØJ'!E186<5,'Tabel 2 ØJ'!F188<0.5),"-",IFERROR('Tabel 2 ØJ'!F188/'Tabel 1 ØJ'!E186*100,"-")) -> - | G188: =IF(OR('Tabel 1 ØJ'!E186<5,'Tabel 2 ØJ'!G188<0.5),"-",IFERROR('Tabel 2 ØJ'!G188/'Tabel 1 ØJ'!E186*100,"-")) -> - | I188: =IF(OR('Tabel 1 ØJ'!G186<5,'Tabel 2 ØJ'!I188<0.5),"-",IFERROR('Tabel 2 ØJ'!I188/'Tabel 1 ØJ'!G186*100,"-")) -> - | J188: =IF(OR('Tabel 1 ØJ'!G186<5,'Tabel 2 ØJ'!J188<0.5),"-",IFERROR('Tabel 2 ØJ'!J188/'Tabel 1 ØJ'!G186*100,"-")) -> -
A189: Bibliotekar | C189: =IF(OR('Tabel 1 ØJ'!C187<5,'Tabel 2 ØJ'!C189<0.5),"-",IFERROR('Tabel 2 ØJ'!C189/'Tabel 1 ØJ'!C187*100,"-")) -> - | D189: =IF(OR('Tabel 1 ØJ'!C187<5,'Tabel 2 ØJ'!D189<0.5),"-",IFERROR('Tabel 2 ØJ'!D189/'Tabel 1 ØJ'!C187*100,"-")) -> - | F189: =IF(OR('Tabel 1 ØJ'!E187<5,'Tabel 2 ØJ'!F189<0.5),"-",IFERROR('Tabel 2 ØJ'!F189/'Tabel 1 ØJ'!E187*100,"-")) -> 16.66666667 | G189: =IF(OR('Tabel 1 ØJ'!E187<5,'Tabel 2 ØJ'!G189<0.5),"-",IFERROR('Tabel 2 ØJ'!G189/'Tabel 1 ØJ'!E187*100,"-")) -> 16.6635481 | I189: =IF(OR('Tabel 1 ØJ'!G187<5,'Tabel 2 ØJ'!I189<0.5),"-",IFERROR('Tabel 2 ØJ'!I189/'Tabel 1 ØJ'!G187*100,"-")) -> 12.5 | J189: =IF(OR('Tabel 1 ØJ'!G187<5,'Tabel 2 ØJ'!J189<0.5),"-",IFERROR('Tabel 2 ØJ'!J189/'Tabel 1 ØJ'!G187*100,"-")) -> 12.49766107
A190: Musikudd. | C190: =IF(OR('Tabel 1 ØJ'!C188<5,'Tabel 2 ØJ'!C190<0.5),"-",IFERROR('Tabel 2 ØJ'!C190/'Tabel 1 ØJ'!C188*100,"-")) -> - | D190: =IF(OR('Tabel 1 ØJ'!C188<5,'Tabel 2 ØJ'!D190<0.5),"-",IFERROR('Tabel 2 ØJ'!D190/'Tabel 1 ØJ'!C188*100,"-")) -> - | F190: =IF(OR('Tabel 1 ØJ'!E188<5,'Tabel 2 ØJ'!F190<0.5),"-",IFERROR('Tabel 2 ØJ'!F190/'Tabel 1 ØJ'!E188*100,"-")) -> - | G190: =IF(OR('Tabel 1 ØJ'!E188<5,'Tabel 2 ØJ'!G190<0.5),"-",IFERROR('Tabel 2 ØJ'!G190/'Tabel 1 ØJ'!E188*100,"-")) -> - | I190: =IF(OR('Tabel 1 ØJ'!G188<5,'Tabel 2 ØJ'!I190<0.5),"-",IFERROR('Tabel 2 ØJ'!I190/'Tabel 1 ØJ'!G188*100,"-")) -> - | J190: =IF(OR('Tabel 1 ØJ'!G188<5,'Tabel 2 ØJ'!J190<0.5),"-",IFERROR('Tabel 2 ØJ'!J190/'Tabel 1 ØJ'!G188*100,"-")) -> -
A191: Teolog | C191: =IF(OR('Tabel 1 ØJ'!C189<5,'Tabel 2 ØJ'!C191<0.5),"-",IFERROR('Tabel 2 ØJ'!C191/'Tabel 1 ØJ'!C189*100,"-")) -> - | D191: =IF(OR('Tabel 1 ØJ'!C189<5,'Tabel 2 ØJ'!D191<0.5),"-",IFERROR('Tabel 2 ØJ'!D191/'Tabel 1 ØJ'!C189*100,"-")) -> - | F191: =IF(OR('Tabel 1 ØJ'!E189<5,'Tabel 2 ØJ'!F191<0.5),"-",IFERROR('Tabel 2 ØJ'!F191/'Tabel 1 ØJ'!E189*100,"-")) -> 16.66666667 | G191: =IF(OR('Tabel 1 ØJ'!E189<5,'Tabel 2 ØJ'!G191<0.5),"-",IFERROR('Tabel 2 ØJ'!G191/'Tabel 1 ØJ'!E189*100,"-")) -> 16.6635481 | I191: =IF(OR('Tabel 1 ØJ'!G189<5,'Tabel 2 ØJ'!I191<0.5),"-",IFERROR('Tabel 2 ØJ'!I191/'Tabel 1 ØJ'!G189*100,"-")) -> 9.090909091 | J191: =IF(OR('Tabel 1 ØJ'!G189<5,'Tabel 2 ØJ'!J191<0.5),"-",IFERROR('Tabel 2 ØJ'!J191/'Tabel 1 ØJ'!G189*100,"-")) -> 9.089208054
A192: Psykolog | C192: =IF(OR('Tabel 1 ØJ'!C190<5,'Tabel 2 ØJ'!C192<0.5),"-",IFERROR('Tabel 2 ØJ'!C192/'Tabel 1 ØJ'!C190*100,"-")) -> - | D192: =IF(OR('Tabel 1 ØJ'!C190<5,'Tabel 2 ØJ'!D192<0.5),"-",IFERROR('Tabel 2 ØJ'!D192/'Tabel 1 ØJ'!C190*100,"-")) -> - | F192: =IF(OR('Tabel 1 ØJ'!E190<5,'Tabel 2 ØJ'!F192<0.5),"-",IFERROR('Tabel 2 ØJ'!F192/'Tabel 1 ØJ'!E190*100,"-")) -> 14.28571429 | G192: =IF(OR('Tabel 1 ØJ'!E190<5,'Tabel 2 ØJ'!G192<0.5),"-",IFERROR('Tabel 2 ØJ'!G192/'Tabel 1 ØJ'!E190*100,"-")) -> 9.070577648 | I192: =IF(OR('Tabel 1 ØJ'!G190<5,'Tabel 2 ØJ'!I192<0.5),"-",IFERROR('Tabel 2 ØJ'!I192/'Tabel 1 ØJ'!G190*100,"-")) -> 18.75 | J192: =IF(OR('Tabel 1 ØJ'!G190<5,'Tabel 2 ØJ'!J192<0.5),"-",IFERROR('Tabel 2 ØJ'!J192/'Tabel 1 ØJ'!G190*100,"-")) -> 13.016123
A193: Jurist | C193: =IF(OR('Tabel 1 ØJ'!C191<5,'Tabel 2 ØJ'!C193<0.5),"-",IFERROR('Tabel 2 ØJ'!C193/'Tabel 1 ØJ'!C191*100,"-")) -> - | D193: =IF(OR('Tabel 1 ØJ'!C191<5,'Tabel 2 ØJ'!D193<0.5),"-",IFERROR('Tabel 2 ØJ'!D193/'Tabel 1 ØJ'!C191*100,"-")) -> - | F193: =IF(OR('Tabel 1 ØJ'!E191<5,'Tabel 2 ØJ'!F193<0.5),"-",IFERROR('Tabel 2 ØJ'!F193/'Tabel 1 ØJ'!E191*100,"-")) -> - | G193: =IF(OR('Tabel 1 ØJ'!E191<5,'Tabel 2 ØJ'!G193<0.5),"-",IFERROR('Tabel 2 ØJ'!G193/'Tabel 1 ØJ'!E191*100,"-")) -> - | I193: =IF(OR('Tabel 1 ØJ'!G191<5,'Tabel 2 ØJ'!I193<0.5),"-",IFERROR('Tabel 2 ØJ'!I193/'Tabel 1 ØJ'!G191*100,"-")) -> - | J193: =IF(OR('Tabel 1 ØJ'!G191<5,'Tabel 2 ØJ'!J193<0.5),"-",IFERROR('Tabel 2 ØJ'!J193/'Tabel 1 ØJ'!G191*100,"-")) -> -
A194: Økonom | C194: =IF(OR('Tabel 1 ØJ'!C192<5,'Tabel 2 ØJ'!C194<0.5),"-",IFERROR('Tabel 2 ØJ'!C194/'Tabel 1 ØJ'!C192*100,"-")) -> - | D194: =IF(OR('Tabel 1 ØJ'!C192<5,'Tabel 2 ØJ'!D194<0.5),"-",IFERROR('Tabel 2 ØJ'!D194/'Tabel 1 ØJ'!C192*100,"-")) -> - | F194: =IF(OR('Tabel 1 ØJ'!E192<5,'Tabel 2 ØJ'!F194<0.5),"-",IFERROR('Tabel 2 ØJ'!F194/'Tabel 1 ØJ'!E192*100,"-")) -> - | G194: =IF(OR('Tabel 1 ØJ'!E192<5,'Tabel 2 ØJ'!G194<0.5),"-",IFERROR('Tabel 2 ØJ'!G194/'Tabel 1 ØJ'!E192*100,"-")) -> - | I194: =IF(OR('Tabel 1 ØJ'!G192<5,'Tabel 2 ØJ'!I194<0.5),"-",IFERROR('Tabel 2 ØJ'!I194/'Tabel 1 ØJ'!G192*100,"-")) -> - | J194: =IF(OR('Tabel 1 ØJ'!G192<5,'Tabel 2 ØJ'!J194<0.5),"-",IFERROR('Tabel 2 ØJ'!J194/'Tabel 1 ØJ'!G192*100,"-")) -> -
A195: Samf. Adm. | C195: =IF(OR('Tabel 1 ØJ'!C193<5,'Tabel 2 ØJ'!C195<0.5),"-",IFERROR('Tabel 2 ØJ'!C195/'Tabel 1 ØJ'!C193*100,"-")) -> 14.28571429 | D195: =IF(OR('Tabel 1 ØJ'!C193<5,'Tabel 2 ØJ'!D195<0.5),"-",IFERROR('Tabel 2 ØJ'!D195/'Tabel 1 ØJ'!C193*100,"-")) -> 14.28304123 | F195: =IF(OR('Tabel 1 ØJ'!E193<5,'Tabel 2 ØJ'!F195<0.5),"-",IFERROR('Tabel 2 ØJ'!F195/'Tabel 1 ØJ'!E193*100,"-")) -> 20 | G195: =IF(OR('Tabel 1 ØJ'!E193<5,'Tabel 2 ØJ'!G195<0.5),"-",IFERROR('Tabel 2 ØJ'!G195/'Tabel 1 ØJ'!E193*100,"-")) -> 19.99625772 | I195: =IF(OR('Tabel 1 ØJ'!G193<5,'Tabel 2 ØJ'!I195<0.5),"-",IFERROR('Tabel 2 ØJ'!I195/'Tabel 1 ØJ'!G193*100,"-")) -> 15.78947368 | J195: =IF(OR('Tabel 1 ØJ'!G193<5,'Tabel 2 ØJ'!J195<0.5),"-",IFERROR('Tabel 2 ØJ'!J195/'Tabel 1 ØJ'!G193*100,"-")) -> 15.78651925
A196: Cand. Merc. | C196: =IF(OR('Tabel 1 ØJ'!C194<5,'Tabel 2 ØJ'!C196<0.5),"-",IFERROR('Tabel 2 ØJ'!C196/'Tabel 1 ØJ'!C194*100,"-")) -> 14.28571429 | D196: =IF(OR('Tabel 1 ØJ'!C194<5,'Tabel 2 ØJ'!D196<0.5),"-",IFERROR('Tabel 2 ØJ'!D196/'Tabel 1 ØJ'!C194*100,"-")) -> 14.10483734 | F196: =IF(OR('Tabel 1 ØJ'!E194<5,'Tabel 2 ØJ'!F196<0.5),"-",IFERROR('Tabel 2 ØJ'!F196/'Tabel 1 ØJ'!E194*100,"-")) -> 13.33333333 | G196: =IF(OR('Tabel 1 ØJ'!E194<5,'Tabel 2 ØJ'!G196<0.5),"-",IFERROR('Tabel 2 ØJ'!G196/'Tabel 1 ØJ'!E194*100,"-")) -> 10.56155014 | I196: =IF(OR('Tabel 1 ØJ'!G194<5,'Tabel 2 ØJ'!I196<0.5),"-",IFERROR('Tabel 2 ØJ'!I196/'Tabel 1 ØJ'!G194*100,"-")) -> 13.79310345 | J196: =IF(OR('Tabel 1 ØJ'!G194<5,'Tabel 2 ØJ'!J196<0.5),"-",IFERROR('Tabel 2 ØJ'!J196/'Tabel 1 ØJ'!G194*100,"-")) -> 12.27210258
A197: HA | C197: =IF(OR('Tabel 1 ØJ'!C195<5,'Tabel 2 ØJ'!C197<0.5),"-",IFERROR('Tabel 2 ØJ'!C197/'Tabel 1 ØJ'!C195*100,"-")) -> 20 | D197: =IF(OR('Tabel 1 ØJ'!C195<5,'Tabel 2 ØJ'!D197<0.5),"-",IFERROR('Tabel 2 ØJ'!D197/'Tabel 1 ØJ'!C195*100,"-")) -> 19.99625772 | F197: =IF(OR('Tabel 1 ØJ'!E195<5,'Tabel 2 ØJ'!F197<0.5),"-",IFERROR('Tabel 2 ØJ'!F197/'Tabel 1 ØJ'!E195*100,"-")) -> - | G197: =IF(OR('Tabel 1 ØJ'!E195<5,'Tabel 2 ØJ'!G197<0.5),"-",IFERROR('Tabel 2 ØJ'!G197/'Tabel 1 ØJ'!E195*100,"-")) -> - | I197: =IF(OR('Tabel 1 ØJ'!G195<5,'Tabel 2 ØJ'!I197<0.5),"-",IFERROR('Tabel 2 ØJ'!I197/'Tabel 1 ØJ'!G195*100,"-")) -> 11.76470588 | J197: =IF(OR('Tabel 1 ØJ'!G195<5,'Tabel 2 ØJ'!J197<0.5),"-",IFERROR('Tabel 2 ØJ'!J197/'Tabel 1 ØJ'!G195*100,"-")) -> 11.76250454
A198: HD | C198: =IF(OR('Tabel 1 ØJ'!C196<5,'Tabel 2 ØJ'!C198<0.5),"-",IFERROR('Tabel 2 ØJ'!C198/'Tabel 1 ØJ'!C196*100,"-")) -> - | D198: =IF(OR('Tabel 1 ØJ'!C196<5,'Tabel 2 ØJ'!D198<0.5),"-",IFERROR('Tabel 2 ØJ'!D198/'Tabel 1 ØJ'!C196*100,"-")) -> - | F198: =IF(OR('Tabel 1 ØJ'!E196<5,'Tabel 2 ØJ'!F198<0.5),"-",IFERROR('Tabel 2 ØJ'!F198/'Tabel 1 ØJ'!E196*100,"-")) -> - | G198: =IF(OR('Tabel 1 ØJ'!E196<5,'Tabel 2 ØJ'!G198<0.5),"-",IFERROR('Tabel 2 ØJ'!G198/'Tabel 1 ØJ'!E196*100,"-")) -> - | I198: =IF(OR('Tabel 1 ØJ'!G196<5,'Tabel 2 ØJ'!I198<0.5),"-",IFERROR('Tabel 2 ØJ'!I198/'Tabel 1 ØJ'!G196*100,"-")) -> - | J198: =IF(OR('Tabel 1 ØJ'!G196<5,'Tabel 2 ØJ'!J198<0.5),"-",IFERROR('Tabel 2 ØJ'!J198/'Tabel 1 ØJ'!G196*100,"-")) -> -
A199: Komm. og Sprog | C199: =IF(OR('Tabel 1 ØJ'!C197<5,'Tabel 2 ØJ'!C199<0.5),"-",IFERROR('Tabel 2 ØJ'!C199/'Tabel 1 ØJ'!C197*100,"-")) -> - | D199: =IF(OR('Tabel 1 ØJ'!C197<5,'Tabel 2 ØJ'!D199<0.5),"-",IFERROR('Tabel 2 ØJ'!D199/'Tabel 1 ØJ'!C197*100,"-")) -> - | F199: =IF(OR('Tabel 1 ØJ'!E197<5,'Tabel 2 ØJ'!F199<0.5),"-",IFERROR('Tabel 2 ØJ'!F199/'Tabel 1 ØJ'!E197*100,"-")) -> - | G199: =IF(OR('Tabel 1 ØJ'!E197<5,'Tabel 2 ØJ'!G199<0.5),"-",IFERROR('Tabel 2 ØJ'!G199/'Tabel 1 ØJ'!E197*100,"-")) -> - | I199: =IF(OR('Tabel 1 ØJ'!G197<5,'Tabel 2 ØJ'!I199<0.5),"-",IFERROR('Tabel 2 ØJ'!I199/'Tabel 1 ØJ'!G197*100,"-")) -> - | J199: =IF(OR('Tabel 1 ØJ'!G197<5,'Tabel 2 ØJ'!J199<0.5),"-",IFERROR('Tabel 2 ØJ'!J199/'Tabel 1 ØJ'!G197*100,"-")) -> -
A200: Cand. IT. | C200: =IF(OR('Tabel 1 ØJ'!C198<5,'Tabel 2 ØJ'!C200<0.5),"-",IFERROR('Tabel 2 ØJ'!C200/'Tabel 1 ØJ'!C198*100,"-")) -> - | D200: =IF(OR('Tabel 1 ØJ'!C198<5,'Tabel 2 ØJ'!D200<0.5),"-",IFERROR('Tabel 2 ØJ'!D200/'Tabel 1 ØJ'!C198*100,"-")) -> - | F200: =IF(OR('Tabel 1 ØJ'!E198<5,'Tabel 2 ØJ'!F200<0.5),"-",IFERROR('Tabel 2 ØJ'!F200/'Tabel 1 ØJ'!E198*100,"-")) -> - | G200: =IF(OR('Tabel 1 ØJ'!E198<5,'Tabel 2 ØJ'!G200<0.5),"-",IFERROR('Tabel 2 ØJ'!G200/'Tabel 1 ØJ'!E198*100,"-")) -> - | I200: =IF(OR('Tabel 1 ØJ'!G198<5,'Tabel 2 ØJ'!I200<0.5),"-",IFERROR('Tabel 2 ØJ'!I200/'Tabel 1 ØJ'!G198*100,"-")) -> - | J200: =IF(OR('Tabel 1 ØJ'!G198<5,'Tabel 2 ØJ'!J200<0.5),"-",IFERROR('Tabel 2 ØJ'!J200/'Tabel 1 ØJ'!G198*100,"-")) -> -
A201: Bac. Samf. | C201: =IF(OR('Tabel 1 ØJ'!C199<5,'Tabel 2 ØJ'!C201<0.5),"-",IFERROR('Tabel 2 ØJ'!C201/'Tabel 1 ØJ'!C199*100,"-")) -> - | D201: =IF(OR('Tabel 1 ØJ'!C199<5,'Tabel 2 ØJ'!D201<0.5),"-",IFERROR('Tabel 2 ØJ'!D201/'Tabel 1 ØJ'!C199*100,"-")) -> - | F201: =IF(OR('Tabel 1 ØJ'!E199<5,'Tabel 2 ØJ'!F201<0.5),"-",IFERROR('Tabel 2 ØJ'!F201/'Tabel 1 ØJ'!E199*100,"-")) -> - | G201: =IF(OR('Tabel 1 ØJ'!E199<5,'Tabel 2 ØJ'!G201<0.5),"-",IFERROR('Tabel 2 ØJ'!G201/'Tabel 1 ØJ'!E199*100,"-")) -> - | I201: =IF(OR('Tabel 1 ØJ'!G199<5,'Tabel 2 ØJ'!I201<0.5),"-",IFERROR('Tabel 2 ØJ'!I201/'Tabel 1 ØJ'!G199*100,"-")) -> - | J201: =IF(OR('Tabel 1 ØJ'!G199<5,'Tabel 2 ØJ'!J201<0.5),"-",IFERROR('Tabel 2 ØJ'!J201/'Tabel 1 ØJ'!G199*100,"-")) -> -
A202: Bac. Hum. | C202: =IF(OR('Tabel 1 ØJ'!C200<5,'Tabel 2 ØJ'!C202<0.5),"-",IFERROR('Tabel 2 ØJ'!C202/'Tabel 1 ØJ'!C200*100,"-")) -> - | D202: =IF(OR('Tabel 1 ØJ'!C200<5,'Tabel 2 ØJ'!D202<0.5),"-",IFERROR('Tabel 2 ØJ'!D202/'Tabel 1 ØJ'!C200*100,"-")) -> - | F202: =IF(OR('Tabel 1 ØJ'!E200<5,'Tabel 2 ØJ'!F202<0.5),"-",IFERROR('Tabel 2 ØJ'!F202/'Tabel 1 ØJ'!E200*100,"-")) -> - | G202: =IF(OR('Tabel 1 ØJ'!E200<5,'Tabel 2 ØJ'!G202<0.5),"-",IFERROR('Tabel 2 ØJ'!G202/'Tabel 1 ØJ'!E200*100,"-")) -> - | I202: =IF(OR('Tabel 1 ØJ'!G200<5,'Tabel 2 ØJ'!I202<0.5),"-",IFERROR('Tabel 2 ØJ'!I202/'Tabel 1 ØJ'!G200*100,"-")) -> - | J202: =IF(OR('Tabel 1 ØJ'!G200<5,'Tabel 2 ØJ'!J202<0.5),"-",IFERROR('Tabel 2 ØJ'!J202/'Tabel 1 ØJ'!G200*100,"-")) -> -
A203: Bac. Nat. | C203: =IF(OR('Tabel 1 ØJ'!C201<5,'Tabel 2 ØJ'!C203<0.5),"-",IFERROR('Tabel 2 ØJ'!C203/'Tabel 1 ØJ'!C201*100,"-")) -> - | D203: =IF(OR('Tabel 1 ØJ'!C201<5,'Tabel 2 ØJ'!D203<0.5),"-",IFERROR('Tabel 2 ØJ'!D203/'Tabel 1 ØJ'!C201*100,"-")) -> - | F203: =IF(OR('Tabel 1 ØJ'!E201<5,'Tabel 2 ØJ'!F203<0.5),"-",IFERROR('Tabel 2 ØJ'!F203/'Tabel 1 ØJ'!E201*100,"-")) -> - | G203: =IF(OR('Tabel 1 ØJ'!E201<5,'Tabel 2 ØJ'!G203<0.5),"-",IFERROR('Tabel 2 ØJ'!G203/'Tabel 1 ØJ'!E201*100,"-")) -> - | I203: =IF(OR('Tabel 1 ØJ'!G201<5,'Tabel 2 ØJ'!I203<0.5),"-",IFERROR('Tabel 2 ØJ'!I203/'Tabel 1 ØJ'!G201*100,"-")) -> - | J203: =IF(OR('Tabel 1 ØJ'!G201<5,'Tabel 2 ØJ'!J203<0.5),"-",IFERROR('Tabel 2 ØJ'!J203/'Tabel 1 ØJ'!G201*100,"-")) -> -
A204: Andre | C204: =IF(OR('Tabel 1 ØJ'!C202<5,'Tabel 2 ØJ'!C204<0.5),"-",IFERROR('Tabel 2 ØJ'!C204/'Tabel 1 ØJ'!C202*100,"-")) -> - | D204: =IF(OR('Tabel 1 ØJ'!C202<5,'Tabel 2 ØJ'!D204<0.5),"-",IFERROR('Tabel 2 ØJ'!D204/'Tabel 1 ØJ'!C202*100,"-")) -> - | F204: =IF(OR('Tabel 1 ØJ'!E202<5,'Tabel 2 ØJ'!F204<0.5),"-",IFERROR('Tabel 2 ØJ'!F204/'Tabel 1 ØJ'!E202*100,"-")) -> - | G204: =IF(OR('Tabel 1 ØJ'!E202<5,'Tabel 2 ØJ'!G204<0.5),"-",IFERROR('Tabel 2 ØJ'!G204/'Tabel 1 ØJ'!E202*100,"-")) -> - | I204: =IF(OR('Tabel 1 ØJ'!G202<5,'Tabel 2 ØJ'!I204<0.5),"-",IFERROR('Tabel 2 ØJ'!I204/'Tabel 1 ØJ'!G202*100,"-")) -> - | J204: =IF(OR('Tabel 1 ØJ'!G202<5,'Tabel 2 ØJ'!J204<0.5),"-",IFERROR('Tabel 2 ØJ'!J204/'Tabel 1 ØJ'!G202*100,"-")) -> -
A206: Total | C206: =IF(OR('Tabel 1 ØJ'!C204<5,'Tabel 2 ØJ'!C206<0.5),"-",IFERROR('Tabel 2 ØJ'!C206/'Tabel 1 ØJ'!C204*100,"-")) -> 5.905511811 | D206: =IF(OR('Tabel 1 ØJ'!C204<5,'Tabel 2 ØJ'!D206<0.5),"-",IFERROR('Tabel 2 ØJ'!D206/'Tabel 1 ØJ'!C204*100,"-")) -> 5.669900319 | F206: =IF(OR('Tabel 1 ØJ'!E204<5,'Tabel 2 ØJ'!F206<0.5),"-",IFERROR('Tabel 2 ØJ'!F206/'Tabel 1 ØJ'!E204*100,"-")) -> 7.407407407 | G206: =IF(OR('Tabel 1 ØJ'!E204<5,'Tabel 2 ØJ'!G206<0.5),"-",IFERROR('Tabel 2 ØJ'!G206/'Tabel 1 ØJ'!E204*100,"-")) -> 6.827065012 | I206: =IF(OR('Tabel 1 ØJ'!G204<5,'Tabel 2 ØJ'!I206<0.5),"-",IFERROR('Tabel 2 ØJ'!I206/'Tabel 1 ØJ'!G204*100,"-")) -> 6.595744681 | J206: =IF(OR('Tabel 1 ØJ'!G204<5,'Tabel 2 ØJ'!J206<0.5),"-",IFERROR('Tabel 2 ØJ'!J206/'Tabel 1 ØJ'!G204*100,"-")) -> 6.201703667
A208: Ingeniører i alt | C208: =IF(OR('Tabel 1 ØJ'!C206<5,'Tabel 2 ØJ'!C208<0.5),"-",IFERROR('Tabel 2 ØJ'!C208/'Tabel 1 ØJ'!C206*100,"-")) -> 3.260869565 | D208: =IF(OR('Tabel 1 ØJ'!C206<5,'Tabel 2 ØJ'!D208<0.5),"-",IFERROR('Tabel 2 ØJ'!D208/'Tabel 1 ØJ'!C206*100,"-")) -> 3.260259411 | F208: =IF(OR('Tabel 1 ØJ'!E206<5,'Tabel 2 ØJ'!F208<0.5),"-",IFERROR('Tabel 2 ØJ'!F208/'Tabel 1 ØJ'!E206*100,"-")) -> 4.166666667 | G208: =IF(OR('Tabel 1 ØJ'!E206<5,'Tabel 2 ØJ'!G208<0.5),"-",IFERROR('Tabel 2 ØJ'!G208/'Tabel 1 ØJ'!E206*100,"-")) -> 4.165887025 | I208: =IF(OR('Tabel 1 ØJ'!G206<5,'Tabel 2 ØJ'!I208<0.5),"-",IFERROR('Tabel 2 ØJ'!I208/'Tabel 1 ØJ'!G206*100,"-")) -> 3.448275862 | J208: =IF(OR('Tabel 1 ØJ'!G206<5,'Tabel 2 ØJ'!J208<0.5),"-",IFERROR('Tabel 2 ØJ'!J208/'Tabel 1 ØJ'!G206*100,"-")) -> 3.447630641
A209: Magistre i alt | C209: =IF(OR('Tabel 1 ØJ'!C207<5,'Tabel 2 ØJ'!C209<0.5),"-",IFERROR('Tabel 2 ØJ'!C209/'Tabel 1 ØJ'!C207*100,"-")) -> 7.317073171 | D209: =IF(OR('Tabel 1 ØJ'!C207<5,'Tabel 2 ØJ'!D209<0.5),"-",IFERROR('Tabel 2 ØJ'!D209/'Tabel 1 ØJ'!C207*100,"-")) -> 6.380133657 | F209: =IF(OR('Tabel 1 ØJ'!E207<5,'Tabel 2 ØJ'!F209<0.5),"-",IFERROR('Tabel 2 ØJ'!F209/'Tabel 1 ØJ'!E207*100,"-")) -> 10 | G209: =IF(OR('Tabel 1 ØJ'!E207<5,'Tabel 2 ØJ'!G209<0.5),"-",IFERROR('Tabel 2 ØJ'!G209/'Tabel 1 ØJ'!E207*100,"-")) -> 9.847546578 | I209: =IF(OR('Tabel 1 ØJ'!G207<5,'Tabel 2 ØJ'!I209<0.5),"-",IFERROR('Tabel 2 ØJ'!I209/'Tabel 1 ØJ'!G207*100,"-")) -> 9.009009009 | J209: =IF(OR('Tabel 1 ØJ'!G207<5,'Tabel 2 ØJ'!J209<0.5),"-",IFERROR('Tabel 2 ØJ'!J209/'Tabel 1 ØJ'!G207*100,"-")) -> 8.566790454
A210: DJØF'ere i alt | C210: =IF(OR('Tabel 1 ØJ'!C208<5,'Tabel 2 ØJ'!C210<0.5),"-",IFERROR('Tabel 2 ØJ'!C210/'Tabel 1 ØJ'!C208*100,"-")) -> 13.33333333 | D210: =IF(OR('Tabel 1 ØJ'!C208<5,'Tabel 2 ØJ'!D210<0.5),"-",IFERROR('Tabel 2 ØJ'!D210/'Tabel 1 ØJ'!C208*100,"-")) -> 13.27539727 | F210: =IF(OR('Tabel 1 ØJ'!E208<5,'Tabel 2 ØJ'!F210<0.5),"-",IFERROR('Tabel 2 ØJ'!F210/'Tabel 1 ØJ'!E208*100,"-")) -> 7.894736842 | G210: =IF(OR('Tabel 1 ØJ'!E208<5,'Tabel 2 ØJ'!G210<0.5),"-",IFERROR('Tabel 2 ØJ'!G210/'Tabel 1 ØJ'!E208*100,"-")) -> 6.80011949 | I210: =IF(OR('Tabel 1 ØJ'!G208<5,'Tabel 2 ØJ'!I210<0.5),"-",IFERROR('Tabel 2 ØJ'!I210/'Tabel 1 ØJ'!G208*100,"-")) -> 10.84337349 | J210: =IF(OR('Tabel 1 ØJ'!G208<5,'Tabel 2 ØJ'!J210<0.5),"-",IFERROR('Tabel 2 ØJ'!J210/'Tabel 1 ØJ'!G208*100,"-")) -> 10.31081226
A215: Favrskov
C217: Mænd | F217: Kvinder | I217: I alt
C218: Ledigheds- berørte | D218: Gns. brutto- ledighed | F218: Ledigheds- berørte | G218: Gns. brutto- ledighed | I218: Ledigheds- berørte | J218: Gns. brutto- ledighed
A221: Civ. ing. | C221: =IF(OR('Tabel 1 ØJ'!C219<5,'Tabel 2 ØJ'!C221<0.5),"-",IFERROR('Tabel 2 ØJ'!C221/'Tabel 1 ØJ'!C219*100,"-")) -> 1.492537313 | D221: =IF(OR('Tabel 1 ØJ'!C219<5,'Tabel 2 ØJ'!D221<0.5),"-",IFERROR('Tabel 2 ØJ'!D221/'Tabel 1 ØJ'!C219*100,"-")) -> 1.14781919 | F221: =IF(OR('Tabel 1 ØJ'!E219<5,'Tabel 2 ØJ'!F221<0.5),"-",IFERROR('Tabel 2 ØJ'!F221/'Tabel 1 ØJ'!E219*100,"-")) -> 3.333333333 | G221: =IF(OR('Tabel 1 ØJ'!E219<5,'Tabel 2 ØJ'!G221<0.5),"-",IFERROR('Tabel 2 ØJ'!G221/'Tabel 1 ØJ'!E219*100,"-")) -> 2.100875278 | I221: =IF(OR('Tabel 1 ØJ'!G219<5,'Tabel 2 ØJ'!I221<0.5),"-",IFERROR('Tabel 2 ØJ'!I221/'Tabel 1 ØJ'!G219*100,"-")) -> 1.915708812 | J221: =IF(OR('Tabel 1 ØJ'!G219<5,'Tabel 2 ØJ'!J221<0.5),"-",IFERROR('Tabel 2 ØJ'!J221/'Tabel 1 ØJ'!G219*100,"-")) -> 1.366912544
A222: Diplom ing. | C222: =IF(OR('Tabel 1 ØJ'!C220<5,'Tabel 2 ØJ'!C222<0.5),"-",IFERROR('Tabel 2 ØJ'!C222/'Tabel 1 ØJ'!C220*100,"-")) -> 0.5494505495 | D222: =IF(OR('Tabel 1 ØJ'!C220<5,'Tabel 2 ØJ'!D222<0.5),"-",IFERROR('Tabel 2 ØJ'!D222/'Tabel 1 ØJ'!C220*100,"-")) -> 0.4986281728 | F222: =IF(OR('Tabel 1 ØJ'!E220<5,'Tabel 2 ØJ'!F222<0.5),"-",IFERROR('Tabel 2 ØJ'!F222/'Tabel 1 ØJ'!E220*100,"-")) -> - | G222: =IF(OR('Tabel 1 ØJ'!E220<5,'Tabel 2 ØJ'!G222<0.5),"-",IFERROR('Tabel 2 ØJ'!G222/'Tabel 1 ØJ'!E220*100,"-")) -> - | I222: =IF(OR('Tabel 1 ØJ'!G220<5,'Tabel 2 ØJ'!I222<0.5),"-",IFERROR('Tabel 2 ØJ'!I222/'Tabel 1 ØJ'!G220*100,"-")) -> 0.4739336493 | J222: =IF(OR('Tabel 1 ØJ'!G220<5,'Tabel 2 ØJ'!J222<0.5),"-",IFERROR('Tabel 2 ØJ'!J222/'Tabel 1 ØJ'!G220*100,"-")) -> 0.4300963386
A223: Cand. Scient. Tek. | C223: =IF(OR('Tabel 1 ØJ'!C221<5,'Tabel 2 ØJ'!C223<0.5),"-",IFERROR('Tabel 2 ØJ'!C223/'Tabel 1 ØJ'!C221*100,"-")) -> 1.639344262 | D223: =IF(OR('Tabel 1 ØJ'!C221<5,'Tabel 2 ØJ'!D223<0.5),"-",IFERROR('Tabel 2 ØJ'!D223/'Tabel 1 ØJ'!C221*100,"-")) -> 1.639037518 | F223: =IF(OR('Tabel 1 ØJ'!E221<5,'Tabel 2 ØJ'!F223<0.5),"-",IFERROR('Tabel 2 ØJ'!F223/'Tabel 1 ØJ'!E221*100,"-")) -> 3.846153846 | G223: =IF(OR('Tabel 1 ØJ'!E221<5,'Tabel 2 ØJ'!G223<0.5),"-",IFERROR('Tabel 2 ØJ'!G223/'Tabel 1 ØJ'!E221*100,"-")) -> 2.159008583 | I223: =IF(OR('Tabel 1 ØJ'!G221<5,'Tabel 2 ØJ'!I223<0.5),"-",IFERROR('Tabel 2 ØJ'!I223/'Tabel 1 ØJ'!G221*100,"-")) -> 2.654867257 | J223: =IF(OR('Tabel 1 ØJ'!G221<5,'Tabel 2 ØJ'!J223<0.5),"-",IFERROR('Tabel 2 ØJ'!J223/'Tabel 1 ØJ'!G221*100,"-")) -> 1.878316238
A224: MA. Hum. | C224: =IF(OR('Tabel 1 ØJ'!C222<5,'Tabel 2 ØJ'!C224<0.5),"-",IFERROR('Tabel 2 ØJ'!C224/'Tabel 1 ØJ'!C222*100,"-")) -> 6.666666667 | D224: =IF(OR('Tabel 1 ØJ'!C222<5,'Tabel 2 ØJ'!D224<0.5),"-",IFERROR('Tabel 2 ØJ'!D224/'Tabel 1 ØJ'!C222*100,"-")) -> 6.357720535 | F224: =IF(OR('Tabel 1 ØJ'!E222<5,'Tabel 2 ØJ'!F224<0.5),"-",IFERROR('Tabel 2 ØJ'!F224/'Tabel 1 ØJ'!E222*100,"-")) -> 7.87037037 | G224: =IF(OR('Tabel 1 ØJ'!E222<5,'Tabel 2 ØJ'!G224<0.5),"-",IFERROR('Tabel 2 ØJ'!G224/'Tabel 1 ØJ'!E222*100,"-")) -> 6.849588003 | I224: =IF(OR('Tabel 1 ØJ'!G222<5,'Tabel 2 ØJ'!I224<0.5),"-",IFERROR('Tabel 2 ØJ'!I224/'Tabel 1 ØJ'!G222*100,"-")) -> 7.516339869 | J224: =IF(OR('Tabel 1 ØJ'!G222<5,'Tabel 2 ØJ'!J224<0.5),"-",IFERROR('Tabel 2 ØJ'!J224/'Tabel 1 ØJ'!G222*100,"-")) -> 6.7049211
A225: MA. Nat. | C225: =IF(OR('Tabel 1 ØJ'!C223<5,'Tabel 2 ØJ'!C225<0.5),"-",IFERROR('Tabel 2 ØJ'!C225/'Tabel 1 ØJ'!C223*100,"-")) -> 2.02020202 | D225: =IF(OR('Tabel 1 ØJ'!C223<5,'Tabel 2 ØJ'!D225<0.5),"-",IFERROR('Tabel 2 ØJ'!D225/'Tabel 1 ØJ'!C223*100,"-")) -> 2.019824012 | F225: =IF(OR('Tabel 1 ØJ'!E223<5,'Tabel 2 ØJ'!F225<0.5),"-",IFERROR('Tabel 2 ØJ'!F225/'Tabel 1 ØJ'!E223*100,"-")) -> 2.666666667 | G225: =IF(OR('Tabel 1 ØJ'!E223<5,'Tabel 2 ØJ'!G225<0.5),"-",IFERROR('Tabel 2 ØJ'!G225/'Tabel 1 ØJ'!E223*100,"-")) -> 2.112310027 | I225: =IF(OR('Tabel 1 ØJ'!G223<5,'Tabel 2 ØJ'!I225<0.5),"-",IFERROR('Tabel 2 ØJ'!I225/'Tabel 1 ØJ'!G223*100,"-")) -> 2.298850575 | J225: =IF(OR('Tabel 1 ØJ'!G223<5,'Tabel 2 ØJ'!J225<0.5),"-",IFERROR('Tabel 2 ØJ'!J225/'Tabel 1 ØJ'!G223*100,"-")) -> 2.059688674
A226: MA. Ph.d. | C226: =IF(OR('Tabel 1 ØJ'!C224<5,'Tabel 2 ØJ'!C226<0.5),"-",IFERROR('Tabel 2 ØJ'!C226/'Tabel 1 ØJ'!C224*100,"-")) -> 11.11111111 | D226: =IF(OR('Tabel 1 ØJ'!C224<5,'Tabel 2 ØJ'!D226<0.5),"-",IFERROR('Tabel 2 ØJ'!D226/'Tabel 1 ØJ'!C224*100,"-")) -> 11.10903207 | F226: =IF(OR('Tabel 1 ØJ'!E224<5,'Tabel 2 ØJ'!F226<0.5),"-",IFERROR('Tabel 2 ØJ'!F226/'Tabel 1 ØJ'!E224*100,"-")) -> - | G226: =IF(OR('Tabel 1 ØJ'!E224<5,'Tabel 2 ØJ'!G226<0.5),"-",IFERROR('Tabel 2 ØJ'!G226/'Tabel 1 ØJ'!E224*100,"-")) -> - | I226: =IF(OR('Tabel 1 ØJ'!G224<5,'Tabel 2 ØJ'!I226<0.5),"-",IFERROR('Tabel 2 ØJ'!I226/'Tabel 1 ØJ'!G224*100,"-")) -> 5.882352941 | J226: =IF(OR('Tabel 1 ØJ'!G224<5,'Tabel 2 ØJ'!J226<0.5),"-",IFERROR('Tabel 2 ØJ'!J226/'Tabel 1 ØJ'!G224*100,"-")) -> 5.88125227
A227: MA. Samf. | C227: =IF(OR('Tabel 1 ØJ'!C225<5,'Tabel 2 ØJ'!C227<0.5),"-",IFERROR('Tabel 2 ØJ'!C227/'Tabel 1 ØJ'!C225*100,"-")) -> - | D227: =IF(OR('Tabel 1 ØJ'!C225<5,'Tabel 2 ØJ'!D227<0.5),"-",IFERROR('Tabel 2 ØJ'!D227/'Tabel 1 ØJ'!C225*100,"-")) -> - | F227: =IF(OR('Tabel 1 ØJ'!E225<5,'Tabel 2 ØJ'!F227<0.5),"-",IFERROR('Tabel 2 ØJ'!F227/'Tabel 1 ØJ'!E225*100,"-")) -> 15.38461538 | G227: =IF(OR('Tabel 1 ØJ'!E225<5,'Tabel 2 ØJ'!G227<0.5),"-",IFERROR('Tabel 2 ØJ'!G227/'Tabel 1 ØJ'!E225*100,"-")) -> 12.96364709 | I227: =IF(OR('Tabel 1 ØJ'!G225<5,'Tabel 2 ØJ'!I227<0.5),"-",IFERROR('Tabel 2 ØJ'!I227/'Tabel 1 ØJ'!G225*100,"-")) -> 14.28571429 | J227: =IF(OR('Tabel 1 ØJ'!G225<5,'Tabel 2 ØJ'!J227<0.5),"-",IFERROR('Tabel 2 ØJ'!J227/'Tabel 1 ØJ'!G225*100,"-")) -> 12.0376723
A228: Øvrige Mag. | C228: =IF(OR('Tabel 1 ØJ'!C226<5,'Tabel 2 ØJ'!C228<0.5),"-",IFERROR('Tabel 2 ØJ'!C228/'Tabel 1 ØJ'!C226*100,"-")) -> - | D228: =IF(OR('Tabel 1 ØJ'!C226<5,'Tabel 2 ØJ'!D228<0.5),"-",IFERROR('Tabel 2 ØJ'!D228/'Tabel 1 ØJ'!C226*100,"-")) -> - | F228: =IF(OR('Tabel 1 ØJ'!E226<5,'Tabel 2 ØJ'!F228<0.5),"-",IFERROR('Tabel 2 ØJ'!F228/'Tabel 1 ØJ'!E226*100,"-")) -> - | G228: =IF(OR('Tabel 1 ØJ'!E226<5,'Tabel 2 ØJ'!G228<0.5),"-",IFERROR('Tabel 2 ØJ'!G228/'Tabel 1 ØJ'!E226*100,"-")) -> - | I228: =IF(OR('Tabel 1 ØJ'!G226<5,'Tabel 2 ØJ'!I228<0.5),"-",IFERROR('Tabel 2 ØJ'!I228/'Tabel 1 ØJ'!G226*100,"-")) -> - | J228: =IF(OR('Tabel 1 ØJ'!G226<5,'Tabel 2 ØJ'!J228<0.5),"-",IFERROR('Tabel 2 ØJ'!J228/'Tabel 1 ØJ'!G226*100,"-")) -> -
A229: Agronom | C229: =IF(OR('Tabel 1 ØJ'!C227<5,'Tabel 2 ØJ'!C229<0.5),"-",IFERROR('Tabel 2 ØJ'!C229/'Tabel 1 ØJ'!C227*100,"-")) -> - | D229: =IF(OR('Tabel 1 ØJ'!C227<5,'Tabel 2 ØJ'!D229<0.5),"-",IFERROR('Tabel 2 ØJ'!D229/'Tabel 1 ØJ'!C227*100,"-")) -> - | F229: =IF(OR('Tabel 1 ØJ'!E227<5,'Tabel 2 ØJ'!F229<0.5),"-",IFERROR('Tabel 2 ØJ'!F229/'Tabel 1 ØJ'!E227*100,"-")) -> 4.545454545 | G229: =IF(OR('Tabel 1 ØJ'!E227<5,'Tabel 2 ØJ'!G229<0.5),"-",IFERROR('Tabel 2 ØJ'!G229/'Tabel 1 ØJ'!E227*100,"-")) -> 4.125014884 | I229: =IF(OR('Tabel 1 ØJ'!G227<5,'Tabel 2 ØJ'!I229<0.5),"-",IFERROR('Tabel 2 ØJ'!I229/'Tabel 1 ØJ'!G227*100,"-")) -> 1.785714286 | J229: =IF(OR('Tabel 1 ØJ'!G227<5,'Tabel 2 ØJ'!J229<0.5),"-",IFERROR('Tabel 2 ØJ'!J229/'Tabel 1 ØJ'!G227*100,"-")) -> 1.620541562
A230: Landsk. Arkt. | C230: =IF(OR('Tabel 1 ØJ'!C228<5,'Tabel 2 ØJ'!C230<0.5),"-",IFERROR('Tabel 2 ØJ'!C230/'Tabel 1 ØJ'!C228*100,"-")) -> - | D230: =IF(OR('Tabel 1 ØJ'!C228<5,'Tabel 2 ØJ'!D230<0.5),"-",IFERROR('Tabel 2 ØJ'!D230/'Tabel 1 ØJ'!C228*100,"-")) -> - | F230: =IF(OR('Tabel 1 ØJ'!E228<5,'Tabel 2 ØJ'!F230<0.5),"-",IFERROR('Tabel 2 ØJ'!F230/'Tabel 1 ØJ'!E228*100,"-")) -> - | G230: =IF(OR('Tabel 1 ØJ'!E228<5,'Tabel 2 ØJ'!G230<0.5),"-",IFERROR('Tabel 2 ØJ'!G230/'Tabel 1 ØJ'!E228*100,"-")) -> - | I230: =IF(OR('Tabel 1 ØJ'!G228<5,'Tabel 2 ØJ'!I230<0.5),"-",IFERROR('Tabel 2 ØJ'!I230/'Tabel 1 ØJ'!G228*100,"-")) -> - | J230: =IF(OR('Tabel 1 ØJ'!G228<5,'Tabel 2 ØJ'!J230<0.5),"-",IFERROR('Tabel 2 ØJ'!J230/'Tabel 1 ØJ'!G228*100,"-")) -> -
A231: Hortonom | C231: =IF(OR('Tabel 1 ØJ'!C229<5,'Tabel 2 ØJ'!C231<0.5),"-",IFERROR('Tabel 2 ØJ'!C231/'Tabel 1 ØJ'!C229*100,"-")) -> - | D231: =IF(OR('Tabel 1 ØJ'!C229<5,'Tabel 2 ØJ'!D231<0.5),"-",IFERROR('Tabel 2 ØJ'!D231/'Tabel 1 ØJ'!C229*100,"-")) -> - | F231: =IF(OR('Tabel 1 ØJ'!E229<5,'Tabel 2 ØJ'!F231<0.5),"-",IFERROR('Tabel 2 ØJ'!F231/'Tabel 1 ØJ'!E229*100,"-")) -> - | G231: =IF(OR('Tabel 1 ØJ'!E229<5,'Tabel 2 ØJ'!G231<0.5),"-",IFERROR('Tabel 2 ØJ'!G231/'Tabel 1 ØJ'!E229*100,"-")) -> - | I231: =IF(OR('Tabel 1 ØJ'!G229<5,'Tabel 2 ØJ'!I231<0.5),"-",IFERROR('Tabel 2 ØJ'!I231/'Tabel 1 ØJ'!G229*100,"-")) -> - | J231: =IF(OR('Tabel 1 ØJ'!G229<5,'Tabel 2 ØJ'!J231<0.5),"-",IFERROR('Tabel 2 ØJ'!J231/'Tabel 1 ØJ'!G229*100,"-")) -> -
A232: Forstkand. | C232: =IF(OR('Tabel 1 ØJ'!C230<5,'Tabel 2 ØJ'!C232<0.5),"-",IFERROR('Tabel 2 ØJ'!C232/'Tabel 1 ØJ'!C230*100,"-")) -> - | D232: =IF(OR('Tabel 1 ØJ'!C230<5,'Tabel 2 ØJ'!D232<0.5),"-",IFERROR('Tabel 2 ØJ'!D232/'Tabel 1 ØJ'!C230*100,"-")) -> - | F232: =IF(OR('Tabel 1 ØJ'!E230<5,'Tabel 2 ØJ'!F232<0.5),"-",IFERROR('Tabel 2 ØJ'!F232/'Tabel 1 ØJ'!E230*100,"-")) -> - | G232: =IF(OR('Tabel 1 ØJ'!E230<5,'Tabel 2 ØJ'!G232<0.5),"-",IFERROR('Tabel 2 ØJ'!G232/'Tabel 1 ØJ'!E230*100,"-")) -> - | I232: =IF(OR('Tabel 1 ØJ'!G230<5,'Tabel 2 ØJ'!I232<0.5),"-",IFERROR('Tabel 2 ØJ'!I232/'Tabel 1 ØJ'!G230*100,"-")) -> - | J232: =IF(OR('Tabel 1 ØJ'!G230<5,'Tabel 2 ØJ'!J232<0.5),"-",IFERROR('Tabel 2 ØJ'!J232/'Tabel 1 ØJ'!G230*100,"-")) -> -
A233: Jordbrugsakad. | C233: =IF(OR('Tabel 1 ØJ'!C231<5,'Tabel 2 ØJ'!C233<0.5),"-",IFERROR('Tabel 2 ØJ'!C233/'Tabel 1 ØJ'!C231*100,"-")) -> - | D233: =IF(OR('Tabel 1 ØJ'!C231<5,'Tabel 2 ØJ'!D233<0.5),"-",IFERROR('Tabel 2 ØJ'!D233/'Tabel 1 ØJ'!C231*100,"-")) -> - | F233: =IF(OR('Tabel 1 ØJ'!E231<5,'Tabel 2 ØJ'!F233<0.5),"-",IFERROR('Tabel 2 ØJ'!F233/'Tabel 1 ØJ'!E231*100,"-")) -> 3.846153846 | G233: =IF(OR('Tabel 1 ØJ'!E231<5,'Tabel 2 ØJ'!G233<0.5),"-",IFERROR('Tabel 2 ØJ'!G233/'Tabel 1 ØJ'!E231*100,"-")) -> 3.49039721 | I233: =IF(OR('Tabel 1 ØJ'!G231<5,'Tabel 2 ØJ'!I233<0.5),"-",IFERROR('Tabel 2 ØJ'!I233/'Tabel 1 ØJ'!G231*100,"-")) -> 1.470588235 | J233: =IF(OR('Tabel 1 ØJ'!G231<5,'Tabel 2 ØJ'!J233<0.5),"-",IFERROR('Tabel 2 ØJ'!J233/'Tabel 1 ØJ'!G231*100,"-")) -> 1.334563639
A234: Mejeriing. | C234: =IF(OR('Tabel 1 ØJ'!C232<5,'Tabel 2 ØJ'!C234<0.5),"-",IFERROR('Tabel 2 ØJ'!C234/'Tabel 1 ØJ'!C232*100,"-")) -> - | D234: =IF(OR('Tabel 1 ØJ'!C232<5,'Tabel 2 ØJ'!D234<0.5),"-",IFERROR('Tabel 2 ØJ'!D234/'Tabel 1 ØJ'!C232*100,"-")) -> - | F234: =IF(OR('Tabel 1 ØJ'!E232<5,'Tabel 2 ØJ'!F234<0.5),"-",IFERROR('Tabel 2 ØJ'!F234/'Tabel 1 ØJ'!E232*100,"-")) -> - | G234: =IF(OR('Tabel 1 ØJ'!E232<5,'Tabel 2 ØJ'!G234<0.5),"-",IFERROR('Tabel 2 ØJ'!G234/'Tabel 1 ØJ'!E232*100,"-")) -> - | I234: =IF(OR('Tabel 1 ØJ'!G232<5,'Tabel 2 ØJ'!I234<0.5),"-",IFERROR('Tabel 2 ØJ'!I234/'Tabel 1 ØJ'!G232*100,"-")) -> - | J234: =IF(OR('Tabel 1 ØJ'!G232<5,'Tabel 2 ØJ'!J234<0.5),"-",IFERROR('Tabel 2 ØJ'!J234/'Tabel 1 ØJ'!G232*100,"-")) -> -
A235: Levn.m.kand. | C235: =IF(OR('Tabel 1 ØJ'!C233<5,'Tabel 2 ØJ'!C235<0.5),"-",IFERROR('Tabel 2 ØJ'!C235/'Tabel 1 ØJ'!C233*100,"-")) -> - | D235: =IF(OR('Tabel 1 ØJ'!C233<5,'Tabel 2 ØJ'!D235<0.5),"-",IFERROR('Tabel 2 ØJ'!D235/'Tabel 1 ØJ'!C233*100,"-")) -> - | F235: =IF(OR('Tabel 1 ØJ'!E233<5,'Tabel 2 ØJ'!F235<0.5),"-",IFERROR('Tabel 2 ØJ'!F235/'Tabel 1 ØJ'!E233*100,"-")) -> - | G235: =IF(OR('Tabel 1 ØJ'!E233<5,'Tabel 2 ØJ'!G235<0.5),"-",IFERROR('Tabel 2 ØJ'!G235/'Tabel 1 ØJ'!E233*100,"-")) -> - | I235: =IF(OR('Tabel 1 ØJ'!G233<5,'Tabel 2 ØJ'!I235<0.5),"-",IFERROR('Tabel 2 ØJ'!I235/'Tabel 1 ØJ'!G233*100,"-")) -> - | J235: =IF(OR('Tabel 1 ØJ'!G233<5,'Tabel 2 ØJ'!J235<0.5),"-",IFERROR('Tabel 2 ØJ'!J235/'Tabel 1 ØJ'!G233*100,"-")) -> -
A236: Dyrlæge | C236: =IF(OR('Tabel 1 ØJ'!C234<5,'Tabel 2 ØJ'!C236<0.5),"-",IFERROR('Tabel 2 ØJ'!C236/'Tabel 1 ØJ'!C234*100,"-")) -> - | D236: =IF(OR('Tabel 1 ØJ'!C234<5,'Tabel 2 ØJ'!D236<0.5),"-",IFERROR('Tabel 2 ØJ'!D236/'Tabel 1 ØJ'!C234*100,"-")) -> - | F236: =IF(OR('Tabel 1 ØJ'!E234<5,'Tabel 2 ØJ'!F236<0.5),"-",IFERROR('Tabel 2 ØJ'!F236/'Tabel 1 ØJ'!E234*100,"-")) -> 5 | G236: =IF(OR('Tabel 1 ØJ'!E234<5,'Tabel 2 ØJ'!G236<0.5),"-",IFERROR('Tabel 2 ØJ'!G236/'Tabel 1 ØJ'!E234*100,"-")) -> - | I236: =IF(OR('Tabel 1 ØJ'!G234<5,'Tabel 2 ØJ'!I236<0.5),"-",IFERROR('Tabel 2 ØJ'!I236/'Tabel 1 ØJ'!G234*100,"-")) -> 4.545454545 | J236: =IF(OR('Tabel 1 ØJ'!G234<5,'Tabel 2 ØJ'!J236<0.5),"-",IFERROR('Tabel 2 ØJ'!J236/'Tabel 1 ØJ'!G234*100,"-")) -> -
A237: Farmaceut | C237: =IF(OR('Tabel 1 ØJ'!C235<5,'Tabel 2 ØJ'!C237<0.5),"-",IFERROR('Tabel 2 ØJ'!C237/'Tabel 1 ØJ'!C235*100,"-")) -> - | D237: =IF(OR('Tabel 1 ØJ'!C235<5,'Tabel 2 ØJ'!D237<0.5),"-",IFERROR('Tabel 2 ØJ'!D237/'Tabel 1 ØJ'!C235*100,"-")) -> - | F237: =IF(OR('Tabel 1 ØJ'!E235<5,'Tabel 2 ØJ'!F237<0.5),"-",IFERROR('Tabel 2 ØJ'!F237/'Tabel 1 ØJ'!E235*100,"-")) -> - | G237: =IF(OR('Tabel 1 ØJ'!E235<5,'Tabel 2 ØJ'!G237<0.5),"-",IFERROR('Tabel 2 ØJ'!G237/'Tabel 1 ØJ'!E235*100,"-")) -> - | I237: =IF(OR('Tabel 1 ØJ'!G235<5,'Tabel 2 ØJ'!I237<0.5),"-",IFERROR('Tabel 2 ØJ'!I237/'Tabel 1 ØJ'!G235*100,"-")) -> - | J237: =IF(OR('Tabel 1 ØJ'!G235<5,'Tabel 2 ØJ'!J237<0.5),"-",IFERROR('Tabel 2 ØJ'!J237/'Tabel 1 ØJ'!G235*100,"-")) -> -
A238: Læge | C238: =IF(OR('Tabel 1 ØJ'!C236<5,'Tabel 2 ØJ'!C238<0.5),"-",IFERROR('Tabel 2 ØJ'!C238/'Tabel 1 ØJ'!C236*100,"-")) -> - | D238: =IF(OR('Tabel 1 ØJ'!C236<5,'Tabel 2 ØJ'!D238<0.5),"-",IFERROR('Tabel 2 ØJ'!D238/'Tabel 1 ØJ'!C236*100,"-")) -> - | F238: =IF(OR('Tabel 1 ØJ'!E236<5,'Tabel 2 ØJ'!F238<0.5),"-",IFERROR('Tabel 2 ØJ'!F238/'Tabel 1 ØJ'!E236*100,"-")) -> 1.298701299 | G238: =IF(OR('Tabel 1 ØJ'!E236<5,'Tabel 2 ØJ'!G238<0.5),"-",IFERROR('Tabel 2 ØJ'!G238/'Tabel 1 ØJ'!E236*100,"-")) -> 1.298458293 | I238: =IF(OR('Tabel 1 ØJ'!G236<5,'Tabel 2 ØJ'!I238<0.5),"-",IFERROR('Tabel 2 ØJ'!I238/'Tabel 1 ØJ'!G236*100,"-")) -> 0.9615384615 | J238: =IF(OR('Tabel 1 ØJ'!G236<5,'Tabel 2 ØJ'!J238<0.5),"-",IFERROR('Tabel 2 ØJ'!J238/'Tabel 1 ØJ'!G236*100,"-")) -> 0.9613585442
A239: Tandlæge | C239: =IF(OR('Tabel 1 ØJ'!C237<5,'Tabel 2 ØJ'!C239<0.5),"-",IFERROR('Tabel 2 ØJ'!C239/'Tabel 1 ØJ'!C237*100,"-")) -> - | D239: =IF(OR('Tabel 1 ØJ'!C237<5,'Tabel 2 ØJ'!D239<0.5),"-",IFERROR('Tabel 2 ØJ'!D239/'Tabel 1 ØJ'!C237*100,"-")) -> - | F239: =IF(OR('Tabel 1 ØJ'!E237<5,'Tabel 2 ØJ'!F239<0.5),"-",IFERROR('Tabel 2 ØJ'!F239/'Tabel 1 ØJ'!E237*100,"-")) -> - | G239: =IF(OR('Tabel 1 ØJ'!E237<5,'Tabel 2 ØJ'!G239<0.5),"-",IFERROR('Tabel 2 ØJ'!G239/'Tabel 1 ØJ'!E237*100,"-")) -> - | I239: =IF(OR('Tabel 1 ØJ'!G237<5,'Tabel 2 ØJ'!I239<0.5),"-",IFERROR('Tabel 2 ØJ'!I239/'Tabel 1 ØJ'!G237*100,"-")) -> - | J239: =IF(OR('Tabel 1 ØJ'!G237<5,'Tabel 2 ØJ'!J239<0.5),"-",IFERROR('Tabel 2 ØJ'!J239/'Tabel 1 ØJ'!G237*100,"-")) -> -
A240: Arkitekt | C240: =IF(OR('Tabel 1 ØJ'!C238<5,'Tabel 2 ØJ'!C240<0.5),"-",IFERROR('Tabel 2 ØJ'!C240/'Tabel 1 ØJ'!C238*100,"-")) -> 7.142857143 | D240: =IF(OR('Tabel 1 ØJ'!C238<5,'Tabel 2 ØJ'!D240<0.5),"-",IFERROR('Tabel 2 ØJ'!D240/'Tabel 1 ØJ'!C238*100,"-")) -> 7.141520614 | F240: =IF(OR('Tabel 1 ØJ'!E238<5,'Tabel 2 ØJ'!F240<0.5),"-",IFERROR('Tabel 2 ØJ'!F240/'Tabel 1 ØJ'!E238*100,"-")) -> 5.882352941 | G240: =IF(OR('Tabel 1 ØJ'!E238<5,'Tabel 2 ØJ'!G240<0.5),"-",IFERROR('Tabel 2 ØJ'!G240/'Tabel 1 ØJ'!E238*100,"-")) -> 5.88125227 | I240: =IF(OR('Tabel 1 ØJ'!G238<5,'Tabel 2 ØJ'!I240<0.5),"-",IFERROR('Tabel 2 ØJ'!I240/'Tabel 1 ØJ'!G238*100,"-")) -> 6.451612903 | J240: =IF(OR('Tabel 1 ØJ'!G238<5,'Tabel 2 ØJ'!J240<0.5),"-",IFERROR('Tabel 2 ØJ'!J240/'Tabel 1 ØJ'!G238*100,"-")) -> 6.450405716
... 329 more rows

Sheet Tabel 4F ØJ
A1: Tabel 4. Antal forsikrede - aldersfordelt
A3: Østjylland
C5: Under 30 år | D5: 30 - 39 år | E5: 40 - 49 år | F5: 50 - 59 år | G5: Over 60 år | I5: I alt
A7: Civ. ing. | C7: 690 | D7: 1527 | E7: 910 | F7: 585 | G7: 137 | I7: 3849
A8: Diplom ing. | C8: 818 | D8: 1399 | E8: 1838 | F8: 2113 | G8: 611 | I8: 6779
A9: Cand. Scient. Tek. | C9: 1022 | D9: 1187 | E9: 326 | F9: 101 | G9: 19 | I9: 2655
A10: MA. Hum. | C10: 1331 | D10: 2750 | E10: 2474 | F10: 982 | G10: 475 | I10: 8012
A11: MA. Nat. | C11: 257 | D11: 626 | E11: 943 | F11: 784 | G11: 306 | I11: 2916
A12: MA. Ph.d. | C12: 12 | D12: 219 | E12: 190 | F12: 98 | G12: 20 | I12: 539
A13: MA. Samf. | C13: 260 | D13: 313 | E13: 46 | F13: 19 | G13: 3 | I13: 641
A14: Øvrige Mag. | C14: 59 | D14: 126 | E14: 151 | F14: 155 | G14: 66 | I14: 557
A15: Agronom | C15: 17 | D15: 30 | E15: 97 | F15: 137 | G15: 66 | I15: 347
A16: Landsk. Arkt. | C16: 3 | D16: 10 | E16: 16 | F16: 8 | G16: 2 | I16: 39
A17: Hortonom | C17: 0 | D17: 2 | E17: 8 | F17: 13 | G17: 5 | I17: 28
A18: Forstkand. | C18: 1 | D18: 6 | E18: 26 | F18: 16 | G18: 4 | I18: 53
A19: Jordbrugsakad. | C19: 21 | D19: 48 | E19: 147 | F19: 174 | G19: 77 | I19: 467
A20: Mejeriing. | C20: 1 | D20: 10 | E20: 17 | F20: 41 | G20: 19 | I20: 88
A21: Levn.m.kand. | C21: 5 | D21: 12 | E21: 10 | F21: 0 | G21: 0 | I21: 27
A22: Dyrlæge | C22: 24 | D22: 76 | E22: 67 | F22: 46 | G22: 13 | I22: 226
A23: Farmaceut | C23: 93 | D23: 94 | E23: 45 | F23: 41 | G23: 17 | I23: 290
A24: Læge | C24: 472 | D24: 1013 | E24: 479 | F24: 319 | G24: 139 | I24: 2422
A25: Tandlæge | C25: 89 | D25: 145 | E25: 104 | F25: 83 | G25: 48 | I25: 469
A26: Arkitekt | C26: 138 | D26: 449 | E26: 509 | F26: 279 | G26: 156 | I26: 1531
A27: Landinspek. | C27: 9 | D27: 35 | E27: 44 | F27: 28 | G27: 23 | I27: 139
A28: Bibliotekar | C28: 9 | D28: 83 | E28: 121 | F28: 92 | G28: 67 | I28: 372
A29: Musikudd. | C29: 5 | D29: 21 | E29: 29 | F29: 65 | G29: 37 | I29: 157
A30: Teolog | C30: 14 | D30: 66 | E30: 119 | F30: 106 | G30: 30 | I30: 335
A31: Psykolog | C31: 350 | D31: 681 | E31: 466 | F31: 251 | G31: 118 | I31: 1866
A32: Jurist | C32: 517 | D32: 779 | E32: 488 | F32: 318 | G32: 88 | I32: 2190
A33: Økonom | C33: 301 | D33: 435 | E33: 336 | F33: 252 | G33: 65 | I33: 1389
A34: Samf. Adm. | C34: 616 | D34: 1200 | E34: 692 | F34: 374 | G34: 82 | I34: 2964
A35: Cand. Merc. | C35: 1608 | D35: 2623 | E35: 1292 | F35: 841 | G35: 110 | I35: 6474
A36: HA | C36: 280 | D36: 221 | E36: 195 | F36: 294 | G36: 63 | I36: 1053
A37: HD | C37: 190 | D37: 160 | E37: 177 | F37: 273 | G37: 70 | I37: 870
A38: Komm. og Sprog | C38: 195 | D38: 274 | E38: 373 | F38: 329 | G38: 126 | I38: 1297
A39: Cand. IT. | C39: 287 | D39: 438 | E39: 119 | F39: 12 | G39: 2 | I39: 858
A40: Bac. Samf. | C40: 52 | D40: 38 | E40: 51 | F40: 34 | G40: 5 | I40: 180
A41: Bac. Hum. | C41: 243 | D41: 136 | E41: 152 | F41: 105 | G41: 29 | I41: 665
A42: Bac. Nat. | C42: 183 | D42: 174 | E42: 55 | F42: 18 | G42: 2 | I42: 432
A43: Andre | C43: 424 | D43: 1043 | E43: 672 | F43: 453 | G43: 248 | I43: 2840
A45: Total | C45: 10575 | D45: 18401 | E45: 13637 | F45: 9665 | G45: 3271 | I45: 55549
A47: Ingeniører i alt | C47: 1508 | D47: 2926 | E47: 2748 | F47: 2698 | G47: 748 | I47: 10628
A48: Magistre i alt | C48: 1919 | D48: 4034 | E48: 3804 | F48: 2038 | G48: 870 | I48: 12665
A49: DJØF'ere i alt | C49: 3322 | D49: 5258 | E49: 3003 | F49: 2079 | G49: 408 | I49: 14070
A56: Horsens
C58: Under 30 år | D58: 30 - 39 år | E58: 40 - 49 år | F58: 50 - 59 år | G58: Over 60 år | I58: I alt
A60: Civ. ing. | C60: 28 | D60: 118 | E60: 77 | F60: 39 | G60: 4 | I60: 266
A61: Diplom ing. | C61: 108 | D61: 224 | E61: 307 | F61: 238 | G61: 64 | I61: 941
A62: Cand. Scient. Tek. | C62: 35 | D62: 58 | E62: 25 | F62: 1 | G62: 0 | I62: 119
A63: MA. Hum. | C63: 34 | D63: 117 | E63: 142 | F63: 46 | G63: 16 | I63: 355
A64: MA. Nat. | C64: 7 | D64: 28 | E64: 56 | F64: 30 | G64: 6 | I64: 127
A65: MA. Ph.d. | C65: 0 | D65: 4 | E65: 3 | F65: 1 | G65: 0 | I65: 8
A66: MA. Samf. | C66: 7 | D66: 12 | E66: 5 | F66: 0 | G66: 0 | I66: 24
A67: Øvrige Mag. | C67: 0 | D67: 11 | E67: 8 | F67: 5 | G67: 5 | I67: 29
A68: Agronom | C68: 1 | D68: 1 | E68: 11 | F68: 17 | G68: 7 | I68: 37
A69: Landsk. Arkt. | C69: 0 | D69: 1 | E69: 1 | F69: 0 | G69: 0 | I69: 2
A70: Hortonom | C70: 0 | D70: 0 | E70: 1 | F70: 0 | G70: 0 | I70: 1
A71: Forstkand. | C71: 1 | D71: 0 | E71: 3 | F71: 2 | G71: 0 | I71: 6
A72: Jordbrugsakad. | C72: 2 | D72: 2 | E72: 16 | F72: 19 | G72: 7 | I72: 46
A73: Mejeriing. | C73: 0 | D73: 2 | E73: 1 | F73: 4 | G73: 0 | I73: 7
A74: Levn.m.kand. | C74: 0 | D74: 0 | E74: 0 | F74: 0 | G74: 0 | I74: 0
A75: Dyrlæge | C75: 2 | D75: 6 | E75: 6 | F75: 4 | G75: 1 | I75: 19
A76: Farmaceut | C76: 7 | D76: 5 | E76: 6 | F76: 1 | G76: 2 | I76: 21
A77: Læge | C77: 6 | D77: 33 | E77: 17 | F77: 9 | G77: 3 | I77: 68
A78: Tandlæge | C78: 2 | D78: 11 | E78: 4 | F78: 4 | G78: 1 | I78: 22
A79: Arkitekt | C79: 6 | D79: 14 | E79: 25 | F79: 12 | G79: 6 | I79: 63
A80: Landinspek. | C80: 1 | D80: 6 | E80: 7 | F80: 3 | G80: 3 | I80: 20
A81: Bibliotekar | C81: 1 | D81: 7 | E81: 15 | F81: 8 | G81: 4 | I81: 35
A82: Musikudd. | C82: 0 | D82: 0 | E82: 2 | F82: 5 | G82: 1 | I82: 8
A83: Teolog | C83: 1 | D83: 5 | E83: 3 | F83: 10 | G83: 1 | I83: 20
A84: Psykolog | C84: 11 | D84: 26 | E84: 33 | F84: 3 | G84: 7 | I84: 80
A85: Jurist | C85: 25 | D85: 51 | E85: 40 | F85: 16 | G85: 6 | I85: 138
A86: Økonom | C86: 11 | D86: 20 | E86: 19 | F86: 9 | G86: 4 | I86: 63
A87: Samf. Adm. | C87: 18 | D87: 63 | E87: 49 | F87: 13 | G87: 5 | I87: 148
A88: Cand. Merc. | C88: 73 | D88: 183 | E88: 97 | F88: 56 | G88: 2 | I88: 411
A89: HA | C89: 30 | D89: 19 | E89: 19 | F89: 19 | G89: 9 | I89: 96
A90: HD | C90: 9 | D90: 6 | E90: 15 | F90: 24 | G90: 4 | I90: 58
A91: Komm. og Sprog | C91: 9 | D91: 16 | E91: 22 | F91: 20 | G91: 8 | I91: 75
A92: Cand. IT. | C92: 11 | D92: 17 | E92: 9 | F92: 0 | G92: 0 | I92: 37
A93: Bac. Samf. | C93: 3 | D93: 3 | E93: 5 | F93: 1 | G93: 1 | I93: 13
A94: Bac. Hum. | C94: 10 | D94: 5 | E94: 11 | F94: 5 | G94: 2 | I94: 33
A95: Bac. Nat. | C95: 29 | D95: 21 | E95: 10 | F95: 1 | G95: 0 | I95: 61
A96: Andre | C96: 59 | D96: 80 | E96: 46 | F96: 27 | G96: 9 | I96: 221
A98: Total | C98: 545 | D98: 1173 | E98: 1100 | F98: 633 | G98: 181 | I98: 3632
A100: Ingeniører i alt | C100: 136 | D100: 342 | E100: 384 | F100: 277 | G100: 68 | I100: 1207
A101: Magistre i alt | C101: 48 | D101: 172 | E101: 214 | F101: 82 | G101: 27 | I101: 543
A102: DJØF'ere i alt | C102: 157 | D102: 336 | E102: 224 | F102: 113 | G102: 26 | I102: 856
A109: Syddjurs
C111: Under 30 år | D111: 30 - 39 år | E111: 40 - 49 år | F111: 50 - 59 år | G111: Over 60 år | I111: I alt
A113: Civ. ing. | C113: 6 | D113: 20 | E113: 24 | F113: 24 | G113: 7 | I113: 81
A114: Diplom ing. | C114: 10 | D114: 27 | E114: 68 | F114: 92 | G114: 23 | I114: 220
A115: Cand. Scient. Tek. | C115: 12 | D115: 34 | E115: 14 | F115: 1 | G115: 0 | I115: 61
A116: MA. Hum. | C116: 12 | D116: 72 | E116: 85 | F116: 44 | G116: 18 | I116: 231
A117: MA. Nat. | C117: 3 | D117: 19 | E117: 33 | F117: 38 | G117: 15 | I117: 108
A118: MA. Ph.d. | C118: 0 | D118: 5 | E118: 8 | F118: 6 | G118: 0 | I118: 19
A119: MA. Samf. | C119: 2 | D119: 11 | E119: 0 | F119: 0 | G119: 0 | I119: 13
A120: Øvrige Mag. | C120: 3 | D120: 5 | E120: 4 | F120: 5 | G120: 2 | I120: 19
A121: Agronom | C121: 2 | D121: 2 | E121: 10 | F121: 10 | G121: 7 | I121: 31
A122: Landsk. Arkt. | C122: 0 | D122: 2 | E122: 0 | F122: 2 | G122: 0 | I122: 4
A123: Hortonom | C123: 0 | D123: 0 | E123: 2 | F123: 1 | G123: 1 | I123: 4
A124: Forstkand. | C124: 0 | D124: 0 | E124: 3 | F124: 2 | G124: 1 | I124: 6
A125: Jordbrugsakad. | C125: 2 | D125: 4 | E125: 15 | F125: 15 | G125: 9 | I125: 45
A126: Mejeriing. | C126: 0 | D126: 0 | E126: 1 | F126: 1 | G126: 0 | I126: 2
A127: Levn.m.kand. | C127: 0 | D127: 0 | E127: 0 | F127: 0 | G127: 0 | I127: 0
A128: Dyrlæge | C128: 1 | D128: 5 | E128: 2 | F128: 2 | G128: 1 | I128: 11
A129: Farmaceut | C129: 4 | D129: 3 | E129: 3 | F129: 0 | G129: 0 | I129: 10
A130: Læge | C130: 5 | D130: 15 | E130: 6 | F130: 7 | G130: 5 | I130: 38
A131: Tandlæge | C131: 1 | D131: 4 | E131: 5 | F131: 5 | G131: 2 | I131: 17
A132: Arkitekt | C132: 1 | D132: 20 | E132: 21 | F132: 16 | G132: 8 | I132: 66
A133: Landinspek. | C133: 0 | D133: 2 | E133: 1 | F133: 1 | G133: 1 | I133: 5
A134: Bibliotekar | C134: 1 | D134: 4 | E134: 4 | F134: 4 | G134: 3 | I134: 16
A135: Musikudd. | C135: 0 | D135: 1 | E135: 1 | F135: 3 | G135: 1 | I135: 6
A136: Teolog | C136: 0 | D136: 3 | E136: 7 | F136: 5 | G136: 1 | I136: 16
A137: Psykolog | C137: 4 | D137: 16 | E137: 22 | F137: 12 | G137: 7 | I137: 61
A138: Jurist | C138: 4 | D138: 19 | E138: 12 | F138: 9 | G138: 3 | I138: 47
A139: Økonom | C139: 0 | D139: 5 | E139: 8 | F139: 11 | G139: 0 | I139: 24
A140: Samf. Adm. | C140: 2 | D140: 26 | E140: 16 | F140: 9 | G140: 6 | I140: 59
A141: Cand. Merc. | C141: 13 | D141: 49 | E141: 24 | F141: 28 | G141: 0 | I141: 114
A142: HA | C142: 2 | D142: 3 | E142: 15 | F142: 14 | G142: 3 | I142: 37
A143: HD | C143: 1 | D143: 2 | E143: 4 | F143: 10 | G143: 2 | I143: 19
A144: Komm. og Sprog | C144: 1 | D144: 4 | E144: 12 | F144: 11 | G144: 9 | I144: 37
A145: Cand. IT. | C145: 1 | D145: 12 | E145: 3 | F145: 0 | G145: 0 | I145: 16
A146: Bac. Samf. | C146: 0 | D146: 0 | E146: 0 | F146: 0 | G146: 0 | I146: 0
A147: Bac. Hum. | C147: 3 | D147: 7 | E147: 5 | F147: 4 | G147: 2 | I147: 21
A148: Bac. Nat. | C148: 0 | D148: 5 | E148: 2 | F148: 1 | G148: 1 | I148: 9
A149: Andre | C149: 4 | D149: 27 | E149: 25 | F149: 27 | G149: 9 | I149: 92
A151: Total | C151: 98 | D151: 429 | E151: 450 | F151: 405 | G151: 138 | I151: 1520
A153: Ingeniører i alt | C153: 16 | D153: 47 | E153: 92 | F153: 116 | G153: 30 | I153: 301
A154: Magistre i alt | C154: 20 | D154: 112 | E154: 130 | F154: 93 | G154: 35 | I154: 390
A155: DJØF'ere i alt | C155: 21 | D155: 102 | E155: 75 | F155: 71 | G155: 12 | I155: 281
A162: Norddjurs
C164: Under 30 år | D164: 30 - 39 år | E164: 40 - 49 år | F164: 50 - 59 år | G164: Over 60 år | I164: I alt
A166: Civ. ing. | C166: 5 | D166: 6 | E166: 2 | F166: 3 | G166: 4 | I166: 20
A167: Diplom ing. | C167: 6 | D167: 13 | E167: 18 | F167: 52 | G167: 11 | I167: 100
A168: Cand. Scient. Tek. | C168: 7 | D168: 4 | E168: 6 | F168: 2 | G168: 0 | I168: 19
A169: MA. Hum. | C169: 9 | D169: 16 | E169: 25 | F169: 9 | G169: 6 | I169: 65
A170: MA. Nat. | C170: 0 | D170: 6 | E170: 12 | F170: 10 | G170: 1 | I170: 29
A171: MA. Ph.d. | C171: 0 | D171: 2 | E171: 3 | F171: 1 | G171: 1 | I171: 7
A172: MA. Samf. | C172: 0 | D172: 3 | E172: 1 | F172: 0 | G172: 0 | I172: 4
A173: Øvrige Mag. | C173: 0 | D173: 0 | E173: 4 | F173: 1 | G173: 0 | I173: 5
A174: Agronom | C174: 1 | D174: 3 | E174: 0 | F174: 2 | G174: 1 | I174: 7
A175: Landsk. Arkt. | C175: 0 | D175: 0 | E175: 0 | F175: 0 | G175: 0 | I175: 0
A176: Hortonom | C176: 0 | D176: 0 | E176: 1 | F176: 0 | G176: 0 | I176: 1
A177: Forstkand. | C177: 0 | D177: 0 | E177: 1 | F177: 0 | G177: 0 | I177: 1
A178: Jordbrugsakad. | C178: 1 | D178: 3 | E178: 2 | F178: 2 | G178: 1 | I178: 9
A179: Mejeriing. | C179: 0 | D179: 0 | E179: 0 | F179: 0 | G179: 0 | I179: 0
A180: Levn.m.kand. | C180: 1 | D180: 0 | E180: 1 | F180: 0 | G180: 0 | I180: 2
A181: Dyrlæge | C181: 1 | D181: 3 | E181: 1 | F181: 2 | G181: 1 | I181: 8
A182: Farmaceut | C182: 0 | D182: 0 | E182: 0 | F182: 2 | G182: 0 | I182: 2
A183: Læge | C183: 0 | D183: 1 | E183: 0 | F183: 3 | G183: 1 | I183: 5
A184: Tandlæge | C184: 1 | D184: 1 | E184: 2 | F184: 2 | G184: 1 | I184: 7
A185: Arkitekt | C185: 0 | D185: 3 | E185: 0 | F185: 1 | G185: 3 | I185: 7
A186: Landinspek. | C186: 0 | D186: 1 | E186: 1 | F186: 0 | G186: 0 | I186: 2
A187: Bibliotekar | C187: 0 | D187: 1 | E187: 3 | F187: 2 | G187: 0 | I187: 6
A188: Musikudd. | C188: 0 | D188: 1 | E188: 1 | F188: 1 | G188: 0 | I188: 3
A189: Teolog | C189: 1 | D189: 2 | E189: 3 | F189: 4 | G189: 1 | I189: 11
A190: Psykolog | C190: 1 | D190: 5 | E190: 4 | F190: 2 | G190: 4 | I190: 16
A191: Jurist | C191: 3 | D191: 4 | E191: 3 | F191: 3 | G191: 1 | I191: 14
A192: Økonom | C192: 0 | D192: 1 | E192: 2 | F192: 2 | G192: 2 | I192: 7
A193: Samf. Adm. | C193: 1 | D193: 8 | E193: 6 | F193: 6 | G193: 2 | I193: 23
A194: Cand. Merc. | C194: 5 | D194: 15 | E194: 7 | F194: 5 | G194: 2 | I194: 34
A195: HA | C195: 1 | D195: 1 | E195: 2 | F195: 11 | G195: 0 | I195: 15
A196: HD | C196: 1 | D196: 3 | E196: 1 | F196: 4 | G196: 1 | I196: 10
A197: Komm. og Sprog | C197: 0 | D197: 1 | E197: 3 | F197: 5 | G197: 1 | I197: 10
A198: Cand. IT. | C198: 0 | D198: 1 | E198: 1 | F198: 0 | G198: 0 | I198: 2
A199: Bac. Samf. | C199: 0 | D199: 0 | E199: 1 | F199: 1 | G199: 0 | I199: 2
A200: Bac. Hum. | C200: 0 | D200: 0 | E200: 2 | F200: 4 | G200: 3 | I200: 9
A201: Bac. Nat. | C201: 0 | D201: 1 | E201: 1 | F201: 0 | G201: 0 | I201: 2
A202: Andre | C202: 2 | D202: 9 | E202: 8 | F202: 12 | G202: 9 | I202: 40
A204: Total | C204: 46 | D204: 115 | E204: 126 | F204: 152 | G204: 56 | I204: 495
A206: Ingeniører i alt | C206: 11 | D206: 19 | E206: 20 | F206: 55 | G206: 15 | I206: 120
A207: Magistre i alt | C207: 9 | D207: 27 | E207: 45 | F207: 21 | G207: 8 | I207: 110
A208: DJØF'ere i alt | C208: 10 | D208: 29 | E208: 20 | F208: 27 | G208: 7 | I208: 93
A215: Favrskov
C217: Under 30 år | D217: 30 - 39 år | E217: 40 - 49 år | F217: 50 - 59 år | G217: Over 60 år | I217: I alt
A219: Civ. ing. | C219: 13 | D219: 106 | E219: 97 | F219: 39 | G219: 6 | I219: 261
A220: Diplom ing. | C220: 15 | D220: 73 | E220: 156 | F220: 139 | G220: 39 | I220: 422
A221: Cand. Scient. Tek. | C221: 20 | D221: 63 | E221: 18 | F221: 12 | G221: 0 | I221: 113
A222: MA. Hum. | C222: 26 | D222: 111 | E222: 126 | F222: 31 | G222: 12 | I222: 306
A223: MA. Nat. | C223: 2 | D223: 37 | E223: 59 | F223: 59 | G223: 17 | I223: 174
A224: MA. Ph.d. | C224: 0 | D224: 10 | E224: 5 | F224: 2 | G224: 0 | I224: 17
A225: MA. Samf. | C225: 2 | D225: 9 | E225: 3 | F225: 0 | G225: 0 | I225: 14
A226: Øvrige Mag. | C226: 0 | D226: 2 | E226: 6 | F226: 11 | G226: 1 | I226: 20
A227: Agronom | C227: 2 | D227: 4 | E227: 15 | F227: 22 | G227: 13 | I227: 56
A228: Landsk. Arkt. | C228: 0 | D228: 0 | E228: 2 | F228: 0 | G228: 0 | I228: 2
A229: Hortonom | C229: 0 | D229: 0 | E229: 1 | F229: 3 | G229: 1 | I229: 5
A230: Forstkand. | C230: 0 | D230: 2 | E230: 1 | F230: 1 | G230: 1 | I230: 5
A231: Jordbrugsakad. | C231: 2 | D231: 6 | E231: 19 | F231: 26 | G231: 15 | I231: 68
A232: Mejeriing. | C232: 0 | D232: 1 | E232: 1 | F232: 1 | G232: 2 | I232: 5
A233: Levn.m.kand. | C233: 0 | D233: 1 | E233: 0 | F233: 0 | G233: 0 | I233: 1
A234: Dyrlæge | C234: 2 | D234: 6 | E234: 8 | F234: 4 | G234: 2 | I234: 22
A235: Farmaceut | C235: 1 | D235: 4 | E235: 0 | F235: 3 | G235: 1 | I235: 9
A236: Læge | C236: 5 | D236: 39 | E236: 42 | F236: 15 | G236: 3 | I236: 104
A237: Tandlæge | C237: 0 | D237: 6 | E237: 8 | F237: 2 | G237: 3 | I237: 19
A238: Arkitekt | C238: 3 | D238: 15 | E238: 9 | F238: 4 | G238: 0 | I238: 31
A239: Landinspek. | C239: 1 | D239: 1 | E239: 8 | F239: 2 | G239: 1 | I239: 13
A240: Bibliotekar | C240: 1 | D240: 4 | E240: 8 | F240: 9 | G240: 5 | I240: 27
A241: Musikudd. | C241: 0 | D241: 0 | E241: 0 | F241: 3 | G241: 1 | I241: 4
A242: Teolog | C242: 0 | D242: 2 | E242: 9 | F242: 3 | G242: 0 | I242: 14
A243: Psykolog | C243: 4 | D243: 24 | E243: 15 | F243: 15 | G243: 3 | I243: 61
... 317 more rows

Sheet Tabel 4 ØJ
A1: Tabel 4. Ledighedsberørte - aldersfordelt
A3: Østjylland
C5: Under 30 år | D5: 30 - 39 år | E5: 40 - 49 år | F5: 50 - 59 år | G5: Over 60 år | I5: I alt
A7: Civ. ing. | C7: 71 | D7: 33 | E7: 7 | F7: 14 | G7: 1 | I7: 126
A8: Diplom ing. | C8: 80 | D8: 39 | E8: 26 | F8: 29 | G8: 21 | I8: 195
A9: Cand. Scient. Tek | C9: 213 | D9: 71 | E9: 6 | F9: 3 | G9: 1 | I9: 294
A10: MA. Hum. | C10: 506 | D10: 346 | E10: 128 | F10: 59 | G10: 30 | I10: 1069
A11: MA. Nat. | C11: 55 | D11: 42 | E11: 15 | F11: 11 | G11: 13 | I11: 136
A12: MA. Ph.d. | C12: 2 | D12: 16 | E12: 7 | F12: 3 | G12: 2 | I12: 30
A13: MA. Samf. | C13: 73 | D13: 50 | E13: 2 | F13: 1 | G13: 1 | I13: 127
A14: Øvrige Mag. | C14: 20 | D14: 16 | E14: 11 | F14: 6 | G14: 3 | I14: 56
A15: Agronom | C15: 4 | D15: 1 | E15: 4 | F15: 2 | G15: 2 | I15: 13
A16: Landsk. Arkt. | C16: 0 | D16: 0 | E16: 1 | F16: 0 | G16: 0 | I16: 1
A17: Hortonom | C17: 0 | D17: 0 | E17: 0 | F17: 0 | G17: 0 | I17: 0
A18: Forstkand. | C18: 0 | D18: 0 | E18: 0 | F18: 1 | G18: 0 | I18: 1
A19: Jordbrugsakad. | C19: 4 | D19: 1 | E19: 5 | F19: 3 | G19: 2 | I19: 15
A20: Mejeriing. | C20: 0 | D20: 0 | E20: 0 | F20: 2 | G20: 0 | I20: 2
A21: Levn.m.kand. | C21: 1 | D21: 1 | E21: 0 | F21: 0 | G21: 0 | I21: 2
A22: Dyrlæge | C22: 1 | D22: 1 | E22: 0 | F22: 0 | G22: 0 | I22: 2
A23: Farmaceut | C23: 13 | D23: 10 | E23: 1 | F23: 2 | G23: 1 | I23: 27
A24: Læge | C24: 35 | D24: 25 | E24: 3 | F24: 1 | G24: 0 | I24: 64
A25: Tandlæge | C25: 4 | D25: 0 | E25: 0 | F25: 0 | G25: 2 | I25: 6
A26: Arkitekt | C26: 40 | D26: 40 | E26: 12 | F26: 18 | G26: 10 | I26: 120
A27: Landinspek. | C27: 0 | D27: 1 | E27: 0 | F27: 0 | G27: 0 | I27: 1
A28: Bibliotekar | C28: 3 | D28: 9 | E28: 5 | F28: 2 | G28: 3 | I28: 22
A29: Musikudd. | C29: 1 | D29: 0 | E29: 0 | F29: 0 | G29: 0 | I29: 1
A30: Teolog | C30: 3 | D30: 10 | E30: 2 | F30: 5 | G30: 1 | I30: 21
A31: Psykolog | C31: 112 | D31: 44 | E31: 4 | F31: 6 | G31: 7 | I31: 173
A32: Jurist | C32: 35 | D32: 18 | E32: 9 | F32: 7 | G32: 1 | I32: 70
A33: Økonom | C33: 28 | D33: 15 | E33: 0 | F33: 7 | G33: 4 | I33: 54
A34: Samf. Adm. | C34: 120 | D34: 81 | E34: 27 | F34: 12 | G34: 4 | I34: 244
A35: Cand. Merc. | C35: 220 | D35: 111 | E35: 24 | F35: 26 | G35: 3 | I35: 384
A36: HA | C36: 57 | D36: 15 | E36: 2 | F36: 10 | G36: 2 | I36: 86
A37: HD | C37: 48 | D37: 16 | E37: 0 | F37: 3 | G37: 2 | I37: 69
A38: Komm. og Sprog | C38: 42 | D38: 20 | E38: 15 | F38: 14 | G38: 6 | I38: 97
A39: Cand. IT. | C39: 56 | D39: 19 | E39: 5 | F39: 0 | G39: 1 | I39: 81
A40: Bac. Samf. | C40: 10 | D40: 2 | E40: 3 | F40: 0 | G40: 0 | I40: 15
A41: Bac. Hum. | C41: 53 | D41: 20 | E41: 7 | F41: 4 | G41: 2 | I41: 86
A42: Bac. Nat. | C42: 25 | D42: 11 | E42: 3 | F42: 2 | G42: 0 | I42: 41
A43: Andre | C43: 81 | D43: 76 | E43: 28 | F43: 23 | G43: 15 | I43: 223
A45: Total | C45: 2012 | D45: 1159 | E45: 357 | F45: 273 | G45: 138 | I45: 3939
A47: Ingeniører i alt | C47: 151 | D47: 72 | E47: 33 | F47: 43 | G47: 22 | I47: 321
A48: Magistre i alt | C48: 656 | D48: 470 | E48: 163 | F48: 80 | G48: 49 | I48: 1418
A49: DJØF'ere i alt | C49: 460 | D49: 240 | E49: 62 | F49: 62 | G49: 14 | I49: 838
A56: Horsens
C58: Under 30 år | D58: 30 - 39 år | E58: 40 - 49 år | F58: 50 - 59 år | G58: Over 60 år | I58: I alt
A60: Civ. ing. | C60: 2 | D60: 0 | E60: 2 | F60: 0 | G60: 0 | I60: 4
A61: Diplom ing. | C61: 18 | D61: 4 | E61: 3 | F61: 3 | G61: 2 | I61: 30
A62: Cand. Scient. Tek | C62: 10 | D62: 5 | E62: 0 | F62: 0 | G62: 0 | I62: 15
A63: MA. Hum. | C63: 13 | D63: 16 | E63: 7 | F63: 5 | G63: 0 | I63: 41
A64: MA. Nat. | C64: 0 | D64: 1 | E64: 1 | F64: 0 | G64: 0 | I64: 2
A65: MA. Ph.d. | C65: 0 | D65: 0 | E65: 0 | F65: 0 | G65: 0 | I65: 0
A66: MA. Samf. | C66: 2 | D66: 2 | E66: 0 | F66: 0 | G66: 0 | I66: 4
A67: Øvrige Mag. | C67: 0 | D67: 1 | E67: 2 | F67: 0 | G67: 0 | I67: 3
A68: Agronom | C68: 0 | D68: 0 | E68: 0 | F68: 1 | G68: 0 | I68: 1
A69: Landsk. Arkt. | C69: 0 | D69: 0 | E69: 0 | F69: 0 | G69: 0 | I69: 0
A70: Hortonom | C70: 0 | D70: 0 | E70: 0 | F70: 0 | G70: 0 | I70: 0
A71: Forstkand. | C71: 0 | D71: 0 | E71: 0 | F71: 0 | G71: 0 | I71: 0
A72: Jordbrugsakad. | C72: 0 | D72: 0 | E72: 0 | F72: 1 | G72: 0 | I72: 1
A73: Mejeriing. | C73: 0 | D73: 0 | E73: 0 | F73: 0 | G73: 0 | I73: 0
A74: Levn.m.kand. | C74: 0 | D74: 0 | E74: 0 | F74: 0 | G74: 0 | I74: 0
A75: Dyrlæge | C75: 0 | D75: 0 | E75: 0 | F75: 0 | G75: 0 | I75: 0
A76: Farmaceut | C76: 0 | D76: 1 | E76: 0 | F76: 0 | G76: 1 | I76: 2
A77: Læge | C77: 0 | D77: 0 | E77: 0 | F77: 0 | G77: 0 | I77: 0
A78: Tandlæge | C78: 0 | D78: 0 | E78: 0 | F78: 0 | G78: 0 | I78: 0
A79: Arkitekt | C79: 0 | D79: 0 | E79: 0 | F79: 0 | G79: 0 | I79: 0
A80: Landinspek. | C80: 0 | D80: 0 | E80: 0 | F80: 0 | G80: 0 | I80: 0
A81: Bibliotekar | C81: 0 | D81: 0 | E81: 0 | F81: 0 | G81: 0 | I81: 0
A82: Musikudd. | C82: 0 | D82: 0 | E82: 0 | F82: 0 | G82: 0 | I82: 0
A83: Teolog | C83: 0 | D83: 0 | E83: 0 | F83: 0 | G83: 0 | I83: 0
A84: Psykolog | C84: 4 | D84: 3 | E84: 0 | F84: 0 | G84: 0 | I84: 7
A85: Jurist | C85: 2 | D85: 0 | E85: 2 | F85: 0 | G85: 1 | I85: 5
A86: Økonom | C86: 1 | D86: 0 | E86: 0 | F86: 0 | G86: 0 | I86: 1
A87: Samf. Adm. | C87: 4 | D87: 6 | E87: 2 | F87: 1 | G87: 0 | I87: 13
A88: Cand. Merc. | C88: 12 | D88: 5 | E88: 2 | F88: 1 | G88: 0 | I88: 20
A89: HA | C89: 14 | D89: 2 | E89: 0 | F89: 0 | G89: 0 | I89: 16
A90: HD | C90: 2 | D90: 0 | E90: 0 | F90: 0 | G90: 0 | I90: 2
A91: Komm. og Sprog | C91: 0 | D91: 0 | E91: 0 | F91: 0 | G91: 0 | I91: 0
A92: Cand. IT. | C92: 3 | D92: 1 | E92: 0 | F92: 0 | G92: 0 | I92: 4
A93: Bac. Samf. | C93: 0 | D93: 0 | E93: 0 | F93: 0 | G93: 0 | I93: 0
A94: Bac. Hum. | C94: 1 | D94: 1 | E94: 1 | F94: 1 | G94: 0 | I94: 4
A95: Bac. Nat. | C95: 6 | D95: 0 | E95: 1 | F95: 0 | G95: 0 | I95: 7
A96: Andre | C96: 19 | D96: 13 | E96: 2 | F96: 2 | G96: 0 | I96: 36
A98: Total | C98: 113 | D98: 61 | E98: 25 | F98: 14 | G98: 4 | I98: 217
A100: Ingeniører i alt | C100: 20 | D100: 4 | E100: 5 | F100: 3 | G100: 2 | I100: 34
A101: Magistre i alt | C101: 15 | D101: 20 | E101: 10 | F101: 5 | G101: 0 | I101: 50
A102: DJØF'ere i alt | C102: 33 | D102: 13 | E102: 6 | F102: 2 | G102: 1 | I102: 55
A109: Syddjurs
C111: Under 30 år | D111: 30 - 39 år | E111: 40 - 49 år | F111: 50 - 59 år | G111: Over 60 år | I111: I alt
A113: Civ. ing. | C113: 1 | D113: 0 | E113: 0 | F113: 1 | G113: 0 | I113: 2
A114: Diplom ing. | C114: 1 | D114: 0 | E114: 1 | F114: 1 | G114: 1 | I114: 4
A115: Cand. Scient. Tek | C115: 3 | D115: 0 | E115: 1 | F115: 0 | G115: 0 | I115: 4
A116: MA. Hum. | C116: 3 | D116: 13 | E116: 3 | F116: 1 | G116: 2 | I116: 22
A117: MA. Nat. | C117: 1 | D117: 1 | E117: 0 | F117: 0 | G117: 1 | I117: 3
A118: MA. Ph.d. | C118: 0 | D118: 1 | E118: 1 | F118: 0 | G118: 0 | I118: 2
A119: MA. Samf. | C119: 0 | D119: 1 | E119: 0 | F119: 0 | G119: 0 | I119: 1
A120: Øvrige Mag. | C120: 2 | D120: 2 | E120: 0 | F120: 0 | G120: 0 | I120: 4
A121: Agronom | C121: 1 | D121: 0 | E121: 1 | F121: 0 | G121: 0 | I121: 2
A122: Landsk. Arkt. | C122: 0 | D122: 0 | E122: 0 | F122: 0 | G122: 0 | I122: 0
A123: Hortonom | C123: 0 | D123: 0 | E123: 0 | F123: 0 | G123: 0 | I123: 0
A124: Forstkand. | C124: 0 | D124: 0 | E124: 0 | F124: 0 | G124: 0 | I124: 0
A125: Jordbrugsakad. | C125: 1 | D125: 0 | E125: 1 | F125: 0 | G125: 0 | I125: 2
A126: Mejeriing. | C126: 0 | D126: 0 | E126: 0 | F126: 0 | G126: 0 | I126: 0
A127: Levn.m.kand. | C127: 0 | D127: 0 | E127: 0 | F127: 0 | G127: 0 | I127: 0
A128: Dyrlæge | C128: 0 | D128: 0 | E128: 0 | F128: 0 | G128: 0 | I128: 0
A129: Farmaceut | C129: 0 | D129: 1 | E129: 0 | F129: 0 | G129: 0 | I129: 1
A130: Læge | C130: 0 | D130: 1 | E130: 0 | F130: 0 | G130: 0 | I130: 1
A131: Tandlæge | C131: 0 | D131: 0 | E131: 0 | F131: 0 | G131: 0 | I131: 0
A132: Arkitekt | C132: 1 | D132: 1 | E132: 0 | F132: 1 | G132: 0 | I132: 3
A133: Landinspek. | C133: 0 | D133: 0 | E133: 0 | F133: 0 | G133: 0 | I133: 0
A134: Bibliotekar | C134: 1 | D134: 0 | E134: 1 | F134: 1 | G134: 1 | I134: 4
A135: Musikudd. | C135: 0 | D135: 0 | E135: 0 | F135: 0 | G135: 0 | I135: 0
A136: Teolog | C136: 0 | D136: 0 | E136: 0 | F136: 0 | G136: 0 | I136: 0
A137: Psykolog | C137: 1 | D137: 0 | E137: 1 | F137: 0 | G137: 0 | I137: 2
A138: Jurist | C138: 0 | D138: 1 | E138: 0 | F138: 0 | G138: 0 | I138: 1
A139: Økonom | C139: 0 | D139: 0 | E139: 0 | F139: 1 | G139: 0 | I139: 1
A140: Samf. Adm. | C140: 0 | D140: 2 | E140: 0 | F140: 1 | G140: 1 | I140: 4
A141: Cand. Merc. | C141: 1 | D141: 1 | E141: 1 | F141: 2 | G141: 0 | I141: 5
A142: HA | C142: 0 | D142: 0 | E142: 0 | F142: 0 | G142: 0 | I142: 0
A143: HD | C143: 0 | D143: 0 | E143: 0 | F143: 0 | G143: 0 | I143: 0
A144: Komm. og Sprog | C144: 0 | D144: 0 | E144: 1 | F144: 2 | G144: 0 | I144: 3
A145: Cand. IT. | C145: 0 | D145: 0 | E145: 0 | F145: 0 | G145: 0 | I145: 0
A146: Bac. Samf. | C146: 0 | D146: 0 | E146: 0 | F146: 0 | G146: 0 | I146: 0
A147: Bac. Hum. | C147: 0 | D147: 0 | E147: 0 | F147: 0 | G147: 0 | I147: 0
A148: Bac. Nat. | C148: 0 | D148: 0 | E148: 0 | F148: 0 | G148: 0 | I148: 0
A149: Andre | C149: 1 | D149: 5 | E149: 1 | F149: 2 | G149: 1 | I149: 10
A151: Total | C151: 17 | D151: 30 | E151: 12 | F151: 13 | G151: 7 | I151: 79
A153: Ingeniører i alt | C153: 2 | D153: 0 | E153: 1 | F153: 2 | G153: 1 | I153: 6
A154: Magistre i alt | C154: 6 | D154: 18 | E154: 4 | F154: 1 | G154: 3 | I154: 32
A155: DJØF'ere i alt | C155: 1 | D155: 4 | E155: 1 | F155: 4 | G155: 1 | I155: 11
A162: Norddjurs
C164: Under 30 år | D164: 30 - 39 år | E164: 40 - 49 år | F164: 50 - 59 år | G164: Over 60 år | I164: I alt
A166: Civ. ing. | C166: 0 | D166: 0 | E166: 0 | F166: 0 | G166: 0 | I166: 0
A167: Diplom ing. | C167: 2 | D167: 0 | E167: 0 | F167: 1 | G167: 1 | I167: 4
A168: Cand. Scient. Tek | C168: 2 | D168: 0 | E168: 0 | F168: 0 | G168: 0 | I168: 2
A169: MA. Hum. | C169: 1 | D169: 1 | E169: 3 | F169: 0 | G169: 0 | I169: 5
A170: MA. Nat. | C170: 0 | D170: 1 | E170: 0 | F170: 0 | G170: 1 | I170: 2
A171: MA. Ph.d. | C171: 0 | D171: 0 | E171: 0 | F171: 0 | G171: 1 | I171: 1
A172: MA. Samf. | C172: 0 | D172: 2 | E172: 0 | F172: 0 | G172: 0 | I172: 2
A173: Øvrige Mag. | C173: 0 | D173: 0 | E173: 0 | F173: 0 | G173: 0 | I173: 0
A174: Agronom | C174: 0 | D174: 0 | E174: 0 | F174: 0 | G174: 0 | I174: 0
A175: Landsk. Arkt. | C175: 0 | D175: 0 | E175: 0 | F175: 0 | G175: 0 | I175: 0
A176: Hortonom | C176: 0 | D176: 0 | E176: 0 | F176: 0 | G176: 0 | I176: 0
A177: Forstkand. | C177: 0 | D177: 0 | E177: 0 | F177: 0 | G177: 0 | I177: 0
A178: Jordbrugsakad. | C178: 0 | D178: 0 | E178: 0 | F178: 0 | G178: 0 | I178: 0
A179: Mejeriing. | C179: 0 | D179: 0 | E179: 0 | F179: 0 | G179: 0 | I179: 0
A180: Levn.m.kand. | C180: 0 | D180: 0 | E180: 0 | F180: 0 | G180: 0 | I180: 0
A181: Dyrlæge | C181: 0 | D181: 0 | E181: 0 | F181: 0 | G181: 0 | I181: 0
A182: Farmaceut | C182: 0 | D182: 0 | E182: 0 | F182: 0 | G182: 0 | I182: 0
A183: Læge | C183: 0 | D183: 0 | E183: 0 | F183: 0 | G183: 0 | I183: 0
A184: Tandlæge | C184: 0 | D184: 0 | E184: 0 | F184: 0 | G184: 0 | I184: 0
A185: Arkitekt | C185: 0 | D185: 0 | E185: 0 | F185: 0 | G185: 0 | I185: 0
A186: Landinspek. | C186: 0 | D186: 1 | E186: 0 | F186: 0 | G186: 0 | I186: 1
A187: Bibliotekar | C187: 0 | D187: 1 | E187: 0 | F187: 0 | G187: 0 | I187: 1
A188: Musikudd. | C188: 0 | D188: 0 | E188: 0 | F188: 0 | G188: 0 | I188: 0
A189: Teolog | C189: 0 | D189: 1 | E189: 0 | F189: 0 | G189: 0 | I189: 1
A190: Psykolog | C190: 0 | D190: 2 | E190: 0 | F190: 0 | G190: 1 | I190: 3
A191: Jurist | C191: 0 | D191: 0 | E191: 0 | F191: 0 | G191: 0 | I191: 0
A192: Økonom | C192: 0 | D192: 0 | E192: 0 | F192: 0 | G192: 0 | I192: 0
A193: Samf. Adm. | C193: 0 | D193: 1 | E193: 2 | F193: 0 | G193: 0 | I193: 3
A194: Cand. Merc. | C194: 1 | D194: 3 | E194: 0 | F194: 0 | G194: 0 | I194: 4
A195: HA | C195: 0 | D195: 0 | E195: 0 | F195: 2 | G195: 0 | I195: 2
A196: HD | C196: 0 | D196: 0 | E196: 0 | F196: 0 | G196: 0 | I196: 0
A197: Komm. og Sprog | C197: 0 | D197: 0 | E197: 0 | F197: 0 | G197: 0 | I197: 0
A198: Cand. IT. | C198: 0 | D198: 0 | E198: 0 | F198: 0 | G198: 0 | I198: 0
A199: Bac. Samf. | C199: 0 | D199: 0 | E199: 0 | F199: 0 | G199: 0 | I199: 0
A200: Bac. Hum. | C200: 0 | D200: 0 | E200: 0 | F200: 0 | G200: 0 | I200: 0
A201: Bac. Nat. | C201: 0 | D201: 0 | E201: 0 | F201: 0 | G201: 0 | I201: 0
A202: Andre | C202: 0 | D202: 0 | E202: 0 | F202: 0 | G202: 0 | I202: 0
A204: Total | C204: 6 | D204: 13 | E204: 5 | F204: 3 | G204: 4 | I204: 31
A206: Ingeniører i alt | C206: 2 | D206: 0 | E206: 0 | F206: 1 | G206: 1 | I206: 4
A207: Magistre i alt | C207: 1 | D207: 4 | E207: 3 | F207: 0 | G207: 2 | I207: 10
A208: DJØF'ere i alt | C208: 1 | D208: 4 | E208: 2 | F208: 2 | G208: 0 | I208: 9
A215: Favrskov
C217: Under 30 år | D217: 30 - 39 år | E217: 40 - 49 år | F217: 50 - 59 år | G217: Over 60 år | I217: I alt
A219: Civ. ing. | C219: 1 | D219: 2 | E219: 0 | F219: 2 | G219: 0 | I219: 5
A220: Diplom ing. | C220: 1 | D220: 0 | E220: 0 | F220: 0 | G220: 1 | I220: 2
A221: Cand. Scient. Tek | C221: 2 | D221: 1 | E221: 0 | F221: 0 | G221: 0 | I221: 3
A222: MA. Hum. | C222: 4 | D222: 11 | E222: 6 | F222: 1 | G222: 1 | I222: 23
A223: MA. Nat. | C223: 1 | D223: 3 | E223: 0 | F223: 0 | G223: 0 | I223: 4
A224: MA. Ph.d. | C224: 0 | D224: 0 | E224: 0 | F224: 1 | G224: 0 | I224: 1
A225: MA. Samf. | C225: 0 | D225: 2 | E225: 0 | F225: 0 | G225: 0 | I225: 2
A226: Øvrige Mag. | C226: 0 | D226: 0 | E226: 0 | F226: 0 | G226: 0 | I226: 0
A227: Agronom | C227: 0 | D227: 0 | E227: 0 | F227: 1 | G227: 0 | I227: 1
A228: Landsk. Arkt. | C228: 0 | D228: 0 | E228: 0 | F228: 0 | G228: 0 | I228: 0
A229: Hortonom | C229: 0 | D229: 0 | E229: 0 | F229: 0 | G229: 0 | I229: 0
A230: Forstkand. | C230: 0 | D230: 0 | E230: 0 | F230: 0 | G230: 0 | I230: 0
A231: Jordbrugsakad. | C231: 0 | D231: 0 | E231: 0 | F231: 1 | G231: 0 | I231: 1
A232: Mejeriing. | C232: 0 | D232: 0 | E232: 0 | F232: 0 | G232: 0 | I232: 0
A233: Levn.m.kand. | C233: 0 | D233: 0 | E233: 0 | F233: 0 | G233: 0 | I233: 0
A234: Dyrlæge | C234: 0 | D234: 1 | E234: 0 | F234: 0 | G234: 0 | I234: 1
A235: Farmaceut | C235: 0 | D235: 0 | E235: 0 | F235: 0 | G235: 0 | I235: 0
A236: Læge | C236: 0 | D236: 1 | E236: 0 | F236: 0 | G236: 0 | I236: 1
A237: Tandlæge | C237: 0 | D237: 0 | E237: 0 | F237: 0 | G237: 0 | I237: 0
A238: Arkitekt | C238: 1 | D238: 0 | E238: 0 | F238: 1 | G238: 0 | I238: 2
A239: Landinspek. | C239: 0 | D239: 0 | E239: 0 | F239: 0 | G239: 0 | I239: 0
A240: Bibliotekar | C240: 0 | D240: 1 | E240: 0 | F240: 0 | G240: 0 | I240: 1
A241: Musikudd. | C241: 0 | D241: 0 | E241: 0 | F241: 0 | G241: 0 | I241: 0
A242: Teolog | C242: 0 | D242: 0 | E242: 0 | F242: 0 | G242: 0 | I242: 0
A243: Psykolog | C243: 2 | D243: 2 | E243: 0 | F243: 0 | G243: 0 | I243: 4
... 317 more rows

Sheet Tabel 4(Br) ØJ
A1: Tabel 4. Ledighedsberørte - aldersfordelt
A3: Østjylland
C5: Under 30 år | D5: 30 - 39 år | E5: 40 - 49 år | F5: 50 - 59 år | G5: Over 60 år | I5: I alt
A7: Civ. ing. | C7: 63.54518805 | D7: 29.75425685 | E7: 6.537142144 | F7: 10.71103349 | G7: 0.9998128859 | I7: 111.5474334
A8: Diplom ing. | C8: 75.62901516 | D8: 35.22360132 | E8: 20.2476143 | F8: 24.34042288 | G8: 17.54506331 | I8: 172.985717
A9: Cand. Scient. Tek | C9: 187.979168 | D9: 62.26595148 | E9: 5.906567704 | F9: 2.496725504 | G9: 0.2675731304 | I9: 258.9159858
A10: MA. Hum. | C10: 445.3402358 | D10: 290.6018836 | E10: 102.5734423 | F10: 48.25672051 | G10: 22.37198279 | I10: 909.144265
A11: MA. Nat. | C11: 49.50102913 | D11: 34.51194412 | E11: 13.5383272 | F11: 10.05301566 | G11: 10.44595522 | I11: 118.0502713
A12: MA. Ph.d. | C12: 0.7996008233 | D12: 14.21879873 | E12: 5.851680908 | F12: 2.526663756 | G12: 1.815006549 | I12: 25.21175076
A13: MA. Samf. | C13: 61.65471216 | D13: 41.06966881 | E13: 1.650346161 | F13: 0.5320276929 | G13: 0.5650845132 | I13: 105.4718393
A14: Øvrige Mag. | C14: 17.42032059 | D14: 14.27119067 | E14: 10.21331005 | F14: 4.808208071 | G14: 2.962015842 | I14: 49.67504522
A15: Agronom | C15: 3.168465041 | D15: 0.9998128859 | E15: 3.768477515 | F15: 1.649098734 | G15: 1.115823614 | I15: 10.70167779
A16: Landsk. Arkt. | C16: 0 | D16: 0 | E16: 0.7746522797 | F16: 0 | G16: 0 | I16: 0.7746522797
A17: Hortonom | C17: 0 | D17: 0 | E17: 0 | F17: 0 | G17: 0 | I17: 0
A18: Forstkand. | C18: 0 | D18: 0 | E18: 0 | F18: 0.9998128859 | G18: 0 | I18: 0.9998128859
A19: Jordbrugsakad. | C19: 3.168465041 | D19: 0.9998128859 | E19: 4.543129795 | F19: 2.64891162 | G19: 1.115823614 | I19: 12.47614296
A20: Mejeriing. | C20: 0 | D20: 0 | E20: 0 | F20: 0.7072912119 | G20: 0 | I20: 0.7072912119
A21: Levn.m.kand. | C21: 0.9536580802 | D21: 0.9998128859 | E21: 0 | F21: 0 | G21: 0 | I21: 1.953470966
A22: Dyrlæge | C22: 0.9998128859 | D22: 0.2700679848 | E22: 0 | F22: 0 | G22: 0 | I22: 1.269880871
A23: Farmaceut | C23: 12.07696626 | D23: 9.351961579 | E23: 0.9998128859 | F23: 1.861161355 | G23: 0.03056196595 | I23: 24.32046404
A24: Læge | C24: 31.151999 | D24: 20.99482318 | E24: 2.494230649 | F24: 0.9998128859 | G24: 0 | I24: 55.64086571
A25: Tandlæge | C25: 2.538514314 | D25: 0 | E25: 0 | F25: 0 | G25: 1.341607934 | I25: 3.880122248
A26: Arkitekt | C26: 35.35832346 | D26: 33.87388511 | E26: 10.27256284 | F26: 15.34273062 | G26: 9.444271191 | I26: 104.2917732
A27: Landinspek. | C27: 0 | D27: 0.9998128859 | E27: 0 | F27: 0 | G27: 0 | I27: 0.9998128859
A28: Bibliotekar | C28: 2.907129046 | D28: 8.227405975 | E28: 4.897399114 | F28: 1.617289341 | G28: 1.520613734 | I28: 19.16983721
A29: Musikudd. | C29: 0.3998004117 | D29: 0 | E29: 0 | F29: 0 | G29: 0 | I29: 0.3998004117
A30: Teolog | C30: 2.814819435 | D30: 7.944240005 | E30: 1.57550053 | F30: 3.760992952 | G30: 0.9536580802 | I30: 17.049211
A31: Psykolog | C31: 98.2467411 | D31: 37.12530406 | E31: 2.393189048 | F31: 4.936069357 | G31: 6.657518867 | I31: 149.3588224
A32: Jurist | C32: 30.44845007 | D32: 14.35227344 | E32: 7.840703549 | F32: 6.605126926 | G32: 0.4085324019 | I32: 59.65508638
A33: Økonom | C33: 22.94891786 | D33: 12.24162665 | E33: 0 | F33: 6.767916173 | G33: 3.280109774 | I33: 45.23857045
A34: Samf. Adm. | C34: 109.20726 | D34: 68.11326639 | E34: 24.88118256 | F34: 11.10958648 | G34: 3.814632321 | I34: 217.1259278
A35: Cand. Merc. | C35: 190.2719391 | D35: 97.3885112 | E35: 21.39836587 | F35: 22.57967941 | G35: 2.537890601 | I35: 334.1763862
A36: HA | C36: 50.06923221 | D36: 12.33705482 | E36: 0.9012661386 | F36: 8.694567455 | G36: 1.762614607 | I36: 73.76473523
A37: HD | C37: 42.88155679 | D37: 13.48156926 | E37: 0 | F37: 2.676355018 | G37: 1.999625772 | I37: 61.03910684
A38: Komm. og Sprog | C38: 34.73648101 | D38: 17.85754382 | E38: 13.31254288 | F38: 10.99794175 | G38: 5.535458118 | I38: 82.43996757
A39: Cand. IT. | C39: 49.9725566 | D39: 16.81344727 | E39: 4.791367804 | F39: 0 | G39: 0.3998004117 | I39: 71.97717208
A40: Bac. Samf. | C40: 7.946111146 | D40: 1.999625772 | E40: 2.999438658 | F40: 0 | G40: 0 | I40: 12.94517558
A41: Bac. Hum. | C41: 46.68309112 | D41: 16.8839269 | E41: 5.764361005 | F41: 3.50527038 | G41: 1.030374852 | I41: 73.86702426
A42: Bac. Nat. | C42: 22.06885798 | D42: 9.564647914 | E42: 2.907129046 | F42: 1.999625772 | G42: 0 | I42: 36.54026071
A43: Andre | C43: 71.23183434 | D43: 64.90675482 | E43: 24.19821618 | F43: 18.49622653 | G43: 11.63787189 | I43: 190.4709038
A45: Total | C45: 1770.951787 | D45: 988.6446704 | E45: 302.6888293 | F45: 229.0313728 | G45: 110.4434604 | I45: 3401.76012
A47: Ingeniører i alt | C47: 139.1742032 | D47: 64.97785817 | E47: 26.78475644 | F47: 35.05145637 | G47: 18.54487619 | I47: 284.5331504
A48: Magistre i alt | C48: 574.7158985 | D48: 394.6734859 | E48: 133.8271066 | F48: 66.17663569 | G48: 38.16004491 | I48: 1207.553172
A49: DJØF'ere i alt | C49: 402.9457993 | D49: 204.4327325 | E49: 55.02151812 | F49: 55.75687644 | G49: 11.8037797 | I49: 729.960706
A56: Horsens
C58: Under 30 år | D58: 30 - 39 år | E58: 40 - 49 år | F58: 50 - 59 år | G58: Over 60 år | I58: I alt
A60: Civ. ing. | C60: 1.999625772 | D60: 0 | E60: 1.999625772 | F60: 0 | G60: 0 | I60: 3.999251544
A61: Diplom ing. | C61: 17.32177384 | D61: 3.625023389 | E61: 2.122497349 | F61: 2.907129046 | G61: 1.549304559 | I61: 27.52572819
A62: Cand. Scient. Tek | C62: 9.351961579 | D62: 4.35289715 | E62: 0 | F62: 0 | G62: 0 | I62: 13.70485873
A63: MA. Hum. | C63: 11.5742531 | D63: 12.22229152 | E63: 5.937753384 | F63: 2.290900019 | G63: 0 | I63: 32.02519803
A64: MA. Nat. | C64: 0 | D64: 0.9998128859 | E64: 0.9998128859 | F64: 0 | G64: 0 | I64: 1.999625772
A65: MA. Ph.d. | C65: 0 | D65: 0 | E65: 0 | F65: 0 | G65: 0 | I65: 0
A66: MA. Samf. | C66: 1.53371172 | D66: 1.869893345 | E66: 0 | F66: 0 | G66: 0 | I66: 3.403605065
A67: Øvrige Mag. | C67: 0 | D67: 0.594399052 | E67: 1.999625772 | F67: 0 | G67: 0 | I67: 2.594024824
A68: Agronom | C68: 0 | D68: 0 | E68: 0 | F68: 0.7415954594 | G68: 0 | I68: 0.7415954594
A69: Landsk. Arkt. | C69: 0 | D69: 0 | E69: 0 | F69: 0 | G69: 0 | I69: 0
A70: Hortonom | C70: 0 | D70: 0 | E70: 0 | F70: 0 | G70: 0 | I70: 0
A71: Forstkand. | C71: 0 | D71: 0 | E71: 0 | F71: 0 | G71: 0 | I71: 0
A72: Jordbrugsakad. | C72: 0 | D72: 0 | E72: 0 | F72: 0.7415954594 | G72: 0 | I72: 0.7415954594
A73: Mejeriing. | C73: 0 | D73: 0 | E73: 0 | F73: 0 | G73: 0 | I73: 0
A74: Levn.m.kand. | C74: 0 | D74: 0 | E74: 0 | F74: 0 | G74: 0 | I74: 0
A75: Dyrlæge | C75: 0 | D75: 0 | E75: 0 | F75: 0 | G75: 0 | I75: 0
A76: Farmaceut | C76: 0 | D76: 0.9998128859 | E76: 0 | F76: 0 | G76: 0.03056196595 | I76: 1.030374852
A77: Læge | C77: 0 | D77: 0 | E77: 0 | F77: 0 | G77: 0 | I77: 0
A78: Tandlæge | C78: 0 | D78: 0 | E78: 0 | F78: 0 | G78: 0 | I78: 0
A79: Arkitekt | C79: 0 | D79: 0 | E79: 0 | F79: 0 | G79: 0 | I79: 0
A80: Landinspek. | C80: 0 | D80: 0 | E80: 0 | F80: 0 | G80: 0 | I80: 0
A81: Bibliotekar | C81: 0 | D81: 0 | E81: 0 | F81: 0 | G81: 0 | I81: 0
A82: Musikudd. | C82: 0 | D82: 0 | E82: 0 | F82: 0 | G82: 0 | I82: 0
A83: Teolog | C83: 0 | D83: 0 | E83: 0 | F83: 0 | G83: 0 | I83: 0
A84: Psykolog | C84: 3.429177322 | D84: 2.974490114 | E84: 0 | F84: 0 | G84: 0 | I84: 6.403667436
A85: Jurist | C85: 1.999625772 | D85: 0 | E85: 1.538077715 | F85: 0 | G85: 0.4085324019 | I85: 3.946235888
A86: Økonom | C86: 0.9686272064 | D86: 0 | E86: 0 | F86: 0 | G86: 0 | I86: 0.9686272064
A87: Samf. Adm. | C87: 3.999251544 | D87: 5.345849186 | E87: 1.999625772 | F87: 0.8813073037 | G87: 0 | I87: 12.22603381
A88: Cand. Merc. | C88: 10.69668808 | D88: 4.54749579 | E88: 1.999625772 | F88: 0.9998128859 | G88: 0 | I88: 18.24362253
A89: HA | C89: 12.3819622 | D89: 1.999625772 | E89: 0 | F89: 0 | G89: 0 | I89: 14.38158797
A90: HD | C90: 1.999625772 | D90: 0 | E90: 0 | F90: 0 | G90: 0 | I90: 1.999625772
A91: Komm. og Sprog | C91: 0 | D91: 0 | E91: 0 | F91: 0 | G91: 0 | I91: 0
A92: Cand. IT. | C92: 2.82604628 | D92: 0.9405600948 | E92: 0 | F92: 0 | G92: 0 | I92: 3.766606374
A93: Bac. Samf. | C93: 0 | D93: 0 | E93: 0 | F93: 0 | G93: 0 | I93: 0
A94: Bac. Hum. | C94: 0.9998128859 | D94: 0.9998128859 | E94: 0.4621717707 | F94: 0.9998128859 | G94: 0 | I94: 3.461610428
A95: Bac. Nat. | C95: 4.936693071 | D95: 0 | E95: 0.9075032745 | F95: 0 | G95: 0 | I95: 5.844196345
A96: Andre | C96: 17.24879935 | D96: 10.03929396 | E96: 1.476953783 | F96: 0.9517869394 | G96: 0 | I96: 29.71683403
A98: Total | C98: 103.2676355 | D98: 51.51125803 | E98: 21.44327325 | F98: 9.772344539 | G98: 1.988398927 | I98: 187.9829102
A100: Ingeniører i alt | C100: 19.32139961 | D100: 3.625023389 | E100: 4.122123121 | F100: 2.907129046 | G100: 1.549304559 | I100: 31.52497973
A101: Magistre i alt | C101: 13.10796482 | D101: 15.68639681 | E101: 8.937192041 | F101: 2.290900019 | G101: 0 | I101: 40.02245369
A102: DJØF'ere i alt | C102: 30.04615481 | D102: 11.89297075 | E102: 5.537329258 | F102: 1.88112019 | G102: 0.4085324019 | I102: 49.7661074
A109: Syddjurs
C111: Under 30 år | D111: 30 - 39 år | E111: 40 - 49 år | F111: 50 - 59 år | G111: Over 60 år | I111: I alt
A113: Civ. ing. | C113: 0.9998128859 | D113: 0 | E113: 0 | F113: 0.9075032745 | G113: 0 | I113: 1.90731616
A114: Diplom ing. | C114: 0.9998128859 | D114: 0 | E114: 0.9998128859 | F114: 0.9998128859 | G114: 0.6012599015 | I114: 3.600698559
A115: Cand. Scient. Tek | C115: 1.707104098 | D115: 0 | E115: 0.9998128859 | F115: 0 | G115: 0 | I115: 2.706916984
A116: MA. Hum. | C116: 2.312729994 | D116: 9.572132477 | E116: 2.999438658 | F116: 0.9998128859 | G116: 1.100854488 | I116: 16.9849685
A117: MA. Nat. | C117: 0.6168527412 | D117: 0.09605189297 | E117: 0 | F117: 0 | G117: 0.9998128859 | I117: 1.71271752
A118: MA. Ph.d. | C118: 0 | D118: 0.9998128859 | E118: 0.9998128859 | F118: 0 | G118: 0 | I118: 1.999625772
A119: MA. Samf. | C119: 0 | D119: 0.7503274496 | E119: 0 | F119: 0 | G119: 0 | I119: 0.7503274496
A120: Øvrige Mag. | C120: 1.999625772 | D120: 1.999625772 | E120: 0 | F120: 0 | G120: 0 | I120: 3.999251544
A121: Agronom | C121: 0.9998128859 | D121: 0 | E121: 0.7690388574 | F121: 0 | G121: 0 | I121: 1.768851743
A122: Landsk. Arkt. | C122: 0 | D122: 0 | E122: 0 | F122: 0 | G122: 0 | I122: 0
A123: Hortonom | C123: 0 | D123: 0 | E123: 0 | F123: 0 | G123: 0 | I123: 0
A124: Forstkand. | C124: 0 | D124: 0 | E124: 0 | F124: 0 | G124: 0 | I124: 0
A125: Jordbrugsakad. | C125: 0.9998128859 | D125: 0 | E125: 0.7690388574 | F125: 0 | G125: 0 | I125: 1.768851743
A126: Mejeriing. | C126: 0 | D126: 0 | E126: 0 | F126: 0 | G126: 0 | I126: 0
A127: Levn.m.kand. | C127: 0 | D127: 0 | E127: 0 | F127: 0 | G127: 0 | I127: 0
A128: Dyrlæge | C128: 0 | D128: 0 | E128: 0 | F128: 0 | G128: 0 | I128: 0
A129: Farmaceut | C129: 0 | D129: 0.6767292459 | E129: 0 | F129: 0 | G129: 0 | I129: 0.6767292459
A130: Læge | C130: 0 | D130: 0.9075032745 | E130: 0 | F130: 0 | G130: 0 | I130: 0.9075032745
A131: Tandlæge | C131: 0 | D131: 0 | E131: 0 | F131: 0 | G131: 0 | I131: 0
A132: Arkitekt | C132: 0.9998128859 | D132: 0.5844196345 | E132: 0 | F132: 0.9998128859 | G132: 0 | I132: 2.584045406
A133: Landinspek. | C133: 0 | D133: 0 | E133: 0 | F133: 0 | G133: 0 | I133: 0
A134: Bibliotekar | C134: 0.9998128859 | D134: 0 | E134: 0.9998128859 | F134: 0.6174764548 | G134: 0.4758934697 | I134: 3.092995696
A135: Musikudd. | C135: 0 | D135: 0 | E135: 0 | F135: 0 | G135: 0 | I135: 0
A136: Teolog | C136: 0 | D136: 0 | E136: 0 | F136: 0 | G136: 0 | I136: 0
A137: Psykolog | C137: 0.9998128859 | D137: 0 | E137: 0.2388823052 | F137: 0 | G137: 0 | I137: 1.238695191
A138: Jurist | C138: 0 | D138: 0.9998128859 | E138: 0 | F138: 0 | G138: 0 | I138: 0.9998128859
A139: Økonom | C139: 0 | D139: 0 | E139: 0 | F139: 0.9998128859 | G139: 0 | I139: 0.9998128859
A140: Samf. Adm. | C140: 0 | D140: 1.399613298 | E140: 0 | F140: 0.9998128859 | G140: 0.9998128859 | I140: 3.399239069
A141: Cand. Merc. | C141: 0.7690388574 | D141: 0.9998128859 | E141: 0.9998128859 | F141: 1.768851743 | G141: 0 | I141: 4.537516372
A142: HA | C142: 0 | D142: 0 | E142: 0 | F142: 0 | G142: 0 | I142: 0
A143: HD | C143: 0 | D143: 0 | E143: 0 | F143: 0 | G143: 0 | I143: 0
A144: Komm. og Sprog | C144: 0 | D144: 0 | E144: 0.9998128859 | F144: 1.797542568 | G144: 0 | I144: 2.797355454
A145: Cand. IT. | C145: 0 | D145: 0 | E145: 0 | F145: 0 | G145: 0 | I145: 0
A146: Bac. Samf. | C146: 0 | D146: 0 | E146: 0 | F146: 0 | G146: 0 | I146: 0
A147: Bac. Hum. | C147: 0 | D147: 0 | E147: 0 | F147: 0 | G147: 0 | I147: 0
A148: Bac. Nat. | C148: 0 | D148: 0 | E148: 0 | F148: 0 | G148: 0 | I148: 0
A149: Andre | C149: 0.924967255 | D149: 4.491361567 | E149: 0.9998128859 | F149: 1.953470966 | G149: 0.9998128859 | I149: 9.36942556
A151: Total | C151: 14.32919603 | D151: 23.47720327 | E151: 11.00605002 | F151: 12.04390944 | G151: 5.177446517 | I151: 66.03380528
A153: Ingeniører i alt | C153: 1.999625772 | D153: 0 | E153: 0.9998128859 | F153: 1.90731616 | G153: 0.6012599015 | I153: 5.50801472
A154: Magistre i alt | C154: 4.929208507 | D154: 13.41795048 | E154: 3.999251544 | F154: 0.9998128859 | G154: 2.100667374 | I154: 25.44689079
A155: DJØF'ere i alt | C155: 0.7690388574 | D155: 3.399239069 | E155: 0.9998128859 | F155: 3.768477515 | G155: 0.9998128859 | I155: 9.936381214
A162: Norddjurs
C164: Under 30 år | D164: 30 - 39 år | E164: 40 - 49 år | F164: 50 - 59 år | G164: Over 60 år | I164: I alt
A166: Civ. ing. | C166: 0 | D166: 0 | E166: 0 | F166: 0 | G166: 0 | I166: 0
A167: Diplom ing. | C167: 1.999625772 | D167: 0 | E167: 0 | F167: 0.9998128859 | G167: 0.9998128859 | I167: 3.999251544
A168: Cand. Scient. Tek | C168: 1.999625772 | D168: 0 | E168: 0 | F168: 0 | G168: 0 | I168: 1.999625772
A169: MA. Hum. | C169: 0.6162290276 | D169: 0.8944052891 | E169: 2.999438658 | F169: 0 | G169: 0 | I169: 4.510072974
A170: MA. Nat. | C170: 0 | D170: 0.9998128859 | E170: 0 | F170: 0 | G170: 0.9998128859 | I170: 1.999625772
A171: MA. Ph.d. | C171: 0 | D171: 0 | E171: 0 | F171: 0 | G171: 0.9998128859 | I171: 0.9998128859
A172: MA. Samf. | C172: 0 | D172: 1.999625772 | E172: 0 | F172: 0 | G172: 0 | I172: 1.999625772
A173: Øvrige Mag. | C173: 0 | D173: 0 | E173: 0 | F173: 0 | G173: 0 | I173: 0
A174: Agronom | C174: 0 | D174: 0 | E174: 0 | F174: 0 | G174: 0 | I174: 0
A175: Landsk. Arkt. | C175: 0 | D175: 0 | E175: 0 | F175: 0 | G175: 0 | I175: 0
A176: Hortonom | C176: 0 | D176: 0 | E176: 0 | F176: 0 | G176: 0 | I176: 0
A177: Forstkand. | C177: 0 | D177: 0 | E177: 0 | F177: 0 | G177: 0 | I177: 0
A178: Jordbrugsakad. | C178: 0 | D178: 0 | E178: 0 | F178: 0 | G178: 0 | I178: 0
A179: Mejeriing. | C179: 0 | D179: 0 | E179: 0 | F179: 0 | G179: 0 | I179: 0
A180: Levn.m.kand. | C180: 0 | D180: 0 | E180: 0 | F180: 0 | G180: 0 | I180: 0
A181: Dyrlæge | C181: 0 | D181: 0 | E181: 0 | F181: 0 | G181: 0 | I181: 0
A182: Farmaceut | C182: 0 | D182: 0 | E182: 0 | F182: 0 | G182: 0 | I182: 0
A183: Læge | C183: 0 | D183: 0 | E183: 0 | F183: 0 | G183: 0 | I183: 0
A184: Tandlæge | C184: 0 | D184: 0 | E184: 0 | F184: 0 | G184: 0 | I184: 0
A185: Arkitekt | C185: 0 | D185: 0 | E185: 0 | F185: 0 | G185: 0 | I185: 0
A186: Landinspek. | C186: 0 | D186: 0.9998128859 | E186: 0 | F186: 0 | G186: 0 | I186: 0.9998128859
A187: Bibliotekar | C187: 0 | D187: 0.9998128859 | E187: 0 | F187: 0 | G187: 0 | I187: 0.9998128859
A188: Musikudd. | C188: 0 | D188: 0 | E188: 0 | F188: 0 | G188: 0 | I188: 0
A189: Teolog | C189: 0 | D189: 0.9998128859 | E189: 0 | F189: 0 | G189: 0 | I189: 0.9998128859
A190: Psykolog | C190: 0 | D190: 1.269880871 | E190: 0 | F190: 0 | G190: 0.8126988087 | I190: 2.082579679
A191: Jurist | C191: 0 | D191: 0 | E191: 0 | F191: 0 | G191: 0 | I191: 0
A192: Økonom | C192: 0 | D192: 0 | E192: 0 | F192: 0 | G192: 0 | I192: 0
A193: Samf. Adm. | C193: 0 | D193: 0.9998128859 | E193: 1.999625772 | F193: 0 | G193: 0 | I193: 2.999438658
A194: Cand. Merc. | C194: 0.886920726 | D194: 2.671989023 | E194: 0 | F194: 0 | G194: 0 | I194: 3.558909749
A195: HA | C195: 0 | D195: 0 | E195: 0 | F195: 1.999625772 | G195: 0 | I195: 1.999625772
A196: HD | C196: 0 | D196: 0 | E196: 0 | F196: 0 | G196: 0 | I196: 0
A197: Komm. og Sprog | C197: 0 | D197: 0 | E197: 0 | F197: 0 | G197: 0 | I197: 0
A198: Cand. IT. | C198: 0 | D198: 0 | E198: 0 | F198: 0 | G198: 0 | I198: 0
A199: Bac. Samf. | C199: 0 | D199: 0 | E199: 0 | F199: 0 | G199: 0 | I199: 0
A200: Bac. Hum. | C200: 0 | D200: 0 | E200: 0 | F200: 0 | G200: 0 | I200: 0
A201: Bac. Nat. | C201: 0 | D201: 0 | E201: 0 | F201: 0 | G201: 0 | I201: 0
A202: Andre | C202: 0 | D202: 0 | E202: 0 | F202: 0 | G202: 0 | I202: 0
A204: Total | C204: 5.502401297 | D204: 11.83496538 | E204: 4.99906443 | F204: 2.999438658 | G204: 3.812137466 | I204: 29.14800724
A206: Ingeniører i alt | C206: 1.999625772 | D206: 0 | E206: 0 | F206: 0.9998128859 | G206: 0.9998128859 | I206: 3.999251544
A207: Magistre i alt | C207: 0.6162290276 | D207: 3.893843947 | E207: 2.999438658 | F207: 0 | G207: 1.999625772 | I207: 9.509137404
A208: DJØF'ere i alt | C208: 0.886920726 | D208: 3.671801909 | E208: 1.999625772 | F208: 1.999625772 | G208: 0 | I208: 8.557974178
A215: Favrskov
C217: Under 30 år | D217: 30 - 39 år | E217: 40 - 49 år | F217: 50 - 59 år | G217: Over 60 år | I217: I alt
A219: Civ. ing. | C219: 0.9998128859 | D219: 1.260525167 | E219: 0 | F219: 1.307303686 | G219: 0 | I219: 3.567641739
A220: Diplom ing. | C220: 0.9998128859 | D220: 0 | E220: 0 | F220: 0 | G220: 0.8151936631 | I220: 1.815006549
A221: Cand. Scient. Tek | C221: 1.122684463 | D221: 0.9998128859 | E221: 0 | F221: 0 | G221: 0 | I221: 2.122497349
A222: MA. Hum. | C222: 3.710472151 | D222: 9.755504272 | E222: 5.860412898 | F222: 0.9998128859 | G222: 0.1908563588 | I222: 20.51705857
A223: MA. Nat. | C223: 0.9998128859 | D223: 2.584045406 | E223: 0 | F223: 0 | G223: 0 | I223: 3.583858292
A224: MA. Ph.d. | C224: 0 | D224: 0 | E224: 0 | F224: 0.9998128859 | G224: 0 | I224: 0.9998128859
A225: MA. Samf. | C225: 0 | D225: 1.685274122 | E225: 0 | F225: 0 | G225: 0 | I225: 1.685274122
A226: Øvrige Mag. | C226: 0 | D226: 0 | E226: 0 | F226: 0 | G226: 0 | I226: 0
A227: Agronom | C227: 0 | D227: 0 | E227: 0 | F227: 0.9075032745 | G227: 0 | I227: 0.9075032745
A228: Landsk. Arkt. | C228: 0 | D228: 0 | E228: 0 | F228: 0 | G228: 0 | I228: 0
A229: Hortonom | C229: 0 | D229: 0 | E229: 0 | F229: 0 | G229: 0 | I229: 0
A230: Forstkand. | C230: 0 | D230: 0 | E230: 0 | F230: 0 | G230: 0 | I230: 0
A231: Jordbrugsakad. | C231: 0 | D231: 0 | E231: 0 | F231: 0.9075032745 | G231: 0 | I231: 0.9075032745
A232: Mejeriing. | C232: 0 | D232: 0 | E232: 0 | F232: 0 | G232: 0 | I232: 0
A233: Levn.m.kand. | C233: 0 | D233: 0 | E233: 0 | F233: 0 | G233: 0 | I233: 0
A234: Dyrlæge | C234: 0 | D234: 0.2700679848 | E234: 0 | F234: 0 | G234: 0 | I234: 0.2700679848
A235: Farmaceut | C235: 0 | D235: 0 | E235: 0 | F235: 0 | G235: 0 | I235: 0
A236: Læge | C236: 0 | D236: 0.9998128859 | E236: 0 | F236: 0 | G236: 0 | I236: 0.9998128859
A237: Tandlæge | C237: 0 | D237: 0 | E237: 0 | F237: 0 | G237: 0 | I237: 0
A238: Arkitekt | C238: 0.9998128859 | D238: 0 | E238: 0 | F238: 0.9998128859 | G238: 0 | I238: 1.999625772
A239: Landinspek. | C239: 0 | D239: 0 | E239: 0 | F239: 0 | G239: 0 | I239: 0
A240: Bibliotekar | C240: 0 | D240: 0.9998128859 | E240: 0 | F240: 0 | G240: 0 | I240: 0.9998128859
A241: Musikudd. | C241: 0 | D241: 0 | E241: 0 | F241: 0 | G241: 0 | I241: 0
A242: Teolog | C242: 0 | D242: 0 | E242: 0 | F242: 0 | G242: 0 | I242: 0
A243: Psykolog | C243: 1.999625772 | D243: 1.006050022 | E243: 0 | F243: 0 | G243: 0 | I243: 3.005675794
... 317 more rows

Sheet Tabel 4P ØJ
A1: Tabel 4. Ledighedsberørte - aldersfordelt
A3: Østjylland
C5: Under 30 år | D5: 30 - 39 år | E5: 40 - 49 år | F5: 50 - 59 år | G5: Over 60 år | I5: I alt
A7: Civ. ing. | C7: =IF(OR('Tabel 4F ØJ'!C7<5,'Tabel 4 ØJ'!C7<0.5),"-",IFERROR('Tabel 4 ØJ'!C7/'Tabel 4F ØJ'!C7*100,"-")) -> 10.28985507 | D7: =IF(OR('Tabel 4F ØJ'!D7<5,'Tabel 4 ØJ'!D7<0.5),"-",IFERROR('Tabel 4 ØJ'!D7/'Tabel 4F ØJ'!D7*100,"-")) -> 2.161100196 | E7: =IF(OR('Tabel 4F ØJ'!E7<5,'Tabel 4 ØJ'!E7<0.5),"-",IFERROR('Tabel 4 ØJ'!E7/'Tabel 4F ØJ'!E7*100,"-")) -> 0.7692307692 | F7: =IF(OR('Tabel 4F ØJ'!F7<5,'Tabel 4 ØJ'!F7<0.5),"-",IFERROR('Tabel 4 ØJ'!F7/'Tabel 4F ØJ'!F7*100,"-")) -> 2.393162393 | G7: =IF(OR('Tabel 4F ØJ'!G7<5,'Tabel 4 ØJ'!G7<0.5),"-",IFERROR('Tabel 4 ØJ'!G7/'Tabel 4F ØJ'!G7*100,"-")) -> 0.7299270073 | I7: =IF(OR('Tabel 4F ØJ'!I7<5,'Tabel 4 ØJ'!I7<0.5),"-",IFERROR('Tabel 4 ØJ'!I7/'Tabel 4F ØJ'!I7*100,"-")) -> 3.273577553
A8: Diplom ing. | C8: =IF(OR('Tabel 4F ØJ'!C8<5,'Tabel 4 ØJ'!C8<0.5),"-",IFERROR('Tabel 4 ØJ'!C8/'Tabel 4F ØJ'!C8*100,"-")) -> 9.7799511 | D8: =IF(OR('Tabel 4F ØJ'!D8<5,'Tabel 4 ØJ'!D8<0.5),"-",IFERROR('Tabel 4 ØJ'!D8/'Tabel 4F ØJ'!D8*100,"-")) -> 2.787705504 | E8: =IF(OR('Tabel 4F ØJ'!E8<5,'Tabel 4 ØJ'!E8<0.5),"-",IFERROR('Tabel 4 ØJ'!E8/'Tabel 4F ØJ'!E8*100,"-")) -> 1.414581066 | F8: =IF(OR('Tabel 4F ØJ'!F8<5,'Tabel 4 ØJ'!F8<0.5),"-",IFERROR('Tabel 4 ØJ'!F8/'Tabel 4F ØJ'!F8*100,"-")) -> 1.372456223 | G8: =IF(OR('Tabel 4F ØJ'!G8<5,'Tabel 4 ØJ'!G8<0.5),"-",IFERROR('Tabel 4 ØJ'!G8/'Tabel 4F ØJ'!G8*100,"-")) -> 3.436988543 | I8: =IF(OR('Tabel 4F ØJ'!I8<5,'Tabel 4 ØJ'!I8<0.5),"-",IFERROR('Tabel 4 ØJ'!I8/'Tabel 4F ØJ'!I8*100,"-")) -> 2.876530462
A9: Cand. Scient. Tek | C9: =IF(OR('Tabel 4F ØJ'!C9<5,'Tabel 4 ØJ'!C9<0.5),"-",IFERROR('Tabel 4 ØJ'!C9/'Tabel 4F ØJ'!C9*100,"-")) -> 20.84148728 | D9: =IF(OR('Tabel 4F ØJ'!D9<5,'Tabel 4 ØJ'!D9<0.5),"-",IFERROR('Tabel 4 ØJ'!D9/'Tabel 4F ØJ'!D9*100,"-")) -> 5.98146588 | E9: =IF(OR('Tabel 4F ØJ'!E9<5,'Tabel 4 ØJ'!E9<0.5),"-",IFERROR('Tabel 4 ØJ'!E9/'Tabel 4F ØJ'!E9*100,"-")) -> 1.840490798 | F9: =IF(OR('Tabel 4F ØJ'!F9<5,'Tabel 4 ØJ'!F9<0.5),"-",IFERROR('Tabel 4 ØJ'!F9/'Tabel 4F ØJ'!F9*100,"-")) -> 2.97029703 | G9: =IF(OR('Tabel 4F ØJ'!G9<5,'Tabel 4 ØJ'!G9<0.5),"-",IFERROR('Tabel 4 ØJ'!G9/'Tabel 4F ØJ'!G9*100,"-")) -> 5.263157895 | I9: =IF(OR('Tabel 4F ØJ'!I9<5,'Tabel 4 ØJ'!I9<0.5),"-",IFERROR('Tabel 4 ØJ'!I9/'Tabel 4F ØJ'!I9*100,"-")) -> 11.07344633
A10: MA. Hum. | C10: =IF(OR('Tabel 4F ØJ'!C10<5,'Tabel 4 ØJ'!C10<0.5),"-",IFERROR('Tabel 4 ØJ'!C10/'Tabel 4F ØJ'!C10*100,"-")) -> 38.01652893 | D10: =IF(OR('Tabel 4F ØJ'!D10<5,'Tabel 4 ØJ'!D10<0.5),"-",IFERROR('Tabel 4 ØJ'!D10/'Tabel 4F ØJ'!D10*100,"-")) -> 12.58181818 | E10: =IF(OR('Tabel 4F ØJ'!E10<5,'Tabel 4 ØJ'!E10<0.5),"-",IFERROR('Tabel 4 ØJ'!E10/'Tabel 4F ØJ'!E10*100,"-")) -> 5.173807599 | F10: =IF(OR('Tabel 4F ØJ'!F10<5,'Tabel 4 ØJ'!F10<0.5),"-",IFERROR('Tabel 4 ØJ'!F10/'Tabel 4F ØJ'!F10*100,"-")) -> 6.00814664 | G10: =IF(OR('Tabel 4F ØJ'!G10<5,'Tabel 4 ØJ'!G10<0.5),"-",IFERROR('Tabel 4 ØJ'!G10/'Tabel 4F ØJ'!G10*100,"-")) -> 6.315789474 | I10: =IF(OR('Tabel 4F ØJ'!I10<5,'Tabel 4 ØJ'!I10<0.5),"-",IFERROR('Tabel 4 ØJ'!I10/'Tabel 4F ØJ'!I10*100,"-")) -> 13.34248627
A11: MA. Nat. | C11: =IF(OR('Tabel 4F ØJ'!C11<5,'Tabel 4 ØJ'!C11<0.5),"-",IFERROR('Tabel 4 ØJ'!C11/'Tabel 4F ØJ'!C11*100,"-")) -> 21.40077821 | D11: =IF(OR('Tabel 4F ØJ'!D11<5,'Tabel 4 ØJ'!D11<0.5),"-",IFERROR('Tabel 4 ØJ'!D11/'Tabel 4F ØJ'!D11*100,"-")) -> 6.709265176 | E11: =IF(OR('Tabel 4F ØJ'!E11<5,'Tabel 4 ØJ'!E11<0.5),"-",IFERROR('Tabel 4 ØJ'!E11/'Tabel 4F ØJ'!E11*100,"-")) -> 1.590668081 | F11: =IF(OR('Tabel 4F ØJ'!F11<5,'Tabel 4 ØJ'!F11<0.5),"-",IFERROR('Tabel 4 ØJ'!F11/'Tabel 4F ØJ'!F11*100,"-")) -> 1.403061224 | G11: =IF(OR('Tabel 4F ØJ'!G11<5,'Tabel 4 ØJ'!G11<0.5),"-",IFERROR('Tabel 4 ØJ'!G11/'Tabel 4F ØJ'!G11*100,"-")) -> 4.248366013 | I11: =IF(OR('Tabel 4F ØJ'!I11<5,'Tabel 4 ØJ'!I11<0.5),"-",IFERROR('Tabel 4 ØJ'!I11/'Tabel 4F ØJ'!I11*100,"-")) -> 4.663923182
A12: MA. Ph.d. | C12: =IF(OR('Tabel 4F ØJ'!C12<5,'Tabel 4 ØJ'!C12<0.5),"-",IFERROR('Tabel 4 ØJ'!C12/'Tabel 4F ØJ'!C12*100,"-")) -> 16.66666667 | D12: =IF(OR('Tabel 4F ØJ'!D12<5,'Tabel 4 ØJ'!D12<0.5),"-",IFERROR('Tabel 4 ØJ'!D12/'Tabel 4F ØJ'!D12*100,"-")) -> 7.305936073 | E12: =IF(OR('Tabel 4F ØJ'!E12<5,'Tabel 4 ØJ'!E12<0.5),"-",IFERROR('Tabel 4 ØJ'!E12/'Tabel 4F ØJ'!E12*100,"-")) -> 3.684210526 | F12: =IF(OR('Tabel 4F ØJ'!F12<5,'Tabel 4 ØJ'!F12<0.5),"-",IFERROR('Tabel 4 ØJ'!F12/'Tabel 4F ØJ'!F12*100,"-")) -> 3.06122449 | G12: =IF(OR('Tabel 4F ØJ'!G12<5,'Tabel 4 ØJ'!G12<0.5),"-",IFERROR('Tabel 4 ØJ'!G12/'Tabel 4F ØJ'!G12*100,"-")) -> 10 | I12: =IF(OR('Tabel 4F ØJ'!I12<5,'Tabel 4 ØJ'!I12<0.5),"-",IFERROR('Tabel 4 ØJ'!I12/'Tabel 4F ØJ'!I12*100,"-")) -> 5.565862709
A13: MA. Samf. | C13: =IF(OR('Tabel 4F ØJ'!C13<5,'Tabel 4 ØJ'!C13<0.5),"-",IFERROR('Tabel 4 ØJ'!C13/'Tabel 4F ØJ'!C13*100,"-")) -> 28.07692308 | D13: =IF(OR('Tabel 4F ØJ'!D13<5,'Tabel 4 ØJ'!D13<0.5),"-",IFERROR('Tabel 4 ØJ'!D13/'Tabel 4F ØJ'!D13*100,"-")) -> 15.97444089 | E13: =IF(OR('Tabel 4F ØJ'!E13<5,'Tabel 4 ØJ'!E13<0.5),"-",IFERROR('Tabel 4 ØJ'!E13/'Tabel 4F ØJ'!E13*100,"-")) -> 4.347826087 | F13: =IF(OR('Tabel 4F ØJ'!F13<5,'Tabel 4 ØJ'!F13<0.5),"-",IFERROR('Tabel 4 ØJ'!F13/'Tabel 4F ØJ'!F13*100,"-")) -> 5.263157895 | G13: =IF(OR('Tabel 4F ØJ'!G13<5,'Tabel 4 ØJ'!G13<0.5),"-",IFERROR('Tabel 4 ØJ'!G13/'Tabel 4F ØJ'!G13*100,"-")) -> - | I13: =IF(OR('Tabel 4F ØJ'!I13<5,'Tabel 4 ØJ'!I13<0.5),"-",IFERROR('Tabel 4 ØJ'!I13/'Tabel 4F ØJ'!I13*100,"-")) -> 19.81279251
A14: Øvrige Mag. | C14: =IF(OR('Tabel 4F ØJ'!C14<5,'Tabel 4 ØJ'!C14<0.5),"-",IFERROR('Tabel 4 ØJ'!C14/'Tabel 4F ØJ'!C14*100,"-")) -> 33.89830508 | D14: =IF(OR('Tabel 4F ØJ'!D14<5,'Tabel 4 ØJ'!D14<0.5),"-",IFERROR('Tabel 4 ØJ'!D14/'Tabel 4F ØJ'!D14*100,"-")) -> 12.6984127 | E14: =IF(OR('Tabel 4F ØJ'!E14<5,'Tabel 4 ØJ'!E14<0.5),"-",IFERROR('Tabel 4 ØJ'!E14/'Tabel 4F ØJ'!E14*100,"-")) -> 7.284768212 | F14: =IF(OR('Tabel 4F ØJ'!F14<5,'Tabel 4 ØJ'!F14<0.5),"-",IFERROR('Tabel 4 ØJ'!F14/'Tabel 4F ØJ'!F14*100,"-")) -> 3.870967742 | G14: =IF(OR('Tabel 4F ØJ'!G14<5,'Tabel 4 ØJ'!G14<0.5),"-",IFERROR('Tabel 4 ØJ'!G14/'Tabel 4F ØJ'!G14*100,"-")) -> 4.545454545 | I14: =IF(OR('Tabel 4F ØJ'!I14<5,'Tabel 4 ØJ'!I14<0.5),"-",IFERROR('Tabel 4 ØJ'!I14/'Tabel 4F ØJ'!I14*100,"-")) -> 10.05385996
A15: Agronom | C15: =IF(OR('Tabel 4F ØJ'!C15<5,'Tabel 4 ØJ'!C15<0.5),"-",IFERROR('Tabel 4 ØJ'!C15/'Tabel 4F ØJ'!C15*100,"-")) -> 23.52941176 | D15: =IF(OR('Tabel 4F ØJ'!D15<5,'Tabel 4 ØJ'!D15<0.5),"-",IFERROR('Tabel 4 ØJ'!D15/'Tabel 4F ØJ'!D15*100,"-")) -> 3.333333333 | E15: =IF(OR('Tabel 4F ØJ'!E15<5,'Tabel 4 ØJ'!E15<0.5),"-",IFERROR('Tabel 4 ØJ'!E15/'Tabel 4F ØJ'!E15*100,"-")) -> 4.12371134 | F15: =IF(OR('Tabel 4F ØJ'!F15<5,'Tabel 4 ØJ'!F15<0.5),"-",IFERROR('Tabel 4 ØJ'!F15/'Tabel 4F ØJ'!F15*100,"-")) -> 1.459854015 | G15: =IF(OR('Tabel 4F ØJ'!G15<5,'Tabel 4 ØJ'!G15<0.5),"-",IFERROR('Tabel 4 ØJ'!G15/'Tabel 4F ØJ'!G15*100,"-")) -> 3.03030303 | I15: =IF(OR('Tabel 4F ØJ'!I15<5,'Tabel 4 ØJ'!I15<0.5),"-",IFERROR('Tabel 4 ØJ'!I15/'Tabel 4F ØJ'!I15*100,"-")) -> 3.746397695
A16: Landsk. Arkt. | C16: =IF(OR('Tabel 4F ØJ'!C16<5,'Tabel 4 ØJ'!C16<0.5),"-",IFERROR('Tabel 4 ØJ'!C16/'Tabel 4F ØJ'!C16*100,"-")) -> - | D16: =IF(OR('Tabel 4F ØJ'!D16<5,'Tabel 4 ØJ'!D16<0.5),"-",IFERROR('Tabel 4 ØJ'!D16/'Tabel 4F ØJ'!D16*100,"-")) -> - | E16: =IF(OR('Tabel 4F ØJ'!E16<5,'Tabel 4 ØJ'!E16<0.5),"-",IFERROR('Tabel 4 ØJ'!E16/'Tabel 4F ØJ'!E16*100,"-")) -> 6.25 | F16: =IF(OR('Tabel 4F ØJ'!F16<5,'Tabel 4 ØJ'!F16<0.5),"-",IFERROR('Tabel 4 ØJ'!F16/'Tabel 4F ØJ'!F16*100,"-")) -> - | G16: =IF(OR('Tabel 4F ØJ'!G16<5,'Tabel 4 ØJ'!G16<0.5),"-",IFERROR('Tabel 4 ØJ'!G16/'Tabel 4F ØJ'!G16*100,"-")) -> - | I16: =IF(OR('Tabel 4F ØJ'!I16<5,'Tabel 4 ØJ'!I16<0.5),"-",IFERROR('Tabel 4 ØJ'!I16/'Tabel 4F ØJ'!I16*100,"-")) -> 2.564102564
A17: Hortonom | C17: =IF(OR('Tabel 4F ØJ'!C17<5,'Tabel 4 ØJ'!C17<0.5),"-",IFERROR('Tabel 4 ØJ'!C17/'Tabel 4F ØJ'!C17*100,"-")) -> - | D17: =IF(OR('Tabel 4F ØJ'!D17<5,'Tabel 4 ØJ'!D17<0.5),"-",IFERROR('Tabel 4 ØJ'!D17/'Tabel 4F ØJ'!D17*100,"-")) -> - | E17: =IF(OR('Tabel 4F ØJ'!E17<5,'Tabel 4 ØJ'!E17<0.5),"-",IFERROR('Tabel 4 ØJ'!E17/'Tabel 4F ØJ'!E17*100,"-")) -> - | F17: =IF(OR('Tabel 4F ØJ'!F17<5,'Tabel 4 ØJ'!F17<0.5),"-",IFERROR('Tabel 4 ØJ'!F17/'Tabel 4F ØJ'!F17*100,"-")) -> - | G17: =IF(OR('Tabel 4F ØJ'!G17<5,'Tabel 4 ØJ'!G17<0.5),"-",IFERROR('Tabel 4 ØJ'!G17/'Tabel 4F ØJ'!G17*100,"-")) -> - | I17: =IF(OR('Tabel 4F ØJ'!I17<5,'Tabel 4 ØJ'!I17<0.5),"-",IFERROR('Tabel 4 ØJ'!I17/'Tabel 4F ØJ'!I17*100,"-")) -> -
A18: Forstkand. | C18: =IF(OR('Tabel 4F ØJ'!C18<5,'Tabel 4 ØJ'!C18<0.5),"-",IFERROR('Tabel 4 ØJ'!C18/'Tabel 4F ØJ'!C18*100,"-")) -> - | D18: =IF(OR('Tabel 4F ØJ'!D18<5,'Tabel 4 ØJ'!D18<0.5),"-",IFERROR('Tabel 4 ØJ'!D18/'Tabel 4F ØJ'!D18*100,"-")) -> - | E18: =IF(OR('Tabel 4F ØJ'!E18<5,'Tabel 4 ØJ'!E18<0.5),"-",IFERROR('Tabel 4 ØJ'!E18/'Tabel 4F ØJ'!E18*100,"-")) -> - | F18: =IF(OR('Tabel 4F ØJ'!F18<5,'Tabel 4 ØJ'!F18<0.5),"-",IFERROR('Tabel 4 ØJ'!F18/'Tabel 4F ØJ'!F18*100,"-")) -> 6.25 | G18: =IF(OR('Tabel 4F ØJ'!G18<5,'Tabel 4 ØJ'!G18<0.5),"-",IFERROR('Tabel 4 ØJ'!G18/'Tabel 4F ØJ'!G18*100,"-")) -> - | I18: =IF(OR('Tabel 4F ØJ'!I18<5,'Tabel 4 ØJ'!I18<0.5),"-",IFERROR('Tabel 4 ØJ'!I18/'Tabel 4F ØJ'!I18*100,"-")) -> 1.886792453
A19: Jordbrugsakad. | C19: =IF(OR('Tabel 4F ØJ'!C19<5,'Tabel 4 ØJ'!C19<0.5),"-",IFERROR('Tabel 4 ØJ'!C19/'Tabel 4F ØJ'!C19*100,"-")) -> 19.04761905 | D19: =IF(OR('Tabel 4F ØJ'!D19<5,'Tabel 4 ØJ'!D19<0.5),"-",IFERROR('Tabel 4 ØJ'!D19/'Tabel 4F ØJ'!D19*100,"-")) -> 2.083333333 | E19: =IF(OR('Tabel 4F ØJ'!E19<5,'Tabel 4 ØJ'!E19<0.5),"-",IFERROR('Tabel 4 ØJ'!E19/'Tabel 4F ØJ'!E19*100,"-")) -> 3.401360544 | F19: =IF(OR('Tabel 4F ØJ'!F19<5,'Tabel 4 ØJ'!F19<0.5),"-",IFERROR('Tabel 4 ØJ'!F19/'Tabel 4F ØJ'!F19*100,"-")) -> 1.724137931 | G19: =IF(OR('Tabel 4F ØJ'!G19<5,'Tabel 4 ØJ'!G19<0.5),"-",IFERROR('Tabel 4 ØJ'!G19/'Tabel 4F ØJ'!G19*100,"-")) -> 2.597402597 | I19: =IF(OR('Tabel 4F ØJ'!I19<5,'Tabel 4 ØJ'!I19<0.5),"-",IFERROR('Tabel 4 ØJ'!I19/'Tabel 4F ØJ'!I19*100,"-")) -> 3.211991435
A20: Mejeriing. | C20: =IF(OR('Tabel 4F ØJ'!C20<5,'Tabel 4 ØJ'!C20<0.5),"-",IFERROR('Tabel 4 ØJ'!C20/'Tabel 4F ØJ'!C20*100,"-")) -> - | D20: =IF(OR('Tabel 4F ØJ'!D20<5,'Tabel 4 ØJ'!D20<0.5),"-",IFERROR('Tabel 4 ØJ'!D20/'Tabel 4F ØJ'!D20*100,"-")) -> - | E20: =IF(OR('Tabel 4F ØJ'!E20<5,'Tabel 4 ØJ'!E20<0.5),"-",IFERROR('Tabel 4 ØJ'!E20/'Tabel 4F ØJ'!E20*100,"-")) -> - | F20: =IF(OR('Tabel 4F ØJ'!F20<5,'Tabel 4 ØJ'!F20<0.5),"-",IFERROR('Tabel 4 ØJ'!F20/'Tabel 4F ØJ'!F20*100,"-")) -> 4.87804878 | G20: =IF(OR('Tabel 4F ØJ'!G20<5,'Tabel 4 ØJ'!G20<0.5),"-",IFERROR('Tabel 4 ØJ'!G20/'Tabel 4F ØJ'!G20*100,"-")) -> - | I20: =IF(OR('Tabel 4F ØJ'!I20<5,'Tabel 4 ØJ'!I20<0.5),"-",IFERROR('Tabel 4 ØJ'!I20/'Tabel 4F ØJ'!I20*100,"-")) -> 2.272727273
A21: Levn.m.kand. | C21: =IF(OR('Tabel 4F ØJ'!C21<5,'Tabel 4 ØJ'!C21<0.5),"-",IFERROR('Tabel 4 ØJ'!C21/'Tabel 4F ØJ'!C21*100,"-")) -> 20 | D21: =IF(OR('Tabel 4F ØJ'!D21<5,'Tabel 4 ØJ'!D21<0.5),"-",IFERROR('Tabel 4 ØJ'!D21/'Tabel 4F ØJ'!D21*100,"-")) -> 8.333333333 | E21: =IF(OR('Tabel 4F ØJ'!E21<5,'Tabel 4 ØJ'!E21<0.5),"-",IFERROR('Tabel 4 ØJ'!E21/'Tabel 4F ØJ'!E21*100,"-")) -> - | F21: =IF(OR('Tabel 4F ØJ'!F21<5,'Tabel 4 ØJ'!F21<0.5),"-",IFERROR('Tabel 4 ØJ'!F21/'Tabel 4F ØJ'!F21*100,"-")) -> - | G21: =IF(OR('Tabel 4F ØJ'!G21<5,'Tabel 4 ØJ'!G21<0.5),"-",IFERROR('Tabel 4 ØJ'!G21/'Tabel 4F ØJ'!G21*100,"-")) -> - | I21: =IF(OR('Tabel 4F ØJ'!I21<5,'Tabel 4 ØJ'!I21<0.5),"-",IFERROR('Tabel 4 ØJ'!I21/'Tabel 4F ØJ'!I21*100,"-")) -> 7.407407407
A22: Dyrlæge | C22: =IF(OR('Tabel 4F ØJ'!C22<5,'Tabel 4 ØJ'!C22<0.5),"-",IFERROR('Tabel 4 ØJ'!C22/'Tabel 4F ØJ'!C22*100,"-")) -> 4.166666667 | D22: =IF(OR('Tabel 4F ØJ'!D22<5,'Tabel 4 ØJ'!D22<0.5),"-",IFERROR('Tabel 4 ØJ'!D22/'Tabel 4F ØJ'!D22*100,"-")) -> 1.315789474 | E22: =IF(OR('Tabel 4F ØJ'!E22<5,'Tabel 4 ØJ'!E22<0.5),"-",IFERROR('Tabel 4 ØJ'!E22/'Tabel 4F ØJ'!E22*100,"-")) -> - | F22: =IF(OR('Tabel 4F ØJ'!F22<5,'Tabel 4 ØJ'!F22<0.5),"-",IFERROR('Tabel 4 ØJ'!F22/'Tabel 4F ØJ'!F22*100,"-")) -> - | G22: =IF(OR('Tabel 4F ØJ'!G22<5,'Tabel 4 ØJ'!G22<0.5),"-",IFERROR('Tabel 4 ØJ'!G22/'Tabel 4F ØJ'!G22*100,"-")) -> - | I22: =IF(OR('Tabel 4F ØJ'!I22<5,'Tabel 4 ØJ'!I22<0.5),"-",IFERROR('Tabel 4 ØJ'!I22/'Tabel 4F ØJ'!I22*100,"-")) -> 0.8849557522
A23: Farmaceut | C23: =IF(OR('Tabel 4F ØJ'!C23<5,'Tabel 4 ØJ'!C23<0.5),"-",IFERROR('Tabel 4 ØJ'!C23/'Tabel 4F ØJ'!C23*100,"-")) -> 13.97849462 | D23: =IF(OR('Tabel 4F ØJ'!D23<5,'Tabel 4 ØJ'!D23<0.5),"-",IFERROR('Tabel 4 ØJ'!D23/'Tabel 4F ØJ'!D23*100,"-")) -> 10.63829787 | E23: =IF(OR('Tabel 4F ØJ'!E23<5,'Tabel 4 ØJ'!E23<0.5),"-",IFERROR('Tabel 4 ØJ'!E23/'Tabel 4F ØJ'!E23*100,"-")) -> 2.222222222 | F23: =IF(OR('Tabel 4F ØJ'!F23<5,'Tabel 4 ØJ'!F23<0.5),"-",IFERROR('Tabel 4 ØJ'!F23/'Tabel 4F ØJ'!F23*100,"-")) -> 4.87804878 | G23: =IF(OR('Tabel 4F ØJ'!G23<5,'Tabel 4 ØJ'!G23<0.5),"-",IFERROR('Tabel 4 ØJ'!G23/'Tabel 4F ØJ'!G23*100,"-")) -> 5.882352941 | I23: =IF(OR('Tabel 4F ØJ'!I23<5,'Tabel 4 ØJ'!I23<0.5),"-",IFERROR('Tabel 4 ØJ'!I23/'Tabel 4F ØJ'!I23*100,"-")) -> 9.310344828
A24: Læge | C24: =IF(OR('Tabel 4F ØJ'!C24<5,'Tabel 4 ØJ'!C24<0.5),"-",IFERROR('Tabel 4 ØJ'!C24/'Tabel 4F ØJ'!C24*100,"-")) -> 7.415254237 | D24: =IF(OR('Tabel 4F ØJ'!D24<5,'Tabel 4 ØJ'!D24<0.5),"-",IFERROR('Tabel 4 ØJ'!D24/'Tabel 4F ØJ'!D24*100,"-")) -> 2.467917078 | E24: =IF(OR('Tabel 4F ØJ'!E24<5,'Tabel 4 ØJ'!E24<0.5),"-",IFERROR('Tabel 4 ØJ'!E24/'Tabel 4F ØJ'!E24*100,"-")) -> 0.6263048017 | F24: =IF(OR('Tabel 4F ØJ'!F24<5,'Tabel 4 ØJ'!F24<0.5),"-",IFERROR('Tabel 4 ØJ'!F24/'Tabel 4F ØJ'!F24*100,"-")) -> 0.3134796238 | G24: =IF(OR('Tabel 4F ØJ'!G24<5,'Tabel 4 ØJ'!G24<0.5),"-",IFERROR('Tabel 4 ØJ'!G24/'Tabel 4F ØJ'!G24*100,"-")) -> - | I24: =IF(OR('Tabel 4F ØJ'!I24<5,'Tabel 4 ØJ'!I24<0.5),"-",IFERROR('Tabel 4 ØJ'!I24/'Tabel 4F ØJ'!I24*100,"-")) -> 2.642444261
A25: Tandlæge | C25: =IF(OR('Tabel 4F ØJ'!C25<5,'Tabel 4 ØJ'!C25<0.5),"-",IFERROR('Tabel 4 ØJ'!C25/'Tabel 4F ØJ'!C25*100,"-")) -> 4.494382022 | D25: =IF(OR('Tabel 4F ØJ'!D25<5,'Tabel 4 ØJ'!D25<0.5),"-",IFERROR('Tabel 4 ØJ'!D25/'Tabel 4F ØJ'!D25*100,"-")) -> - | E25: =IF(OR('Tabel 4F ØJ'!E25<5,'Tabel 4 ØJ'!E25<0.5),"-",IFERROR('Tabel 4 ØJ'!E25/'Tabel 4F ØJ'!E25*100,"-")) -> - | F25: =IF(OR('Tabel 4F ØJ'!F25<5,'Tabel 4 ØJ'!F25<0.5),"-",IFERROR('Tabel 4 ØJ'!F25/'Tabel 4F ØJ'!F25*100,"-")) -> - | G25: =IF(OR('Tabel 4F ØJ'!G25<5,'Tabel 4 ØJ'!G25<0.5),"-",IFERROR('Tabel 4 ØJ'!G25/'Tabel 4F ØJ'!G25*100,"-")) -> 4.166666667 | I25: =IF(OR('Tabel 4F ØJ'!I25<5,'Tabel 4 ØJ'!I25<0.5),"-",IFERROR('Tabel 4 ØJ'!I25/'Tabel 4F ØJ'!I25*100,"-")) -> 1.279317697
A26: Arkitekt | C26: =IF(OR('Tabel 4F ØJ'!C26<5,'Tabel 4 ØJ'!C26<0.5),"-",IFERROR('Tabel 4 ØJ'!C26/'Tabel 4F ØJ'!C26*100,"-")) -> 28.98550725 | D26: =IF(OR('Tabel 4F ØJ'!D26<5,'Tabel 4 ØJ'!D26<0.5),"-",IFERROR('Tabel 4 ØJ'!D26/'Tabel 4F ØJ'!D26*100,"-")) -> 8.908685969 | E26: =IF(OR('Tabel 4F ØJ'!E26<5,'Tabel 4 ØJ'!E26<0.5),"-",IFERROR('Tabel 4 ØJ'!E26/'Tabel 4F ØJ'!E26*100,"-")) -> 2.357563851 | F26: =IF(OR('Tabel 4F ØJ'!F26<5,'Tabel 4 ØJ'!F26<0.5),"-",IFERROR('Tabel 4 ØJ'!F26/'Tabel 4F ØJ'!F26*100,"-")) -> 6.451612903 | G26: =IF(OR('Tabel 4F ØJ'!G26<5,'Tabel 4 ØJ'!G26<0.5),"-",IFERROR('Tabel 4 ØJ'!G26/'Tabel 4F ØJ'!G26*100,"-")) -> 6.41025641 | I26: =IF(OR('Tabel 4F ØJ'!I26<5,'Tabel 4 ØJ'!I26<0.5),"-",IFERROR('Tabel 4 ØJ'!I26/'Tabel 4F ØJ'!I26*100,"-")) -> 7.83801437
A27: Landinspek. | C27: =IF(OR('Tabel 4F ØJ'!C27<5,'Tabel 4 ØJ'!C27<0.5),"-",IFERROR('Tabel 4 ØJ'!C27/'Tabel 4F ØJ'!C27*100,"-")) -> - | D27: =IF(OR('Tabel 4F ØJ'!D27<5,'Tabel 4 ØJ'!D27<0.5),"-",IFERROR('Tabel 4 ØJ'!D27/'Tabel 4F ØJ'!D27*100,"-")) -> 2.857142857 | E27: =IF(OR('Tabel 4F ØJ'!E27<5,'Tabel 4 ØJ'!E27<0.5),"-",IFERROR('Tabel 4 ØJ'!E27/'Tabel 4F ØJ'!E27*100,"-")) -> - | F27: =IF(OR('Tabel 4F ØJ'!F27<5,'Tabel 4 ØJ'!F27<0.5),"-",IFERROR('Tabel 4 ØJ'!F27/'Tabel 4F ØJ'!F27*100,"-")) -> - | G27: =IF(OR('Tabel 4F ØJ'!G27<5,'Tabel 4 ØJ'!G27<0.5),"-",IFERROR('Tabel 4 ØJ'!G27/'Tabel 4F ØJ'!G27*100,"-")) -> - | I27: =IF(OR('Tabel 4F ØJ'!I27<5,'Tabel 4 ØJ'!I27<0.5),"-",IFERROR('Tabel 4 ØJ'!I27/'Tabel 4F ØJ'!I27*100,"-")) -> 0.7194244604
A28: Bibliotekar | C28: =IF(OR('Tabel 4F ØJ'!C28<5,'Tabel 4 ØJ'!C28<0.5),"-",IFERROR('Tabel 4 ØJ'!C28/'Tabel 4F ØJ'!C28*100,"-")) -> 33.33333333 | D28: =IF(OR('Tabel 4F ØJ'!D28<5,'Tabel 4 ØJ'!D28<0.5),"-",IFERROR('Tabel 4 ØJ'!D28/'Tabel 4F ØJ'!D28*100,"-")) -> 10.84337349 | E28: =IF(OR('Tabel 4F ØJ'!E28<5,'Tabel 4 ØJ'!E28<0.5),"-",IFERROR('Tabel 4 ØJ'!E28/'Tabel 4F ØJ'!E28*100,"-")) -> 4.132231405 | F28: =IF(OR('Tabel 4F ØJ'!F28<5,'Tabel 4 ØJ'!F28<0.5),"-",IFERROR('Tabel 4 ØJ'!F28/'Tabel 4F ØJ'!F28*100,"-")) -> 2.173913043 | G28: =IF(OR('Tabel 4F ØJ'!G28<5,'Tabel 4 ØJ'!G28<0.5),"-",IFERROR('Tabel 4 ØJ'!G28/'Tabel 4F ØJ'!G28*100,"-")) -> 4.47761194 | I28: =IF(OR('Tabel 4F ØJ'!I28<5,'Tabel 4 ØJ'!I28<0.5),"-",IFERROR('Tabel 4 ØJ'!I28/'Tabel 4F ØJ'!I28*100,"-")) -> 5.913978495
A29: Musikudd. | C29: =IF(OR('Tabel 4F ØJ'!C29<5,'Tabel 4 ØJ'!C29<0.5),"-",IFERROR('Tabel 4 ØJ'!C29/'Tabel 4F ØJ'!C29*100,"-")) -> 20 | D29: =IF(OR('Tabel 4F ØJ'!D29<5,'Tabel 4 ØJ'!D29<0.5),"-",IFERROR('Tabel 4 ØJ'!D29/'Tabel 4F ØJ'!D29*100,"-")) -> - | E29: =IF(OR('Tabel 4F ØJ'!E29<5,'Tabel 4 ØJ'!E29<0.5),"-",IFERROR('Tabel 4 ØJ'!E29/'Tabel 4F ØJ'!E29*100,"-")) -> - | F29: =IF(OR('Tabel 4F ØJ'!F29<5,'Tabel 4 ØJ'!F29<0.5),"-",IFERROR('Tabel 4 ØJ'!F29/'Tabel 4F ØJ'!F29*100,"-")) -> - | G29: =IF(OR('Tabel 4F ØJ'!G29<5,'Tabel 4 ØJ'!G29<0.5),"-",IFERROR('Tabel 4 ØJ'!G29/'Tabel 4F ØJ'!G29*100,"-")) -> - | I29: =IF(OR('Tabel 4F ØJ'!I29<5,'Tabel 4 ØJ'!I29<0.5),"-",IFERROR('Tabel 4 ØJ'!I29/'Tabel 4F ØJ'!I29*100,"-")) -> 0.6369426752
A30: Teolog | C30: =IF(OR('Tabel 4F ØJ'!C30<5,'Tabel 4 ØJ'!C30<0.5),"-",IFERROR('Tabel 4 ØJ'!C30/'Tabel 4F ØJ'!C30*100,"-")) -> 21.42857143 | D30: =IF(OR('Tabel 4F ØJ'!D30<5,'Tabel 4 ØJ'!D30<0.5),"-",IFERROR('Tabel 4 ØJ'!D30/'Tabel 4F ØJ'!D30*100,"-")) -> 15.15151515 | E30: =IF(OR('Tabel 4F ØJ'!E30<5,'Tabel 4 ØJ'!E30<0.5),"-",IFERROR('Tabel 4 ØJ'!E30/'Tabel 4F ØJ'!E30*100,"-")) -> 1.680672269 | F30: =IF(OR('Tabel 4F ØJ'!F30<5,'Tabel 4 ØJ'!F30<0.5),"-",IFERROR('Tabel 4 ØJ'!F30/'Tabel 4F ØJ'!F30*100,"-")) -> 4.716981132 | G30: =IF(OR('Tabel 4F ØJ'!G30<5,'Tabel 4 ØJ'!G30<0.5),"-",IFERROR('Tabel 4 ØJ'!G30/'Tabel 4F ØJ'!G30*100,"-")) -> 3.333333333 | I30: =IF(OR('Tabel 4F ØJ'!I30<5,'Tabel 4 ØJ'!I30<0.5),"-",IFERROR('Tabel 4 ØJ'!I30/'Tabel 4F ØJ'!I30*100,"-")) -> 6.268656716
A31: Psykolog | C31: =IF(OR('Tabel 4F ØJ'!C31<5,'Tabel 4 ØJ'!C31<0.5),"-",IFERROR('Tabel 4 ØJ'!C31/'Tabel 4F ØJ'!C31*100,"-")) -> 32 | D31: =IF(OR('Tabel 4F ØJ'!D31<5,'Tabel 4 ØJ'!D31<0.5),"-",IFERROR('Tabel 4 ØJ'!D31/'Tabel 4F ØJ'!D31*100,"-")) -> 6.461086637 | E31: =IF(OR('Tabel 4F ØJ'!E31<5,'Tabel 4 ØJ'!E31<0.5),"-",IFERROR('Tabel 4 ØJ'!E31/'Tabel 4F ØJ'!E31*100,"-")) -> 0.8583690987 | F31: =IF(OR('Tabel 4F ØJ'!F31<5,'Tabel 4 ØJ'!F31<0.5),"-",IFERROR('Tabel 4 ØJ'!F31/'Tabel 4F ØJ'!F31*100,"-")) -> 2.390438247 | G31: =IF(OR('Tabel 4F ØJ'!G31<5,'Tabel 4 ØJ'!G31<0.5),"-",IFERROR('Tabel 4 ØJ'!G31/'Tabel 4F ØJ'!G31*100,"-")) -> 5.93220339 | I31: =IF(OR('Tabel 4F ØJ'!I31<5,'Tabel 4 ØJ'!I31<0.5),"-",IFERROR('Tabel 4 ØJ'!I31/'Tabel 4F ØJ'!I31*100,"-")) -> 9.271168274
A32: Jurist | C32: =IF(OR('Tabel 4F ØJ'!C32<5,'Tabel 4 ØJ'!C32<0.5),"-",IFERROR('Tabel 4 ØJ'!C32/'Tabel 4F ØJ'!C32*100,"-")) -> 6.769825919 | D32: =IF(OR('Tabel 4F ØJ'!D32<5,'Tabel 4 ØJ'!D32<0.5),"-",IFERROR('Tabel 4 ØJ'!D32/'Tabel 4F ØJ'!D32*100,"-")) -> 2.310654685 | E32: =IF(OR('Tabel 4F ØJ'!E32<5,'Tabel 4 ØJ'!E32<0.5),"-",IFERROR('Tabel 4 ØJ'!E32/'Tabel 4F ØJ'!E32*100,"-")) -> 1.844262295 | F32: =IF(OR('Tabel 4F ØJ'!F32<5,'Tabel 4 ØJ'!F32<0.5),"-",IFERROR('Tabel 4 ØJ'!F32/'Tabel 4F ØJ'!F32*100,"-")) -> 2.201257862 | G32: =IF(OR('Tabel 4F ØJ'!G32<5,'Tabel 4 ØJ'!G32<0.5),"-",IFERROR('Tabel 4 ØJ'!G32/'Tabel 4F ØJ'!G32*100,"-")) -> 1.136363636 | I32: =IF(OR('Tabel 4F ØJ'!I32<5,'Tabel 4 ØJ'!I32<0.5),"-",IFERROR('Tabel 4 ØJ'!I32/'Tabel 4F ØJ'!I32*100,"-")) -> 3.196347032
A33: Økonom | C33: =IF(OR('Tabel 4F ØJ'!C33<5,'Tabel 4 ØJ'!C33<0.5),"-",IFERROR('Tabel 4 ØJ'!C33/'Tabel 4F ØJ'!C33*100,"-")) -> 9.302325581 | D33: =IF(OR('Tabel 4F ØJ'!D33<5,'Tabel 4 ØJ'!D33<0.5),"-",IFERROR('Tabel 4 ØJ'!D33/'Tabel 4F ØJ'!D33*100,"-")) -> 3.448275862 | E33: =IF(OR('Tabel 4F ØJ'!E33<5,'Tabel 4 ØJ'!E33<0.5),"-",IFERROR('Tabel 4 ØJ'!E33/'Tabel 4F ØJ'!E33*100,"-")) -> - | F33: =IF(OR('Tabel 4F ØJ'!F33<5,'Tabel 4 ØJ'!F33<0.5),"-",IFERROR('Tabel 4 ØJ'!F33/'Tabel 4F ØJ'!F33*100,"-")) -> 2.777777778 | G33: =IF(OR('Tabel 4F ØJ'!G33<5,'Tabel 4 ØJ'!G33<0.5),"-",IFERROR('Tabel 4 ØJ'!G33/'Tabel 4F ØJ'!G33*100,"-")) -> 6.153846154 | I33: =IF(OR('Tabel 4F ØJ'!I33<5,'Tabel 4 ØJ'!I33<0.5),"-",IFERROR('Tabel 4 ØJ'!I33/'Tabel 4F ØJ'!I33*100,"-")) -> 3.887688985
A34: Samf. Adm. | C34: =IF(OR('Tabel 4F ØJ'!C34<5,'Tabel 4 ØJ'!C34<0.5),"-",IFERROR('Tabel 4 ØJ'!C34/'Tabel 4F ØJ'!C34*100,"-")) -> 19.48051948 | D34: =IF(OR('Tabel 4F ØJ'!D34<5,'Tabel 4 ØJ'!D34<0.5),"-",IFERROR('Tabel 4 ØJ'!D34/'Tabel 4F ØJ'!D34*100,"-")) -> 6.75 | E34: =IF(OR('Tabel 4F ØJ'!E34<5,'Tabel 4 ØJ'!E34<0.5),"-",IFERROR('Tabel 4 ØJ'!E34/'Tabel 4F ØJ'!E34*100,"-")) -> 3.901734104 | F34: =IF(OR('Tabel 4F ØJ'!F34<5,'Tabel 4 ØJ'!F34<0.5),"-",IFERROR('Tabel 4 ØJ'!F34/'Tabel 4F ØJ'!F34*100,"-")) -> 3.20855615 | G34: =IF(OR('Tabel 4F ØJ'!G34<5,'Tabel 4 ØJ'!G34<0.5),"-",IFERROR('Tabel 4 ØJ'!G34/'Tabel 4F ØJ'!G34*100,"-")) -> 4.87804878 | I34: =IF(OR('Tabel 4F ØJ'!I34<5,'Tabel 4 ØJ'!I34<0.5),"-",IFERROR('Tabel 4 ØJ'!I34/'Tabel 4F ØJ'!I34*100,"-")) -> 8.232118758
A35: Cand. Merc. | C35: =IF(OR('Tabel 4F ØJ'!C35<5,'Tabel 4 ØJ'!C35<0.5),"-",IFERROR('Tabel 4 ØJ'!C35/'Tabel 4F ØJ'!C35*100,"-")) -> 13.68159204 | D35: =IF(OR('Tabel 4F ØJ'!D35<5,'Tabel 4 ØJ'!D35<0.5),"-",IFERROR('Tabel 4 ØJ'!D35/'Tabel 4F ØJ'!D35*100,"-")) -> 4.231795654 | E35: =IF(OR('Tabel 4F ØJ'!E35<5,'Tabel 4 ØJ'!E35<0.5),"-",IFERROR('Tabel 4 ØJ'!E35/'Tabel 4F ØJ'!E35*100,"-")) -> 1.857585139 | F35: =IF(OR('Tabel 4F ØJ'!F35<5,'Tabel 4 ØJ'!F35<0.5),"-",IFERROR('Tabel 4 ØJ'!F35/'Tabel 4F ØJ'!F35*100,"-")) -> 3.091557669 | G35: =IF(OR('Tabel 4F ØJ'!G35<5,'Tabel 4 ØJ'!G35<0.5),"-",IFERROR('Tabel 4 ØJ'!G35/'Tabel 4F ØJ'!G35*100,"-")) -> 2.727272727 | I35: =IF(OR('Tabel 4F ØJ'!I35<5,'Tabel 4 ØJ'!I35<0.5),"-",IFERROR('Tabel 4 ØJ'!I35/'Tabel 4F ØJ'!I35*100,"-")) -> 5.93141798
A36: HA | C36: =IF(OR('Tabel 4F ØJ'!C36<5,'Tabel 4 ØJ'!C36<0.5),"-",IFERROR('Tabel 4 ØJ'!C36/'Tabel 4F ØJ'!C36*100,"-")) -> 20.35714286 | D36: =IF(OR('Tabel 4F ØJ'!D36<5,'Tabel 4 ØJ'!D36<0.5),"-",IFERROR('Tabel 4 ØJ'!D36/'Tabel 4F ØJ'!D36*100,"-")) -> 6.787330317 | E36: =IF(OR('Tabel 4F ØJ'!E36<5,'Tabel 4 ØJ'!E36<0.5),"-",IFERROR('Tabel 4 ØJ'!E36/'Tabel 4F ØJ'!E36*100,"-")) -> 1.025641026 | F36: =IF(OR('Tabel 4F ØJ'!F36<5,'Tabel 4 ØJ'!F36<0.5),"-",IFERROR('Tabel 4 ØJ'!F36/'Tabel 4F ØJ'!F36*100,"-")) -> 3.401360544 | G36: =IF(OR('Tabel 4F ØJ'!G36<5,'Tabel 4 ØJ'!G36<0.5),"-",IFERROR('Tabel 4 ØJ'!G36/'Tabel 4F ØJ'!G36*100,"-")) -> 3.174603175 | I36: =IF(OR('Tabel 4F ØJ'!I36<5,'Tabel 4 ØJ'!I36<0.5),"-",IFERROR('Tabel 4 ØJ'!I36/'Tabel 4F ØJ'!I36*100,"-")) -> 8.1671415
A37: HD | C37: =IF(OR('Tabel 4F ØJ'!C37<5,'Tabel 4 ØJ'!C37<0.5),"-",IFERROR('Tabel 4 ØJ'!C37/'Tabel 4F ØJ'!C37*100,"-")) -> 25.26315789 | D37: =IF(OR('Tabel 4F ØJ'!D37<5,'Tabel 4 ØJ'!D37<0.5),"-",IFERROR('Tabel 4 ØJ'!D37/'Tabel 4F ØJ'!D37*100,"-")) -> 10 | E37: =IF(OR('Tabel 4F ØJ'!E37<5,'Tabel 4 ØJ'!E37<0.5),"-",IFERROR('Tabel 4 ØJ'!E37/'Tabel 4F ØJ'!E37*100,"-")) -> - | F37: =IF(OR('Tabel 4F ØJ'!F37<5,'Tabel 4 ØJ'!F37<0.5),"-",IFERROR('Tabel 4 ØJ'!F37/'Tabel 4F ØJ'!F37*100,"-")) -> 1.098901099 | G37: =IF(OR('Tabel 4F ØJ'!G37<5,'Tabel 4 ØJ'!G37<0.5),"-",IFERROR('Tabel 4 ØJ'!G37/'Tabel 4F ØJ'!G37*100,"-")) -> 2.857142857 | I37: =IF(OR('Tabel 4F ØJ'!I37<5,'Tabel 4 ØJ'!I37<0.5),"-",IFERROR('Tabel 4 ØJ'!I37/'Tabel 4F ØJ'!I37*100,"-")) -> 7.931034483
A38: Komm. og Sprog | C38: =IF(OR('Tabel 4F ØJ'!C38<5,'Tabel 4 ØJ'!C38<0.5),"-",IFERROR('Tabel 4 ØJ'!C38/'Tabel 4F ØJ'!C38*100,"-")) -> 21.53846154 | D38: =IF(OR('Tabel 4F ØJ'!D38<5,'Tabel 4 ØJ'!D38<0.5),"-",IFERROR('Tabel 4 ØJ'!D38/'Tabel 4F ØJ'!D38*100,"-")) -> 7.299270073 | E38: =IF(OR('Tabel 4F ØJ'!E38<5,'Tabel 4 ØJ'!E38<0.5),"-",IFERROR('Tabel 4 ØJ'!E38/'Tabel 4F ØJ'!E38*100,"-")) -> 4.021447721 | F38: =IF(OR('Tabel 4F ØJ'!F38<5,'Tabel 4 ØJ'!F38<0.5),"-",IFERROR('Tabel 4 ØJ'!F38/'Tabel 4F ØJ'!F38*100,"-")) -> 4.255319149 | G38: =IF(OR('Tabel 4F ØJ'!G38<5,'Tabel 4 ØJ'!G38<0.5),"-",IFERROR('Tabel 4 ØJ'!G38/'Tabel 4F ØJ'!G38*100,"-")) -> 4.761904762 | I38: =IF(OR('Tabel 4F ØJ'!I38<5,'Tabel 4 ØJ'!I38<0.5),"-",IFERROR('Tabel 4 ØJ'!I38/'Tabel 4F ØJ'!I38*100,"-")) -> 7.478797224
A39: Cand. IT. | C39: =IF(OR('Tabel 4F ØJ'!C39<5,'Tabel 4 ØJ'!C39<0.5),"-",IFERROR('Tabel 4 ØJ'!C39/'Tabel 4F ØJ'!C39*100,"-")) -> 19.51219512 | D39: =IF(OR('Tabel 4F ØJ'!D39<5,'Tabel 4 ØJ'!D39<0.5),"-",IFERROR('Tabel 4 ØJ'!D39/'Tabel 4F ØJ'!D39*100,"-")) -> 4.337899543 | E39: =IF(OR('Tabel 4F ØJ'!E39<5,'Tabel 4 ØJ'!E39<0.5),"-",IFERROR('Tabel 4 ØJ'!E39/'Tabel 4F ØJ'!E39*100,"-")) -> 4.201680672 | F39: =IF(OR('Tabel 4F ØJ'!F39<5,'Tabel 4 ØJ'!F39<0.5),"-",IFERROR('Tabel 4 ØJ'!F39/'Tabel 4F ØJ'!F39*100,"-")) -> - | G39: =IF(OR('Tabel 4F ØJ'!G39<5,'Tabel 4 ØJ'!G39<0.5),"-",IFERROR('Tabel 4 ØJ'!G39/'Tabel 4F ØJ'!G39*100,"-")) -> - | I39: =IF(OR('Tabel 4F ØJ'!I39<5,'Tabel 4 ØJ'!I39<0.5),"-",IFERROR('Tabel 4 ØJ'!I39/'Tabel 4F ØJ'!I39*100,"-")) -> 9.440559441
A40: Bac. Samf. | C40: =IF(OR('Tabel 4F ØJ'!C40<5,'Tabel 4 ØJ'!C40<0.5),"-",IFERROR('Tabel 4 ØJ'!C40/'Tabel 4F ØJ'!C40*100,"-")) -> 19.23076923 | D40: =IF(OR('Tabel 4F ØJ'!D40<5,'Tabel 4 ØJ'!D40<0.5),"-",IFERROR('Tabel 4 ØJ'!D40/'Tabel 4F ØJ'!D40*100,"-")) -> 5.263157895 | E40: =IF(OR('Tabel 4F ØJ'!E40<5,'Tabel 4 ØJ'!E40<0.5),"-",IFERROR('Tabel 4 ØJ'!E40/'Tabel 4F ØJ'!E40*100,"-")) -> 5.882352941 | F40: =IF(OR('Tabel 4F ØJ'!F40<5,'Tabel 4 ØJ'!F40<0.5),"-",IFERROR('Tabel 4 ØJ'!F40/'Tabel 4F ØJ'!F40*100,"-")) -> - | G40: =IF(OR('Tabel 4F ØJ'!G40<5,'Tabel 4 ØJ'!G40<0.5),"-",IFERROR('Tabel 4 ØJ'!G40/'Tabel 4F ØJ'!G40*100,"-")) -> - | I40: =IF(OR('Tabel 4F ØJ'!I40<5,'Tabel 4 ØJ'!I40<0.5),"-",IFERROR('Tabel 4 ØJ'!I40/'Tabel 4F ØJ'!I40*100,"-")) -> 8.333333333
A41: Bac. Hum. | C41: =IF(OR('Tabel 4F ØJ'!C41<5,'Tabel 4 ØJ'!C41<0.5),"-",IFERROR('Tabel 4 ØJ'!C41/'Tabel 4F ØJ'!C41*100,"-")) -> 21.81069959 | D41: =IF(OR('Tabel 4F ØJ'!D41<5,'Tabel 4 ØJ'!D41<0.5),"-",IFERROR('Tabel 4 ØJ'!D41/'Tabel 4F ØJ'!D41*100,"-")) -> 14.70588235 | E41: =IF(OR('Tabel 4F ØJ'!E41<5,'Tabel 4 ØJ'!E41<0.5),"-",IFERROR('Tabel 4 ØJ'!E41/'Tabel 4F ØJ'!E41*100,"-")) -> 4.605263158 | F41: =IF(OR('Tabel 4F ØJ'!F41<5,'Tabel 4 ØJ'!F41<0.5),"-",IFERROR('Tabel 4 ØJ'!F41/'Tabel 4F ØJ'!F41*100,"-")) -> 3.80952381 | G41: =IF(OR('Tabel 4F ØJ'!G41<5,'Tabel 4 ØJ'!G41<0.5),"-",IFERROR('Tabel 4 ØJ'!G41/'Tabel 4F ØJ'!G41*100,"-")) -> 6.896551724 | I41: =IF(OR('Tabel 4F ØJ'!I41<5,'Tabel 4 ØJ'!I41<0.5),"-",IFERROR('Tabel 4 ØJ'!I41/'Tabel 4F ØJ'!I41*100,"-")) -> 12.93233083
A42: Bac. Nat. | C42: =IF(OR('Tabel 4F ØJ'!C42<5,'Tabel 4 ØJ'!C42<0.5),"-",IFERROR('Tabel 4 ØJ'!C42/'Tabel 4F ØJ'!C42*100,"-")) -> 13.66120219 | D42: =IF(OR('Tabel 4F ØJ'!D42<5,'Tabel 4 ØJ'!D42<0.5),"-",IFERROR('Tabel 4 ØJ'!D42/'Tabel 4F ØJ'!D42*100,"-")) -> 6.32183908 | E42: =IF(OR('Tabel 4F ØJ'!E42<5,'Tabel 4 ØJ'!E42<0.5),"-",IFERROR('Tabel 4 ØJ'!E42/'Tabel 4F ØJ'!E42*100,"-")) -> 5.454545455 | F42: =IF(OR('Tabel 4F ØJ'!F42<5,'Tabel 4 ØJ'!F42<0.5),"-",IFERROR('Tabel 4 ØJ'!F42/'Tabel 4F ØJ'!F42*100,"-")) -> 11.11111111 | G42: =IF(OR('Tabel 4F ØJ'!G42<5,'Tabel 4 ØJ'!G42<0.5),"-",IFERROR('Tabel 4 ØJ'!G42/'Tabel 4F ØJ'!G42*100,"-")) -> - | I42: =IF(OR('Tabel 4F ØJ'!I42<5,'Tabel 4 ØJ'!I42<0.5),"-",IFERROR('Tabel 4 ØJ'!I42/'Tabel 4F ØJ'!I42*100,"-")) -> 9.490740741
A43: Andre | C43: =IF(OR('Tabel 4F ØJ'!C43<5,'Tabel 4 ØJ'!C43<0.5),"-",IFERROR('Tabel 4 ØJ'!C43/'Tabel 4F ØJ'!C43*100,"-")) -> 19.10377358 | D43: =IF(OR('Tabel 4F ØJ'!D43<5,'Tabel 4 ØJ'!D43<0.5),"-",IFERROR('Tabel 4 ØJ'!D43/'Tabel 4F ØJ'!D43*100,"-")) -> 7.286673058 | E43: =IF(OR('Tabel 4F ØJ'!E43<5,'Tabel 4 ØJ'!E43<0.5),"-",IFERROR('Tabel 4 ØJ'!E43/'Tabel 4F ØJ'!E43*100,"-")) -> 4.166666667 | F43: =IF(OR('Tabel 4F ØJ'!F43<5,'Tabel 4 ØJ'!F43<0.5),"-",IFERROR('Tabel 4 ØJ'!F43/'Tabel 4F ØJ'!F43*100,"-")) -> 5.077262693 | G43: =IF(OR('Tabel 4F ØJ'!G43<5,'Tabel 4 ØJ'!G43<0.5),"-",IFERROR('Tabel 4 ØJ'!G43/'Tabel 4F ØJ'!G43*100,"-")) -> 6.048387097 | I43: =IF(OR('Tabel 4F ØJ'!I43<5,'Tabel 4 ØJ'!I43<0.5),"-",IFERROR('Tabel 4 ØJ'!I43/'Tabel 4F ØJ'!I43*100,"-")) -> 7.852112676
A45: Total | C45: =IF(OR('Tabel 4F ØJ'!C45<5,'Tabel 4 ØJ'!C45<0.5),"-",IFERROR('Tabel 4 ØJ'!C45/'Tabel 4F ØJ'!C45*100,"-")) -> 19.02600473 | D45: =IF(OR('Tabel 4F ØJ'!D45<5,'Tabel 4 ØJ'!D45<0.5),"-",IFERROR('Tabel 4 ØJ'!D45/'Tabel 4F ØJ'!D45*100,"-")) -> 6.29857073 | E45: =IF(OR('Tabel 4F ØJ'!E45<5,'Tabel 4 ØJ'!E45<0.5),"-",IFERROR('Tabel 4 ØJ'!E45/'Tabel 4F ØJ'!E45*100,"-")) -> 2.617877832 | F45: =IF(OR('Tabel 4F ØJ'!F45<5,'Tabel 4 ØJ'!F45<0.5),"-",IFERROR('Tabel 4 ØJ'!F45/'Tabel 4F ØJ'!F45*100,"-")) -> 2.824624935 | G45: =IF(OR('Tabel 4F ØJ'!G45<5,'Tabel 4 ØJ'!G45<0.5),"-",IFERROR('Tabel 4 ØJ'!G45/'Tabel 4F ØJ'!G45*100,"-")) -> 4.218893305 | I45: =IF(OR('Tabel 4F ØJ'!I45<5,'Tabel 4 ØJ'!I45<0.5),"-",IFERROR('Tabel 4 ØJ'!I45/'Tabel 4F ØJ'!I45*100,"-")) -> 7.091036742
A47: Ingeniører i alt | C47: =IF(OR('Tabel 4F ØJ'!C47<5,'Tabel 4 ØJ'!C47<0.5),"-",IFERROR('Tabel 4 ØJ'!C47/'Tabel 4F ØJ'!C47*100,"-")) -> 10.0132626 | D47: =IF(OR('Tabel 4F ØJ'!D47<5,'Tabel 4 ØJ'!D47<0.5),"-",IFERROR('Tabel 4 ØJ'!D47/'Tabel 4F ØJ'!D47*100,"-")) -> 2.460697198 | E47: =IF(OR('Tabel 4F ØJ'!E47<5,'Tabel 4 ØJ'!E47<0.5),"-",IFERROR('Tabel 4 ØJ'!E47/'Tabel 4F ØJ'!E47*100,"-")) -> 1.200873362 | F47: =IF(OR('Tabel 4F ØJ'!F47<5,'Tabel 4 ØJ'!F47<0.5),"-",IFERROR('Tabel 4 ØJ'!F47/'Tabel 4F ØJ'!F47*100,"-")) -> 1.593773165 | G47: =IF(OR('Tabel 4F ØJ'!G47<5,'Tabel 4 ØJ'!G47<0.5),"-",IFERROR('Tabel 4 ØJ'!G47/'Tabel 4F ØJ'!G47*100,"-")) -> 2.941176471 | I47: =IF(OR('Tabel 4F ØJ'!I47<5,'Tabel 4 ØJ'!I47<0.5),"-",IFERROR('Tabel 4 ØJ'!I47/'Tabel 4F ØJ'!I47*100,"-")) -> 3.020323673
A48: Magistre i alt | C48: =IF(OR('Tabel 4F ØJ'!C48<5,'Tabel 4 ØJ'!C48<0.5),"-",IFERROR('Tabel 4 ØJ'!C48/'Tabel 4F ØJ'!C48*100,"-")) -> 34.18447108 | D48: =IF(OR('Tabel 4F ØJ'!D48<5,'Tabel 4 ØJ'!D48<0.5),"-",IFERROR('Tabel 4 ØJ'!D48/'Tabel 4F ØJ'!D48*100,"-")) -> 11.65096678 | E48: =IF(OR('Tabel 4F ØJ'!E48<5,'Tabel 4 ØJ'!E48<0.5),"-",IFERROR('Tabel 4 ØJ'!E48/'Tabel 4F ØJ'!E48*100,"-")) -> 4.284963197 | F48: =IF(OR('Tabel 4F ØJ'!F48<5,'Tabel 4 ØJ'!F48<0.5),"-",IFERROR('Tabel 4 ØJ'!F48/'Tabel 4F ØJ'!F48*100,"-")) -> 3.925417076 | G48: =IF(OR('Tabel 4F ØJ'!G48<5,'Tabel 4 ØJ'!G48<0.5),"-",IFERROR('Tabel 4 ØJ'!G48/'Tabel 4F ØJ'!G48*100,"-")) -> 5.632183908 | I48: =IF(OR('Tabel 4F ØJ'!I48<5,'Tabel 4 ØJ'!I48<0.5),"-",IFERROR('Tabel 4 ØJ'!I48/'Tabel 4F ØJ'!I48*100,"-")) -> 11.19621003
A49: DJØF'ere i alt | C49: =IF(OR('Tabel 4F ØJ'!C49<5,'Tabel 4 ØJ'!C49<0.5),"-",IFERROR('Tabel 4 ØJ'!C49/'Tabel 4F ØJ'!C49*100,"-")) -> 13.84708007 | D49: =IF(OR('Tabel 4F ØJ'!D49<5,'Tabel 4 ØJ'!D49<0.5),"-",IFERROR('Tabel 4 ØJ'!D49/'Tabel 4F ØJ'!D49*100,"-")) -> 4.564473184 | E49: =IF(OR('Tabel 4F ØJ'!E49<5,'Tabel 4 ØJ'!E49<0.5),"-",IFERROR('Tabel 4 ØJ'!E49/'Tabel 4F ØJ'!E49*100,"-")) -> 2.064602065 | F49: =IF(OR('Tabel 4F ØJ'!F49<5,'Tabel 4 ØJ'!F49<0.5),"-",IFERROR('Tabel 4 ØJ'!F49/'Tabel 4F ØJ'!F49*100,"-")) -> 2.982202982 | G49: =IF(OR('Tabel 4F ØJ'!G49<5,'Tabel 4 ØJ'!G49<0.5),"-",IFERROR('Tabel 4 ØJ'!G49/'Tabel 4F ØJ'!G49*100,"-")) -> 3.431372549 | I49: =IF(OR('Tabel 4F ØJ'!I49<5,'Tabel 4 ØJ'!I49<0.5),"-",IFERROR('Tabel 4 ØJ'!I49/'Tabel 4F ØJ'!I49*100,"-")) -> 5.955934613
A56: Horsens
C58: Under 30 år | D58: 30 - 39 år | E58: 40 - 49 år | F58: 50 - 59 år | G58: Over 60 år | I58: I alt
A60: Civ. ing. | C60: =IF(OR('Tabel 4F ØJ'!C60<5,'Tabel 4 ØJ'!C60<0.5),"-",IFERROR('Tabel 4 ØJ'!C60/'Tabel 4F ØJ'!C60*100,"-")) -> 7.142857143 | D60: =IF(OR('Tabel 4F ØJ'!D60<5,'Tabel 4 ØJ'!D60<0.5),"-",IFERROR('Tabel 4 ØJ'!D60/'Tabel 4F ØJ'!D60*100,"-")) -> - | E60: =IF(OR('Tabel 4F ØJ'!E60<5,'Tabel 4 ØJ'!E60<0.5),"-",IFERROR('Tabel 4 ØJ'!E60/'Tabel 4F ØJ'!E60*100,"-")) -> 2.597402597 | F60: =IF(OR('Tabel 4F ØJ'!F60<5,'Tabel 4 ØJ'!F60<0.5),"-",IFERROR('Tabel 4 ØJ'!F60/'Tabel 4F ØJ'!F60*100,"-")) -> - | G60: =IF(OR('Tabel 4F ØJ'!G60<5,'Tabel 4 ØJ'!G60<0.5),"-",IFERROR('Tabel 4 ØJ'!G60/'Tabel 4F ØJ'!G60*100,"-")) -> - | I60: =IF(OR('Tabel 4F ØJ'!I60<5,'Tabel 4 ØJ'!I60<0.5),"-",IFERROR('Tabel 4 ØJ'!I60/'Tabel 4F ØJ'!I60*100,"-")) -> 1.503759398
A61: Diplom ing. | C61: =IF(OR('Tabel 4F ØJ'!C61<5,'Tabel 4 ØJ'!C61<0.5),"-",IFERROR('Tabel 4 ØJ'!C61/'Tabel 4F ØJ'!C61*100,"-")) -> 16.66666667 | D61: =IF(OR('Tabel 4F ØJ'!D61<5,'Tabel 4 ØJ'!D61<0.5),"-",IFERROR('Tabel 4 ØJ'!D61/'Tabel 4F ØJ'!D61*100,"-")) -> 1.785714286 | E61: =IF(OR('Tabel 4F ØJ'!E61<5,'Tabel 4 ØJ'!E61<0.5),"-",IFERROR('Tabel 4 ØJ'!E61/'Tabel 4F ØJ'!E61*100,"-")) -> 0.9771986971 | F61: =IF(OR('Tabel 4F ØJ'!F61<5,'Tabel 4 ØJ'!F61<0.5),"-",IFERROR('Tabel 4 ØJ'!F61/'Tabel 4F ØJ'!F61*100,"-")) -> 1.260504202 | G61: =IF(OR('Tabel 4F ØJ'!G61<5,'Tabel 4 ØJ'!G61<0.5),"-",IFERROR('Tabel 4 ØJ'!G61/'Tabel 4F ØJ'!G61*100,"-")) -> 3.125 | I61: =IF(OR('Tabel 4F ØJ'!I61<5,'Tabel 4 ØJ'!I61<0.5),"-",IFERROR('Tabel 4 ØJ'!I61/'Tabel 4F ØJ'!I61*100,"-")) -> 3.188097768
A62: Cand. Scient. Tek | C62: =IF(OR('Tabel 4F ØJ'!C62<5,'Tabel 4 ØJ'!C62<0.5),"-",IFERROR('Tabel 4 ØJ'!C62/'Tabel 4F ØJ'!C62*100,"-")) -> 28.57142857 | D62: =IF(OR('Tabel 4F ØJ'!D62<5,'Tabel 4 ØJ'!D62<0.5),"-",IFERROR('Tabel 4 ØJ'!D62/'Tabel 4F ØJ'!D62*100,"-")) -> 8.620689655 | E62: =IF(OR('Tabel 4F ØJ'!E62<5,'Tabel 4 ØJ'!E62<0.5),"-",IFERROR('Tabel 4 ØJ'!E62/'Tabel 4F ØJ'!E62*100,"-")) -> - | F62: =IF(OR('Tabel 4F ØJ'!F62<5,'Tabel 4 ØJ'!F62<0.5),"-",IFERROR('Tabel 4 ØJ'!F62/'Tabel 4F ØJ'!F62*100,"-")) -> - | G62: =IF(OR('Tabel 4F ØJ'!G62<5,'Tabel 4 ØJ'!G62<0.5),"-",IFERROR('Tabel 4 ØJ'!G62/'Tabel 4F ØJ'!G62*100,"-")) -> - | I62: =IF(OR('Tabel 4F ØJ'!I62<5,'Tabel 4 ØJ'!I62<0.5),"-",IFERROR('Tabel 4 ØJ'!I62/'Tabel 4F ØJ'!I62*100,"-")) -> 12.60504202
A63: MA. Hum. | C63: =IF(OR('Tabel 4F ØJ'!C63<5,'Tabel 4 ØJ'!C63<0.5),"-",IFERROR('Tabel 4 ØJ'!C63/'Tabel 4F ØJ'!C63*100,"-")) -> 38.23529412 | D63: =IF(OR('Tabel 4F ØJ'!D63<5,'Tabel 4 ØJ'!D63<0.5),"-",IFERROR('Tabel 4 ØJ'!D63/'Tabel 4F ØJ'!D63*100,"-")) -> 13.67521368 | E63: =IF(OR('Tabel 4F ØJ'!E63<5,'Tabel 4 ØJ'!E63<0.5),"-",IFERROR('Tabel 4 ØJ'!E63/'Tabel 4F ØJ'!E63*100,"-")) -> 4.929577465 | F63: =IF(OR('Tabel 4F ØJ'!F63<5,'Tabel 4 ØJ'!F63<0.5),"-",IFERROR('Tabel 4 ØJ'!F63/'Tabel 4F ØJ'!F63*100,"-")) -> 10.86956522 | G63: =IF(OR('Tabel 4F ØJ'!G63<5,'Tabel 4 ØJ'!G63<0.5),"-",IFERROR('Tabel 4 ØJ'!G63/'Tabel 4F ØJ'!G63*100,"-")) -> - | I63: =IF(OR('Tabel 4F ØJ'!I63<5,'Tabel 4 ØJ'!I63<0.5),"-",IFERROR('Tabel 4 ØJ'!I63/'Tabel 4F ØJ'!I63*100,"-")) -> 11.54929577
A64: MA. Nat. | C64: =IF(OR('Tabel 4F ØJ'!C64<5,'Tabel 4 ØJ'!C64<0.5),"-",IFERROR('Tabel 4 ØJ'!C64/'Tabel 4F ØJ'!C64*100,"-")) -> - | D64: =IF(OR('Tabel 4F ØJ'!D64<5,'Tabel 4 ØJ'!D64<0.5),"-",IFERROR('Tabel 4 ØJ'!D64/'Tabel 4F ØJ'!D64*100,"-")) -> 3.571428571 | E64: =IF(OR('Tabel 4F ØJ'!E64<5,'Tabel 4 ØJ'!E64<0.5),"-",IFERROR('Tabel 4 ØJ'!E64/'Tabel 4F ØJ'!E64*100,"-")) -> 1.785714286 | F64: =IF(OR('Tabel 4F ØJ'!F64<5,'Tabel 4 ØJ'!F64<0.5),"-",IFERROR('Tabel 4 ØJ'!F64/'Tabel 4F ØJ'!F64*100,"-")) -> - | G64: =IF(OR('Tabel 4F ØJ'!G64<5,'Tabel 4 ØJ'!G64<0.5),"-",IFERROR('Tabel 4 ØJ'!G64/'Tabel 4F ØJ'!G64*100,"-")) -> - | I64: =IF(OR('Tabel 4F ØJ'!I64<5,'Tabel 4 ØJ'!I64<0.5),"-",IFERROR('Tabel 4 ØJ'!I64/'Tabel 4F ØJ'!I64*100,"-")) -> 1.57480315
A65: MA. Ph.d. | C65: =IF(OR('Tabel 4F ØJ'!C65<5,'Tabel 4 ØJ'!C65<0.5),"-",IFERROR('Tabel 4 ØJ'!C65/'Tabel 4F ØJ'!C65*100,"-")) -> - | D65: =IF(OR('Tabel 4F ØJ'!D65<5,'Tabel 4 ØJ'!D65<0.5),"-",IFERROR('Tabel 4 ØJ'!D65/'Tabel 4F ØJ'!D65*100,"-")) -> - | E65: =IF(OR('Tabel 4F ØJ'!E65<5,'Tabel 4 ØJ'!E65<0.5),"-",IFERROR('Tabel 4 ØJ'!E65/'Tabel 4F ØJ'!E65*100,"-")) -> - | F65: =IF(OR('Tabel 4F ØJ'!F65<5,'Tabel 4 ØJ'!F65<0.5),"-",IFERROR('Tabel 4 ØJ'!F65/'Tabel 4F ØJ'!F65*100,"-")) -> - | G65: =IF(OR('Tabel 4F ØJ'!G65<5,'Tabel 4 ØJ'!G65<0.5),"-",IFERROR('Tabel 4 ØJ'!G65/'Tabel 4F ØJ'!G65*100,"-")) -> - | I65: =IF(OR('Tabel 4F ØJ'!I65<5,'Tabel 4 ØJ'!I65<0.5),"-",IFERROR('Tabel 4 ØJ'!I65/'Tabel 4F ØJ'!I65*100,"-")) -> -
A66: MA. Samf. | C66: =IF(OR('Tabel 4F ØJ'!C66<5,'Tabel 4 ØJ'!C66<0.5),"-",IFERROR('Tabel 4 ØJ'!C66/'Tabel 4F ØJ'!C66*100,"-")) -> 28.57142857 | D66: =IF(OR('Tabel 4F ØJ'!D66<5,'Tabel 4 ØJ'!D66<0.5),"-",IFERROR('Tabel 4 ØJ'!D66/'Tabel 4F ØJ'!D66*100,"-")) -> 16.66666667 | E66: =IF(OR('Tabel 4F ØJ'!E66<5,'Tabel 4 ØJ'!E66<0.5),"-",IFERROR('Tabel 4 ØJ'!E66/'Tabel 4F ØJ'!E66*100,"-")) -> - | F66: =IF(OR('Tabel 4F ØJ'!F66<5,'Tabel 4 ØJ'!F66<0.5),"-",IFERROR('Tabel 4 ØJ'!F66/'Tabel 4F ØJ'!F66*100,"-")) -> - | G66: =IF(OR('Tabel 4F ØJ'!G66<5,'Tabel 4 ØJ'!G66<0.5),"-",IFERROR('Tabel 4 ØJ'!G66/'Tabel 4F ØJ'!G66*100,"-")) -> - | I66: =IF(OR('Tabel 4F ØJ'!I66<5,'Tabel 4 ØJ'!I66<0.5),"-",IFERROR('Tabel 4 ØJ'!I66/'Tabel 4F ØJ'!I66*100,"-")) -> 16.66666667
A67: Øvrige Mag. | C67: =IF(OR('Tabel 4F ØJ'!C67<5,'Tabel 4 ØJ'!C67<0.5),"-",IFERROR('Tabel 4 ØJ'!C67/'Tabel 4F ØJ'!C67*100,"-")) -> - | D67: =IF(OR('Tabel 4F ØJ'!D67<5,'Tabel 4 ØJ'!D67<0.5),"-",IFERROR('Tabel 4 ØJ'!D67/'Tabel 4F ØJ'!D67*100,"-")) -> 9.090909091 | E67: =IF(OR('Tabel 4F ØJ'!E67<5,'Tabel 4 ØJ'!E67<0.5),"-",IFERROR('Tabel 4 ØJ'!E67/'Tabel 4F ØJ'!E67*100,"-")) -> 25 | F67: =IF(OR('Tabel 4F ØJ'!F67<5,'Tabel 4 ØJ'!F67<0.5),"-",IFERROR('Tabel 4 ØJ'!F67/'Tabel 4F ØJ'!F67*100,"-")) -> - | G67: =IF(OR('Tabel 4F ØJ'!G67<5,'Tabel 4 ØJ'!G67<0.5),"-",IFERROR('Tabel 4 ØJ'!G67/'Tabel 4F ØJ'!G67*100,"-")) -> - | I67: =IF(OR('Tabel 4F ØJ'!I67<5,'Tabel 4 ØJ'!I67<0.5),"-",IFERROR('Tabel 4 ØJ'!I67/'Tabel 4F ØJ'!I67*100,"-")) -> 10.34482759
A68: Agronom | C68: =IF(OR('Tabel 4F ØJ'!C68<5,'Tabel 4 ØJ'!C68<0.5),"-",IFERROR('Tabel 4 ØJ'!C68/'Tabel 4F ØJ'!C68*100,"-")) -> - | D68: =IF(OR('Tabel 4F ØJ'!D68<5,'Tabel 4 ØJ'!D68<0.5),"-",IFERROR('Tabel 4 ØJ'!D68/'Tabel 4F ØJ'!D68*100,"-")) -> - | E68: =IF(OR('Tabel 4F ØJ'!E68<5,'Tabel 4 ØJ'!E68<0.5),"-",IFERROR('Tabel 4 ØJ'!E68/'Tabel 4F ØJ'!E68*100,"-")) -> - | F68: =IF(OR('Tabel 4F ØJ'!F68<5,'Tabel 4 ØJ'!F68<0.5),"-",IFERROR('Tabel 4 ØJ'!F68/'Tabel 4F ØJ'!F68*100,"-")) -> 5.882352941 | G68: =IF(OR('Tabel 4F ØJ'!G68<5,'Tabel 4 ØJ'!G68<0.5),"-",IFERROR('Tabel 4 ØJ'!G68/'Tabel 4F ØJ'!G68*100,"-")) -> - | I68: =IF(OR('Tabel 4F ØJ'!I68<5,'Tabel 4 ØJ'!I68<0.5),"-",IFERROR('Tabel 4 ØJ'!I68/'Tabel 4F ØJ'!I68*100,"-")) -> 2.702702703
A69: Landsk. Arkt. | C69: =IF(OR('Tabel 4F ØJ'!C69<5,'Tabel 4 ØJ'!C69<0.5),"-",IFERROR('Tabel 4 ØJ'!C69/'Tabel 4F ØJ'!C69*100,"-")) -> - | D69: =IF(OR('Tabel 4F ØJ'!D69<5,'Tabel 4 ØJ'!D69<0.5),"-",IFERROR('Tabel 4 ØJ'!D69/'Tabel 4F ØJ'!D69*100,"-")) -> - | E69: =IF(OR('Tabel 4F ØJ'!E69<5,'Tabel 4 ØJ'!E69<0.5),"-",IFERROR('Tabel 4 ØJ'!E69/'Tabel 4F ØJ'!E69*100,"-")) -> - | F69: =IF(OR('Tabel 4F ØJ'!F69<5,'Tabel 4 ØJ'!F69<0.5),"-",IFERROR('Tabel 4 ØJ'!F69/'Tabel 4F ØJ'!F69*100,"-")) -> - | G69: =IF(OR('Tabel 4F ØJ'!G69<5,'Tabel 4 ØJ'!G69<0.5),"-",IFERROR('Tabel 4 ØJ'!G69/'Tabel 4F ØJ'!G69*100,"-")) -> - | I69: =IF(OR('Tabel 4F ØJ'!I69<5,'Tabel 4 ØJ'!I69<0.5),"-",IFERROR('Tabel 4 ØJ'!I69/'Tabel 4F ØJ'!I69*100,"-")) -> -
A70: Hortonom | C70: =IF(OR('Tabel 4F ØJ'!C70<5,'Tabel 4 ØJ'!C70<0.5),"-",IFERROR('Tabel 4 ØJ'!C70/'Tabel 4F ØJ'!C70*100,"-")) -> - | D70: =IF(OR('Tabel 4F ØJ'!D70<5,'Tabel 4 ØJ'!D70<0.5),"-",IFERROR('Tabel 4 ØJ'!D70/'Tabel 4F ØJ'!D70*100,"-")) -> - | E70: =IF(OR('Tabel 4F ØJ'!E70<5,'Tabel 4 ØJ'!E70<0.5),"-",IFERROR('Tabel 4 ØJ'!E70/'Tabel 4F ØJ'!E70*100,"-")) -> - | F70: =IF(OR('Tabel 4F ØJ'!F70<5,'Tabel 4 ØJ'!F70<0.5),"-",IFERROR('Tabel 4 ØJ'!F70/'Tabel 4F ØJ'!F70*100,"-")) -> - | G70: =IF(OR('Tabel 4F ØJ'!G70<5,'Tabel 4 ØJ'!G70<0.5),"-",IFERROR('Tabel 4 ØJ'!G70/'Tabel 4F ØJ'!G70*100,"-")) -> - | I70: =IF(OR('Tabel 4F ØJ'!I70<5,'Tabel 4 ØJ'!I70<0.5),"-",IFERROR('Tabel 4 ØJ'!I70/'Tabel 4F ØJ'!I70*100,"-")) -> -
A71: Forstkand. | C71: =IF(OR('Tabel 4F ØJ'!C71<5,'Tabel 4 ØJ'!C71<0.5),"-",IFERROR('Tabel 4 ØJ'!C71/'Tabel 4F ØJ'!C71*100,"-")) -> - | D71: =IF(OR('Tabel 4F ØJ'!D71<5,'Tabel 4 ØJ'!D71<0.5),"-",IFERROR('Tabel 4 ØJ'!D71/'Tabel 4F ØJ'!D71*100,"-")) -> - | E71: =IF(OR('Tabel 4F ØJ'!E71<5,'Tabel 4 ØJ'!E71<0.5),"-",IFERROR('Tabel 4 ØJ'!E71/'Tabel 4F ØJ'!E71*100,"-")) -> - | F71: =IF(OR('Tabel 4F ØJ'!F71<5,'Tabel 4 ØJ'!F71<0.5),"-",IFERROR('Tabel 4 ØJ'!F71/'Tabel 4F ØJ'!F71*100,"-")) -> - | G71: =IF(OR('Tabel 4F ØJ'!G71<5,'Tabel 4 ØJ'!G71<0.5),"-",IFERROR('Tabel 4 ØJ'!G71/'Tabel 4F ØJ'!G71*100,"-")) -> - | I71: =IF(OR('Tabel 4F ØJ'!I71<5,'Tabel 4 ØJ'!I71<0.5),"-",IFERROR('Tabel 4 ØJ'!I71/'Tabel 4F ØJ'!I71*100,"-")) -> -
A72: Jordbrugsakad. | C72: =IF(OR('Tabel 4F ØJ'!C72<5,'Tabel 4 ØJ'!C72<0.5),"-",IFERROR('Tabel 4 ØJ'!C72/'Tabel 4F ØJ'!C72*100,"-")) -> - | D72: =IF(OR('Tabel 4F ØJ'!D72<5,'Tabel 4 ØJ'!D72<0.5),"-",IFERROR('Tabel 4 ØJ'!D72/'Tabel 4F ØJ'!D72*100,"-")) -> - | E72: =IF(OR('Tabel 4F ØJ'!E72<5,'Tabel 4 ØJ'!E72<0.5),"-",IFERROR('Tabel 4 ØJ'!E72/'Tabel 4F ØJ'!E72*100,"-")) -> - | F72: =IF(OR('Tabel 4F ØJ'!F72<5,'Tabel 4 ØJ'!F72<0.5),"-",IFERROR('Tabel 4 ØJ'!F72/'Tabel 4F ØJ'!F72*100,"-")) -> 5.263157895 | G72: =IF(OR('Tabel 4F ØJ'!G72<5,'Tabel 4 ØJ'!G72<0.5),"-",IFERROR('Tabel 4 ØJ'!G72/'Tabel 4F ØJ'!G72*100,"-")) -> - | I72: =IF(OR('Tabel 4F ØJ'!I72<5,'Tabel 4 ØJ'!I72<0.5),"-",IFERROR('Tabel 4 ØJ'!I72/'Tabel 4F ØJ'!I72*100,"-")) -> 2.173913043
A73: Mejeriing. | C73: =IF(OR('Tabel 4F ØJ'!C73<5,'Tabel 4 ØJ'!C73<0.5),"-",IFERROR('Tabel 4 ØJ'!C73/'Tabel 4F ØJ'!C73*100,"-")) -> - | D73: =IF(OR('Tabel 4F ØJ'!D73<5,'Tabel 4 ØJ'!D73<0.5),"-",IFERROR('Tabel 4 ØJ'!D73/'Tabel 4F ØJ'!D73*100,"-")) -> - | E73: =IF(OR('Tabel 4F ØJ'!E73<5,'Tabel 4 ØJ'!E73<0.5),"-",IFERROR('Tabel 4 ØJ'!E73/'Tabel 4F ØJ'!E73*100,"-")) -> - | F73: =IF(OR('Tabel 4F ØJ'!F73<5,'Tabel 4 ØJ'!F73<0.5),"-",IFERROR('Tabel 4 ØJ'!F73/'Tabel 4F ØJ'!F73*100,"-")) -> - | G73: =IF(OR('Tabel 4F ØJ'!G73<5,'Tabel 4 ØJ'!G73<0.5),"-",IFERROR('Tabel 4 ØJ'!G73/'Tabel 4F ØJ'!G73*100,"-")) -> - | I73: =IF(OR('Tabel 4F ØJ'!I73<5,'Tabel 4 ØJ'!I73<0.5),"-",IFERROR('Tabel 4 ØJ'!I73/'Tabel 4F ØJ'!I73*100,"-")) -> -
A74: Levn.m.kand. | C74: =IF(OR('Tabel 4F ØJ'!C74<5,'Tabel 4 ØJ'!C74<0.5),"-",IFERROR('Tabel 4 ØJ'!C74/'Tabel 4F ØJ'!C74*100,"-")) -> - | D74: =IF(OR('Tabel 4F ØJ'!D74<5,'Tabel 4 ØJ'!D74<0.5),"-",IFERROR('Tabel 4 ØJ'!D74/'Tabel 4F ØJ'!D74*100,"-")) -> - | E74: =IF(OR('Tabel 4F ØJ'!E74<5,'Tabel 4 ØJ'!E74<0.5),"-",IFERROR('Tabel 4 ØJ'!E74/'Tabel 4F ØJ'!E74*100,"-")) -> - | F74: =IF(OR('Tabel 4F ØJ'!F74<5,'Tabel 4 ØJ'!F74<0.5),"-",IFERROR('Tabel 4 ØJ'!F74/'Tabel 4F ØJ'!F74*100,"-")) -> - | G74: =IF(OR('Tabel 4F ØJ'!G74<5,'Tabel 4 ØJ'!G74<0.5),"-",IFERROR('Tabel 4 ØJ'!G74/'Tabel 4F ØJ'!G74*100,"-")) -> - | I74: =IF(OR('Tabel 4F ØJ'!I74<5,'Tabel 4 ØJ'!I74<0.5),"-",IFERROR('Tabel 4 ØJ'!I74/'Tabel 4F ØJ'!I74*100,"-")) -> -
A75: Dyrlæge | C75: =IF(OR('Tabel 4F ØJ'!C75<5,'Tabel 4 ØJ'!C75<0.5),"-",IFERROR('Tabel 4 ØJ'!C75/'Tabel 4F ØJ'!C75*100,"-")) -> - | D75: =IF(OR('Tabel 4F ØJ'!D75<5,'Tabel 4 ØJ'!D75<0.5),"-",IFERROR('Tabel 4 ØJ'!D75/'Tabel 4F ØJ'!D75*100,"-")) -> - | E75: =IF(OR('Tabel 4F ØJ'!E75<5,'Tabel 4 ØJ'!E75<0.5),"-",IFERROR('Tabel 4 ØJ'!E75/'Tabel 4F ØJ'!E75*100,"-")) -> - | F75: =IF(OR('Tabel 4F ØJ'!F75<5,'Tabel 4 ØJ'!F75<0.5),"-",IFERROR('Tabel 4 ØJ'!F75/'Tabel 4F ØJ'!F75*100,"-")) -> - | G75: =IF(OR('Tabel 4F ØJ'!G75<5,'Tabel 4 ØJ'!G75<0.5),"-",IFERROR('Tabel 4 ØJ'!G75/'Tabel 4F ØJ'!G75*100,"-")) -> - | I75: =IF(OR('Tabel 4F ØJ'!I75<5,'Tabel 4 ØJ'!I75<0.5),"-",IFERROR('Tabel 4 ØJ'!I75/'Tabel 4F ØJ'!I75*100,"-")) -> -
A76: Farmaceut | C76: =IF(OR('Tabel 4F ØJ'!C76<5,'Tabel 4 ØJ'!C76<0.5),"-",IFERROR('Tabel 4 ØJ'!C76/'Tabel 4F ØJ'!C76*100,"-")) -> - | D76: =IF(OR('Tabel 4F ØJ'!D76<5,'Tabel 4 ØJ'!D76<0.5),"-",IFERROR('Tabel 4 ØJ'!D76/'Tabel 4F ØJ'!D76*100,"-")) -> 20 | E76: =IF(OR('Tabel 4F ØJ'!E76<5,'Tabel 4 ØJ'!E76<0.5),"-",IFERROR('Tabel 4 ØJ'!E76/'Tabel 4F ØJ'!E76*100,"-")) -> - | F76: =IF(OR('Tabel 4F ØJ'!F76<5,'Tabel 4 ØJ'!F76<0.5),"-",IFERROR('Tabel 4 ØJ'!F76/'Tabel 4F ØJ'!F76*100,"-")) -> - | G76: =IF(OR('Tabel 4F ØJ'!G76<5,'Tabel 4 ØJ'!G76<0.5),"-",IFERROR('Tabel 4 ØJ'!G76/'Tabel 4F ØJ'!G76*100,"-")) -> - | I76: =IF(OR('Tabel 4F ØJ'!I76<5,'Tabel 4 ØJ'!I76<0.5),"-",IFERROR('Tabel 4 ØJ'!I76/'Tabel 4F ØJ'!I76*100,"-")) -> 9.523809524
A77: Læge | C77: =IF(OR('Tabel 4F ØJ'!C77<5,'Tabel 4 ØJ'!C77<0.5),"-",IFERROR('Tabel 4 ØJ'!C77/'Tabel 4F ØJ'!C77*100,"-")) -> - | D77: =IF(OR('Tabel 4F ØJ'!D77<5,'Tabel 4 ØJ'!D77<0.5),"-",IFERROR('Tabel 4 ØJ'!D77/'Tabel 4F ØJ'!D77*100,"-")) -> - | E77: =IF(OR('Tabel 4F ØJ'!E77<5,'Tabel 4 ØJ'!E77<0.5),"-",IFERROR('Tabel 4 ØJ'!E77/'Tabel 4F ØJ'!E77*100,"-")) -> - | F77: =IF(OR('Tabel 4F ØJ'!F77<5,'Tabel 4 ØJ'!F77<0.5),"-",IFERROR('Tabel 4 ØJ'!F77/'Tabel 4F ØJ'!F77*100,"-")) -> - | G77: =IF(OR('Tabel 4F ØJ'!G77<5,'Tabel 4 ØJ'!G77<0.5),"-",IFERROR('Tabel 4 ØJ'!G77/'Tabel 4F ØJ'!G77*100,"-")) -> - | I77: =IF(OR('Tabel 4F ØJ'!I77<5,'Tabel 4 ØJ'!I77<0.5),"-",IFERROR('Tabel 4 ØJ'!I77/'Tabel 4F ØJ'!I77*100,"-")) -> -
A78: Tandlæge | C78: =IF(OR('Tabel 4F ØJ'!C78<5,'Tabel 4 ØJ'!C78<0.5),"-",IFERROR('Tabel 4 ØJ'!C78/'Tabel 4F ØJ'!C78*100,"-")) -> - | D78: =IF(OR('Tabel 4F ØJ'!D78<5,'Tabel 4 ØJ'!D78<0.5),"-",IFERROR('Tabel 4 ØJ'!D78/'Tabel 4F ØJ'!D78*100,"-")) -> - | E78: =IF(OR('Tabel 4F ØJ'!E78<5,'Tabel 4 ØJ'!E78<0.5),"-",IFERROR('Tabel 4 ØJ'!E78/'Tabel 4F ØJ'!E78*100,"-")) -> - | F78: =IF(OR('Tabel 4F ØJ'!F78<5,'Tabel 4 ØJ'!F78<0.5),"-",IFERROR('Tabel 4 ØJ'!F78/'Tabel 4F ØJ'!F78*100,"-")) -> - | G78: =IF(OR('Tabel 4F ØJ'!G78<5,'Tabel 4 ØJ'!G78<0.5),"-",IFERROR('Tabel 4 ØJ'!G78/'Tabel 4F ØJ'!G78*100,"-")) -> - | I78: =IF(OR('Tabel 4F ØJ'!I78<5,'Tabel 4 ØJ'!I78<0.5),"-",IFERROR('Tabel 4 ØJ'!I78/'Tabel 4F ØJ'!I78*100,"-")) -> -
A79: Arkitekt | C79: =IF(OR('Tabel 4F ØJ'!C79<5,'Tabel 4 ØJ'!C79<0.5),"-",IFERROR('Tabel 4 ØJ'!C79/'Tabel 4F ØJ'!C79*100,"-")) -> - | D79: =IF(OR('Tabel 4F ØJ'!D79<5,'Tabel 4 ØJ'!D79<0.5),"-",IFERROR('Tabel 4 ØJ'!D79/'Tabel 4F ØJ'!D79*100,"-")) -> - | E79: =IF(OR('Tabel 4F ØJ'!E79<5,'Tabel 4 ØJ'!E79<0.5),"-",IFERROR('Tabel 4 ØJ'!E79/'Tabel 4F ØJ'!E79*100,"-")) -> - | F79: =IF(OR('Tabel 4F ØJ'!F79<5,'Tabel 4 ØJ'!F79<0.5),"-",IFERROR('Tabel 4 ØJ'!F79/'Tabel 4F ØJ'!F79*100,"-")) -> - | G79: =IF(OR('Tabel 4F ØJ'!G79<5,'Tabel 4 ØJ'!G79<0.5),"-",IFERROR('Tabel 4 ØJ'!G79/'Tabel 4F ØJ'!G79*100,"-")) -> - | I79: =IF(OR('Tabel 4F ØJ'!I79<5,'Tabel 4 ØJ'!I79<0.5),"-",IFERROR('Tabel 4 ØJ'!I79/'Tabel 4F ØJ'!I79*100,"-")) -> -
A80: Landinspek. | C80: =IF(OR('Tabel 4F ØJ'!C80<5,'Tabel 4 ØJ'!C80<0.5),"-",IFERROR('Tabel 4 ØJ'!C80/'Tabel 4F ØJ'!C80*100,"-")) -> - | D80: =IF(OR('Tabel 4F ØJ'!D80<5,'Tabel 4 ØJ'!D80<0.5),"-",IFERROR('Tabel 4 ØJ'!D80/'Tabel 4F ØJ'!D80*100,"-")) -> - | E80: =IF(OR('Tabel 4F ØJ'!E80<5,'Tabel 4 ØJ'!E80<0.5),"-",IFERROR('Tabel 4 ØJ'!E80/'Tabel 4F ØJ'!E80*100,"-")) -> - | F80: =IF(OR('Tabel 4F ØJ'!F80<5,'Tabel 4 ØJ'!F80<0.5),"-",IFERROR('Tabel 4 ØJ'!F80/'Tabel 4F ØJ'!F80*100,"-")) -> - | G80: =IF(OR('Tabel 4F ØJ'!G80<5,'Tabel 4 ØJ'!G80<0.5),"-",IFERROR('Tabel 4 ØJ'!G80/'Tabel 4F ØJ'!G80*100,"-")) -> - | I80: =IF(OR('Tabel 4F ØJ'!I80<5,'Tabel 4 ØJ'!I80<0.5),"-",IFERROR('Tabel 4 ØJ'!I80/'Tabel 4F ØJ'!I80*100,"-")) -> -
A81: Bibliotekar | C81: =IF(OR('Tabel 4F ØJ'!C81<5,'Tabel 4 ØJ'!C81<0.5),"-",IFERROR('Tabel 4 ØJ'!C81/'Tabel 4F ØJ'!C81*100,"-")) -> - | D81: =IF(OR('Tabel 4F ØJ'!D81<5,'Tabel 4 ØJ'!D81<0.5),"-",IFERROR('Tabel 4 ØJ'!D81/'Tabel 4F ØJ'!D81*100,"-")) -> - | E81: =IF(OR('Tabel 4F ØJ'!E81<5,'Tabel 4 ØJ'!E81<0.5),"-",IFERROR('Tabel 4 ØJ'!E81/'Tabel 4F ØJ'!E81*100,"-")) -> - | F81: =IF(OR('Tabel 4F ØJ'!F81<5,'Tabel 4 ØJ'!F81<0.5),"-",IFERROR('Tabel 4 ØJ'!F81/'Tabel 4F ØJ'!F81*100,"-")) -> - | G81: =IF(OR('Tabel 4F ØJ'!G81<5,'Tabel 4 ØJ'!G81<0.5),"-",IFERROR('Tabel 4 ØJ'!G81/'Tabel 4F ØJ'!G81*100,"-")) -> - | I81: =IF(OR('Tabel 4F ØJ'!I81<5,'Tabel 4 ØJ'!I81<0.5),"-",IFERROR('Tabel 4 ØJ'!I81/'Tabel 4F ØJ'!I81*100,"-")) -> -
A82: Musikudd. | C82: =IF(OR('Tabel 4F ØJ'!C82<5,'Tabel 4 ØJ'!C82<0.5),"-",IFERROR('Tabel 4 ØJ'!C82/'Tabel 4F ØJ'!C82*100,"-")) -> - | D82: =IF(OR('Tabel 4F ØJ'!D82<5,'Tabel 4 ØJ'!D82<0.5),"-",IFERROR('Tabel 4 ØJ'!D82/'Tabel 4F ØJ'!D82*100,"-")) -> - | E82: =IF(OR('Tabel 4F ØJ'!E82<5,'Tabel 4 ØJ'!E82<0.5),"-",IFERROR('Tabel 4 ØJ'!E82/'Tabel 4F ØJ'!E82*100,"-")) -> - | F82: =IF(OR('Tabel 4F ØJ'!F82<5,'Tabel 4 ØJ'!F82<0.5),"-",IFERROR('Tabel 4 ØJ'!F82/'Tabel 4F ØJ'!F82*100,"-")) -> - | G82: =IF(OR('Tabel 4F ØJ'!G82<5,'Tabel 4 ØJ'!G82<0.5),"-",IFERROR('Tabel 4 ØJ'!G82/'Tabel 4F ØJ'!G82*100,"-")) -> - | I82: =IF(OR('Tabel 4F ØJ'!I82<5,'Tabel 4 ØJ'!I82<0.5),"-",IFERROR('Tabel 4 ØJ'!I82/'Tabel 4F ØJ'!I82*100,"-")) -> -
A83: Teolog | C83: =IF(OR('Tabel 4F ØJ'!C83<5,'Tabel 4 ØJ'!C83<0.5),"-",IFERROR('Tabel 4 ØJ'!C83/'Tabel 4F ØJ'!C83*100,"-")) -> - | D83: =IF(OR('Tabel 4F ØJ'!D83<5,'Tabel 4 ØJ'!D83<0.5),"-",IFERROR('Tabel 4 ØJ'!D83/'Tabel 4F ØJ'!D83*100,"-")) -> - | E83: =IF(OR('Tabel 4F ØJ'!E83<5,'Tabel 4 ØJ'!E83<0.5),"-",IFERROR('Tabel 4 ØJ'!E83/'Tabel 4F ØJ'!E83*100,"-")) -> - | F83: =IF(OR('Tabel 4F ØJ'!F83<5,'Tabel 4 ØJ'!F83<0.5),"-",IFERROR('Tabel 4 ØJ'!F83/'Tabel 4F ØJ'!F83*100,"-")) -> - | G83: =IF(OR('Tabel 4F ØJ'!G83<5,'Tabel 4 ØJ'!G83<0.5),"-",IFERROR('Tabel 4 ØJ'!G83/'Tabel 4F ØJ'!G83*100,"-")) -> - | I83: =IF(OR('Tabel 4F ØJ'!I83<5,'Tabel 4 ØJ'!I83<0.5),"-",IFERROR('Tabel 4 ØJ'!I83/'Tabel 4F ØJ'!I83*100,"-")) -> -
A84: Psykolog | C84: =IF(OR('Tabel 4F ØJ'!C84<5,'Tabel 4 ØJ'!C84<0.5),"-",IFERROR('Tabel 4 ØJ'!C84/'Tabel 4F ØJ'!C84*100,"-")) -> 36.36363636 | D84: =IF(OR('Tabel 4F ØJ'!D84<5,'Tabel 4 ØJ'!D84<0.5),"-",IFERROR('Tabel 4 ØJ'!D84/'Tabel 4F ØJ'!D84*100,"-")) -> 11.53846154 | E84: =IF(OR('Tabel 4F ØJ'!E84<5,'Tabel 4 ØJ'!E84<0.5),"-",IFERROR('Tabel 4 ØJ'!E84/'Tabel 4F ØJ'!E84*100,"-")) -> - | F84: =IF(OR('Tabel 4F ØJ'!F84<5,'Tabel 4 ØJ'!F84<0.5),"-",IFERROR('Tabel 4 ØJ'!F84/'Tabel 4F ØJ'!F84*100,"-")) -> - | G84: =IF(OR('Tabel 4F ØJ'!G84<5,'Tabel 4 ØJ'!G84<0.5),"-",IFERROR('Tabel 4 ØJ'!G84/'Tabel 4F ØJ'!G84*100,"-")) -> - | I84: =IF(OR('Tabel 4F ØJ'!I84<5,'Tabel 4 ØJ'!I84<0.5),"-",IFERROR('Tabel 4 ØJ'!I84/'Tabel 4F ØJ'!I84*100,"-")) -> 8.75
A85: Jurist | C85: =IF(OR('Tabel 4F ØJ'!C85<5,'Tabel 4 ØJ'!C85<0.5),"-",IFERROR('Tabel 4 ØJ'!C85/'Tabel 4F ØJ'!C85*100,"-")) -> 8 | D85: =IF(OR('Tabel 4F ØJ'!D85<5,'Tabel 4 ØJ'!D85<0.5),"-",IFERROR('Tabel 4 ØJ'!D85/'Tabel 4F ØJ'!D85*100,"-")) -> - | E85: =IF(OR('Tabel 4F ØJ'!E85<5,'Tabel 4 ØJ'!E85<0.5),"-",IFERROR('Tabel 4 ØJ'!E85/'Tabel 4F ØJ'!E85*100,"-")) -> 5 | F85: =IF(OR('Tabel 4F ØJ'!F85<5,'Tabel 4 ØJ'!F85<0.5),"-",IFERROR('Tabel 4 ØJ'!F85/'Tabel 4F ØJ'!F85*100,"-")) -> - | G85: =IF(OR('Tabel 4F ØJ'!G85<5,'Tabel 4 ØJ'!G85<0.5),"-",IFERROR('Tabel 4 ØJ'!G85/'Tabel 4F ØJ'!G85*100,"-")) -> 16.66666667 | I85: =IF(OR('Tabel 4F ØJ'!I85<5,'Tabel 4 ØJ'!I85<0.5),"-",IFERROR('Tabel 4 ØJ'!I85/'Tabel 4F ØJ'!I85*100,"-")) -> 3.623188406
A86: Økonom | C86: =IF(OR('Tabel 4F ØJ'!C86<5,'Tabel 4 ØJ'!C86<0.5),"-",IFERROR('Tabel 4 ØJ'!C86/'Tabel 4F ØJ'!C86*100,"-")) -> 9.090909091 | D86: =IF(OR('Tabel 4F ØJ'!D86<5,'Tabel 4 ØJ'!D86<0.5),"-",IFERROR('Tabel 4 ØJ'!D86/'Tabel 4F ØJ'!D86*100,"-")) -> - | E86: =IF(OR('Tabel 4F ØJ'!E86<5,'Tabel 4 ØJ'!E86<0.5),"-",IFERROR('Tabel 4 ØJ'!E86/'Tabel 4F ØJ'!E86*100,"-")) -> - | F86: =IF(OR('Tabel 4F ØJ'!F86<5,'Tabel 4 ØJ'!F86<0.5),"-",IFERROR('Tabel 4 ØJ'!F86/'Tabel 4F ØJ'!F86*100,"-")) -> - | G86: =IF(OR('Tabel 4F ØJ'!G86<5,'Tabel 4 ØJ'!G86<0.5),"-",IFERROR('Tabel 4 ØJ'!G86/'Tabel 4F ØJ'!G86*100,"-")) -> - | I86: =IF(OR('Tabel 4F ØJ'!I86<5,'Tabel 4 ØJ'!I86<0.5),"-",IFERROR('Tabel 4 ØJ'!I86/'Tabel 4F ØJ'!I86*100,"-")) -> 1.587301587
A87: Samf. Adm. | C87: =IF(OR('Tabel 4F ØJ'!C87<5,'Tabel 4 ØJ'!C87<0.5),"-",IFERROR('Tabel 4 ØJ'!C87/'Tabel 4F ØJ'!C87*100,"-")) -> 22.22222222 | D87: =IF(OR('Tabel 4F ØJ'!D87<5,'Tabel 4 ØJ'!D87<0.5),"-",IFERROR('Tabel 4 ØJ'!D87/'Tabel 4F ØJ'!D87*100,"-")) -> 9.523809524 | E87: =IF(OR('Tabel 4F ØJ'!E87<5,'Tabel 4 ØJ'!E87<0.5),"-",IFERROR('Tabel 4 ØJ'!E87/'Tabel 4F ØJ'!E87*100,"-")) -> 4.081632653 | F87: =IF(OR('Tabel 4F ØJ'!F87<5,'Tabel 4 ØJ'!F87<0.5),"-",IFERROR('Tabel 4 ØJ'!F87/'Tabel 4F ØJ'!F87*100,"-")) -> 7.692307692 | G87: =IF(OR('Tabel 4F ØJ'!G87<5,'Tabel 4 ØJ'!G87<0.5),"-",IFERROR('Tabel 4 ØJ'!G87/'Tabel 4F ØJ'!G87*100,"-")) -> - | I87: =IF(OR('Tabel 4F ØJ'!I87<5,'Tabel 4 ØJ'!I87<0.5),"-",IFERROR('Tabel 4 ØJ'!I87/'Tabel 4F ØJ'!I87*100,"-")) -> 8.783783784
A88: Cand. Merc. | C88: =IF(OR('Tabel 4F ØJ'!C88<5,'Tabel 4 ØJ'!C88<0.5),"-",IFERROR('Tabel 4 ØJ'!C88/'Tabel 4F ØJ'!C88*100,"-")) -> 16.43835616 | D88: =IF(OR('Tabel 4F ØJ'!D88<5,'Tabel 4 ØJ'!D88<0.5),"-",IFERROR('Tabel 4 ØJ'!D88/'Tabel 4F ØJ'!D88*100,"-")) -> 2.732240437 | E88: =IF(OR('Tabel 4F ØJ'!E88<5,'Tabel 4 ØJ'!E88<0.5),"-",IFERROR('Tabel 4 ØJ'!E88/'Tabel 4F ØJ'!E88*100,"-")) -> 2.06185567 | F88: =IF(OR('Tabel 4F ØJ'!F88<5,'Tabel 4 ØJ'!F88<0.5),"-",IFERROR('Tabel 4 ØJ'!F88/'Tabel 4F ØJ'!F88*100,"-")) -> 1.785714286 | G88: =IF(OR('Tabel 4F ØJ'!G88<5,'Tabel 4 ØJ'!G88<0.5),"-",IFERROR('Tabel 4 ØJ'!G88/'Tabel 4F ØJ'!G88*100,"-")) -> - | I88: =IF(OR('Tabel 4F ØJ'!I88<5,'Tabel 4 ØJ'!I88<0.5),"-",IFERROR('Tabel 4 ØJ'!I88/'Tabel 4F ØJ'!I88*100,"-")) -> 4.866180049
A89: HA | C89: =IF(OR('Tabel 4F ØJ'!C89<5,'Tabel 4 ØJ'!C89<0.5),"-",IFERROR('Tabel 4 ØJ'!C89/'Tabel 4F ØJ'!C89*100,"-")) -> 46.66666667 | D89: =IF(OR('Tabel 4F ØJ'!D89<5,'Tabel 4 ØJ'!D89<0.5),"-",IFERROR('Tabel 4 ØJ'!D89/'Tabel 4F ØJ'!D89*100,"-")) -> 10.52631579 | E89: =IF(OR('Tabel 4F ØJ'!E89<5,'Tabel 4 ØJ'!E89<0.5),"-",IFERROR('Tabel 4 ØJ'!E89/'Tabel 4F ØJ'!E89*100,"-")) -> - | F89: =IF(OR('Tabel 4F ØJ'!F89<5,'Tabel 4 ØJ'!F89<0.5),"-",IFERROR('Tabel 4 ØJ'!F89/'Tabel 4F ØJ'!F89*100,"-")) -> - | G89: =IF(OR('Tabel 4F ØJ'!G89<5,'Tabel 4 ØJ'!G89<0.5),"-",IFERROR('Tabel 4 ØJ'!G89/'Tabel 4F ØJ'!G89*100,"-")) -> - | I89: =IF(OR('Tabel 4F ØJ'!I89<5,'Tabel 4 ØJ'!I89<0.5),"-",IFERROR('Tabel 4 ØJ'!I89/'Tabel 4F ØJ'!I89*100,"-")) -> 16.66666667
A90: HD | C90: =IF(OR('Tabel 4F ØJ'!C90<5,'Tabel 4 ØJ'!C90<0.5),"-",IFERROR('Tabel 4 ØJ'!C90/'Tabel 4F ØJ'!C90*100,"-")) -> 22.22222222 | D90: =IF(OR('Tabel 4F ØJ'!D90<5,'Tabel 4 ØJ'!D90<0.5),"-",IFERROR('Tabel 4 ØJ'!D90/'Tabel 4F ØJ'!D90*100,"-")) -> - | E90: =IF(OR('Tabel 4F ØJ'!E90<5,'Tabel 4 ØJ'!E90<0.5),"-",IFERROR('Tabel 4 ØJ'!E90/'Tabel 4F ØJ'!E90*100,"-")) -> - | F90: =IF(OR('Tabel 4F ØJ'!F90<5,'Tabel 4 ØJ'!F90<0.5),"-",IFERROR('Tabel 4 ØJ'!F90/'Tabel 4F ØJ'!F90*100,"-")) -> - | G90: =IF(OR('Tabel 4F ØJ'!G90<5,'Tabel 4 ØJ'!G90<0.5),"-",IFERROR('Tabel 4 ØJ'!G90/'Tabel 4F ØJ'!G90*100,"-")) -> - | I90: =IF(OR('Tabel 4F ØJ'!I90<5,'Tabel 4 ØJ'!I90<0.5),"-",IFERROR('Tabel 4 ØJ'!I90/'Tabel 4F ØJ'!I90*100,"-")) -> 3.448275862
A91: Komm. og Sprog | C91: =IF(OR('Tabel 4F ØJ'!C91<5,'Tabel 4 ØJ'!C91<0.5),"-",IFERROR('Tabel 4 ØJ'!C91/'Tabel 4F ØJ'!C91*100,"-")) -> - | D91: =IF(OR('Tabel 4F ØJ'!D91<5,'Tabel 4 ØJ'!D91<0.5),"-",IFERROR('Tabel 4 ØJ'!D91/'Tabel 4F ØJ'!D91*100,"-")) -> - | E91: =IF(OR('Tabel 4F ØJ'!E91<5,'Tabel 4 ØJ'!E91<0.5),"-",IFERROR('Tabel 4 ØJ'!E91/'Tabel 4F ØJ'!E91*100,"-")) -> - | F91: =IF(OR('Tabel 4F ØJ'!F91<5,'Tabel 4 ØJ'!F91<0.5),"-",IFERROR('Tabel 4 ØJ'!F91/'Tabel 4F ØJ'!F91*100,"-")) -> - | G91: =IF(OR('Tabel 4F ØJ'!G91<5,'Tabel 4 ØJ'!G91<0.5),"-",IFERROR('Tabel 4 ØJ'!G91/'Tabel 4F ØJ'!G91*100,"-")) -> - | I91: =IF(OR('Tabel 4F ØJ'!I91<5,'Tabel 4 ØJ'!I91<0.5),"-",IFERROR('Tabel 4 ØJ'!I91/'Tabel 4F ØJ'!I91*100,"-")) -> -
A92: Cand. IT. | C92: =IF(OR('Tabel 4F ØJ'!C92<5,'Tabel 4 ØJ'!C92<0.5),"-",IFERROR('Tabel 4 ØJ'!C92/'Tabel 4F ØJ'!C92*100,"-")) -> 27.27272727 | D92: =IF(OR('Tabel 4F ØJ'!D92<5,'Tabel 4 ØJ'!D92<0.5),"-",IFERROR('Tabel 4 ØJ'!D92/'Tabel 4F ØJ'!D92*100,"-")) -> 5.882352941 | E92: =IF(OR('Tabel 4F ØJ'!E92<5,'Tabel 4 ØJ'!E92<0.5),"-",IFERROR('Tabel 4 ØJ'!E92/'Tabel 4F ØJ'!E92*100,"-")) -> - | F92: =IF(OR('Tabel 4F ØJ'!F92<5,'Tabel 4 ØJ'!F92<0.5),"-",IFERROR('Tabel 4 ØJ'!F92/'Tabel 4F ØJ'!F92*100,"-")) -> - | G92: =IF(OR('Tabel 4F ØJ'!G92<5,'Tabel 4 ØJ'!G92<0.5),"-",IFERROR('Tabel 4 ØJ'!G92/'Tabel 4F ØJ'!G92*100,"-")) -> - | I92: =IF(OR('Tabel 4F ØJ'!I92<5,'Tabel 4 ØJ'!I92<0.5),"-",IFERROR('Tabel 4 ØJ'!I92/'Tabel 4F ØJ'!I92*100,"-")) -> 10.81081081
A93: Bac. Samf. | C93: =IF(OR('Tabel 4F ØJ'!C93<5,'Tabel 4 ØJ'!C93<0.5),"-",IFERROR('Tabel 4 ØJ'!C93/'Tabel 4F ØJ'!C93*100,"-")) -> - | D93: =IF(OR('Tabel 4F ØJ'!D93<5,'Tabel 4 ØJ'!D93<0.5),"-",IFERROR('Tabel 4 ØJ'!D93/'Tabel 4F ØJ'!D93*100,"-")) -> - | E93: =IF(OR('Tabel 4F ØJ'!E93<5,'Tabel 4 ØJ'!E93<0.5),"-",IFERROR('Tabel 4 ØJ'!E93/'Tabel 4F ØJ'!E93*100,"-")) -> - | F93: =IF(OR('Tabel 4F ØJ'!F93<5,'Tabel 4 ØJ'!F93<0.5),"-",IFERROR('Tabel 4 ØJ'!F93/'Tabel 4F ØJ'!F93*100,"-")) -> - | G93: =IF(OR('Tabel 4F ØJ'!G93<5,'Tabel 4 ØJ'!G93<0.5),"-",IFERROR('Tabel 4 ØJ'!G93/'Tabel 4F ØJ'!G93*100,"-")) -> - | I93: =IF(OR('Tabel 4F ØJ'!I93<5,'Tabel 4 ØJ'!I93<0.5),"-",IFERROR('Tabel 4 ØJ'!I93/'Tabel 4F ØJ'!I93*100,"-")) -> -
A94: Bac. Hum. | C94: =IF(OR('Tabel 4F ØJ'!C94<5,'Tabel 4 ØJ'!C94<0.5),"-",IFERROR('Tabel 4 ØJ'!C94/'Tabel 4F ØJ'!C94*100,"-")) -> 10 | D94: =IF(OR('Tabel 4F ØJ'!D94<5,'Tabel 4 ØJ'!D94<0.5),"-",IFERROR('Tabel 4 ØJ'!D94/'Tabel 4F ØJ'!D94*100,"-")) -> 20 | E94: =IF(OR('Tabel 4F ØJ'!E94<5,'Tabel 4 ØJ'!E94<0.5),"-",IFERROR('Tabel 4 ØJ'!E94/'Tabel 4F ØJ'!E94*100,"-")) -> 9.090909091 | F94: =IF(OR('Tabel 4F ØJ'!F94<5,'Tabel 4 ØJ'!F94<0.5),"-",IFERROR('Tabel 4 ØJ'!F94/'Tabel 4F ØJ'!F94*100,"-")) -> 20 | G94: =IF(OR('Tabel 4F ØJ'!G94<5,'Tabel 4 ØJ'!G94<0.5),"-",IFERROR('Tabel 4 ØJ'!G94/'Tabel 4F ØJ'!G94*100,"-")) -> - | I94: =IF(OR('Tabel 4F ØJ'!I94<5,'Tabel 4 ØJ'!I94<0.5),"-",IFERROR('Tabel 4 ØJ'!I94/'Tabel 4F ØJ'!I94*100,"-")) -> 12.12121212
A95: Bac. Nat. | C95: =IF(OR('Tabel 4F ØJ'!C95<5,'Tabel 4 ØJ'!C95<0.5),"-",IFERROR('Tabel 4 ØJ'!C95/'Tabel 4F ØJ'!C95*100,"-")) -> 20.68965517 | D95: =IF(OR('Tabel 4F ØJ'!D95<5,'Tabel 4 ØJ'!D95<0.5),"-",IFERROR('Tabel 4 ØJ'!D95/'Tabel 4F ØJ'!D95*100,"-")) -> - | E95: =IF(OR('Tabel 4F ØJ'!E95<5,'Tabel 4 ØJ'!E95<0.5),"-",IFERROR('Tabel 4 ØJ'!E95/'Tabel 4F ØJ'!E95*100,"-")) -> 10 | F95: =IF(OR('Tabel 4F ØJ'!F95<5,'Tabel 4 ØJ'!F95<0.5),"-",IFERROR('Tabel 4 ØJ'!F95/'Tabel 4F ØJ'!F95*100,"-")) -> - | G95: =IF(OR('Tabel 4F ØJ'!G95<5,'Tabel 4 ØJ'!G95<0.5),"-",IFERROR('Tabel 4 ØJ'!G95/'Tabel 4F ØJ'!G95*100,"-")) -> - | I95: =IF(OR('Tabel 4F ØJ'!I95<5,'Tabel 4 ØJ'!I95<0.5),"-",IFERROR('Tabel 4 ØJ'!I95/'Tabel 4F ØJ'!I95*100,"-")) -> 11.47540984
A96: Andre | C96: =IF(OR('Tabel 4F ØJ'!C96<5,'Tabel 4 ØJ'!C96<0.5),"-",IFERROR('Tabel 4 ØJ'!C96/'Tabel 4F ØJ'!C96*100,"-")) -> 32.20338983 | D96: =IF(OR('Tabel 4F ØJ'!D96<5,'Tabel 4 ØJ'!D96<0.5),"-",IFERROR('Tabel 4 ØJ'!D96/'Tabel 4F ØJ'!D96*100,"-")) -> 16.25 | E96: =IF(OR('Tabel 4F ØJ'!E96<5,'Tabel 4 ØJ'!E96<0.5),"-",IFERROR('Tabel 4 ØJ'!E96/'Tabel 4F ØJ'!E96*100,"-")) -> 4.347826087 | F96: =IF(OR('Tabel 4F ØJ'!F96<5,'Tabel 4 ØJ'!F96<0.5),"-",IFERROR('Tabel 4 ØJ'!F96/'Tabel 4F ØJ'!F96*100,"-")) -> 7.407407407 | G96: =IF(OR('Tabel 4F ØJ'!G96<5,'Tabel 4 ØJ'!G96<0.5),"-",IFERROR('Tabel 4 ØJ'!G96/'Tabel 4F ØJ'!G96*100,"-")) -> - | I96: =IF(OR('Tabel 4F ØJ'!I96<5,'Tabel 4 ØJ'!I96<0.5),"-",IFERROR('Tabel 4 ØJ'!I96/'Tabel 4F ØJ'!I96*100,"-")) -> 16.28959276
A98: Total | C98: =IF(OR('Tabel 4F ØJ'!C98<5,'Tabel 4 ØJ'!C98<0.5),"-",IFERROR('Tabel 4 ØJ'!C98/'Tabel 4F ØJ'!C98*100,"-")) -> 20.73394495 | D98: =IF(OR('Tabel 4F ØJ'!D98<5,'Tabel 4 ØJ'!D98<0.5),"-",IFERROR('Tabel 4 ØJ'!D98/'Tabel 4F ØJ'!D98*100,"-")) -> 5.200341006 | E98: =IF(OR('Tabel 4F ØJ'!E98<5,'Tabel 4 ØJ'!E98<0.5),"-",IFERROR('Tabel 4 ØJ'!E98/'Tabel 4F ØJ'!E98*100,"-")) -> 2.272727273 | F98: =IF(OR('Tabel 4F ØJ'!F98<5,'Tabel 4 ØJ'!F98<0.5),"-",IFERROR('Tabel 4 ØJ'!F98/'Tabel 4F ØJ'!F98*100,"-")) -> 2.211690363 | G98: =IF(OR('Tabel 4F ØJ'!G98<5,'Tabel 4 ØJ'!G98<0.5),"-",IFERROR('Tabel 4 ØJ'!G98/'Tabel 4F ØJ'!G98*100,"-")) -> 2.209944751 | I98: =IF(OR('Tabel 4F ØJ'!I98<5,'Tabel 4 ØJ'!I98<0.5),"-",IFERROR('Tabel 4 ØJ'!I98/'Tabel 4F ØJ'!I98*100,"-")) -> 5.974669604
A100: Ingeniører i alt | C100: =IF(OR('Tabel 4F ØJ'!C100<5,'Tabel 4 ØJ'!C100<0.5),"-",IFERROR('Tabel 4 ØJ'!C100/'Tabel 4F ØJ'!C100*100,"-")) -> 14.70588235 | D100: =IF(OR('Tabel 4F ØJ'!D100<5,'Tabel 4 ØJ'!D100<0.5),"-",IFERROR('Tabel 4 ØJ'!D100/'Tabel 4F ØJ'!D100*100,"-")) -> 1.169590643 | E100: =IF(OR('Tabel 4F ØJ'!E100<5,'Tabel 4 ØJ'!E100<0.5),"-",IFERROR('Tabel 4 ØJ'!E100/'Tabel 4F ØJ'!E100*100,"-")) -> 1.302083333 | F100: =IF(OR('Tabel 4F ØJ'!F100<5,'Tabel 4 ØJ'!F100<0.5),"-",IFERROR('Tabel 4 ØJ'!F100/'Tabel 4F ØJ'!F100*100,"-")) -> 1.083032491 | G100: =IF(OR('Tabel 4F ØJ'!G100<5,'Tabel 4 ØJ'!G100<0.5),"-",IFERROR('Tabel 4 ØJ'!G100/'Tabel 4F ØJ'!G100*100,"-")) -> 2.941176471 | I100: =IF(OR('Tabel 4F ØJ'!I100<5,'Tabel 4 ØJ'!I100<0.5),"-",IFERROR('Tabel 4 ØJ'!I100/'Tabel 4F ØJ'!I100*100,"-")) -> 2.816901408
A101: Magistre i alt | C101: =IF(OR('Tabel 4F ØJ'!C101<5,'Tabel 4 ØJ'!C101<0.5),"-",IFERROR('Tabel 4 ØJ'!C101/'Tabel 4F ØJ'!C101*100,"-")) -> 31.25 | D101: =IF(OR('Tabel 4F ØJ'!D101<5,'Tabel 4 ØJ'!D101<0.5),"-",IFERROR('Tabel 4 ØJ'!D101/'Tabel 4F ØJ'!D101*100,"-")) -> 11.62790698 | E101: =IF(OR('Tabel 4F ØJ'!E101<5,'Tabel 4 ØJ'!E101<0.5),"-",IFERROR('Tabel 4 ØJ'!E101/'Tabel 4F ØJ'!E101*100,"-")) -> 4.672897196 | F101: =IF(OR('Tabel 4F ØJ'!F101<5,'Tabel 4 ØJ'!F101<0.5),"-",IFERROR('Tabel 4 ØJ'!F101/'Tabel 4F ØJ'!F101*100,"-")) -> 6.097560976 | G101: =IF(OR('Tabel 4F ØJ'!G101<5,'Tabel 4 ØJ'!G101<0.5),"-",IFERROR('Tabel 4 ØJ'!G101/'Tabel 4F ØJ'!G101*100,"-")) -> - | I101: =IF(OR('Tabel 4F ØJ'!I101<5,'Tabel 4 ØJ'!I101<0.5),"-",IFERROR('Tabel 4 ØJ'!I101/'Tabel 4F ØJ'!I101*100,"-")) -> 9.208103131
A102: DJØF'ere i alt | C102: =IF(OR('Tabel 4F ØJ'!C102<5,'Tabel 4 ØJ'!C102<0.5),"-",IFERROR('Tabel 4 ØJ'!C102/'Tabel 4F ØJ'!C102*100,"-")) -> 21.01910828 | D102: =IF(OR('Tabel 4F ØJ'!D102<5,'Tabel 4 ØJ'!D102<0.5),"-",IFERROR('Tabel 4 ØJ'!D102/'Tabel 4F ØJ'!D102*100,"-")) -> 3.869047619 | E102: =IF(OR('Tabel 4F ØJ'!E102<5,'Tabel 4 ØJ'!E102<0.5),"-",IFERROR('Tabel 4 ØJ'!E102/'Tabel 4F ØJ'!E102*100,"-")) -> 2.678571429 | F102: =IF(OR('Tabel 4F ØJ'!F102<5,'Tabel 4 ØJ'!F102<0.5),"-",IFERROR('Tabel 4 ØJ'!F102/'Tabel 4F ØJ'!F102*100,"-")) -> 1.769911504 | G102: =IF(OR('Tabel 4F ØJ'!G102<5,'Tabel 4 ØJ'!G102<0.5),"-",IFERROR('Tabel 4 ØJ'!G102/'Tabel 4F ØJ'!G102*100,"-")) -> 3.846153846 | I102: =IF(OR('Tabel 4F ØJ'!I102<5,'Tabel 4 ØJ'!I102<0.5),"-",IFERROR('Tabel 4 ØJ'!I102/'Tabel 4F ØJ'!I102*100,"-")) -> 6.425233645
A109: Syddjurs
C111: Under 30 år | D111: 30 - 39 år | E111: 40 - 49 år | F111: 50 - 59 år | G111: Over 60 år | I111: I alt
A113: Civ. ing. | C113: =IF(OR('Tabel 4F ØJ'!C113<5,'Tabel 4 ØJ'!C113<0.5),"-",IFERROR('Tabel 4 ØJ'!C113/'Tabel 4F ØJ'!C113*100,"-")) -> 16.66666667 | D113: =IF(OR('Tabel 4F ØJ'!D113<5,'Tabel 4 ØJ'!D113<0.5),"-",IFERROR('Tabel 4 ØJ'!D113/'Tabel 4F ØJ'!D113*100,"-")) -> - | E113: =IF(OR('Tabel 4F ØJ'!E113<5,'Tabel 4 ØJ'!E113<0.5),"-",IFERROR('Tabel 4 ØJ'!E113/'Tabel 4F ØJ'!E113*100,"-")) -> - | F113: =IF(OR('Tabel 4F ØJ'!F113<5,'Tabel 4 ØJ'!F113<0.5),"-",IFERROR('Tabel 4 ØJ'!F113/'Tabel 4F ØJ'!F113*100,"-")) -> 4.166666667 | G113: =IF(OR('Tabel 4F ØJ'!G113<5,'Tabel 4 ØJ'!G113<0.5),"-",IFERROR('Tabel 4 ØJ'!G113/'Tabel 4F ØJ'!G113*100,"-")) -> - | I113: =IF(OR('Tabel 4F ØJ'!I113<5,'Tabel 4 ØJ'!I113<0.5),"-",IFERROR('Tabel 4 ØJ'!I113/'Tabel 4F ØJ'!I113*100,"-")) -> 2.469135802
A114: Diplom ing. | C114: =IF(OR('Tabel 4F ØJ'!C114<5,'Tabel 4 ØJ'!C114<0.5),"-",IFERROR('Tabel 4 ØJ'!C114/'Tabel 4F ØJ'!C114*100,"-")) -> 10 | D114: =IF(OR('Tabel 4F ØJ'!D114<5,'Tabel 4 ØJ'!D114<0.5),"-",IFERROR('Tabel 4 ØJ'!D114/'Tabel 4F ØJ'!D114*100,"-")) -> - | E114: =IF(OR('Tabel 4F ØJ'!E114<5,'Tabel 4 ØJ'!E114<0.5),"-",IFERROR('Tabel 4 ØJ'!E114/'Tabel 4F ØJ'!E114*100,"-")) -> 1.470588235 | F114: =IF(OR('Tabel 4F ØJ'!F114<5,'Tabel 4 ØJ'!F114<0.5),"-",IFERROR('Tabel 4 ØJ'!F114/'Tabel 4F ØJ'!F114*100,"-")) -> 1.086956522 | G114: =IF(OR('Tabel 4F ØJ'!G114<5,'Tabel 4 ØJ'!G114<0.5),"-",IFERROR('Tabel 4 ØJ'!G114/'Tabel 4F ØJ'!G114*100,"-")) -> 4.347826087 | I114: =IF(OR('Tabel 4F ØJ'!I114<5,'Tabel 4 ØJ'!I114<0.5),"-",IFERROR('Tabel 4 ØJ'!I114/'Tabel 4F ØJ'!I114*100,"-")) -> 1.818181818
A115: Cand. Scient. Tek | C115: =IF(OR('Tabel 4F ØJ'!C115<5,'Tabel 4 ØJ'!C115<0.5),"-",IFERROR('Tabel 4 ØJ'!C115/'Tabel 4F ØJ'!C115*100,"-")) -> 25 | D115: =IF(OR('Tabel 4F ØJ'!D115<5,'Tabel 4 ØJ'!D115<0.5),"-",IFERROR('Tabel 4 ØJ'!D115/'Tabel 4F ØJ'!D115*100,"-")) -> - | E115: =IF(OR('Tabel 4F ØJ'!E115<5,'Tabel 4 ØJ'!E115<0.5),"-",IFERROR('Tabel 4 ØJ'!E115/'Tabel 4F ØJ'!E115*100,"-")) -> 7.142857143 | F115: =IF(OR('Tabel 4F ØJ'!F115<5,'Tabel 4 ØJ'!F115<0.5),"-",IFERROR('Tabel 4 ØJ'!F115/'Tabel 4F ØJ'!F115*100,"-")) -> - | G115: =IF(OR('Tabel 4F ØJ'!G115<5,'Tabel 4 ØJ'!G115<0.5),"-",IFERROR('Tabel 4 ØJ'!G115/'Tabel 4F ØJ'!G115*100,"-")) -> - | I115: =IF(OR('Tabel 4F ØJ'!I115<5,'Tabel 4 ØJ'!I115<0.5),"-",IFERROR('Tabel 4 ØJ'!I115/'Tabel 4F ØJ'!I115*100,"-")) -> 6.557377049
A116: MA. Hum. | C116: =IF(OR('Tabel 4F ØJ'!C116<5,'Tabel 4 ØJ'!C116<0.5),"-",IFERROR('Tabel 4 ØJ'!C116/'Tabel 4F ØJ'!C116*100,"-")) -> 25 | D116: =IF(OR('Tabel 4F ØJ'!D116<5,'Tabel 4 ØJ'!D116<0.5),"-",IFERROR('Tabel 4 ØJ'!D116/'Tabel 4F ØJ'!D116*100,"-")) -> 18.05555556 | E116: =IF(OR('Tabel 4F ØJ'!E116<5,'Tabel 4 ØJ'!E116<0.5),"-",IFERROR('Tabel 4 ØJ'!E116/'Tabel 4F ØJ'!E116*100,"-")) -> 3.529411765 | F116: =IF(OR('Tabel 4F ØJ'!F116<5,'Tabel 4 ØJ'!F116<0.5),"-",IFERROR('Tabel 4 ØJ'!F116/'Tabel 4F ØJ'!F116*100,"-")) -> 2.272727273 | G116: =IF(OR('Tabel 4F ØJ'!G116<5,'Tabel 4 ØJ'!G116<0.5),"-",IFERROR('Tabel 4 ØJ'!G116/'Tabel 4F ØJ'!G116*100,"-")) -> 11.11111111 | I116: =IF(OR('Tabel 4F ØJ'!I116<5,'Tabel 4 ØJ'!I116<0.5),"-",IFERROR('Tabel 4 ØJ'!I116/'Tabel 4F ØJ'!I116*100,"-")) -> 9.523809524
A117: MA. Nat. | C117: =IF(OR('Tabel 4F ØJ'!C117<5,'Tabel 4 ØJ'!C117<0.5),"-",IFERROR('Tabel 4 ØJ'!C117/'Tabel 4F ØJ'!C117*100,"-")) -> - | D117: =IF(OR('Tabel 4F ØJ'!D117<5,'Tabel 4 ØJ'!D117<0.5),"-",IFERROR('Tabel 4 ØJ'!D117/'Tabel 4F ØJ'!D117*100,"-")) -> 5.263157895 | E117: =IF(OR('Tabel 4F ØJ'!E117<5,'Tabel 4 ØJ'!E117<0.5),"-",IFERROR('Tabel 4 ØJ'!E117/'Tabel 4F ØJ'!E117*100,"-")) -> - | F117: =IF(OR('Tabel 4F ØJ'!F117<5,'Tabel 4 ØJ'!F117<0.5),"-",IFERROR('Tabel 4 ØJ'!F117/'Tabel 4F ØJ'!F117*100,"-")) -> - | G117: =IF(OR('Tabel 4F ØJ'!G117<5,'Tabel 4 ØJ'!G117<0.5),"-",IFERROR('Tabel 4 ØJ'!G117/'Tabel 4F ØJ'!G117*100,"-")) -> 6.666666667 | I117: =IF(OR('Tabel 4F ØJ'!I117<5,'Tabel 4 ØJ'!I117<0.5),"-",IFERROR('Tabel 4 ØJ'!I117/'Tabel 4F ØJ'!I117*100,"-")) -> 2.777777778
A118: MA. Ph.d. | C118: =IF(OR('Tabel 4F ØJ'!C118<5,'Tabel 4 ØJ'!C118<0.5),"-",IFERROR('Tabel 4 ØJ'!C118/'Tabel 4F ØJ'!C118*100,"-")) -> - | D118: =IF(OR('Tabel 4F ØJ'!D118<5,'Tabel 4 ØJ'!D118<0.5),"-",IFERROR('Tabel 4 ØJ'!D118/'Tabel 4F ØJ'!D118*100,"-")) -> 20 | E118: =IF(OR('Tabel 4F ØJ'!E118<5,'Tabel 4 ØJ'!E118<0.5),"-",IFERROR('Tabel 4 ØJ'!E118/'Tabel 4F ØJ'!E118*100,"-")) -> 12.5 | F118: =IF(OR('Tabel 4F ØJ'!F118<5,'Tabel 4 ØJ'!F118<0.5),"-",IFERROR('Tabel 4 ØJ'!F118/'Tabel 4F ØJ'!F118*100,"-")) -> - | G118: =IF(OR('Tabel 4F ØJ'!G118<5,'Tabel 4 ØJ'!G118<0.5),"-",IFERROR('Tabel 4 ØJ'!G118/'Tabel 4F ØJ'!G118*100,"-")) -> - | I118: =IF(OR('Tabel 4F ØJ'!I118<5,'Tabel 4 ØJ'!I118<0.5),"-",IFERROR('Tabel 4 ØJ'!I118/'Tabel 4F ØJ'!I118*100,"-")) -> 10.52631579
A119: MA. Samf. | C119: =IF(OR('Tabel 4F ØJ'!C119<5,'Tabel 4 ØJ'!C119<0.5),"-",IFERROR('Tabel 4 ØJ'!C119/'Tabel 4F ØJ'!C119*100,"-")) -> - | D119: =IF(OR('Tabel 4F ØJ'!D119<5,'Tabel 4 ØJ'!D119<0.5),"-",IFERROR('Tabel 4 ØJ'!D119/'Tabel 4F ØJ'!D119*100,"-")) -> 9.090909091 | E119: =IF(OR('Tabel 4F ØJ'!E119<5,'Tabel 4 ØJ'!E119<0.5),"-",IFERROR('Tabel 4 ØJ'!E119/'Tabel 4F ØJ'!E119*100,"-")) -> - | F119: =IF(OR('Tabel 4F ØJ'!F119<5,'Tabel 4 ØJ'!F119<0.5),"-",IFERROR('Tabel 4 ØJ'!F119/'Tabel 4F ØJ'!F119*100,"-")) -> - | G119: =IF(OR('Tabel 4F ØJ'!G119<5,'Tabel 4 ØJ'!G119<0.5),"-",IFERROR('Tabel 4 ØJ'!G119/'Tabel 4F ØJ'!G119*100,"-")) -> - | I119: =IF(OR('Tabel 4F ØJ'!I119<5,'Tabel 4 ØJ'!I119<0.5),"-",IFERROR('Tabel 4 ØJ'!I119/'Tabel 4F ØJ'!I119*100,"-")) -> 7.692307692
A120: Øvrige Mag. | C120: =IF(OR('Tabel 4F ØJ'!C120<5,'Tabel 4 ØJ'!C120<0.5),"-",IFERROR('Tabel 4 ØJ'!C120/'Tabel 4F ØJ'!C120*100,"-")) -> - | D120: =IF(OR('Tabel 4F ØJ'!D120<5,'Tabel 4 ØJ'!D120<0.5),"-",IFERROR('Tabel 4 ØJ'!D120/'Tabel 4F ØJ'!D120*100,"-")) -> 40 | E120: =IF(OR('Tabel 4F ØJ'!E120<5,'Tabel 4 ØJ'!E120<0.5),"-",IFERROR('Tabel 4 ØJ'!E120/'Tabel 4F ØJ'!E120*100,"-")) -> - | F120: =IF(OR('Tabel 4F ØJ'!F120<5,'Tabel 4 ØJ'!F120<0.5),"-",IFERROR('Tabel 4 ØJ'!F120/'Tabel 4F ØJ'!F120*100,"-")) -> - | G120: =IF(OR('Tabel 4F ØJ'!G120<5,'Tabel 4 ØJ'!G120<0.5),"-",IFERROR('Tabel 4 ØJ'!G120/'Tabel 4F ØJ'!G120*100,"-")) -> - | I120: =IF(OR('Tabel 4F ØJ'!I120<5,'Tabel 4 ØJ'!I120<0.5),"-",IFERROR('Tabel 4 ØJ'!I120/'Tabel 4F ØJ'!I120*100,"-")) -> 21.05263158
A121: Agronom | C121: =IF(OR('Tabel 4F ØJ'!C121<5,'Tabel 4 ØJ'!C121<0.5),"-",IFERROR('Tabel 4 ØJ'!C121/'Tabel 4F ØJ'!C121*100,"-")) -> - | D121: =IF(OR('Tabel 4F ØJ'!D121<5,'Tabel 4 ØJ'!D121<0.5),"-",IFERROR('Tabel 4 ØJ'!D121/'Tabel 4F ØJ'!D121*100,"-")) -> - | E121: =IF(OR('Tabel 4F ØJ'!E121<5,'Tabel 4 ØJ'!E121<0.5),"-",IFERROR('Tabel 4 ØJ'!E121/'Tabel 4F ØJ'!E121*100,"-")) -> 10 | F121: =IF(OR('Tabel 4F ØJ'!F121<5,'Tabel 4 ØJ'!F121<0.5),"-",IFERROR('Tabel 4 ØJ'!F121/'Tabel 4F ØJ'!F121*100,"-")) -> - | G121: =IF(OR('Tabel 4F ØJ'!G121<5,'Tabel 4 ØJ'!G121<0.5),"-",IFERROR('Tabel 4 ØJ'!G121/'Tabel 4F ØJ'!G121*100,"-")) -> - | I121: =IF(OR('Tabel 4F ØJ'!I121<5,'Tabel 4 ØJ'!I121<0.5),"-",IFERROR('Tabel 4 ØJ'!I121/'Tabel 4F ØJ'!I121*100,"-")) -> 6.451612903
A122: Landsk. Arkt. | C122: =IF(OR('Tabel 4F ØJ'!C122<5,'Tabel 4 ØJ'!C122<0.5),"-",IFERROR('Tabel 4 ØJ'!C122/'Tabel 4F ØJ'!C122*100,"-")) -> - | D122: =IF(OR('Tabel 4F ØJ'!D122<5,'Tabel 4 ØJ'!D122<0.5),"-",IFERROR('Tabel 4 ØJ'!D122/'Tabel 4F ØJ'!D122*100,"-")) -> - | E122: =IF(OR('Tabel 4F ØJ'!E122<5,'Tabel 4 ØJ'!E122<0.5),"-",IFERROR('Tabel 4 ØJ'!E122/'Tabel 4F ØJ'!E122*100,"-")) -> - | F122: =IF(OR('Tabel 4F ØJ'!F122<5,'Tabel 4 ØJ'!F122<0.5),"-",IFERROR('Tabel 4 ØJ'!F122/'Tabel 4F ØJ'!F122*100,"-")) -> - | G122: =IF(OR('Tabel 4F ØJ'!G122<5,'Tabel 4 ØJ'!G122<0.5),"-",IFERROR('Tabel 4 ØJ'!G122/'Tabel 4F ØJ'!G122*100,"-")) -> - | I122: =IF(OR('Tabel 4F ØJ'!I122<5,'Tabel 4 ØJ'!I122<0.5),"-",IFERROR('Tabel 4 ØJ'!I122/'Tabel 4F ØJ'!I122*100,"-")) -> -
A123: Hortonom | C123: =IF(OR('Tabel 4F ØJ'!C123<5,'Tabel 4 ØJ'!C123<0.5),"-",IFERROR('Tabel 4 ØJ'!C123/'Tabel 4F ØJ'!C123*100,"-")) -> - | D123: =IF(OR('Tabel 4F ØJ'!D123<5,'Tabel 4 ØJ'!D123<0.5),"-",IFERROR('Tabel 4 ØJ'!D123/'Tabel 4F ØJ'!D123*100,"-")) -> - | E123: =IF(OR('Tabel 4F ØJ'!E123<5,'Tabel 4 ØJ'!E123<0.5),"-",IFERROR('Tabel 4 ØJ'!E123/'Tabel 4F ØJ'!E123*100,"-")) -> - | F123: =IF(OR('Tabel 4F ØJ'!F123<5,'Tabel 4 ØJ'!F123<0.5),"-",IFERROR('Tabel 4 ØJ'!F123/'Tabel 4F ØJ'!F123*100,"-")) -> - | G123: =IF(OR('Tabel 4F ØJ'!G123<5,'Tabel 4 ØJ'!G123<0.5),"-",IFERROR('Tabel 4 ØJ'!G123/'Tabel 4F ØJ'!G123*100,"-")) -> - | I123: =IF(OR('Tabel 4F ØJ'!I123<5,'Tabel 4 ØJ'!I123<0.5),"-",IFERROR('Tabel 4 ØJ'!I123/'Tabel 4F ØJ'!I123*100,"-")) -> -
A124: Forstkand. | C124: =IF(OR('Tabel 4F ØJ'!C124<5,'Tabel 4 ØJ'!C124<0.5),"-",IFERROR('Tabel 4 ØJ'!C124/'Tabel 4F ØJ'!C124*100,"-")) -> - | D124: =IF(OR('Tabel 4F ØJ'!D124<5,'Tabel 4 ØJ'!D124<0.5),"-",IFERROR('Tabel 4 ØJ'!D124/'Tabel 4F ØJ'!D124*100,"-")) -> - | E124: =IF(OR('Tabel 4F ØJ'!E124<5,'Tabel 4 ØJ'!E124<0.5),"-",IFERROR('Tabel 4 ØJ'!E124/'Tabel 4F ØJ'!E124*100,"-")) -> - | F124: =IF(OR('Tabel 4F ØJ'!F124<5,'Tabel 4 ØJ'!F124<0.5),"-",IFERROR('Tabel 4 ØJ'!F124/'Tabel 4F ØJ'!F124*100,"-")) -> - | G124: =IF(OR('Tabel 4F ØJ'!G124<5,'Tabel 4 ØJ'!G124<0.5),"-",IFERROR('Tabel 4 ØJ'!G124/'Tabel 4F ØJ'!G124*100,"-")) -> - | I124: =IF(OR('Tabel 4F ØJ'!I124<5,'Tabel 4 ØJ'!I124<0.5),"-",IFERROR('Tabel 4 ØJ'!I124/'Tabel 4F ØJ'!I124*100,"-")) -> -
A125: Jordbrugsakad. | C125: =IF(OR('Tabel 4F ØJ'!C125<5,'Tabel 4 ØJ'!C125<0.5),"-",IFERROR('Tabel 4 ØJ'!C125/'Tabel 4F ØJ'!C125*100,"-")) -> - | D125: =IF(OR('Tabel 4F ØJ'!D125<5,'Tabel 4 ØJ'!D125<0.5),"-",IFERROR('Tabel 4 ØJ'!D125/'Tabel 4F ØJ'!D125*100,"-")) -> - | E125: =IF(OR('Tabel 4F ØJ'!E125<5,'Tabel 4 ØJ'!E125<0.5),"-",IFERROR('Tabel 4 ØJ'!E125/'Tabel 4F ØJ'!E125*100,"-")) -> 6.666666667 | F125: =IF(OR('Tabel 4F ØJ'!F125<5,'Tabel 4 ØJ'!F125<0.5),"-",IFERROR('Tabel 4 ØJ'!F125/'Tabel 4F ØJ'!F125*100,"-")) -> - | G125: =IF(OR('Tabel 4F ØJ'!G125<5,'Tabel 4 ØJ'!G125<0.5),"-",IFERROR('Tabel 4 ØJ'!G125/'Tabel 4F ØJ'!G125*100,"-")) -> - | I125: =IF(OR('Tabel 4F ØJ'!I125<5,'Tabel 4 ØJ'!I125<0.5),"-",IFERROR('Tabel 4 ØJ'!I125/'Tabel 4F ØJ'!I125*100,"-")) -> 4.444444444
A126: Mejeriing. | C126: =IF(OR('Tabel 4F ØJ'!C126<5,'Tabel 4 ØJ'!C126<0.5),"-",IFERROR('Tabel 4 ØJ'!C126/'Tabel 4F ØJ'!C126*100,"-")) -> - | D126: =IF(OR('Tabel 4F ØJ'!D126<5,'Tabel 4 ØJ'!D126<0.5),"-",IFERROR('Tabel 4 ØJ'!D126/'Tabel 4F ØJ'!D126*100,"-")) -> - | E126: =IF(OR('Tabel 4F ØJ'!E126<5,'Tabel 4 ØJ'!E126<0.5),"-",IFERROR('Tabel 4 ØJ'!E126/'Tabel 4F ØJ'!E126*100,"-")) -> - | F126: =IF(OR('Tabel 4F ØJ'!F126<5,'Tabel 4 ØJ'!F126<0.5),"-",IFERROR('Tabel 4 ØJ'!F126/'Tabel 4F ØJ'!F126*100,"-")) -> - | G126: =IF(OR('Tabel 4F ØJ'!G126<5,'Tabel 4 ØJ'!G126<0.5),"-",IFERROR('Tabel 4 ØJ'!G126/'Tabel 4F ØJ'!G126*100,"-")) -> - | I126: =IF(OR('Tabel 4F ØJ'!I126<5,'Tabel 4 ØJ'!I126<0.5),"-",IFERROR('Tabel 4 ØJ'!I126/'Tabel 4F ØJ'!I126*100,"-")) -> -
A127: Levn.m.kand. | C127: =IF(OR('Tabel 4F ØJ'!C127<5,'Tabel 4 ØJ'!C127<0.5),"-",IFERROR('Tabel 4 ØJ'!C127/'Tabel 4F ØJ'!C127*100,"-")) -> - | D127: =IF(OR('Tabel 4F ØJ'!D127<5,'Tabel 4 ØJ'!D127<0.5),"-",IFERROR('Tabel 4 ØJ'!D127/'Tabel 4F ØJ'!D127*100,"-")) -> - | E127: =IF(OR('Tabel 4F ØJ'!E127<5,'Tabel 4 ØJ'!E127<0.5),"-",IFERROR('Tabel 4 ØJ'!E127/'Tabel 4F ØJ'!E127*100,"-")) -> - | F127: =IF(OR('Tabel 4F ØJ'!F127<5,'Tabel 4 ØJ'!F127<0.5),"-",IFERROR('Tabel 4 ØJ'!F127/'Tabel 4F ØJ'!F127*100,"-")) -> - | G127: =IF(OR('Tabel 4F ØJ'!G127<5,'Tabel 4 ØJ'!G127<0.5),"-",IFERROR('Tabel 4 ØJ'!G127/'Tabel 4F ØJ'!G127*100,"-")) -> - | I127: =IF(OR('Tabel 4F ØJ'!I127<5,'Tabel 4 ØJ'!I127<0.5),"-",IFERROR('Tabel 4 ØJ'!I127/'Tabel 4F ØJ'!I127*100,"-")) -> -
A128: Dyrlæge | C128: =IF(OR('Tabel 4F ØJ'!C128<5,'Tabel 4 ØJ'!C128<0.5),"-",IFERROR('Tabel 4 ØJ'!C128/'Tabel 4F ØJ'!C128*100,"-")) -> - | D128: =IF(OR('Tabel 4F ØJ'!D128<5,'Tabel 4 ØJ'!D128<0.5),"-",IFERROR('Tabel 4 ØJ'!D128/'Tabel 4F ØJ'!D128*100,"-")) -> - | E128: =IF(OR('Tabel 4F ØJ'!E128<5,'Tabel 4 ØJ'!E128<0.5),"-",IFERROR('Tabel 4 ØJ'!E128/'Tabel 4F ØJ'!E128*100,"-")) -> - | F128: =IF(OR('Tabel 4F ØJ'!F128<5,'Tabel 4 ØJ'!F128<0.5),"-",IFERROR('Tabel 4 ØJ'!F128/'Tabel 4F ØJ'!F128*100,"-")) -> - | G128: =IF(OR('Tabel 4F ØJ'!G128<5,'Tabel 4 ØJ'!G128<0.5),"-",IFERROR('Tabel 4 ØJ'!G128/'Tabel 4F ØJ'!G128*100,"-")) -> - | I128: =IF(OR('Tabel 4F ØJ'!I128<5,'Tabel 4 ØJ'!I128<0.5),"-",IFERROR('Tabel 4 ØJ'!I128/'Tabel 4F ØJ'!I128*100,"-")) -> -
A129: Farmaceut | C129: =IF(OR('Tabel 4F ØJ'!C129<5,'Tabel 4 ØJ'!C129<0.5),"-",IFERROR('Tabel 4 ØJ'!C129/'Tabel 4F ØJ'!C129*100,"-")) -> - | D129: =IF(OR('Tabel 4F ØJ'!D129<5,'Tabel 4 ØJ'!D129<0.5),"-",IFERROR('Tabel 4 ØJ'!D129/'Tabel 4F ØJ'!D129*100,"-")) -> - | E129: =IF(OR('Tabel 4F ØJ'!E129<5,'Tabel 4 ØJ'!E129<0.5),"-",IFERROR('Tabel 4 ØJ'!E129/'Tabel 4F ØJ'!E129*100,"-")) -> - | F129: =IF(OR('Tabel 4F ØJ'!F129<5,'Tabel 4 ØJ'!F129<0.5),"-",IFERROR('Tabel 4 ØJ'!F129/'Tabel 4F ØJ'!F129*100,"-")) -> - | G129: =IF(OR('Tabel 4F ØJ'!G129<5,'Tabel 4 ØJ'!G129<0.5),"-",IFERROR('Tabel 4 ØJ'!G129/'Tabel 4F ØJ'!G129*100,"-")) -> - | I129: =IF(OR('Tabel 4F ØJ'!I129<5,'Tabel 4 ØJ'!I129<0.5),"-",IFERROR('Tabel 4 ØJ'!I129/'Tabel 4F ØJ'!I129*100,"-")) -> 10
A130: Læge | C130: =IF(OR('Tabel 4F ØJ'!C130<5,'Tabel 4 ØJ'!C130<0.5),"-",IFERROR('Tabel 4 ØJ'!C130/'Tabel 4F ØJ'!C130*100,"-")) -> - | D130: =IF(OR('Tabel 4F ØJ'!D130<5,'Tabel 4 ØJ'!D130<0.5),"-",IFERROR('Tabel 4 ØJ'!D130/'Tabel 4F ØJ'!D130*100,"-")) -> 6.666666667 | E130: =IF(OR('Tabel 4F ØJ'!E130<5,'Tabel 4 ØJ'!E130<0.5),"-",IFERROR('Tabel 4 ØJ'!E130/'Tabel 4F ØJ'!E130*100,"-")) -> - | F130: =IF(OR('Tabel 4F ØJ'!F130<5,'Tabel 4 ØJ'!F130<0.5),"-",IFERROR('Tabel 4 ØJ'!F130/'Tabel 4F ØJ'!F130*100,"-")) -> - | G130: =IF(OR('Tabel 4F ØJ'!G130<5,'Tabel 4 ØJ'!G130<0.5),"-",IFERROR('Tabel 4 ØJ'!G130/'Tabel 4F ØJ'!G130*100,"-")) -> - | I130: =IF(OR('Tabel 4F ØJ'!I130<5,'Tabel 4 ØJ'!I130<0.5),"-",IFERROR('Tabel 4 ØJ'!I130/'Tabel 4F ØJ'!I130*100,"-")) -> 2.631578947
A131: Tandlæge | C131: =IF(OR('Tabel 4F ØJ'!C131<5,'Tabel 4 ØJ'!C131<0.5),"-",IFERROR('Tabel 4 ØJ'!C131/'Tabel 4F ØJ'!C131*100,"-")) -> - | D131: =IF(OR('Tabel 4F ØJ'!D131<5,'Tabel 4 ØJ'!D131<0.5),"-",IFERROR('Tabel 4 ØJ'!D131/'Tabel 4F ØJ'!D131*100,"-")) -> - | E131: =IF(OR('Tabel 4F ØJ'!E131<5,'Tabel 4 ØJ'!E131<0.5),"-",IFERROR('Tabel 4 ØJ'!E131/'Tabel 4F ØJ'!E131*100,"-")) -> - | F131: =IF(OR('Tabel 4F ØJ'!F131<5,'Tabel 4 ØJ'!F131<0.5),"-",IFERROR('Tabel 4 ØJ'!F131/'Tabel 4F ØJ'!F131*100,"-")) -> - | G131: =IF(OR('Tabel 4F ØJ'!G131<5,'Tabel 4 ØJ'!G131<0.5),"-",IFERROR('Tabel 4 ØJ'!G131/'Tabel 4F ØJ'!G131*100,"-")) -> - | I131: =IF(OR('Tabel 4F ØJ'!I131<5,'Tabel 4 ØJ'!I131<0.5),"-",IFERROR('Tabel 4 ØJ'!I131/'Tabel 4F ØJ'!I131*100,"-")) -> -
A132: Arkitekt | C132: =IF(OR('Tabel 4F ØJ'!C132<5,'Tabel 4 ØJ'!C132<0.5),"-",IFERROR('Tabel 4 ØJ'!C132/'Tabel 4F ØJ'!C132*100,"-")) -> - | D132: =IF(OR('Tabel 4F ØJ'!D132<5,'Tabel 4 ØJ'!D132<0.5),"-",IFERROR('Tabel 4 ØJ'!D132/'Tabel 4F ØJ'!D132*100,"-")) -> 5 | E132: =IF(OR('Tabel 4F ØJ'!E132<5,'Tabel 4 ØJ'!E132<0.5),"-",IFERROR('Tabel 4 ØJ'!E132/'Tabel 4F ØJ'!E132*100,"-")) -> - | F132: =IF(OR('Tabel 4F ØJ'!F132<5,'Tabel 4 ØJ'!F132<0.5),"-",IFERROR('Tabel 4 ØJ'!F132/'Tabel 4F ØJ'!F132*100,"-")) -> 6.25 | G132: =IF(OR('Tabel 4F ØJ'!G132<5,'Tabel 4 ØJ'!G132<0.5),"-",IFERROR('Tabel 4 ØJ'!G132/'Tabel 4F ØJ'!G132*100,"-")) -> - | I132: =IF(OR('Tabel 4F ØJ'!I132<5,'Tabel 4 ØJ'!I132<0.5),"-",IFERROR('Tabel 4 ØJ'!I132/'Tabel 4F ØJ'!I132*100,"-")) -> 4.545454545
A133: Landinspek. | C133: =IF(OR('Tabel 4F ØJ'!C133<5,'Tabel 4 ØJ'!C133<0.5),"-",IFERROR('Tabel 4 ØJ'!C133/'Tabel 4F ØJ'!C133*100,"-")) -> - | D133: =IF(OR('Tabel 4F ØJ'!D133<5,'Tabel 4 ØJ'!D133<0.5),"-",IFERROR('Tabel 4 ØJ'!D133/'Tabel 4F ØJ'!D133*100,"-")) -> - | E133: =IF(OR('Tabel 4F ØJ'!E133<5,'Tabel 4 ØJ'!E133<0.5),"-",IFERROR('Tabel 4 ØJ'!E133/'Tabel 4F ØJ'!E133*100,"-")) -> - | F133: =IF(OR('Tabel 4F ØJ'!F133<5,'Tabel 4 ØJ'!F133<0.5),"-",IFERROR('Tabel 4 ØJ'!F133/'Tabel 4F ØJ'!F133*100,"-")) -> - | G133: =IF(OR('Tabel 4F ØJ'!G133<5,'Tabel 4 ØJ'!G133<0.5),"-",IFERROR('Tabel 4 ØJ'!G133/'Tabel 4F ØJ'!G133*100,"-")) -> - | I133: =IF(OR('Tabel 4F ØJ'!I133<5,'Tabel 4 ØJ'!I133<0.5),"-",IFERROR('Tabel 4 ØJ'!I133/'Tabel 4F ØJ'!I133*100,"-")) -> -
A134: Bibliotekar | C134: =IF(OR('Tabel 4F ØJ'!C134<5,'Tabel 4 ØJ'!C134<0.5),"-",IFERROR('Tabel 4 ØJ'!C134/'Tabel 4F ØJ'!C134*100,"-")) -> - | D134: =IF(OR('Tabel 4F ØJ'!D134<5,'Tabel 4 ØJ'!D134<0.5),"-",IFERROR('Tabel 4 ØJ'!D134/'Tabel 4F ØJ'!D134*100,"-")) -> - | E134: =IF(OR('Tabel 4F ØJ'!E134<5,'Tabel 4 ØJ'!E134<0.5),"-",IFERROR('Tabel 4 ØJ'!E134/'Tabel 4F ØJ'!E134*100,"-")) -> - | F134: =IF(OR('Tabel 4F ØJ'!F134<5,'Tabel 4 ØJ'!F134<0.5),"-",IFERROR('Tabel 4 ØJ'!F134/'Tabel 4F ØJ'!F134*100,"-")) -> - | G134: =IF(OR('Tabel 4F ØJ'!G134<5,'Tabel 4 ØJ'!G134<0.5),"-",IFERROR('Tabel 4 ØJ'!G134/'Tabel 4F ØJ'!G134*100,"-")) -> - | I134: =IF(OR('Tabel 4F ØJ'!I134<5,'Tabel 4 ØJ'!I134<0.5),"-",IFERROR('Tabel 4 ØJ'!I134/'Tabel 4F ØJ'!I134*100,"-")) -> 25
A135: Musikudd. | C135: =IF(OR('Tabel 4F ØJ'!C135<5,'Tabel 4 ØJ'!C135<0.5),"-",IFERROR('Tabel 4 ØJ'!C135/'Tabel 4F ØJ'!C135*100,"-")) -> - | D135: =IF(OR('Tabel 4F ØJ'!D135<5,'Tabel 4 ØJ'!D135<0.5),"-",IFERROR('Tabel 4 ØJ'!D135/'Tabel 4F ØJ'!D135*100,"-")) -> - | E135: =IF(OR('Tabel 4F ØJ'!E135<5,'Tabel 4 ØJ'!E135<0.5),"-",IFERROR('Tabel 4 ØJ'!E135/'Tabel 4F ØJ'!E135*100,"-")) -> - | F135: =IF(OR('Tabel 4F ØJ'!F135<5,'Tabel 4 ØJ'!F135<0.5),"-",IFERROR('Tabel 4 ØJ'!F135/'Tabel 4F ØJ'!F135*100,"-")) -> - | G135: =IF(OR('Tabel 4F ØJ'!G135<5,'Tabel 4 ØJ'!G135<0.5),"-",IFERROR('Tabel 4 ØJ'!G135/'Tabel 4F ØJ'!G135*100,"-")) -> - | I135: =IF(OR('Tabel 4F ØJ'!I135<5,'Tabel 4 ØJ'!I135<0.5),"-",IFERROR('Tabel 4 ØJ'!I135/'Tabel 4F ØJ'!I135*100,"-")) -> -
A136: Teolog | C136: =IF(OR('Tabel 4F ØJ'!C136<5,'Tabel 4 ØJ'!C136<0.5),"-",IFERROR('Tabel 4 ØJ'!C136/'Tabel 4F ØJ'!C136*100,"-")) -> - | D136: =IF(OR('Tabel 4F ØJ'!D136<5,'Tabel 4 ØJ'!D136<0.5),"-",IFERROR('Tabel 4 ØJ'!D136/'Tabel 4F ØJ'!D136*100,"-")) -> - | E136: =IF(OR('Tabel 4F ØJ'!E136<5,'Tabel 4 ØJ'!E136<0.5),"-",IFERROR('Tabel 4 ØJ'!E136/'Tabel 4F ØJ'!E136*100,"-")) -> - | F136: =IF(OR('Tabel 4F ØJ'!F136<5,'Tabel 4 ØJ'!F136<0.5),"-",IFERROR('Tabel 4 ØJ'!F136/'Tabel 4F ØJ'!F136*100,"-")) -> - | G136: =IF(OR('Tabel 4F ØJ'!G136<5,'Tabel 4 ØJ'!G136<0.5),"-",IFERROR('Tabel 4 ØJ'!G136/'Tabel 4F ØJ'!G136*100,"-")) -> - | I136: =IF(OR('Tabel 4F ØJ'!I136<5,'Tabel 4 ØJ'!I136<0.5),"-",IFERROR('Tabel 4 ØJ'!I136/'Tabel 4F ØJ'!I136*100,"-")) -> -
A137: Psykolog | C137: =IF(OR('Tabel 4F ØJ'!C137<5,'Tabel 4 ØJ'!C137<0.5),"-",IFERROR('Tabel 4 ØJ'!C137/'Tabel 4F ØJ'!C137*100,"-")) -> - | D137: =IF(OR('Tabel 4F ØJ'!D137<5,'Tabel 4 ØJ'!D137<0.5),"-",IFERROR('Tabel 4 ØJ'!D137/'Tabel 4F ØJ'!D137*100,"-")) -> - | E137: =IF(OR('Tabel 4F ØJ'!E137<5,'Tabel 4 ØJ'!E137<0.5),"-",IFERROR('Tabel 4 ØJ'!E137/'Tabel 4F ØJ'!E137*100,"-")) -> 4.545454545 | F137: =IF(OR('Tabel 4F ØJ'!F137<5,'Tabel 4 ØJ'!F137<0.5),"-",IFERROR('Tabel 4 ØJ'!F137/'Tabel 4F ØJ'!F137*100,"-")) -> - | G137: =IF(OR('Tabel 4F ØJ'!G137<5,'Tabel 4 ØJ'!G137<0.5),"-",IFERROR('Tabel 4 ØJ'!G137/'Tabel 4F ØJ'!G137*100,"-")) -> - | I137: =IF(OR('Tabel 4F ØJ'!I137<5,'Tabel 4 ØJ'!I137<0.5),"-",IFERROR('Tabel 4 ØJ'!I137/'Tabel 4F ØJ'!I137*100,"-")) -> 3.278688525
